Workbook

Sheet Introduction
C4: Joint Monitoring Programme for Water Supply, Sanitation and Hygiene
C6: Estimates on household water, sanitation and hygiene by wealth quintile and sub-national region in
C7: =+Water!B5 -> Burundi
C9: Updated May 2021
C11: Follow the links below to find the following information:
C13: JMP Estimates
C14: WASH status and trends by wealth quintile (customized quintiles made without water and sanitation assets)
C15: Water
C16: Sanitation
C17: Hygiene
C19: Data inputs
C20: customized wealth quintiles and subnational data:
C21: =IF(INDIRECT(CONCATENATE("Water","!B105"))=0,"",INDIRECT(CONCATENATE("Water","!B105"))) -> MICS05
C22: =IF(INDIRECT(CONCATENATE("Water","!B106"))=0,"",INDIRECT(CONCATENATE("Water","!B106"))) -> DHS10
C23: =IF(INDIRECT(CONCATENATE("Water","!B107"))=0,"",INDIRECT(CONCATENATE("Water","!B107"))) -> MIS12
C24: =IF(INDIRECT(CONCATENATE("Water","!B108"))=0,"",INDIRECT(CONCATENATE("Water","!B108"))) -> DHS17
C25: =IF(INDIRECT(CONCATENATE("Water","!B109"))=0,"",INDIRECT(CONCATENATE("Water","!B109"))) -> 
C26: =IF(INDIRECT(CONCATENATE("Water","!B110"))=0,"",INDIRECT(CONCATENATE("Water","!B110"))) -> 
C27: =IF(INDIRECT(CONCATENATE("Water","!B111"))=0,"",INDIRECT(CONCATENATE("Water","!B111"))) -> 
C28: =IF(INDIRECT(CONCATENATE("Water","!B112"))=0,"",INDIRECT(CONCATENATE("Water","!B112"))) -> 
C29: =IF(INDIRECT(CONCATENATE("Water","!B113"))=0,"",INDIRECT(CONCATENATE("Water","!B113"))) -> 
C30: =IF(INDIRECT(CONCATENATE("Water","!B114"))=0,"",INDIRECT(CONCATENATE("Water","!B114"))) -> 
C31: =IF(INDIRECT(CONCATENATE("Water","!B115"))=0,"",INDIRECT(CONCATENATE("Water","!B115"))) -> 
C32: =IF(INDIRECT(CONCATENATE("Water","!B116"))=0,"",INDIRECT(CONCATENATE("Water","!B116"))) -> 
L55: =+IF(ISNUMBER(M48), "", "Insufficient data to estimate safely managed sanitation services at national level") -> Insufficient data to estimate safely managed sanitation services at national level

Sheet Water
A1: BGD
B4: Summary of trends in use of drinking water by wealth quintile (%)
B5: =IF(ISERROR(INDIRECT(CONCATENATE($B105,"!A2"))),"",INDIRECT(CONCATENATE($B105,"!A2"))) -> Burundi
B7: =B118 -> National use of drinking water sources, 2000–2020 | J7: =B218 -> Urban use of drinking water sources, 2000–2020 | R7: =B318 -> Rural use of drinking water sources, 2000–2020
B31: =IF(ISERROR(INDIRECT(CONCATENATE($B105,"!A2"))),"",INDIRECT(CONCATENATE($B105,"!A2"))) -> Burundi | F31: Poorest | J31: Poor | N31: Middle | R31: Rich | V31: Richest
F32: Basic | G32: Limited | H32: Unimproved | I32: Surface water | J32: Basic | K32: Limited | L32: Unimproved | M32: Surface water | N32: Basic | O32: Limited | P32: Unimproved | Q32: Surface water | R32: Basic | S32: Limited | T32: Unimproved | U32: Surface water | V32: Basic | W32: Limited | X32: Unimproved | Y32: Surface water
B33: NATIONAL | D33: Estimate | E33: =C99 -> 2000 | F33: =E99 -> 37.20055583 | G33: =F99 -> 16.58358004 | H33: 20.4949659 | I33: 25.72089823 | J33: =J99 -> 43.88551549 | K33: =K99 -> 18.75313492 | L33: 22.61043814 | M33: 14.75091145 | N33: =O99 -> 44.18783701 | O33: =P99 -> 18.01480061 | P33: 18.57393213 | Q33: 19.22343025 | R33: =T99 -> 45.97057145 | S33: =U99 -> 17.23105561 | T33: 19.82942252 | U33: 16.96895041 | V33: =Y99 -> 60.27765184 | W33: =Z99 -> 12.85449987 | X33: 15.0186197 | Y33: 11.84922859
E34: =C100 -> 2020 | F34: =E100 -> 58.15634939 | G34: 25.92543185 | H34: 15.83318682 | I34: 0.08503194146 | J34: =J100 -> 59.34663824 | K34: 25.35997359 | L34: 12.67584385 | M34: 2.617544318 | N34: =O100 -> 60.92418182 | O34: 24.83798851 | P34: 14.23782967 | Q34: 0 | R34: =T100 -> 62.12513604 | S34: 23.28623813 | T34: 13.44566509 | U34: 1.142960746 | V34: =Y100 -> 82.00462331 | W34: 17.48788129 | X34: 0.507495398 | Y34: 0
B36: URBAN | D36: Estimate | E36: =C199 -> 2000 | F36: =E199 -> 37.61963684 | G36: =F199 -> 9.041757701 | H36: 24.84253866 | I36: 28.4960668 | J36: =J199 -> 60.97329042 | K36: =K199 -> 8.482737736 | L36: 24.53914194 | M36: 6.004829911 | N36: =O199 -> 73.76047538 | O36: =P199 -> 5.158461783 | P36: 15.5812418 | Q36: 5.499821037 | R36: =T199 -> 89.61147956 | S36: =U199 -> 2.735290107 | T36: 5.960920514 | U36: 1.692309822 | V36: =Y199 -> 97.24254844 | W36: =Z199 -> 1.877603249 | X36: 0.7885294744 | Y36: 0.09131884006
E37: =C200 -> 2020 | F37: =E200 -> 80.62261578 | G37: 19.37738422 | H37: 0 | I37: 0 | J37: =J200 -> 87.78689487 | K37: 12.21310513 | L37: 0 | M37: 0 | N37: =O200 -> 93.46359446 | O37: 6.536405542 | P37: 0 | Q37: 0 | R37: =T200 -> 97.03802297 | S37: 2.961977031 | T37: 0 | U37: 0 | V37: =Y200 -> 97.777945 | W37: 1.887940929 | X37: 0.2979311356 | Y37: 0.03618293663
B39: RURAL | D39: Estimate | E39: =C299 -> 2000 | F39: =E299 -> 37.17580391 | G39: =F299 -> 16.71277631 | H39: 20.37326427 | I39: 25.73815551 | J39: =J299 -> 44.48582069 | K39: =K299 -> 18.81139221 | L39: 22.37986529 | M39: 14.32292181 | N39: =O299 -> 42.81469488 | O39: =P299 -> 18.24346777 | P39: 19.66984956 | Q39: 19.2719878 | R39: =T299 -> 45.90600225 | S39: =U299 -> 17.30382577 | T39: 19.60030121 | U39: 17.18987077 | V39: =Y299 -> 51.61527171 | W39: =Z299 -> 18.32245645 | X39: 15.12166277 | Y39: 14.94060907
E40: =C300 -> 2020 | F40: =E300 -> 57.72662697 | G40: 25.95161644 | H40: 15.82240768 | I40: 0.4993489099 | J40: =J300 -> 58.77011346 | K40: 24.85168617 | L40: 13.6165924 | M40: 2.761607962 | N40: =O300 -> 60.84645736 | O40: 25.92685495 | P40: 13.2266877 | Q40: 0 | R40: =T300 -> 60.69674212 | S40: 22.87905283 | T40: 14.36596614 | U40: 2.058238911 | V40: =Y300 -> 66.82628847 | W40: 23.72208302 | X40: 9.451628515 | Y40: 0
A97: NATIONAL | D97: Poorest | I97: Poor | N97: Middle | S97: Rich | X97: Richest
D98: Improved | E98: Basic | F98: Limited | G98: Unimproved | H98: Surface water | I98: Improved | J98: Basic | K98: Limited | L98: Unimproved | M98: Surface water | N98: Improved | O98: Basic | P98: Limited | Q98: Unimproved | R98: Surface water | S98: Improved | T98: Basic | U98: Limited | V98: Unimproved | W98: Surface water | X98: Improved | Y98: Basic | Z98: Limited | AA98: Unimproved | AB98: Surface water
A99: Forecast period: | C99: 2000 | D99: =IF((D101+H101)>100,D101*100/(D101+H101),D101) -> 53.78413587 | E99: =D99*AVERAGEIF(E105:E116,">0")/100 -> 37.20055583 | F99: =D99*(100-AVERAGEIF(E105:E116,">0"))/100 -> 16.58358004 | G99: =100-(E99+F99+H99) -> 20.4949659 | H99: =IF((D101+H101)>100,H101*100/(D101+H101),H101) -> 25.72089823 | I99: =IF((I101+M101)>100,I101*100/(I101+M101),I101) -> 62.63865041 | J99: =I99*AVERAGEIF(J105:J116,">0")/100 -> 43.88551549 | K99: =I99*(100-AVERAGEIF(J105:J116,">0"))/100 -> 18.75313492 | L99: =100-(J99+K99+M99) -> 22.61043814 | M99: =IF((I101+M101)>100,M101*100/(I101+M101),M101) -> 14.75091145 | N99: =IF((N101+R101)>100,N101*100/(N101+R101),N101) -> 62.20263762 | O99: =N99*AVERAGEIF(O105:O116,">0")/100 -> 44.18783701 | P99: =N99*(100-AVERAGEIF(O105:O116,">0"))/100 -> 18.01480061 | Q99: =100-(O99+P99+R99) -> 18.57393213 | R99: =IF((N101+R101)>100,R101*100/(N101+R101),R101) -> 19.22343025 | S99: =IF((S101+W101)>100,S101*100/(S101+W101),S101) -> 63.20162706 | T99: =S99*AVERAGEIF(T105:T116,">0")/100 -> 45.97057145 | U99: =S99*(100-AVERAGEIF(T105:T116,">0"))/100 -> 17.23105561 | V99: =100-(T99+U99+W99) -> 19.82942252 | W99: =IF((S101+W101)>100,W101*100/(S101+W101),W101) -> 16.96895041 | X99: =IF((X101+AB101)>100,X101*100/(X101+AB101),X101) -> 73.13215171 | Y99: =X99*AVERAGEIF(Y105:Y116,">0")/100 -> 60.27765184 | Z99: =X99*(100-AVERAGEIF(Y105:Y116,">0"))/100 -> 12.85449987 | AA99: =100-(Y99+Z99+AB99) -> 15.0186197 | AB99: =IF((X101+AB101)>100,AB101*100/(X101+AB101),AB101) -> 11.84922859
C100: 2020 | D100: =IF((D102+H102)>100,D102*100/(D102+H102),D102) -> 84.08178123 | E100: =D100*AVERAGEIF(E105:E116,">0")/100 -> 58.15634939 | F100: =D100*(100-AVERAGEIF(E105:E116,">0"))/100 -> 25.92543185 | G100: =100-(E100+F100+H100) -> 15.83318682 | H100: =IF((D102+H102)>100,H102*100/(D102+H102),H102) -> 0.08503194146 | I100: =IF((I102+M102)>100,I102*100/(I102+M102),I102) -> 84.70661183 | J100: =I100*AVERAGEIF(J105:J116,">0")/100 -> 59.34663824 | K100: =I100*(100-AVERAGEIF(J105:J116,">0"))/100 -> 25.35997359 | L100: =100-(J100+K100+M100) -> 12.67584385 | M100: =IF((I102+M102)>100,M102*100/(I102+M102),M102) -> 2.617544318 | N100: =IF((N102+R102)>100,N102*100/(N102+R102),N102) -> 85.76217033 | O100: =N100*AVERAGEIF(O105:O116,">0")/100 -> 60.92418182 | P100: =N100*(100-AVERAGEIF(O105:O116,">0"))/100 -> 24.83798851 | Q100: =100-(O100+P100+R100) -> 14.23782967 | R100: =IF((N102+R102)>100,R102*100/(N102+R102),R102) -> 0 | S100: =IF((S102+W102)>100,S102*100/(S102+W102),S102) -> 85.41137417 | T100: =S100*AVERAGEIF(T105:T116,">0")/100 -> 62.12513604 | U100: =S100*(100-AVERAGEIF(T105:T116,">0"))/100 -> 23.28623813 | V100: =100-(T100+U100+W100) -> 13.44566509 | W100: =IF((S102+W102)>100,W102*100/(S102+W102),W102) -> 1.142960746 | X100: =IF((X102+AB102)>100,X102*100/(X102+AB102),X102) -> 99.4925046 | Y100: =X100*AVERAGEIF(Y105:Y116,">0")/100 -> 82.00462331 | Z100: =X100*(100-AVERAGEIF(Y105:Y116,">0"))/100 -> 17.48788129 | AA100: =100-(Y100+Z100+AB100) -> 0.507495398 | AB100: =IF((X102+AB102)>100,AB102*100/(X102+AB102),AB102) -> 0
A101: Regression period: | C101: =MinRegYear(C99,C105:C116) -> 2003 | D101: =IF(MAX(C105:C116)-MIN(C105:C116)<5,AVERAGEIF(C105:C116,">0",D105:D116), IF(FORECAST($C101,D$105:D$116,$C$105:$C$116)<0,0, IF(FORECAST($C101,D$105:D$116,$C$105:$C$116)>100,100, FORECAST($C101,D$105:D$116,$C$105:$C$116)))) -> 53.78413587 | H101: =IF(MAX(C105:C116)-MIN(C105:C116)<5,AVERAGEIF(C105:C116,">0",H105:H116), IF(FORECAST($C101,H$105:H$116,$C$105:$C$116)<0,0, IF(FORECAST($C101,H$105:H$116,$C$105:$C$116)>100,100, FORECAST($C101,H$105:H$116,$C$105:$C$116)))) -> 25.72089823 | I101: =IF(MAX(C105:C116)-MIN(C105:C116)<5,AVERAGEIF(C105:C116,">0",I105:I116), IF(FORECAST($C101,I$105:I$116,$C$105:$C$116)<0,0, IF(FORECAST($C101,I$105:I$116,$C$105:$C$116)>100,100, FORECAST($C101,I$105:I$116,$C$105:$C$116)))) -> 62.63865041 | M101: =IF(MAX(C105:C116)-MIN(C105:C116)<5,AVERAGEIF(C105:C116,">0",M105:M116), IF(FORECAST($C101,M$105:M$116,$C$105:$C$116)<0,0, IF(FORECAST($C101,M$105:M$116,$C$105:$C$116)>100,100, FORECAST($C101,M$105:M$116,$C$105:$C$116)))) -> 14.75091145 | N101: =IF(MAX(C105:C116)-MIN(C105:C116)<5,AVERAGEIF(C105:C116,">0",N105:N116), IF(FORECAST($C101,N$105:N$116,$C$105:$C$116)<0,0, IF(FORECAST($C101,N$105:N$116,$C$105:$C$116)>100,100, FORECAST($C101,N$105:N$116,$C$105:$C$116)))) -> 62.20263762 | R101: =IF(MAX(C105:C116)-MIN(C105:C116)<5,AVERAGEIF(C105:C116,">0",R105:R116), IF(FORECAST($C101,R$105:R$116,$C$105:$C$116)<0,0, IF(FORECAST($C101,R$105:R$116,$C$105:$C$116)>100,100, FORECAST($C101,R$105:R$116,$C$105:$C$116)))) -> 19.22343025 | S101: =IF(MAX(C105:C116)-MIN(C105:C116)<5,AVERAGEIF(C105:C116,">0",S105:S116), IF(FORECAST($C101,S$105:S$116,$C$105:$C$116)<0,0, IF(FORECAST($C101,S$105:S$116,$C$105:$C$116)>100,100, FORECAST($C101,S$105:S$116,$C$105:$C$116)))) -> 63.20162706 | W101: =IF(MAX(C105:C116)-MIN(C105:C116)<5,AVERAGEIF(C105:C116,">0",W105:W116), IF(FORECAST($C101,W$105:W$116,$C$105:$C$116)<0,0, IF(FORECAST($C101,W$105:W$116,$C$105:$C$116)>100,100, FORECAST($C101,W$105:W$116,$C$105:$C$116)))) -> 16.96895041 | X101: =IF(MAX(C105:C116)-MIN(C105:C116)<5,AVERAGEIF(C105:C116,">0",X105:X116), IF(FORECAST($C101,X$105:X$116,$C$105:$C$116)<0,0, IF(FORECAST($C101,X$105:X$116,$C$105:$C$116)>100,100, FORECAST($C101,X$105:X$116,$C$105:$C$116)))) -> 73.13215171 | AB101: =IF(MAX(C105:C116)-MIN(C105:C116)<5,AVERAGEIF(C105:C116,">0",AB105:AB116), IF(FORECAST($C101,AB$105:AB$116,$C$105:$C$116)<0,0, IF(FORECAST($C101,AB$105:AB$116,$C$105:$C$116)>100,100, FORECAST($C101,AB$105:AB$116,$C$105:$C$116)))) -> 11.84922859
C102: =MaxRegYear(C100,C105:C116) -> 2019 | D102: =IF(MAX(C105:C116)-MIN(C105:C116)<5,AVERAGEIF(C105:C116,">0",D105:D116), IF(FORECAST($C102,D$105:D$116,$C$105:$C$116)<0,0, IF(FORECAST($C102,D$105:D$116,$C$105:$C$116)>100,100, FORECAST($C102,D$105:D$116,$C$105:$C$116)))) -> 84.08178123 | H102: =IF(MAX(C105:C116)-MIN(C105:C116)<5,AVERAGEIF(C105:C116,">0",H105:H116), IF(FORECAST($C102,H$105:H$116,$C$105:$C$116)<0,0, IF(FORECAST($C102,H$105:H$116,$C$105:$C$116)>100,100, FORECAST($C102,H$105:H$116,$C$105:$C$116)))) -> 0.08503194146 | I102: =IF(MAX(C105:C116)-MIN(C105:C116)<5,AVERAGEIF(C105:C116,">0",I105:I116), IF(FORECAST($C102,I$105:I$116,$C$105:$C$116)<0,0, IF(FORECAST($C102,I$105:I$116,$C$105:$C$116)>100,100, FORECAST($C102,I$105:I$116,$C$105:$C$116)))) -> 84.70661183 | M102: =IF(MAX(C105:C116)-MIN(C105:C116)<5,AVERAGEIF(C105:C116,">0",M105:M116), IF(FORECAST($C102,M$105:M$116,$C$105:$C$116)<0,0, IF(FORECAST($C102,M$105:M$116,$C$105:$C$116)>100,100, FORECAST($C102,M$105:M$116,$C$105:$C$116)))) -> 2.617544318 | N102: =IF(MAX(C105:C116)-MIN(C105:C116)<5,AVERAGEIF(C105:C116,">0",N105:N116), IF(FORECAST($C102,N$105:N$116,$C$105:$C$116)<0,0, IF(FORECAST($C102,N$105:N$116,$C$105:$C$116)>100,100, FORECAST($C102,N$105:N$116,$C$105:$C$116)))) -> 85.76217033 | R102: =IF(MAX(C105:C116)-MIN(C105:C116)<5,AVERAGEIF(C105:C116,">0",R105:R116), IF(FORECAST($C102,R$105:R$116,$C$105:$C$116)<0,0, IF(FORECAST($C102,R$105:R$116,$C$105:$C$116)>100,100, FORECAST($C102,R$105:R$116,$C$105:$C$116)))) -> 0 | S102: =IF(MAX(C105:C116)-MIN(C105:C116)<5,AVERAGEIF(C105:C116,">0",S105:S116), IF(FORECAST($C102,S$105:S$116,$C$105:$C$116)<0,0, IF(FORECAST($C102,S$105:S$116,$C$105:$C$116)>100,100, FORECAST($C102,S$105:S$116,$C$105:$C$116)))) -> 85.41137417 | W102: =IF(MAX(C105:C116)-MIN(C105:C116)<5,AVERAGEIF(C105:C116,">0",W105:W116), IF(FORECAST($C102,W$105:W$116,$C$105:$C$116)<0,0, IF(FORECAST($C102,W$105:W$116,$C$105:$C$116)>100,100, FORECAST($C102,W$105:W$116,$C$105:$C$116)))) -> 1.142960746 | X102: =IF(MAX(C105:C116)-MIN(C105:C116)<5,AVERAGEIF(C105:C116,">0",X105:X116), IF(FORECAST($C102,X$105:X$116,$C$105:$C$116)<0,0, IF(FORECAST($C102,X$105:X$116,$C$105:$C$116)>100,100, FORECAST($C102,X$105:X$116,$C$105:$C$116)))) -> 99.4925046 | AB102: =IF(MAX(C105:C116)-MIN(C105:C116)<5,AVERAGEIF(C105:C116,">0",AB105:AB116), IF(FORECAST($C102,AB$105:AB$116,$C$105:$C$116)<0,0, IF(FORECAST($C102,AB$105:AB$116,$C$105:$C$116)>100,100, FORECAST($C102,AB$105:AB$116,$C$105:$C$116)))) -> 0
B104: Survey | C104: Year | D104: Improved | E104: % Improved < = 30min | H104: Surface water | I104: Improved | J104: % Improved < = 30min | M104: Surface water | N104: Improved | O104: % Improved < = 30min | R104: Surface water | S104: Improved | T104: % Improved < = 30min | W104: Surface water | X104: Improved | Y104: % Improved < = 30min | AB104: Surface water
B105: MICS05 | C105: 2005 | D105: =IF(ISERROR(INDIRECT(CONCATENATE($B105,"!C16"))),"",INDIRECT(CONCATENATE($B105,"!C16"))) -> 54.58007713 | E105: =IF(ISERROR(INDIRECT(CONCATENATE($B105,"!C23"))),"",INDIRECT(CONCATENATE($B105,"!C23"))) -> 66.97418663 | H105: =IF(ISERROR(INDIRECT(CONCATENATE($B105,"!C21"))),"",INDIRECT(CONCATENATE($B105,"!C21"))) -> 25.85492268 | I105: =IF(ISERROR(INDIRECT(CONCATENATE($B105,"!D16"))),"",INDIRECT(CONCATENATE($B105,"!D16"))) -> 64.0465884 | J105: =IF(ISERROR(INDIRECT(CONCATENATE($B105,"!D23"))),"",INDIRECT(CONCATENATE($B105,"!D23"))) -> 66.10352859 | M105: =IF(ISERROR(INDIRECT(CONCATENATE($B105,"!D21"))),"",INDIRECT(CONCATENATE($B105,"!D21"))) -> 14.43157077 | N105: =IF(ISERROR(INDIRECT(CONCATENATE($B105,"!E16"))),"",INDIRECT(CONCATENATE($B105,"!E16"))) -> 62.26824915 | O105: =IF(ISERROR(INDIRECT(CONCATENATE($B105,"!E23"))),"",INDIRECT(CONCATENATE($B105,"!E23"))) -> 65.1385256 | R105: =IF(ISERROR(INDIRECT(CONCATENATE($B105,"!E21"))),"",INDIRECT(CONCATENATE($B105,"!E21"))) -> 19.47313261 | S105: =IF(ISERROR(INDIRECT(CONCATENATE($B105,"!F16"))),"",INDIRECT(CONCATENATE($B105,"!F16"))) -> 65.53566995 | T105: =IF(ISERROR(INDIRECT(CONCATENATE($B105,"!F23"))),"",INDIRECT(CONCATENATE($B105,"!F23"))) -> 68.66557373 | W105: =IF(ISERROR(INDIRECT(CONCATENATE($B105,"!F21"))),"",INDIRECT(CONCATENATE($B105,"!F21"))) -> 15.25389573 | X105: =IF(ISERROR(INDIRECT(CONCATENATE($B105,"!G16"))),"",INDIRECT(CONCATENATE($B105,"!G16"))) -> 74.97596568 | Y105: =IF(ISERROR(INDIRECT(CONCATENATE($B105,"!G23"))),"",INDIRECT(CONCATENATE($B105,"!G23"))) -> 78.05769289 | AB105: =IF(ISERROR(INDIRECT(CONCATENATE($B105,"!G221"))),"",INDIRECT(CONCATENATE($B105,"!G21"))) -> 12.09174726
B106: DHS10 | C106: 2010 | D106: 68.68353025 | E106: 65.97051151 | H106: 11.56913225 | I106: 73.13260763 | J106: 69.57384891 | M106: 8.871062582 | N106: 75.9099509 | O106: 68.83022707 | R106: 8.526562418 | S106: 75.08401701 | T106: 68.41319258 | W106: 10.29782952 | X106: 84.95807935 | Y106: 80.7975214 | AB106: 3.351494439
B107: MIS12 | C107: 2012 | D107: 75.70375161 | E107: 73.88080977 | H107: 7.398809128 | I107: 77.11830222 | J107: 70.61027438 | M107: 5.852400981 | N107: 77.60524209 | O107: 77.12807502 | R107: 4.805630425 | S107: 73.72395517 | T107: 77.68026615 | W107: 7.081316142 | X107: 91.03222002 | Y107: 85.69943378 | AB107: 1.168777981
B108: DHS17 | C108: 2017 | D108: 76.76447521 | E108: 69.84013133 | H108: 6.788996276 | I108: 80.39302624 | J108: 73.95794858 | M108: 5.581877203 | N108: 80.14617375 | O108: 73.05727701 | R108: 5.045508588 | S108: 82.88236032 | T108: 76.18646111 | W108: 3.590780924 | X108: 94.28304759 | Y108: 85.13701519 | AB108: 0.9608491085
D111: =IF(ISERROR(INDIRECT(CONCATENATE($B111,"!C16"))),"",INDIRECT(CONCATENATE($B111,"!C16"))) ->  | E111: =IF(ISERROR(INDIRECT(CONCATENATE($B111,"!C23"))),"",INDIRECT(CONCATENATE($B111,"!C23"))) ->  | H111: =IF(ISERROR(INDIRECT(CONCATENATE($B111,"!C21"))),"",INDIRECT(CONCATENATE($B111,"!C21"))) ->  | I111: =IF(ISERROR(INDIRECT(CONCATENATE($B111,"!D16"))),"",INDIRECT(CONCATENATE($B111,"!D16"))) ->  | J111: =IF(ISERROR(INDIRECT(CONCATENATE($B111,"!D23"))),"",INDIRECT(CONCATENATE($B111,"!D23"))) ->  | M111: =IF(ISERROR(INDIRECT(CONCATENATE($B111,"!D21"))),"",INDIRECT(CONCATENATE($B111,"!D21"))) ->  | N111: =IF(ISERROR(INDIRECT(CONCATENATE($B111,"!E16"))),"",INDIRECT(CONCATENATE($B111,"!E16"))) ->  | O111: =IF(ISERROR(INDIRECT(CONCATENATE($B111,"!E23"))),"",INDIRECT(CONCATENATE($B111,"!E23"))) ->  | R111: =IF(ISERROR(INDIRECT(CONCATENATE($B111,"!E21"))),"",INDIRECT(CONCATENATE($B111,"!E21"))) ->  | S111: =IF(ISERROR(INDIRECT(CONCATENATE($B111,"!F16"))),"",INDIRECT(CONCATENATE($B111,"!F16"))) ->  | T111: =IF(ISERROR(INDIRECT(CONCATENATE($B111,"!F23"))),"",INDIRECT(CONCATENATE($B111,"!F23"))) ->  | W111: =IF(ISERROR(INDIRECT(CONCATENATE($B111,"!F21"))),"",INDIRECT(CONCATENATE($B111,"!F21"))) ->  | X111: =IF(ISERROR(INDIRECT(CONCATENATE($B111,"!G16"))),"",INDIRECT(CONCATENATE($B111,"!G16"))) ->  | Y111: =IF(ISERROR(INDIRECT(CONCATENATE($B111,"!G23"))),"",INDIRECT(CONCATENATE($B111,"!G23"))) ->  | AB111: =IF(ISERROR(INDIRECT(CONCATENATE($B111,"!G221"))),"",INDIRECT(CONCATENATE($B111,"!G21"))) -> 
D112: =IF(ISERROR(INDIRECT(CONCATENATE($B112,"!C16"))),"",INDIRECT(CONCATENATE($B112,"!C16"))) ->  | E112: =IF(ISERROR(INDIRECT(CONCATENATE($B112,"!C23"))),"",INDIRECT(CONCATENATE($B112,"!C23"))) ->  | H112: =IF(ISERROR(INDIRECT(CONCATENATE($B112,"!C21"))),"",INDIRECT(CONCATENATE($B112,"!C21"))) ->  | I112: =IF(ISERROR(INDIRECT(CONCATENATE($B112,"!D16"))),"",INDIRECT(CONCATENATE($B112,"!D16"))) ->  | J112: =IF(ISERROR(INDIRECT(CONCATENATE($B112,"!D23"))),"",INDIRECT(CONCATENATE($B112,"!D23"))) ->  | M112: =IF(ISERROR(INDIRECT(CONCATENATE($B112,"!D21"))),"",INDIRECT(CONCATENATE($B112,"!D21"))) ->  | N112: =IF(ISERROR(INDIRECT(CONCATENATE($B112,"!E16"))),"",INDIRECT(CONCATENATE($B112,"!E16"))) ->  | O112: =IF(ISERROR(INDIRECT(CONCATENATE($B112,"!E23"))),"",INDIRECT(CONCATENATE($B112,"!E23"))) ->  | R112: =IF(ISERROR(INDIRECT(CONCATENATE($B112,"!E21"))),"",INDIRECT(CONCATENATE($B112,"!E21"))) ->  | S112: =IF(ISERROR(INDIRECT(CONCATENATE($B112,"!F16"))),"",INDIRECT(CONCATENATE($B112,"!F16"))) ->  | T112: =IF(ISERROR(INDIRECT(CONCATENATE($B112,"!F23"))),"",INDIRECT(CONCATENATE($B112,"!F23"))) ->  | W112: =IF(ISERROR(INDIRECT(CONCATENATE($B112,"!F21"))),"",INDIRECT(CONCATENATE($B112,"!F21"))) ->  | X112: =IF(ISERROR(INDIRECT(CONCATENATE($B112,"!G16"))),"",INDIRECT(CONCATENATE($B112,"!G16"))) ->  | Y112: =IF(ISERROR(INDIRECT(CONCATENATE($B112,"!G23"))),"",INDIRECT(CONCATENATE($B112,"!G23"))) ->  | AB112: =IF(ISERROR(INDIRECT(CONCATENATE($B112,"!G221"))),"",INDIRECT(CONCATENATE($B112,"!G21"))) -> 
B118: =CONCATENATE("National use of drinking water sources, ",C99,"–",C100) -> National use of drinking water sources, 2000–2020 | S118: Data points used for regression
E153: =IF(ISERROR(INDIRECT(CONCATENATE($B153,"!M18"))),"",INDIRECT(CONCATENATE($B153,"!M18"))) ->  | F153: =IF(ISERROR(INDIRECT(CONCATENATE($B153,"!M19"))),"",INDIRECT(CONCATENATE($B153,"!M19"))) ->  | G153: =IF(ISERROR(INDIRECT(CONCATENATE($B153,"!M20"))),"",INDIRECT(CONCATENATE($B153,"!M20"))) ->  | H153: =IF(ISERROR(INDIRECT(CONCATENATE($B153,"!M21"))),"",INDIRECT(CONCATENATE($B153,"!M21"))) ->  | J153: =IF(ISERROR(INDIRECT(CONCATENATE($B153,"!N18"))),"",INDIRECT(CONCATENATE($B153,"!N18"))) ->  | K153: =IF(ISERROR(INDIRECT(CONCATENATE($B153,"!N19"))),"",INDIRECT(CONCATENATE($B153,"!N19"))) ->  | L153: =IF(ISERROR(INDIRECT(CONCATENATE($B153,"!N20"))),"",INDIRECT(CONCATENATE($B153,"!N20"))) ->  | M153: =IF(ISERROR(INDIRECT(CONCATENATE($B153,"!N21"))),"",INDIRECT(CONCATENATE($B153,"!N21"))) ->  | O153: =IF(ISERROR(INDIRECT(CONCATENATE($B153,"!O18"))),"",INDIRECT(CONCATENATE($B153,"!O18"))) ->  | P153: =IF(ISERROR(INDIRECT(CONCATENATE($B153,"!O19"))),"",INDIRECT(CONCATENATE($B153,"!O19"))) ->  | Q153: =IF(ISERROR(INDIRECT(CONCATENATE($B153,"!O20"))),"",INDIRECT(CONCATENATE($B153,"!O20"))) ->  | R153: =IF(ISERROR(INDIRECT(CONCATENATE($B153,"!O21"))),"",INDIRECT(CONCATENATE($B153,"!O21"))) ->  | T153: =IF(ISERROR(INDIRECT(CONCATENATE($B153,"!P18"))),"",INDIRECT(CONCATENATE($B153,"!P18"))) ->  | U153: =IF(ISERROR(INDIRECT(CONCATENATE($B153,"!P19"))),"",INDIRECT(CONCATENATE($B153,"!P19"))) ->  | V153: =IF(ISERROR(INDIRECT(CONCATENATE($B153,"!P20"))),"",INDIRECT(CONCATENATE($B153,"!P20"))) ->  | W153: =IF(ISERROR(INDIRECT(CONCATENATE($B153,"!P21"))),"",INDIRECT(CONCATENATE($B153,"!P21"))) ->  | Y153: =IF(ISERROR(INDIRECT(CONCATENATE($B153,"!Q18"))),"",INDIRECT(CONCATENATE($B153,"!Q18"))) ->  | Z153: =IF(ISERROR(INDIRECT(CONCATENATE($B153,"!Q19"))),"",INDIRECT(CONCATENATE($B153,"!Q19"))) ->  | AA153: =IF(ISERROR(INDIRECT(CONCATENATE($B153,"!Q20"))),"",INDIRECT(CONCATENATE($B153,"!Q20"))) ->  | AB153: =IF(ISERROR(INDIRECT(CONCATENATE($B153,"!Q21"))),"",INDIRECT(CONCATENATE($B153,"!Q1"))) -> 
A197: URBAN | D197: Poorest | I197: Poor | N197: Middle | S197: Rich | X197: Richest
D198: Improved | E198: Basic | F198: Limited | G198: Unimproved | H198: Surface water | I198: Improved | J198: Basic | K198: Limited | L198: Unimproved | M198: Surface water | N198: Improved | O198: Basic | P198: Limited | Q198: Unimproved | R198: Surface water | S198: Improved | T198: Basic | U198: Limited | V198: Unimproved | W198: Surface water | X198: Improved | Y198: Basic | Z198: Limited | AA198: Unimproved | AB198: Surface water
A199: Forecast period: | C199: 2000 | D199: =IF((D201+H201)>100,D201*100/(D201+H201),D201) -> 46.66139454 | E199: =D199*AVERAGEIF(E205:E216,">0")/100 -> 37.61963684 | F199: =D199*(100-AVERAGEIF(E205:E216,">0"))/100 -> 9.041757701 | G199: =100-(E199+F199+H199) -> 24.84253866 | H199: =IF((D201+H201)>100,H201*100/(D201+H201),H201) -> 28.4960668 | I199: =IF((I201+M201)>100,I201*100/(I201+M201),I201) -> 69.45602815 | J199: =I199*AVERAGEIF(J205:J216,">0")/100 -> 60.97329042 | K199: =I199*(100-AVERAGEIF(J205:J216,">0"))/100 -> 8.482737736 | L199: =100-(J199+K199+M199) -> 24.53914194 | M199: =IF((I201+M201)>100,M201*100/(I201+M201),M201) -> 6.004829911 | N199: =IF((N201+R201)>100,N201*100/(N201+R201),N201) -> 78.91893716 | O199: =N199*AVERAGEIF(O205:O216,">0")/100 -> 73.76047538 | P199: =N199*(100-AVERAGEIF(O205:O216,">0"))/100 -> 5.158461783 | Q199: =100-(O199+P199+R199) -> 15.5812418 | R199: =IF((N201+R201)>100,R201*100/(N201+R201),R201) -> 5.499821037 | S199: =IF((S201+W201)>100,S201*100/(S201+W201),S201) -> 92.34676966 | T199: =S199*AVERAGEIF(T205:T216,">0")/100 -> 89.61147956 | U199: =S199*(100-AVERAGEIF(T205:T216,">0"))/100 -> 2.735290107 | V199: =100-(T199+U199+W199) -> 5.960920514 | W199: =IF((S201+W201)>100,W201*100/(S201+W201),W201) -> 1.692309822 | X199: =IF((X201+AB201)>100,X201*100/(X201+AB201),X201) -> 99.12015169 | Y199: =X199*AVERAGEIF(Y205:Y216,">0")/100 -> 97.24254844 | Z199: =X199*(100-AVERAGEIF(Y205:Y216,">0"))/100 -> 1.877603249 | AA199: =100-(Y199+Z199+AB199) -> 0.7885294744 | AB199: =IF((X201+AB201)>100,AB201*100/(X201+AB201),AB201) -> 0.09131884006
C200: 2020 | D200: =IF((D202+H202)>100,D202*100/(D202+H202),D202) -> 100 | E200: =D200*AVERAGEIF(E205:E216,">0")/100 -> 80.62261578 | F200: =D200*(100-AVERAGEIF(E205:E216,">0"))/100 -> 19.37738422 | G200: =100-(E200+F200+H200) -> 0 | H200: =IF((D202+H202)>100,H202*100/(D202+H202),H202) -> 0 | I200: =IF((I202+M202)>100,I202*100/(I202+M202),I202) -> 100 | J200: =I200*AVERAGEIF(J205:J216,">0")/100 -> 87.78689487 | K200: =I200*(100-AVERAGEIF(J205:J216,">0"))/100 -> 12.21310513 | L200: =100-(J200+K200+M200) -> 0 | M200: =IF((I202+M202)>100,M202*100/(I202+M202),M202) -> 0 | N200: =IF((N202+R202)>100,N202*100/(N202+R202),N202) -> 100 | O200: =N200*AVERAGEIF(O205:O216,">0")/100 -> 93.46359446 | P200: =N200*(100-AVERAGEIF(O205:O216,">0"))/100 -> 6.536405542 | Q200: =100-(O200+P200+R200) -> 0 | R200: =IF((N202+R202)>100,R202*100/(N202+R202),R202) -> 0 | S200: =IF((S202+W202)>100,S202*100/(S202+W202),S202) -> 100 | T200: =S200*AVERAGEIF(T205:T216,">0")/100 -> 97.03802297 | U200: =S200*(100-AVERAGEIF(T205:T216,">0"))/100 -> 2.961977031 | V200: =100-(T200+U200+W200) -> 0 | W200: =IF((S202+W202)>100,W202*100/(S202+W202),W202) -> 0 | X200: =IF((X202+AB202)>100,X202*100/(X202+AB202),X202) -> 99.66588593 | Y200: =X200*AVERAGEIF(Y205:Y216,">0")/100 -> 97.777945 | Z200: =X200*(100-AVERAGEIF(Y205:Y216,">0"))/100 -> 1.887940929 | AA200: =100-(Y200+Z200+AB200) -> 0.2979311356 | AB200: =IF((X202+AB202)>100,AB202*100/(X202+AB202),AB202) -> 0.03618293663
A201: Regression period: | C201: =MinRegYear(C199,C205:C216) -> 2003 | D201: =IF(MAX(C205:C216)-MIN(C205:C216)<5,AVERAGEIF(C205:C216,">0",D205:D216), IF(FORECAST($C201,D$205:D$216,$C$205:$C$216)<0,0, IF(FORECAST($C201,D$205:D$216,$C$205:$C$216)>100,100, FORECAST($C201,D$205:D$216,$C$205:$C$216)))) -> 46.66139454 | H201: =IF(MAX(C205:C216)-MIN(C205:C216)<5,AVERAGEIF(C205:C216,">0",H205:H216), IF(FORECAST($C201,H$205:H$216,$C$205:$C$216)<0,0, IF(FORECAST($C201,H$205:H$216,$C$205:$C$216)>100,100, FORECAST($C201,H$205:H$216,$C$205:$C$216)))) -> 28.4960668 | I201: =IF(MAX(C205:C216)-MIN(C205:C216)<5,AVERAGEIF(C205:C216,">0",I205:I216), IF(FORECAST($C201,I$205:I$216,$C$205:$C$216)<0,0, IF(FORECAST($C201,I$205:I$216,$C$205:$C$216)>100,100, FORECAST($C201,I$205:I$216,$C$205:$C$216)))) -> 69.45602815 | M201: =IF(MAX(C205:C216)-MIN(C205:C216)<5,AVERAGEIF(C205:C216,">0",M205:M216), IF(FORECAST($C201,M$205:M$216,$C$205:$C$216)<0,0, IF(FORECAST($C201,M$205:M$216,$C$205:$C$216)>100,100, FORECAST($C201,M$205:M$216,$C$205:$C$216)))) -> 6.004829911 | N201: =IF(MAX(C205:C216)-MIN(C205:C216)<5,AVERAGEIF(C205:C216,">0",N205:N216), IF(FORECAST($C201,N$205:N$216,$C$205:$C$216)<0,0, IF(FORECAST($C201,N$205:N$216,$C$205:$C$216)>100,100, FORECAST($C201,N$205:N$216,$C$205:$C$216)))) -> 78.91893716 | R201: =IF(MAX(C205:C216)-MIN(C205:C216)<5,AVERAGEIF(C205:C216,">0",R205:R216), IF(FORECAST($C201,R$205:R$216,$C$205:$C$216)<0,0, IF(FORECAST($C201,R$205:R$216,$C$205:$C$216)>100,100, FORECAST($C201,R$205:R$216,$C$205:$C$216)))) -> 5.499821037 | S201: =IF(MAX(C205:C216)-MIN(C205:C216)<5,AVERAGEIF(C205:C216,">0",S205:S216), IF(FORECAST($C201,S$205:S$216,$C$205:$C$216)<0,0, IF(FORECAST($C201,S$205:S$216,$C$205:$C$216)>100,100, FORECAST($C201,S$205:S$216,$C$205:$C$216)))) -> 92.34676966 | W201: =IF(MAX(C205:C216)-MIN(C205:C216)<5,AVERAGEIF(C205:C216,">0",W205:W216), IF(FORECAST($C201,W$205:W$216,$C$205:$C$216)<0,0, IF(FORECAST($C201,W$205:W$216,$C$205:$C$216)>100,100, FORECAST($C201,W$205:W$216,$C$205:$C$216)))) -> 1.692309822 | X201: =IF(MAX(C205:C216)-MIN(C205:C216)<5,AVERAGEIF(C205:C216,">0",X205:X216), IF(FORECAST($C201,X$205:X$216,$C$205:$C$216)<0,0, IF(FORECAST($C201,X$205:X$216,$C$205:$C$216)>100,100, FORECAST($C201,X$205:X$216,$C$205:$C$216)))) -> 99.12015169 | AB201: =IF(MAX(C205:C216)-MIN(C205:C216)<5,AVERAGEIF(C205:C216,">0",AB205:AB216), IF(FORECAST($C201,AB$205:AB$216,$C$205:$C$216)<0,0, IF(FORECAST($C201,AB$205:AB$216,$C$205:$C$216)>100,100, FORECAST($C201,AB$205:AB$216,$C$205:$C$216)))) -> 0.09131884006
C202: =MaxRegYear(C200,C205:C216) -> 2019 | D202: =IF(MAX(C205:C216)-MIN(C205:C216)<5,AVERAGEIF(C205:C216,">0",D205:D216), IF(FORECAST($C202,D$205:D$216,$C$205:$C$216)<0,0, IF(FORECAST($C202,D$205:D$216,$C$205:$C$216)>100,100, FORECAST($C202,D$205:D$216,$C$205:$C$216)))) -> 100 | H202: =IF(MAX(C205:C216)-MIN(C205:C216)<5,AVERAGEIF(C205:C216,">0",H205:H216), IF(FORECAST($C202,H$205:H$216,$C$205:$C$216)<0,0, IF(FORECAST($C202,H$205:H$216,$C$205:$C$216)>100,100, FORECAST($C202,H$205:H$216,$C$205:$C$216)))) -> 0 | I202: =IF(MAX(C205:C216)-MIN(C205:C216)<5,AVERAGEIF(C205:C216,">0",I205:I216), IF(FORECAST($C202,I$205:I$216,$C$205:$C$216)<0,0, IF(FORECAST($C202,I$205:I$216,$C$205:$C$216)>100,100, FORECAST($C202,I$205:I$216,$C$205:$C$216)))) -> 100 | M202: =IF(MAX(C205:C216)-MIN(C205:C216)<5,AVERAGEIF(C205:C216,">0",M205:M216), IF(FORECAST($C202,M$205:M$216,$C$205:$C$216)<0,0, IF(FORECAST($C202,M$205:M$216,$C$205:$C$216)>100,100, FORECAST($C202,M$205:M$216,$C$205:$C$216)))) -> 0 | N202: =IF(MAX(C205:C216)-MIN(C205:C216)<5,AVERAGEIF(C205:C216,">0",N205:N216), IF(FORECAST($C202,N$205:N$216,$C$205:$C$216)<0,0, IF(FORECAST($C202,N$205:N$216,$C$205:$C$216)>100,100, FORECAST($C202,N$205:N$216,$C$205:$C$216)))) -> 100 | R202: =IF(MAX(C205:C216)-MIN(C205:C216)<5,AVERAGEIF(C205:C216,">0",R205:R216), IF(FORECAST($C202,R$205:R$216,$C$205:$C$216)<0,0, IF(FORECAST($C202,R$205:R$216,$C$205:$C$216)>100,100, FORECAST($C202,R$205:R$216,$C$205:$C$216)))) -> 0 | S202: =IF(MAX(C205:C216)-MIN(C205:C216)<5,AVERAGEIF(C205:C216,">0",S205:S216), IF(FORECAST($C202,S$205:S$216,$C$205:$C$216)<0,0, IF(FORECAST($C202,S$205:S$216,$C$205:$C$216)>100,100, FORECAST($C202,S$205:S$216,$C$205:$C$216)))) -> 100 | W202: =IF(MAX(C205:C216)-MIN(C205:C216)<5,AVERAGEIF(C205:C216,">0",W205:W216), IF(FORECAST($C202,W$205:W$216,$C$205:$C$216)<0,0, IF(FORECAST($C202,W$205:W$216,$C$205:$C$216)>100,100, FORECAST($C202,W$205:W$216,$C$205:$C$216)))) -> 0 | X202: =IF(MAX(C205:C216)-MIN(C205:C216)<5,AVERAGEIF(C205:C216,">0",X205:X216), IF(FORECAST($C202,X$205:X$216,$C$205:$C$216)<0,0, IF(FORECAST($C202,X$205:X$216,$C$205:$C$216)>100,100, FORECAST($C202,X$205:X$216,$C$205:$C$216)))) -> 99.66588593 | AB202: =IF(MAX(C205:C216)-MIN(C205:C216)<5,AVERAGEIF(C205:C216,">0",AB205:AB216), IF(FORECAST($C202,AB$205:AB$216,$C$205:$C$216)<0,0, IF(FORECAST($C202,AB$205:AB$216,$C$205:$C$216)>100,100, FORECAST($C202,AB$205:AB$216,$C$205:$C$216)))) -> 0.03618293663
B204: Survey | C204: Year | D204: Improved | E204: % Improved < = 30min | H204: Surface water | I204: Improved | J204: % Improved < = 30min | M204: Surface water | N204: Improved | O204: % Improved < = 30min | R204: Surface water | S204: Improved | T204: % Improved < = 30min | W204: Surface water | X204: Improved | Y204: % Improved < = 30min | AB204: Surface water
B205: MICS05 | C205: 2005 | D205: =IF(ISERROR(INDIRECT(CONCATENATE($B205,"!H16"))),"",INDIRECT(CONCATENATE($B205,"!H16"))) -> 50.42475489 | E205: =IF(ISERROR(INDIRECT(CONCATENATE($B205,"!H23"))),"",INDIRECT(CONCATENATE($B205,"!H23"))) -> 72.08924413 | H205: =IF(ISERROR(INDIRECT(CONCATENATE($B205,"!H21"))),"",INDIRECT(CONCATENATE($B205,"!H21"))) -> 30.42728769 | I205: =IF(ISERROR(INDIRECT(CONCATENATE($B205,"!I16"))),"",INDIRECT(CONCATENATE($B205,"!I16"))) -> 74.2537808 | J205: =IF(ISERROR(INDIRECT(CONCATENATE($B205,"!I23"))),"",INDIRECT(CONCATENATE($B205,"!I23"))) -> 83.65864941 | M205: =IF(ISERROR(INDIRECT(CONCATENATE($B205,"!I21"))),"",INDIRECT(CONCATENATE($B205,"!I21"))) -> 6.485353458 | N205: =IF(ISERROR(INDIRECT(CONCATENATE($B205,"!J16"))),"",INDIRECT(CONCATENATE($B205,"!J16"))) -> 81.24396118 | O205: =IF(ISERROR(INDIRECT(CONCATENATE($B205,"!J23"))),"",INDIRECT(CONCATENATE($B205,"!J23"))) -> 90.9872112 | R205: =IF(ISERROR(INDIRECT(CONCATENATE($B205,"!J21"))),"",INDIRECT(CONCATENATE($B205,"!J21"))) -> 6.17214854 | S205: =IF(ISERROR(INDIRECT(CONCATENATE($B205,"!K16"))),"",INDIRECT(CONCATENATE($B205,"!K16"))) -> 93.45642253 | T205: =IF(ISERROR(INDIRECT(CONCATENATE($B205,"!K23"))),"",INDIRECT(CONCATENATE($B205,"!K23"))) -> 96.77036702 | W205: =IF(ISERROR(INDIRECT(CONCATENATE($B205,"!K21"))),"",INDIRECT(CONCATENATE($B205,"!K21"))) -> 1.883171832 | X205: =IF(ISERROR(INDIRECT(CONCATENATE($B205,"!L16"))),"",INDIRECT(CONCATENATE($B205,"!L16"))) -> 99.90028533 | Y205: =IF(ISERROR(INDIRECT(CONCATENATE($B205,"!L23"))),"",INDIRECT(CONCATENATE($B205,"!L23"))) -> 100 | AB205: =IF(ISERROR(INDIRECT(CONCATENATE($B205,"!L221"))),"",INDIRECT(CONCATENATE($B205,"!L21"))) -> 0
B206: DHS10 | C206: 2010 | D206: 73.65346473 | E206: 82.8552188 | H206: 2.136534244 | I206: 78.02464448 | J206: 88.04705886 | M206: 0.3352182534 | N206: 87.65231032 | O206: 93.82859478 | R206: 0 | S206: 94.87790498 | T206: 97.4220617 | W206: 0 | X206: 97.72928665 | Y206: 97.66525546 | AB206: 0.2550035534
B207: MIS12 | C207: 2012 | D207: 88.59547777 | E207: 86.03601266 | H207: 6.314560626 | I207: 99.60084948 | J207: 91.4307865 | M207: 0.399821403 | N207: 99.98133995 | O207: 95.58531263 | R207: 0 | S207: 99.21795822 | T207: 97.10148505 | W207: 0 | X207: 100 | Y207: 100 | AB207: 0
B208: DHS17 | C208: 2017 | D208: 94.3177063 | E208: 81.50998755 | H208: 1.275482463 | I208: 98.69804535 | J208: 88.01108472 | M208: 0 | N208: 99.50211394 | O208: 93.45325923 | R208: 0.117326141 | S208: 99.56759954 | T208: 96.8581781 | W208: 0 | X208: 99.94250325 | Y208: 94.75766473 | AB208: 0
B218: =CONCATENATE("Urban use of drinking water sources, ",C199,"–",C200) -> Urban use of drinking water sources, 2000–2020 | S218: Data points used for regression
E253: =IF(ISERROR(INDIRECT(CONCATENATE($B253,"!M18"))),"",INDIRECT(CONCATENATE($B253,"!M18"))) ->  | F253: =IF(ISERROR(INDIRECT(CONCATENATE($B253,"!M19"))),"",INDIRECT(CONCATENATE($B253,"!M19"))) ->  | G253: =IF(ISERROR(INDIRECT(CONCATENATE($B253,"!M20"))),"",INDIRECT(CONCATENATE($B253,"!M20"))) ->  | H253: =IF(ISERROR(INDIRECT(CONCATENATE($B253,"!M21"))),"",INDIRECT(CONCATENATE($B253,"!M21"))) ->  | J253: =IF(ISERROR(INDIRECT(CONCATENATE($B253,"!N18"))),"",INDIRECT(CONCATENATE($B253,"!N18"))) ->  | K253: =IF(ISERROR(INDIRECT(CONCATENATE($B253,"!N19"))),"",INDIRECT(CONCATENATE($B253,"!N19"))) ->  | L253: =IF(ISERROR(INDIRECT(CONCATENATE($B253,"!N20"))),"",INDIRECT(CONCATENATE($B253,"!N20"))) ->  | M253: =IF(ISERROR(INDIRECT(CONCATENATE($B253,"!N21"))),"",INDIRECT(CONCATENATE($B253,"!N21"))) ->  | O253: =IF(ISERROR(INDIRECT(CONCATENATE($B253,"!O18"))),"",INDIRECT(CONCATENATE($B253,"!O18"))) ->  | P253: =IF(ISERROR(INDIRECT(CONCATENATE($B253,"!O19"))),"",INDIRECT(CONCATENATE($B253,"!O19"))) ->  | Q253: =IF(ISERROR(INDIRECT(CONCATENATE($B253,"!O20"))),"",INDIRECT(CONCATENATE($B253,"!O20"))) ->  | R253: =IF(ISERROR(INDIRECT(CONCATENATE($B253,"!O21"))),"",INDIRECT(CONCATENATE($B253,"!O21"))) ->  | T253: =IF(ISERROR(INDIRECT(CONCATENATE($B253,"!P18"))),"",INDIRECT(CONCATENATE($B253,"!P18"))) ->  | U253: =IF(ISERROR(INDIRECT(CONCATENATE($B253,"!P19"))),"",INDIRECT(CONCATENATE($B253,"!P19"))) ->  | V253: =IF(ISERROR(INDIRECT(CONCATENATE($B253,"!P20"))),"",INDIRECT(CONCATENATE($B253,"!P20"))) ->  | W253: =IF(ISERROR(INDIRECT(CONCATENATE($B253,"!P21"))),"",INDIRECT(CONCATENATE($B253,"!P21"))) ->  | Y253: =IF(ISERROR(INDIRECT(CONCATENATE($B253,"!Q18"))),"",INDIRECT(CONCATENATE($B253,"!Q18"))) ->  | Z253: =IF(ISERROR(INDIRECT(CONCATENATE($B253,"!Q19"))),"",INDIRECT(CONCATENATE($B253,"!Q19"))) ->  | AA253: =IF(ISERROR(INDIRECT(CONCATENATE($B253,"!Q20"))),"",INDIRECT(CONCATENATE($B253,"!Q20"))) ->  | AB253: =IF(ISERROR(INDIRECT(CONCATENATE($B253,"!Q21"))),"",INDIRECT(CONCATENATE($B253,"!Q1"))) -> 
E254: =IF(ISERROR(INDIRECT(CONCATENATE($B254,"!M18"))),"",INDIRECT(CONCATENATE($B254,"!M18"))) ->  | F254: =IF(ISERROR(INDIRECT(CONCATENATE($B254,"!M19"))),"",INDIRECT(CONCATENATE($B254,"!M19"))) ->  | G254: =IF(ISERROR(INDIRECT(CONCATENATE($B254,"!M20"))),"",INDIRECT(CONCATENATE($B254,"!M20"))) ->  | H254: =IF(ISERROR(INDIRECT(CONCATENATE($B254,"!M21"))),"",INDIRECT(CONCATENATE($B254,"!M21"))) ->  | J254: =IF(ISERROR(INDIRECT(CONCATENATE($B254,"!N18"))),"",INDIRECT(CONCATENATE($B254,"!N18"))) ->  | K254: =IF(ISERROR(INDIRECT(CONCATENATE($B254,"!N19"))),"",INDIRECT(CONCATENATE($B254,"!N19"))) ->  | L254: =IF(ISERROR(INDIRECT(CONCATENATE($B254,"!N20"))),"",INDIRECT(CONCATENATE($B254,"!N20"))) ->  | M254: =IF(ISERROR(INDIRECT(CONCATENATE($B254,"!N21"))),"",INDIRECT(CONCATENATE($B254,"!N21"))) ->  | O254: =IF(ISERROR(INDIRECT(CONCATENATE($B254,"!O18"))),"",INDIRECT(CONCATENATE($B254,"!O18"))) ->  | P254: =IF(ISERROR(INDIRECT(CONCATENATE($B254,"!O19"))),"",INDIRECT(CONCATENATE($B254,"!O19"))) ->  | Q254: =IF(ISERROR(INDIRECT(CONCATENATE($B254,"!O20"))),"",INDIRECT(CONCATENATE($B254,"!O20"))) ->  | R254: =IF(ISERROR(INDIRECT(CONCATENATE($B254,"!O21"))),"",INDIRECT(CONCATENATE($B254,"!O21"))) ->  | T254: =IF(ISERROR(INDIRECT(CONCATENATE($B254,"!P18"))),"",INDIRECT(CONCATENATE($B254,"!P18"))) ->  | U254: =IF(ISERROR(INDIRECT(CONCATENATE($B254,"!P19"))),"",INDIRECT(CONCATENATE($B254,"!P19"))) ->  | V254: =IF(ISERROR(INDIRECT(CONCATENATE($B254,"!P20"))),"",INDIRECT(CONCATENATE($B254,"!P20"))) ->  | W254: =IF(ISERROR(INDIRECT(CONCATENATE($B254,"!P21"))),"",INDIRECT(CONCATENATE($B254,"!P21"))) ->  | Y254: =IF(ISERROR(INDIRECT(CONCATENATE($B254,"!Q18"))),"",INDIRECT(CONCATENATE($B254,"!Q18"))) ->  | Z254: =IF(ISERROR(INDIRECT(CONCATENATE($B254,"!Q19"))),"",INDIRECT(CONCATENATE($B254,"!Q19"))) ->  | AA254: =IF(ISERROR(INDIRECT(CONCATENATE($B254,"!Q20"))),"",INDIRECT(CONCATENATE($B254,"!Q20"))) ->  | AB254: =IF(ISERROR(INDIRECT(CONCATENATE($B254,"!Q21"))),"",INDIRECT(CONCATENATE($B254,"!Q1"))) -> 
E255: =IF(ISERROR(INDIRECT(CONCATENATE($B255,"!M18"))),"",INDIRECT(CONCATENATE($B255,"!M18"))) ->  | F255: =IF(ISERROR(INDIRECT(CONCATENATE($B255,"!M19"))),"",INDIRECT(CONCATENATE($B255,"!M19"))) ->  | G255: =IF(ISERROR(INDIRECT(CONCATENATE($B255,"!M20"))),"",INDIRECT(CONCATENATE($B255,"!M20"))) ->  | H255: =IF(ISERROR(INDIRECT(CONCATENATE($B255,"!M21"))),"",INDIRECT(CONCATENATE($B255,"!M21"))) ->  | J255: =IF(ISERROR(INDIRECT(CONCATENATE($B255,"!N18"))),"",INDIRECT(CONCATENATE($B255,"!N18"))) ->  | K255: =IF(ISERROR(INDIRECT(CONCATENATE($B255,"!N19"))),"",INDIRECT(CONCATENATE($B255,"!N19"))) ->  | L255: =IF(ISERROR(INDIRECT(CONCATENATE($B255,"!N20"))),"",INDIRECT(CONCATENATE($B255,"!N20"))) ->  | M255: =IF(ISERROR(INDIRECT(CONCATENATE($B255,"!N21"))),"",INDIRECT(CONCATENATE($B255,"!N21"))) ->  | O255: =IF(ISERROR(INDIRECT(CONCATENATE($B255,"!O18"))),"",INDIRECT(CONCATENATE($B255,"!O18"))) ->  | P255: =IF(ISERROR(INDIRECT(CONCATENATE($B255,"!O19"))),"",INDIRECT(CONCATENATE($B255,"!O19"))) ->  | Q255: =IF(ISERROR(INDIRECT(CONCATENATE($B255,"!O20"))),"",INDIRECT(CONCATENATE($B255,"!O20"))) ->  | R255: =IF(ISERROR(INDIRECT(CONCATENATE($B255,"!O21"))),"",INDIRECT(CONCATENATE($B255,"!O21"))) ->  | T255: =IF(ISERROR(INDIRECT(CONCATENATE($B255,"!P18"))),"",INDIRECT(CONCATENATE($B255,"!P18"))) ->  | U255: =IF(ISERROR(INDIRECT(CONCATENATE($B255,"!P19"))),"",INDIRECT(CONCATENATE($B255,"!P19"))) ->  | V255: =IF(ISERROR(INDIRECT(CONCATENATE($B255,"!P20"))),"",INDIRECT(CONCATENATE($B255,"!P20"))) ->  | W255: =IF(ISERROR(INDIRECT(CONCATENATE($B255,"!P21"))),"",INDIRECT(CONCATENATE($B255,"!P21"))) ->  | Y255: =IF(ISERROR(INDIRECT(CONCATENATE($B255,"!Q18"))),"",INDIRECT(CONCATENATE($B255,"!Q18"))) ->  | Z255: =IF(ISERROR(INDIRECT(CONCATENATE($B255,"!Q19"))),"",INDIRECT(CONCATENATE($B255,"!Q19"))) ->  | AA255: =IF(ISERROR(INDIRECT(CONCATENATE($B255,"!Q20"))),"",INDIRECT(CONCATENATE($B255,"!Q20"))) ->  | AB255: =IF(ISERROR(INDIRECT(CONCATENATE($B255,"!Q21"))),"",INDIRECT(CONCATENATE($B255,"!Q1"))) -> 
E256: =IF(ISERROR(INDIRECT(CONCATENATE($B256,"!M18"))),"",INDIRECT(CONCATENATE($B256,"!M18"))) ->  | F256: =IF(ISERROR(INDIRECT(CONCATENATE($B256,"!M19"))),"",INDIRECT(CONCATENATE($B256,"!M19"))) ->  | G256: =IF(ISERROR(INDIRECT(CONCATENATE($B256,"!M20"))),"",INDIRECT(CONCATENATE($B256,"!M20"))) ->  | H256: =IF(ISERROR(INDIRECT(CONCATENATE($B256,"!M21"))),"",INDIRECT(CONCATENATE($B256,"!M21"))) ->  | J256: =IF(ISERROR(INDIRECT(CONCATENATE($B256,"!N18"))),"",INDIRECT(CONCATENATE($B256,"!N18"))) ->  | K256: =IF(ISERROR(INDIRECT(CONCATENATE($B256,"!N19"))),"",INDIRECT(CONCATENATE($B256,"!N19"))) ->  | L256: =IF(ISERROR(INDIRECT(CONCATENATE($B256,"!N20"))),"",INDIRECT(CONCATENATE($B256,"!N20"))) ->  | M256: =IF(ISERROR(INDIRECT(CONCATENATE($B256,"!N21"))),"",INDIRECT(CONCATENATE($B256,"!N21"))) ->  | O256: =IF(ISERROR(INDIRECT(CONCATENATE($B256,"!O18"))),"",INDIRECT(CONCATENATE($B256,"!O18"))) ->  | P256: =IF(ISERROR(INDIRECT(CONCATENATE($B256,"!O19"))),"",INDIRECT(CONCATENATE($B256,"!O19"))) ->  | Q256: =IF(ISERROR(INDIRECT(CONCATENATE($B256,"!O20"))),"",INDIRECT(CONCATENATE($B256,"!O20"))) ->  | R256: =IF(ISERROR(INDIRECT(CONCATENATE($B256,"!O21"))),"",INDIRECT(CONCATENATE($B256,"!O21"))) ->  | T256: =IF(ISERROR(INDIRECT(CONCATENATE($B256,"!P18"))),"",INDIRECT(CONCATENATE($B256,"!P18"))) ->  | U256: =IF(ISERROR(INDIRECT(CONCATENATE($B256,"!P19"))),"",INDIRECT(CONCATENATE($B256,"!P19"))) ->  | V256: =IF(ISERROR(INDIRECT(CONCATENATE($B256,"!P20"))),"",INDIRECT(CONCATENATE($B256,"!P20"))) ->  | W256: =IF(ISERROR(INDIRECT(CONCATENATE($B256,"!P21"))),"",INDIRECT(CONCATENATE($B256,"!P21"))) ->  | Y256: =IF(ISERROR(INDIRECT(CONCATENATE($B256,"!Q18"))),"",INDIRECT(CONCATENATE($B256,"!Q18"))) ->  | Z256: =IF(ISERROR(INDIRECT(CONCATENATE($B256,"!Q19"))),"",INDIRECT(CONCATENATE($B256,"!Q19"))) ->  | AA256: =IF(ISERROR(INDIRECT(CONCATENATE($B256,"!Q20"))),"",INDIRECT(CONCATENATE($B256,"!Q20"))) ->  | AB256: =IF(ISERROR(INDIRECT(CONCATENATE($B256,"!Q21"))),"",INDIRECT(CONCATENATE($B256,"!Q1"))) -> 
E257: =IF(ISERROR(INDIRECT(CONCATENATE($B257,"!M18"))),"",INDIRECT(CONCATENATE($B257,"!M18"))) ->  | F257: =IF(ISERROR(INDIRECT(CONCATENATE($B257,"!M19"))),"",INDIRECT(CONCATENATE($B257,"!M19"))) ->  | G257: =IF(ISERROR(INDIRECT(CONCATENATE($B257,"!M20"))),"",INDIRECT(CONCATENATE($B257,"!M20"))) ->  | H257: =IF(ISERROR(INDIRECT(CONCATENATE($B257,"!M21"))),"",INDIRECT(CONCATENATE($B257,"!M21"))) ->  | J257: =IF(ISERROR(INDIRECT(CONCATENATE($B257,"!N18"))),"",INDIRECT(CONCATENATE($B257,"!N18"))) ->  | K257: =IF(ISERROR(INDIRECT(CONCATENATE($B257,"!N19"))),"",INDIRECT(CONCATENATE($B257,"!N19"))) ->  | L257: =IF(ISERROR(INDIRECT(CONCATENATE($B257,"!N20"))),"",INDIRECT(CONCATENATE($B257,"!N20"))) ->  | M257: =IF(ISERROR(INDIRECT(CONCATENATE($B257,"!N21"))),"",INDIRECT(CONCATENATE($B257,"!N21"))) ->  | O257: =IF(ISERROR(INDIRECT(CONCATENATE($B257,"!O18"))),"",INDIRECT(CONCATENATE($B257,"!O18"))) ->  | P257: =IF(ISERROR(INDIRECT(CONCATENATE($B257,"!O19"))),"",INDIRECT(CONCATENATE($B257,"!O19"))) ->  | Q257: =IF(ISERROR(INDIRECT(CONCATENATE($B257,"!O20"))),"",INDIRECT(CONCATENATE($B257,"!O20"))) ->  | R257: =IF(ISERROR(INDIRECT(CONCATENATE($B257,"!O21"))),"",INDIRECT(CONCATENATE($B257,"!O21"))) ->  | T257: =IF(ISERROR(INDIRECT(CONCATENATE($B257,"!P18"))),"",INDIRECT(CONCATENATE($B257,"!P18"))) ->  | U257: =IF(ISERROR(INDIRECT(CONCATENATE($B257,"!P19"))),"",INDIRECT(CONCATENATE($B257,"!P19"))) ->  | V257: =IF(ISERROR(INDIRECT(CONCATENATE($B257,"!P20"))),"",INDIRECT(CONCATENATE($B257,"!P20"))) ->  | W257: =IF(ISERROR(INDIRECT(CONCATENATE($B257,"!P21"))),"",INDIRECT(CONCATENATE($B257,"!P21"))) ->  | Y257: =IF(ISERROR(INDIRECT(CONCATENATE($B257,"!Q18"))),"",INDIRECT(CONCATENATE($B257,"!Q18"))) ->  | Z257: =IF(ISERROR(INDIRECT(CONCATENATE($B257,"!Q19"))),"",INDIRECT(CONCATENATE($B257,"!Q19"))) ->  | AA257: =IF(ISERROR(INDIRECT(CONCATENATE($B257,"!Q20"))),"",INDIRECT(CONCATENATE($B257,"!Q20"))) ->  | AB257: =IF(ISERROR(INDIRECT(CONCATENATE($B257,"!Q21"))),"",INDIRECT(CONCATENATE($B257,"!Q1"))) -> 
A297: RURAL | D297: Poorest | I297: Poor | N297: Middle | S297: Rich | X297: Richest
D298: Improved | E298: Basic | F298: Limited | G298: Unimproved | H298: Surface water | I298: Improved | J298: Basic | K298: Limited | L298: Unimproved | M298: Surface water | N298: Improved | O298: Basic | P298: Limited | Q298: Unimproved | R298: Surface water | S298: Improved | T298: Basic | U298: Limited | V298: Unimproved | W298: Surface water | X298: Improved | Y298: Basic | Z298: Limited | AA298: Unimproved | AB298: Surface water
A299: Forecast period: | C299: 2000 | D299: =IF((D301+H301)>100,D301*100/(D301+H301),D301) -> 53.88858022 | E299: =D299*AVERAGEIF(E305:E316,">0")/100 -> 37.17580391 | F299: =D299*(100-AVERAGEIF(E305:E316,">0"))/100 -> 16.71277631 | G299: =100-(E299+F299+H299) -> 20.37326427 | H299: =IF((D301+H301)>100,H301*100/(D301+H301),H301) -> 25.73815551 | I299: =IF((I301+M301)>100,I301*100/(I301+M301),I301) -> 63.2972129 | J299: =I299*AVERAGEIF(J305:J316,">0")/100 -> 44.48582069 | K299: =I299*(100-AVERAGEIF(J305:J316,">0"))/100 -> 18.81139221 | L299: =100-(J299+K299+M299) -> 22.37986529 | M299: =IF((I301+M301)>100,M301*100/(I301+M301),M301) -> 14.32292181 | N299: =IF((N301+R301)>100,N301*100/(N301+R301),N301) -> 61.05816264 | O299: =N299*AVERAGEIF(O305:O316,">0")/100 -> 42.81469488 | P299: =N299*(100-AVERAGEIF(O305:O316,">0"))/100 -> 18.24346777 | Q299: =100-(O299+P299+R299) -> 19.66984956 | R299: =IF((N301+R301)>100,R301*100/(N301+R301),R301) -> 19.2719878 | S299: =IF((S301+W301)>100,S301*100/(S301+W301),S301) -> 63.20982802 | T299: =S299*AVERAGEIF(T305:T316,">0")/100 -> 45.90600225 | U299: =S299*(100-AVERAGEIF(T305:T316,">0"))/100 -> 17.30382577 | V299: =100-(T299+U299+W299) -> 19.60030121 | W299: =IF((S301+W301)>100,W301*100/(S301+W301),W301) -> 17.18987077 | X299: =IF((X301+AB301)>100,X301*100/(X301+AB301),X301) -> 69.93772816 | Y299: =X299*AVERAGEIF(Y305:Y316,">0")/100 -> 51.61527171 | Z299: =X299*(100-AVERAGEIF(Y305:Y316,">0"))/100 -> 18.32245645 | AA299: =100-(Y299+Z299+AB299) -> 15.12166277 | AB299: =IF((X301+AB301)>100,AB301*100/(X301+AB301),AB301) -> 14.94060907
C300: 2020 | D300: =IF((D302+H302)>100,D302*100/(D302+H302),D302) -> 83.67824341 | E300: =D300*AVERAGEIF(E305:E316,">0")/100 -> 57.72662697 | F300: =D300*(100-AVERAGEIF(E305:E316,">0"))/100 -> 25.95161644 | G300: =100-(E300+F300+H300) -> 15.82240768 | H300: =IF((D302+H302)>100,H302*100/(D302+H302),H302) -> 0.4993489099 | I300: =IF((I302+M302)>100,I302*100/(I302+M302),I302) -> 83.62179963 | J300: =I300*AVERAGEIF(J305:J316,">0")/100 -> 58.77011346 | K300: =I300*(100-AVERAGEIF(J305:J316,">0"))/100 -> 24.85168617 | L300: =100-(J300+K300+M300) -> 13.6165924 | M300: =IF((I302+M302)>100,M302*100/(I302+M302),M302) -> 2.761607962 | N300: =IF((N302+R302)>100,N302*100/(N302+R302),N302) -> 86.7733123 | O300: =N300*AVERAGEIF(O305:O316,">0")/100 -> 60.84645736 | P300: =N300*(100-AVERAGEIF(O305:O316,">0"))/100 -> 25.92685495 | Q300: =100-(O300+P300+R300) -> 13.2266877 | R300: =IF((N302+R302)>100,R302*100/(N302+R302),R302) -> 0 | S300: =IF((S302+W302)>100,S302*100/(S302+W302),S302) -> 83.57579495 | T300: =S300*AVERAGEIF(T305:T316,">0")/100 -> 60.69674212 | U300: =S300*(100-AVERAGEIF(T305:T316,">0"))/100 -> 22.87905283 | V300: =100-(T300+U300+W300) -> 14.36596614 | W300: =IF((S302+W302)>100,W302*100/(S302+W302),W302) -> 2.058238911 | X300: =IF((X302+AB302)>100,X302*100/(X302+AB302),X302) -> 90.54837149 | Y300: =X300*AVERAGEIF(Y305:Y316,">0")/100 -> 66.82628847 | Z300: =X300*(100-AVERAGEIF(Y305:Y316,">0"))/100 -> 23.72208302 | AA300: =100-(Y300+Z300+AB300) -> 9.451628515 | AB300: =IF((X302+AB302)>100,AB302*100/(X302+AB302),AB302) -> 0
A301: Regression period: | C301: =MinRegYear(C299,C305:C316) -> 2003 | D301: =IF(MAX(C305:C316)-MIN(C305:C316)<5,AVERAGEIF(C305:C316,">0",D305:D316), IF(FORECAST($C301,D$305:D$316,$C$305:$C$316)<0,0, IF(FORECAST($C301,D$305:D$316,$C$305:$C$316)>100,100, FORECAST($C301,D$305:D$316,$C$305:$C$316)))) -> 53.88858022 | H301: =IF(MAX(C305:C316)-MIN(C305:C316)<5,AVERAGEIF(C305:C316,">0",H305:H316), IF(FORECAST($C301,H$305:H$316,$C$305:$C$316)<0,0, IF(FORECAST($C301,H$305:H$316,$C$305:$C$316)>100,100, FORECAST($C301,H$305:H$316,$C$305:$C$316)))) -> 25.73815551 | I301: =IF(MAX(C305:C316)-MIN(C305:C316)<5,AVERAGEIF(C305:C316,">0",I305:I316), IF(FORECAST($C301,I$305:I$316,$C$305:$C$316)<0,0, IF(FORECAST($C301,I$305:I$316,$C$305:$C$316)>100,100, FORECAST($C301,I$305:I$316,$C$305:$C$316)))) -> 63.2972129 | M301: =IF(MAX(C305:C316)-MIN(C305:C316)<5,AVERAGEIF(C305:C316,">0",M305:M316), IF(FORECAST($C301,M$305:M$316,$C$305:$C$316)<0,0, IF(FORECAST($C301,M$305:M$316,$C$305:$C$316)>100,100, FORECAST($C301,M$305:M$316,$C$305:$C$316)))) -> 14.32292181 | N301: =IF(MAX(C305:C316)-MIN(C305:C316)<5,AVERAGEIF(C305:C316,">0",N305:N316), IF(FORECAST($C301,N$305:N$316,$C$305:$C$316)<0,0, IF(FORECAST($C301,N$305:N$316,$C$305:$C$316)>100,100, FORECAST($C301,N$305:N$316,$C$305:$C$316)))) -> 61.05816264 | R301: =IF(MAX(C305:C316)-MIN(C305:C316)<5,AVERAGEIF(C305:C316,">0",R305:R316), IF(FORECAST($C301,R$305:R$316,$C$305:$C$316)<0,0, IF(FORECAST($C301,R$305:R$316,$C$305:$C$316)>100,100, FORECAST($C301,R$305:R$316,$C$305:$C$316)))) -> 19.2719878 | S301: =IF(MAX(C305:C316)-MIN(C305:C316)<5,AVERAGEIF(C305:C316,">0",S305:S316), IF(FORECAST($C301,S$305:S$316,$C$305:$C$316)<0,0, IF(FORECAST($C301,S$305:S$316,$C$305:$C$316)>100,100, FORECAST($C301,S$305:S$316,$C$305:$C$316)))) -> 63.20982802 | W301: =IF(MAX(C305:C316)-MIN(C305:C316)<5,AVERAGEIF(C305:C316,">0",W305:W316), IF(FORECAST($C301,W$305:W$316,$C$305:$C$316)<0,0, IF(FORECAST($C301,W$305:W$316,$C$305:$C$316)>100,100, FORECAST($C301,W$305:W$316,$C$305:$C$316)))) -> 17.18987077 | X301: =IF(MAX(C305:C316)-MIN(C305:C316)<5,AVERAGEIF(C305:C316,">0",X305:X316), IF(FORECAST($C301,X$305:X$316,$C$305:$C$316)<0,0, IF(FORECAST($C301,X$305:X$316,$C$305:$C$316)>100,100, FORECAST($C301,X$305:X$316,$C$305:$C$316)))) -> 69.93772816 | AB301: =IF(MAX(C305:C316)-MIN(C305:C316)<5,AVERAGEIF(C305:C316,">0",AB305:AB316), IF(FORECAST($C301,AB$305:AB$316,$C$305:$C$316)<0,0, IF(FORECAST($C301,AB$305:AB$316,$C$305:$C$316)>100,100, FORECAST($C301,AB$305:AB$316,$C$305:$C$316)))) -> 14.94060907
C302: =MaxRegYear(C300,C305:C316) -> 2019 | D302: =IF(MAX(C305:C316)-MIN(C305:C316)<5,AVERAGEIF(C305:C316,">0",D305:D316), IF(FORECAST($C302,D$305:D$316,$C$305:$C$316)<0,0, IF(FORECAST($C302,D$305:D$316,$C$305:$C$316)>100,100, FORECAST($C302,D$305:D$316,$C$305:$C$316)))) -> 83.67824341 | H302: =IF(MAX(C305:C316)-MIN(C305:C316)<5,AVERAGEIF(C305:C316,">0",H305:H316), IF(FORECAST($C302,H$305:H$316,$C$305:$C$316)<0,0, IF(FORECAST($C302,H$305:H$316,$C$305:$C$316)>100,100, FORECAST($C302,H$305:H$316,$C$305:$C$316)))) -> 0.4993489099 | I302: =IF(MAX(C305:C316)-MIN(C305:C316)<5,AVERAGEIF(C305:C316,">0",I305:I316), IF(FORECAST($C302,I$305:I$316,$C$305:$C$316)<0,0, IF(FORECAST($C302,I$305:I$316,$C$305:$C$316)>100,100, FORECAST($C302,I$305:I$316,$C$305:$C$316)))) -> 83.62179963 | M302: =IF(MAX(C305:C316)-MIN(C305:C316)<5,AVERAGEIF(C305:C316,">0",M305:M316), IF(FORECAST($C302,M$305:M$316,$C$305:$C$316)<0,0, IF(FORECAST($C302,M$305:M$316,$C$305:$C$316)>100,100, FORECAST($C302,M$305:M$316,$C$305:$C$316)))) -> 2.761607962 | N302: =IF(MAX(C305:C316)-MIN(C305:C316)<5,AVERAGEIF(C305:C316,">0",N305:N316), IF(FORECAST($C302,N$305:N$316,$C$305:$C$316)<0,0, IF(FORECAST($C302,N$305:N$316,$C$305:$C$316)>100,100, FORECAST($C302,N$305:N$316,$C$305:$C$316)))) -> 86.7733123 | R302: =IF(MAX(C305:C316)-MIN(C305:C316)<5,AVERAGEIF(C305:C316,">0",R305:R316), IF(FORECAST($C302,R$305:R$316,$C$305:$C$316)<0,0, IF(FORECAST($C302,R$305:R$316,$C$305:$C$316)>100,100, FORECAST($C302,R$305:R$316,$C$305:$C$316)))) -> 0 | S302: =IF(MAX(C305:C316)-MIN(C305:C316)<5,AVERAGEIF(C305:C316,">0",S305:S316), IF(FORECAST($C302,S$305:S$316,$C$305:$C$316)<0,0, IF(FORECAST($C302,S$305:S$316,$C$305:$C$316)>100,100, FORECAST($C302,S$305:S$316,$C$305:$C$316)))) -> 83.57579495 | W302: =IF(MAX(C305:C316)-MIN(C305:C316)<5,AVERAGEIF(C305:C316,">0",W305:W316), IF(FORECAST($C302,W$305:W$316,$C$305:$C$316)<0,0, IF(FORECAST($C302,W$305:W$316,$C$305:$C$316)>100,100, FORECAST($C302,W$305:W$316,$C$305:$C$316)))) -> 2.058238911 | X302: =IF(MAX(C305:C316)-MIN(C305:C316)<5,AVERAGEIF(C305:C316,">0",X305:X316), IF(FORECAST($C302,X$305:X$316,$C$305:$C$316)<0,0, IF(FORECAST($C302,X$305:X$316,$C$305:$C$316)>100,100, FORECAST($C302,X$305:X$316,$C$305:$C$316)))) -> 90.54837149 | AB302: =IF(MAX(C305:C316)-MIN(C305:C316)<5,AVERAGEIF(C305:C316,">0",AB305:AB316), IF(FORECAST($C302,AB$305:AB$316,$C$305:$C$316)<0,0, IF(FORECAST($C302,AB$305:AB$316,$C$305:$C$316)>100,100, FORECAST($C302,AB$305:AB$316,$C$305:$C$316)))) -> 0
B304: Survey | C304: Year | D304: Improved | E304: % Improved < = 30min | H304: Surface water | I304: Improved | J304: % Improved < = 30min | M304: Surface water | N304: Improved | O304: % Improved < = 30min | R304: Surface water | S304: Improved | T304: % Improved < = 30min | W304: Surface water | X304: Improved | Y304: % Improved < = 30min | AB304: Surface water
B305: MICS05 | C305: 2005 | D305: =IF(ISERROR(INDIRECT(CONCATENATE($B305,"!M16"))),"",INDIRECT(CONCATENATE($B305,"!M16"))) -> 54.49064457 | E305: =IF(ISERROR(INDIRECT(CONCATENATE($B305,"!M23"))),"",INDIRECT(CONCATENATE($B305,"!M23"))) -> 66.71478211 | H305: =IF(ISERROR(INDIRECT(CONCATENATE($B305,"!M21"))),"",INDIRECT(CONCATENATE($B305,"!M21"))) -> 25.77296578 | I305: =IF(ISERROR(INDIRECT(CONCATENATE($B305,"!N16"))),"",INDIRECT(CONCATENATE($B305,"!N16"))) -> 64.73548886 | J305: =IF(ISERROR(INDIRECT(CONCATENATE($B305,"!N23"))),"",INDIRECT(CONCATENATE($B305,"!N23"))) -> 66.53493234 | M305: =IF(ISERROR(INDIRECT(CONCATENATE($B305,"!N21"))),"",INDIRECT(CONCATENATE($B305,"!N21"))) -> 14.13210005 | N305: =IF(ISERROR(INDIRECT(CONCATENATE($B305,"!O16"))),"",INDIRECT(CONCATENATE($B305,"!O16"))) -> 61.78378325 | O305: =IF(ISERROR(INDIRECT(CONCATENATE($B305,"!O23"))),"",INDIRECT(CONCATENATE($B305,"!O23"))) -> 64.23199709 | R305: =IF(ISERROR(INDIRECT(CONCATENATE($B305,"!O21"))),"",INDIRECT(CONCATENATE($B305,"!O21"))) -> 19.19343368 | S305: =IF(ISERROR(INDIRECT(CONCATENATE($B305,"!P16"))),"",INDIRECT(CONCATENATE($B305,"!P16"))) -> 64.08812065 | T305: =IF(ISERROR(INDIRECT(CONCATENATE($B305,"!P23"))),"",INDIRECT(CONCATENATE($B305,"!P23"))) -> 68.74132533 | W305: =IF(ISERROR(INDIRECT(CONCATENATE($B305,"!P21"))),"",INDIRECT(CONCATENATE($B305,"!P21"))) -> 16.17867963 | X305: =IF(ISERROR(INDIRECT(CONCATENATE($B305,"!Q16"))),"",INDIRECT(CONCATENATE($B305,"!Q16"))) -> 71.99598677 | Y305: =IF(ISERROR(INDIRECT(CONCATENATE($B305,"!Q23"))),"",INDIRECT(CONCATENATE($B305,"!Q23"))) -> 72.30638673 | AB305: =IF(ISERROR(INDIRECT(CONCATENATE($B305,"!Q221"))),"",INDIRECT(CONCATENATE($B305,"!Q21"))) -> 14.15908291
B306: DHS10 | C306: 2010 | D306: 68.57552836 | E306: 65.45536844 | H306: 12.01833023 | I306: 73.14240526 | J306: 70.63838936 | M306: 8.243570515 | N306: 74.58750134 | O306: 66.7764818 | R306: 9.639344416 | S306: 75.6464834 | T306: 69.31380795 | W306: 10.08868411 | X306: 79.83409342 | Y306: 69.0933737 | AB306: 7.033946272
B307: MIS12 | C307: 2012 | D307: 75.8216516 | E307: 73.89496584 | H307: 7.635126532 | I307: 76.04084673 | J307: 70.01963726 | M307: 6.239047942 | N307: 78.30544477 | O307: 76.22666928 | R307: 4.049691178 | S307: 73.7304094 | T307: 78.72152396 | W307: 7.23923385 | X307: 81.54369505 | Y307: 76.37768763 | AB307: 3.212853348
B308: DHS17 | C308: 2017 | D308: 76.24582273 | E308: 69.88057567 | H308: 7.048586305 | I308: 79.91928422 | J308: 73.9304501 | M308: 5.554341047 | N308: 80.98622054 | O308: 73.2495112 | R308: 5.02375007 | S308: 80.10623249 | T308: 73.72248623 | W308: 4.989621779 | X308: 87.59842406 | Y308: 77.42957719 | AB308: 1.901982342
B318: =CONCATENATE("Rural use of drinking water sources, ",C299,"–",C300) -> Rural use of drinking water sources, 2000–2020 | S318: Data points used for regression

Sheet Sanitation
B4: Summary of trends in use of sanitation facilities by wealth quintile (%)
B5: =IF(ISERROR(INDIRECT(CONCATENATE($B105,"!A2"))),"",INDIRECT(CONCATENATE($B105,"!A2"))) -> Burundi
B7: =B118 -> National use of sanitation facilities, 2000–2020 | J7: =B218 -> Urban use of sanitation facilities, 2000–2020 | R7: =B318 -> Rural use of sanitation facilities, 2000–2020
B31: =IF(ISERROR(INDIRECT(CONCATENATE($B105,"!A2"))),"",INDIRECT(CONCATENATE($B105,"!A2"))) -> Burundi | F31: Poorest | J31: Poor | N31: Middle | R31: Rich | V31: Richest
F32: Basic | G32: Limited | H32: Unimproved | I32: Open defecation | J32: Basic | K32: Limited | L32: Unimproved | M32: Open defecation | N32: Basic | O32: Limited | P32: Unimproved | Q32: Open defecation | R32: Basic | S32: Limited | T32: Unimproved | U32: Open defecation | V32: Basic | W32: Limited | X32: Unimproved | Y32: Open defecation
B33: NATIONAL | D33: Estimate | E33: =C99 -> 2000 | F33: =E99 -> 42.17445319 | G33: =F99 -> 6.968794508 | H33: 41.41263554 | I33: 9.444116757 | J33: =J99 -> 44.07051655 | K33: =K99 -> 6.747509447 | L33: 46.64866268 | M33: 2.533311329 | N33: =O99 -> 45.60324139 | O33: =P99 -> 6.428426027 | P33: 46.00342983 | Q33: 1.96490275 | R33: =T99 -> 46.00649597 | S33: =U99 -> 5.494525591 | T33: 46.87067245 | U33: 1.628305989 | V33: =Y99 -> 47.58030964 | W33: =Z99 -> 16.9620178 | X33: 34.8005985 | Y33: 0.65707407
E34: =C100 -> 2020 | F34: =E100 -> 30.70612181 | G34: 5.073797924 | H34: 57.67119133 | I34: 6.548888934 | J34: =J100 -> 42.87574187 | K34: 6.564580949 | L34: 48.70569762 | M34: 1.85397956 | N34: =O100 -> 47.95149156 | O34: 6.759445314 | P34: 43.87546704 | Q34: 1.413596082 | R34: =T100 -> 57.40520328 | S34: 6.855865716 | T34: 35.41937298 | U34: 0.3195580243 | V34: =Y100 -> 65.23358517 | W34: 23.25527599 | X34: 11.36447169 | Y34: 0.1466671482
B36: URBAN | D36: Estimate | E36: =C199 -> 2000 | F36: =E199 -> 18.34107941 | G36: =F199 -> 24.83651115 | H36: 54.2151977 | I36: 2.607211741 | J36: =J199 -> 19.48469882 | K36: =K199 -> 46.78624071 | L36: 30.80152606 | M36: 2.927534421 | N36: =O199 -> 25.56357678 | O36: =P199 -> 58.91336308 | P36: 15.52306013 | Q36: 0 | R36: =T199 -> 50.14629335 | S36: =U199 -> 39.18131019 | T36: 10.33407462 | U36: 0.3383218371 | V36: =Y199 -> 87.5060669 | W36: =Z199 -> 11.71356658 | X36: 0.5901581941 | Y36: 0.1902083277
E37: =C200 -> 2020 | F37: =E200 -> 25.17094221 | G37: 34.08514695 | H37: 37.5060868 | I37: 3.237824039 | J37: =J200 -> 24.44379891 | K37: 58.69392543 | L37: 16.86227566 | M37: 0 | N37: =O200 -> 27.57897946 | O37: 63.55802413 | P37: 8.86299641 | Q37: 0 | R37: =T200 -> 54.4396356 | S37: 42.53587068 | T37: 2.074815161 | U37: 0.9496785617 | V37: =Y200 -> 87.70253036 | W37: 11.73986519 | X37: 0.07755486058 | Y37: 0.4800495889
B39: RURAL | D39: Estimate | E39: =C299 -> 2000 | F39: =E299 -> 41.94712654 | G39: =F299 -> 6.819674718 | H39: 41.82374591 | I39: 9.409452841 | J39: =J299 -> 43.85229302 | K39: =K299 -> 6.74102833 | L39: 46.39329474 | M39: 3.013383912 | N39: =O299 -> 46.23454239 | O39: =P299 -> 6.189380549 | P39: 45.63351256 | Q39: 1.942564495 | R39: =T299 -> 46.4697402 | S39: =U299 -> 4.59098198 | T39: 47.3405532 | U39: 1.598724612 | V39: =Y299 -> 48.94540577 | W39: =Z299 -> 6.136373394 | X39: 44.15336145 | Y39: 0.7648593767
E40: =C300 -> 2020 | F40: =E300 -> 30.69519934 | G40: 4.990360299 | H40: 57.17579132 | I40: 7.13864904 | J40: =J300 -> 41.69555658 | K40: 6.409492156 | L40: 49.77043138 | M40: 2.124519884 | N40: =O300 -> 46.04488874 | O40: 6.163991768 | P40: 46.40860833 | Q40: 1.382511165 | R40: =T300 -> 56.11471206 | S40: 5.543857803 | T40: 37.90468395 | U40: 0.436746189 | V40: =Y300 -> 68.88885381 | W40: 8.636719279 | X40: 22.20089671 | Y40: 0.273530208
A97: NATIONAL | D97: Poorest | I97: Poor | N97: Middle | S97: Rich | X97: Richest
D98: Improved | E98: Basic | F98: Limited | G98: Unimproved | H98: Open defecation | I98: Improved | J98: Basic | K98: Limited | L98: Unimproved | M98: Open defecation | N98: Improved | O98: Basic | P98: Limited | Q98: Unimproved | R98: Open defecation | S98: Improved | T98: Basic | U98: Limited | V98: Unimproved | W98: Open defecation | X98: Improved | Y98: Basic | Z98: Limited | AA98: Unimproved | AB98: Open defecation
A99: Forecast period: | C99: 2000 | D99: =IF((D101+H101)>100,D101*100/(D101+H101),D101) -> 49.1432477 | E99: =D99*AVERAGEIF(E105:E116,">0")/100 -> 42.17445319 | F99: =D99*(100-AVERAGEIF(E105:E116,">0"))/100 -> 6.968794508 | G99: =100-(E99+F99+H99) -> 41.41263554 | H99: =IF((D101+H101)>100,H101*100/(D101+H101),H101) -> 9.444116757 | I99: =IF((I101+M101)>100,I101*100/(I101+M101),I101) -> 50.81802599 | J99: =I99*AVERAGEIF(J105:J116,">0")/100 -> 44.07051655 | K99: =I99*(100-AVERAGEIF(J105:J116,">0"))/100 -> 6.747509447 | L99: =100-(J99+K99+M99) -> 46.64866268 | M99: =IF((I101+M101)>100,M101*100/(I101+M101),M101) -> 2.533311329 | N99: =IF((N101+R101)>100,N101*100/(N101+R101),N101) -> 52.03166742 | O99: =N99*AVERAGEIF(O105:O116,">0")/100 -> 45.60324139 | P99: =N99*(100-AVERAGEIF(O105:O116,">0"))/100 -> 6.428426027 | Q99: =100-(O99+P99+R99) -> 46.00342983 | R99: =IF((N101+R101)>100,R101*100/(N101+R101),R101) -> 1.96490275 | S99: =IF((S101+W101)>100,S101*100/(S101+W101),S101) -> 51.50102157 | T99: =S99*AVERAGEIF(T105:T116,">0")/100 -> 46.00649597 | U99: =S99*(100-AVERAGEIF(T105:T116,">0"))/100 -> 5.494525591 | V99: =100-(T99+U99+W99) -> 46.87067245 | W99: =IF((S101+W101)>100,W101*100/(S101+W101),W101) -> 1.628305989 | X99: =IF((X101+AB101)>100,X101*100/(X101+AB101),X101) -> 64.54232743 | Y99: =X99*AVERAGEIF(Y105:Y116,">0")/100 -> 47.58030964 | Z99: =X99*(100-AVERAGEIF(Y105:Y116,">0"))/100 -> 16.9620178 | AA99: =100-(Y99+Z99+AB99) -> 34.8005985 | AB99: =IF((X101+AB101)>100,AB101*100/(X101+AB101),AB101) -> 0.65707407
C100: 2020 | D100: =IF((D102+H102)>100,D102*100/(D102+H102),D102) -> 35.77991974 | E100: =D100*AVERAGEIF(E105:E116,">0")/100 -> 30.70612181 | F100: =D100*(100-AVERAGEIF(E105:E116,">0"))/100 -> 5.073797924 | G100: =100-(E100+F100+H100) -> 57.67119133 | H100: =IF((D102+H102)>100,H102*100/(D102+H102),H102) -> 6.548888934 | I100: =IF((I102+M102)>100,I102*100/(I102+M102),I102) -> 49.44032282 | J100: =I100*AVERAGEIF(J105:J116,">0")/100 -> 42.87574187 | K100: =I100*(100-AVERAGEIF(J105:J116,">0"))/100 -> 6.564580949 | L100: =100-(J100+K100+M100) -> 48.70569762 | M100: =IF((I102+M102)>100,M102*100/(I102+M102),M102) -> 1.85397956 | N100: =IF((N102+R102)>100,N102*100/(N102+R102),N102) -> 54.71093687 | O100: =N100*AVERAGEIF(O105:O116,">0")/100 -> 47.95149156 | P100: =N100*(100-AVERAGEIF(O105:O116,">0"))/100 -> 6.759445314 | Q100: =100-(O100+P100+R100) -> 43.87546704 | R100: =IF((N102+R102)>100,R102*100/(N102+R102),R102) -> 1.413596082 | S100: =IF((S102+W102)>100,S102*100/(S102+W102),S102) -> 64.26106899 | T100: =S100*AVERAGEIF(T105:T116,">0")/100 -> 57.40520328 | U100: =S100*(100-AVERAGEIF(T105:T116,">0"))/100 -> 6.855865716 | V100: =100-(T100+U100+W100) -> 35.41937298 | W100: =IF((S102+W102)>100,W102*100/(S102+W102),W102) -> 0.3195580243 | X100: =IF((X102+AB102)>100,X102*100/(X102+AB102),X102) -> 88.48886116 | Y100: =X100*AVERAGEIF(Y105:Y116,">0")/100 -> 65.23358517 | Z100: =X100*(100-AVERAGEIF(Y105:Y116,">0"))/100 -> 23.25527599 | AA100: =100-(Y100+Z100+AB100) -> 11.36447169 | AB100: =IF((X102+AB102)>100,AB102*100/(X102+AB102),AB102) -> 0.1466671482
A101: Regression period: | C101: =MinRegYear(C99,C105:C116) -> 2003 | D101: =IF(MAX(C105:C116)-MIN(C105:C116)<5,AVERAGEIF(C105:C116,">0",D105:D116), IF(FORECAST($C101,D$105:D$116,$C$105:$C$116)<0,0, IF(FORECAST($C101,D$105:D$116,$C$105:$C$116)>100,100, FORECAST($C101,D$105:D$116,$C$105:$C$116)))) -> 49.1432477 | H101: =IF(MAX(C105:C116)-MIN(C105:C116)<5,AVERAGEIF(C105:C116,">0",H105:H116), IF(FORECAST($C101,H$105:H$116,$C$105:$C$116)<0,0, IF(FORECAST($C101,H$105:H$116,$C$105:$C$116)>100,100, FORECAST($C101,H$105:H$116,$C$105:$C$116)))) -> 9.444116757 | I101: =IF(MAX(C105:C116)-MIN(C105:C116)<5,AVERAGEIF(C105:C116,">0",I105:I116), IF(FORECAST($C101,I$105:I$116,$C$105:$C$116)<0,0, IF(FORECAST($C101,I$105:I$116,$C$105:$C$116)>100,100, FORECAST($C101,I$105:I$116,$C$105:$C$116)))) -> 50.81802599 | M101: =IF(MAX(C105:C116)-MIN(C105:C116)<5,AVERAGEIF(C105:C116,">0",M105:M116), IF(FORECAST($C101,M$105:M$116,$C$105:$C$116)<0,0, IF(FORECAST($C101,M$105:M$116,$C$105:$C$116)>100,100, FORECAST($C101,M$105:M$116,$C$105:$C$116)))) -> 2.533311329 | N101: =IF(MAX(C105:C116)-MIN(C105:C116)<5,AVERAGEIF(C105:C116,">0",N105:N116), IF(FORECAST($C101,N$105:N$116,$C$105:$C$116)<0,0, IF(FORECAST($C101,N$105:N$116,$C$105:$C$116)>100,100, FORECAST($C101,N$105:N$116,$C$105:$C$116)))) -> 52.03166742 | R101: =IF(MAX(C105:C116)-MIN(C105:C116)<5,AVERAGEIF(C105:C116,">0",R105:R116), IF(FORECAST($C101,R$105:R$116,$C$105:$C$116)<0,0, IF(FORECAST($C101,R$105:R$116,$C$105:$C$116)>100,100, FORECAST($C101,R$105:R$116,$C$105:$C$116)))) -> 1.96490275 | S101: =IF(MAX(C105:C116)-MIN(C105:C116)<5,AVERAGEIF(C105:C116,">0",S105:S116), IF(FORECAST($C101,S$105:S$116,$C$105:$C$116)<0,0, IF(FORECAST($C101,S$105:S$116,$C$105:$C$116)>100,100, FORECAST($C101,S$105:S$116,$C$105:$C$116)))) -> 51.50102157 | W101: =IF(MAX(C105:C116)-MIN(C105:C116)<5,AVERAGEIF(C105:C116,">0",W105:W116), IF(FORECAST($C101,W$105:W$116,$C$105:$C$116)<0,0, IF(FORECAST($C101,W$105:W$116,$C$105:$C$116)>100,100, FORECAST($C101,W$105:W$116,$C$105:$C$116)))) -> 1.628305989 | X101: =IF(MAX(C105:C116)-MIN(C105:C116)<5,AVERAGEIF(C105:C116,">0",X105:X116), IF(FORECAST($C101,X$105:X$116,$C$105:$C$116)<0,0, IF(FORECAST($C101,X$105:X$116,$C$105:$C$116)>100,100, FORECAST($C101,X$105:X$116,$C$105:$C$116)))) -> 64.54232743 | AB101: =IF(MAX(C105:C116)-MIN(C105:C116)<5,AVERAGEIF(C105:C116,">0",AB105:AB116), IF(FORECAST($C101,AB$105:AB$116,$C$105:$C$116)<0,0, IF(FORECAST($C101,AB$105:AB$116,$C$105:$C$116)>100,100, FORECAST($C101,AB$105:AB$116,$C$105:$C$116)))) -> 0.65707407
C102: =MaxRegYear(C100,C105:C116) -> 2019 | D102: =IF(MAX(C105:C116)-MIN(C105:C116)<5,AVERAGEIF(C105:C116,">0",D105:D116), IF(FORECAST($C102,D$105:D$116,$C$105:$C$116)<0,0, IF(FORECAST($C102,D$105:D$116,$C$105:$C$116)>100,100, FORECAST($C102,D$105:D$116,$C$105:$C$116)))) -> 35.77991974 | H102: =IF(MAX(C105:C116)-MIN(C105:C116)<5,AVERAGEIF(C105:C116,">0",H105:H116), IF(FORECAST($C102,H$105:H$116,$C$105:$C$116)<0,0, IF(FORECAST($C102,H$105:H$116,$C$105:$C$116)>100,100, FORECAST($C102,H$105:H$116,$C$105:$C$116)))) -> 6.548888934 | I102: =IF(MAX(C105:C116)-MIN(C105:C116)<5,AVERAGEIF(C105:C116,">0",I105:I116), IF(FORECAST($C102,I$105:I$116,$C$105:$C$116)<0,0, IF(FORECAST($C102,I$105:I$116,$C$105:$C$116)>100,100, FORECAST($C102,I$105:I$116,$C$105:$C$116)))) -> 49.44032282 | M102: =IF(MAX(C105:C116)-MIN(C105:C116)<5,AVERAGEIF(C105:C116,">0",M105:M116), IF(FORECAST($C102,M$105:M$116,$C$105:$C$116)<0,0, IF(FORECAST($C102,M$105:M$116,$C$105:$C$116)>100,100, FORECAST($C102,M$105:M$116,$C$105:$C$116)))) -> 1.85397956 | N102: =IF(MAX(C105:C116)-MIN(C105:C116)<5,AVERAGEIF(C105:C116,">0",N105:N116), IF(FORECAST($C102,N$105:N$116,$C$105:$C$116)<0,0, IF(FORECAST($C102,N$105:N$116,$C$105:$C$116)>100,100, FORECAST($C102,N$105:N$116,$C$105:$C$116)))) -> 54.71093687 | R102: =IF(MAX(C105:C116)-MIN(C105:C116)<5,AVERAGEIF(C105:C116,">0",R105:R116), IF(FORECAST($C102,R$105:R$116,$C$105:$C$116)<0,0, IF(FORECAST($C102,R$105:R$116,$C$105:$C$116)>100,100, FORECAST($C102,R$105:R$116,$C$105:$C$116)))) -> 1.413596082 | S102: =IF(MAX(C105:C116)-MIN(C105:C116)<5,AVERAGEIF(C105:C116,">0",S105:S116), IF(FORECAST($C102,S$105:S$116,$C$105:$C$116)<0,0, IF(FORECAST($C102,S$105:S$116,$C$105:$C$116)>100,100, FORECAST($C102,S$105:S$116,$C$105:$C$116)))) -> 64.26106899 | W102: =IF(MAX(C105:C116)-MIN(C105:C116)<5,AVERAGEIF(C105:C116,">0",W105:W116), IF(FORECAST($C102,W$105:W$116,$C$105:$C$116)<0,0, IF(FORECAST($C102,W$105:W$116,$C$105:$C$116)>100,100, FORECAST($C102,W$105:W$116,$C$105:$C$116)))) -> 0.3195580243 | X102: =IF(MAX(C105:C116)-MIN(C105:C116)<5,AVERAGEIF(C105:C116,">0",X105:X116), IF(FORECAST($C102,X$105:X$116,$C$105:$C$116)<0,0, IF(FORECAST($C102,X$105:X$116,$C$105:$C$116)>100,100, FORECAST($C102,X$105:X$116,$C$105:$C$116)))) -> 88.48886116 | AB102: =IF(MAX(C105:C116)-MIN(C105:C116)<5,AVERAGEIF(C105:C116,">0",AB105:AB116), IF(FORECAST($C102,AB$105:AB$116,$C$105:$C$116)<0,0, IF(FORECAST($C102,AB$105:AB$116,$C$105:$C$116)>100,100, FORECAST($C102,AB$105:AB$116,$C$105:$C$116)))) -> 0.1466671482
B104: Survey | C104: Year | D104: Improved | E104: Not shared | H104: Open defecation | I104: Improved | J104: Not shared | M104: Open defecation | N104: Improved | O104: Not shared | R104: Open defecation | S104: Improved | T104: Not shared | W104: Open defecation | X104: Improved | Y104: Not shared | AB104: Open defecation
B105: MICS05 | C105: 2005 | D105: =IF(ISERROR(INDIRECT(CONCATENATE($B105,"!C122"))),"",INDIRECT(CONCATENATE($B105,"!C122"))) -> 47.51372399 | E105: =IF(ISERROR(INDIRECT(CONCATENATE($B105,"!C129"))),"",INDIRECT(CONCATENATE($B105,"!C129"))) -> 85.79462455 | H105: =IF(ISERROR(INDIRECT(CONCATENATE($B105,"!C127"))),"",INDIRECT(CONCATENATE($B105,"!C127"))) -> 9.045447078 | I105: =IF(ISERROR(INDIRECT(CONCATENATE($B105,"!D122"))),"",INDIRECT(CONCATENATE($B105,"!D122"))) -> 49.53594353 | J105: =IF(ISERROR(INDIRECT(CONCATENATE($B105,"!D129"))),"",INDIRECT(CONCATENATE($B105,"!D129"))) -> 88.31322072 | M105: =IF(ISERROR(INDIRECT(CONCATENATE($B105,"!D127"))),"",INDIRECT(CONCATENATE($B105,"!D127"))) -> 2.828331503 | N105: =IF(ISERROR(INDIRECT(CONCATENATE($B105,"!E122"))),"",INDIRECT(CONCATENATE($B105,"!E122"))) -> 52.26299398 | O105: =IF(ISERROR(INDIRECT(CONCATENATE($B105,"!E129"))),"",INDIRECT(CONCATENATE($B105,"!E129"))) -> 88.09222247 | R105: =IF(ISERROR(INDIRECT(CONCATENATE($B105,"!E127"))),"",INDIRECT(CONCATENATE($B105,"!E127"))) -> 1.662605215 | S105: =IF(ISERROR(INDIRECT(CONCATENATE($B105,"!F122"))),"",INDIRECT(CONCATENATE($B105,"!F122"))) -> 54.48845984 | T105: =IF(ISERROR(INDIRECT(CONCATENATE($B105,"!F129"))),"",INDIRECT(CONCATENATE($B105,"!F129"))) -> 91.40293634 | W105: =IF(ISERROR(INDIRECT(CONCATENATE($B105,"!F127"))),"",INDIRECT(CONCATENATE($B105,"!F127"))) -> 1.305474233 | X105: =IF(ISERROR(INDIRECT(CONCATENATE($B105,"!G122"))),"",INDIRECT(CONCATENATE($B105,"!G122"))) -> 67.25747425 | Y105: =IF(ISERROR(INDIRECT(CONCATENATE($B105,"!G129"))),"",INDIRECT(CONCATENATE($B105,"!G129"))) -> 78.4068563 | AB105: =IF(ISERROR(INDIRECT(CONCATENATE($B105,"!G2127"))),"",INDIRECT(CONCATENATE($B105,"!G127"))) -> 0.4150603587
B106: DHS10 | C106: 2010 | D106: 25.56500565 | E106: 88.45414163 | H106: 8.910457454 | I106: 35.16885177 | J106: 90.36384682 | M106: 1.430436987 | N106: 38.57952971 | O106: 87.79737318 | R106: 1.910029596 | S106: 43.81276822 | T106: 87.49631739 | W106: 1.514309983 | X106: 68.22737314 | Y106: 70.30355241 | AB106: 0.6357587309
B107: MIS12 | C107: 2012 | D107: 66.35273473 | E107: 82.88301313 | H107: 6.877585973 | I107: 73.77175563 | J107: 82.34791772 | M107: 2.367272628 | N107: 74.26139891 | O107: 85.6611805 | R107: 1.954061916 | S107: 73.91579435 | T107: 90.05094483 | W107: 0.6322933628 | X107: 88.18804834 | Y107: 71.65360539 | AB107: 0.514898242
B108: DHS17 | C108: 2017 | D108: 30.4148705 | E108: 86.14592548 | H108: 7.152520878 | I108: 42.04014669 | J108: 85.86386517 | M108: 2.148540658 | N108: 48.38128598 | O108: 89.0298887 | R108: 1.230300938 | S108: 59.30715871 | T108: 88.37472104 | W108: 0.4436504471 | X108: 82.38948146 | Y108: 74.51416294 | AB108: 0.04176510467
B118: =CONCATENATE("National use of sanitation facilities, ",C99,"–",C100) -> National use of sanitation facilities, 2000–2020 | S118: Data points used for regression
A197: URBAN | D197: Poorest | I197: Poor | N197: Middle | S197: Rich | X197: Richest
D198: Improved | E198: Basic | F198: Limited | G198: Unimproved | H198: Open defecation | I198: Improved | J198: Basic | K198: Limited | L198: Unimproved | M198: Open defecation | N198: Improved | O198: Basic | P198: Limited | Q198: Unimproved | R198: Open defecation | S198: Improved | T198: Basic | U198: Limited | V198: Unimproved | W198: Open defecation | X198: Improved | Y198: Basic | Z198: Limited | AA198: Unimproved | AB198: Open defecation
A199: Forecast period: | C199: 2000 | D199: =IF((D201+H201)>100,D201*100/(D201+H201),D201) -> 43.17759056 | E199: =D199*AVERAGEIF(E205:E216,">0")/100 -> 18.34107941 | F199: =D199*(100-AVERAGEIF(E205:E216,">0"))/100 -> 24.83651115 | G199: =100-(E199+F199+H199) -> 54.2151977 | H199: =IF((D201+H201)>100,H201*100/(D201+H201),H201) -> 2.607211741 | I199: =IF((I201+M201)>100,I201*100/(I201+M201),I201) -> 66.27093952 | J199: =I199*AVERAGEIF(J205:J216,">0")/100 -> 19.48469882 | K199: =I199*(100-AVERAGEIF(J205:J216,">0"))/100 -> 46.78624071 | L199: =100-(J199+K199+M199) -> 30.80152606 | M199: =IF((I201+M201)>100,M201*100/(I201+M201),M201) -> 2.927534421 | N199: =IF((N201+R201)>100,N201*100/(N201+R201),N201) -> 84.47693987 | O199: =N199*AVERAGEIF(O205:O216,">0")/100 -> 25.56357678 | P199: =N199*(100-AVERAGEIF(O205:O216,">0"))/100 -> 58.91336308 | Q199: =100-(O199+P199+R199) -> 15.52306013 | R199: =IF((N201+R201)>100,R201*100/(N201+R201),R201) -> 0 | S199: =IF((S201+W201)>100,S201*100/(S201+W201),S201) -> 89.32760354 | T199: =S199*AVERAGEIF(T205:T216,">0")/100 -> 50.14629335 | U199: =S199*(100-AVERAGEIF(T205:T216,">0"))/100 -> 39.18131019 | V199: =100-(T199+U199+W199) -> 10.33407462 | W199: =IF((S201+W201)>100,W201*100/(S201+W201),W201) -> 0.3383218371 | X199: =IF((X201+AB201)>100,X201*100/(X201+AB201),X201) -> 99.21963348 | Y199: =X199*AVERAGEIF(Y205:Y216,">0")/100 -> 87.5060669 | Z199: =X199*(100-AVERAGEIF(Y205:Y216,">0"))/100 -> 11.71356658 | AA199: =100-(Y199+Z199+AB199) -> 0.5901581941 | AB199: =IF((X201+AB201)>100,AB201*100/(X201+AB201),AB201) -> 0.1902083277
C200: 2020 | D200: =IF((D202+H202)>100,D202*100/(D202+H202),D202) -> 59.25608917 | E200: =D200*AVERAGEIF(E205:E216,">0")/100 -> 25.17094221 | F200: =D200*(100-AVERAGEIF(E205:E216,">0"))/100 -> 34.08514695 | G200: =100-(E200+F200+H200) -> 37.5060868 | H200: =IF((D202+H202)>100,H202*100/(D202+H202),H202) -> 3.237824039 | I200: =IF((I202+M202)>100,I202*100/(I202+M202),I202) -> 83.13772434 | J200: =I200*AVERAGEIF(J205:J216,">0")/100 -> 24.44379891 | K200: =I200*(100-AVERAGEIF(J205:J216,">0"))/100 -> 58.69392543 | L200: =100-(J200+K200+M200) -> 16.86227566 | M200: =IF((I202+M202)>100,M202*100/(I202+M202),M202) -> 0 | N200: =IF((N202+R202)>100,N202*100/(N202+R202),N202) -> 91.13700359 | O200: =N200*AVERAGEIF(O205:O216,">0")/100 -> 27.57897946 | P200: =N200*(100-AVERAGEIF(O205:O216,">0"))/100 -> 63.55802413 | Q200: =100-(O200+P200+R200) -> 8.86299641 | R200: =IF((N202+R202)>100,R202*100/(N202+R202),R202) -> 0 | S200: =IF((S202+W202)>100,S202*100/(S202+W202),S202) -> 96.97550628 | T200: =S200*AVERAGEIF(T205:T216,">0")/100 -> 54.4396356 | U200: =S200*(100-AVERAGEIF(T205:T216,">0"))/100 -> 42.53587068 | V200: =100-(T200+U200+W200) -> 2.074815161 | W200: =IF((S202+W202)>100,W202*100/(S202+W202),W202) -> 0.9496785617 | X200: =IF((X202+AB202)>100,X202*100/(X202+AB202),X202) -> 99.44239555 | Y200: =X200*AVERAGEIF(Y205:Y216,">0")/100 -> 87.70253036 | Z200: =X200*(100-AVERAGEIF(Y205:Y216,">0"))/100 -> 11.73986519 | AA200: =100-(Y200+Z200+AB200) -> 0.07755486058 | AB200: =IF((X202+AB202)>100,AB202*100/(X202+AB202),AB202) -> 0.4800495889
A201: Regression period: | C201: =MinRegYear(C199,C205:C216) -> 2003 | D201: =IF(MAX(C205:C216)-MIN(C205:C216)<5,AVERAGEIF(C205:C216,">0",D205:D216), IF(FORECAST($C201,D$205:D$216,$C$205:$C$216)<0,0, IF(FORECAST($C201,D$205:D$216,$C$205:$C$216)>100,100, FORECAST($C201,D$205:D$216,$C$205:$C$216)))) -> 43.17759056 | H201: =IF(MAX(C205:C216)-MIN(C205:C216)<5,AVERAGEIF(C205:C216,">0",H205:H216), IF(FORECAST($C201,H$205:H$216,$C$205:$C$216)<0,0, IF(FORECAST($C201,H$205:H$216,$C$205:$C$216)>100,100, FORECAST($C201,H$205:H$216,$C$205:$C$216)))) -> 2.607211741 | I201: =IF(MAX(C205:C216)-MIN(C205:C216)<5,AVERAGEIF(C205:C216,">0",I205:I216), IF(FORECAST($C201,I$205:I$216,$C$205:$C$216)<0,0, IF(FORECAST($C201,I$205:I$216,$C$205:$C$216)>100,100, FORECAST($C201,I$205:I$216,$C$205:$C$216)))) -> 66.27093952 | M201: =IF(MAX(C205:C216)-MIN(C205:C216)<5,AVERAGEIF(C205:C216,">0",M205:M216), IF(FORECAST($C201,M$205:M$216,$C$205:$C$216)<0,0, IF(FORECAST($C201,M$205:M$216,$C$205:$C$216)>100,100, FORECAST($C201,M$205:M$216,$C$205:$C$216)))) -> 2.927534421 | N201: =IF(MAX(C205:C216)-MIN(C205:C216)<5,AVERAGEIF(C205:C216,">0",N205:N216), IF(FORECAST($C201,N$205:N$216,$C$205:$C$216)<0,0, IF(FORECAST($C201,N$205:N$216,$C$205:$C$216)>100,100, FORECAST($C201,N$205:N$216,$C$205:$C$216)))) -> 84.47693987 | R201: =IF(MAX(C205:C216)-MIN(C205:C216)<5,AVERAGEIF(C205:C216,">0",R205:R216), IF(FORECAST($C201,R$205:R$216,$C$205:$C$216)<0,0, IF(FORECAST($C201,R$205:R$216,$C$205:$C$216)>100,100, FORECAST($C201,R$205:R$216,$C$205:$C$216)))) -> 0 | S201: =IF(MAX(C205:C216)-MIN(C205:C216)<5,AVERAGEIF(C205:C216,">0",S205:S216), IF(FORECAST($C201,S$205:S$216,$C$205:$C$216)<0,0, IF(FORECAST($C201,S$205:S$216,$C$205:$C$216)>100,100, FORECAST($C201,S$205:S$216,$C$205:$C$216)))) -> 89.32760354 | W201: =IF(MAX(C205:C216)-MIN(C205:C216)<5,AVERAGEIF(C205:C216,">0",W205:W216), IF(FORECAST($C201,W$205:W$216,$C$205:$C$216)<0,0, IF(FORECAST($C201,W$205:W$216,$C$205:$C$216)>100,100, FORECAST($C201,W$205:W$216,$C$205:$C$216)))) -> 0.3383218371 | X201: =IF(MAX(C205:C216)-MIN(C205:C216)<5,AVERAGEIF(C205:C216,">0",X205:X216), IF(FORECAST($C201,X$205:X$216,$C$205:$C$216)<0,0, IF(FORECAST($C201,X$205:X$216,$C$205:$C$216)>100,100, FORECAST($C201,X$205:X$216,$C$205:$C$216)))) -> 99.21963348 | AB201: =IF(MAX(C205:C216)-MIN(C205:C216)<5,AVERAGEIF(C205:C216,">0",AB205:AB216), IF(FORECAST($C201,AB$205:AB$216,$C$205:$C$216)<0,0, IF(FORECAST($C201,AB$205:AB$216,$C$205:$C$216)>100,100, FORECAST($C201,AB$205:AB$216,$C$205:$C$216)))) -> 0.1902083277
C202: =MaxRegYear(C200,C205:C216) -> 2019 | D202: =IF(MAX(C205:C216)-MIN(C205:C216)<5,AVERAGEIF(C205:C216,">0",D205:D216), IF(FORECAST($C202,D$205:D$216,$C$205:$C$216)<0,0, IF(FORECAST($C202,D$205:D$216,$C$205:$C$216)>100,100, FORECAST($C202,D$205:D$216,$C$205:$C$216)))) -> 59.25608917 | H202: =IF(MAX(C205:C216)-MIN(C205:C216)<5,AVERAGEIF(C205:C216,">0",H205:H216), IF(FORECAST($C202,H$205:H$216,$C$205:$C$216)<0,0, IF(FORECAST($C202,H$205:H$216,$C$205:$C$216)>100,100, FORECAST($C202,H$205:H$216,$C$205:$C$216)))) -> 3.237824039 | I202: =IF(MAX(C205:C216)-MIN(C205:C216)<5,AVERAGEIF(C205:C216,">0",I205:I216), IF(FORECAST($C202,I$205:I$216,$C$205:$C$216)<0,0, IF(FORECAST($C202,I$205:I$216,$C$205:$C$216)>100,100, FORECAST($C202,I$205:I$216,$C$205:$C$216)))) -> 83.13772434 | M202: =IF(MAX(C205:C216)-MIN(C205:C216)<5,AVERAGEIF(C205:C216,">0",M205:M216), IF(FORECAST($C202,M$205:M$216,$C$205:$C$216)<0,0, IF(FORECAST($C202,M$205:M$216,$C$205:$C$216)>100,100, FORECAST($C202,M$205:M$216,$C$205:$C$216)))) -> 0 | N202: =IF(MAX(C205:C216)-MIN(C205:C216)<5,AVERAGEIF(C205:C216,">0",N205:N216), IF(FORECAST($C202,N$205:N$216,$C$205:$C$216)<0,0, IF(FORECAST($C202,N$205:N$216,$C$205:$C$216)>100,100, FORECAST($C202,N$205:N$216,$C$205:$C$216)))) -> 91.13700359 | R202: =IF(MAX(C205:C216)-MIN(C205:C216)<5,AVERAGEIF(C205:C216,">0",R205:R216), IF(FORECAST($C202,R$205:R$216,$C$205:$C$216)<0,0, IF(FORECAST($C202,R$205:R$216,$C$205:$C$216)>100,100, FORECAST($C202,R$205:R$216,$C$205:$C$216)))) -> 0 | S202: =IF(MAX(C205:C216)-MIN(C205:C216)<5,AVERAGEIF(C205:C216,">0",S205:S216), IF(FORECAST($C202,S$205:S$216,$C$205:$C$216)<0,0, IF(FORECAST($C202,S$205:S$216,$C$205:$C$216)>100,100, FORECAST($C202,S$205:S$216,$C$205:$C$216)))) -> 96.97550628 | W202: =IF(MAX(C205:C216)-MIN(C205:C216)<5,AVERAGEIF(C205:C216,">0",W205:W216), IF(FORECAST($C202,W$205:W$216,$C$205:$C$216)<0,0, IF(FORECAST($C202,W$205:W$216,$C$205:$C$216)>100,100, FORECAST($C202,W$205:W$216,$C$205:$C$216)))) -> 0.9496785617 | X202: =IF(MAX(C205:C216)-MIN(C205:C216)<5,AVERAGEIF(C205:C216,">0",X205:X216), IF(FORECAST($C202,X$205:X$216,$C$205:$C$216)<0,0, IF(FORECAST($C202,X$205:X$216,$C$205:$C$216)>100,100, FORECAST($C202,X$205:X$216,$C$205:$C$216)))) -> 99.44239555 | AB202: =IF(MAX(C205:C216)-MIN(C205:C216)<5,AVERAGEIF(C205:C216,">0",AB205:AB216), IF(FORECAST($C202,AB$205:AB$216,$C$205:$C$216)<0,0, IF(FORECAST($C202,AB$205:AB$216,$C$205:$C$216)>100,100, FORECAST($C202,AB$205:AB$216,$C$205:$C$216)))) -> 0.4800495889
B204: Survey | C204: Year | D204: Improved | E204: Not shared | H204: Open defecation | I204: Improved | J204: Not shared | M204: Open defecation | N204: Improved | O204: Not shared | R204: Open defecation | S204: Improved | T204: Not shared | W204: Open defecation | X204: Improved | Y204: Not shared | AB204: Open defecation
B205: MICS05 | C205: 2005 | D205: =IF(ISERROR(INDIRECT(CONCATENATE($B205,"!H122"))),"",INDIRECT(CONCATENATE($B205,"!H122"))) -> 43.00291149 | E205: =IF(ISERROR(INDIRECT(CONCATENATE($B205,"!H129"))),"",INDIRECT(CONCATENATE($B205,"!H129"))) -> 54.36535024 | H205: =IF(ISERROR(INDIRECT(CONCATENATE($B205,"!H127"))),"",INDIRECT(CONCATENATE($B205,"!H127"))) -> 1.032023743 | I205: =IF(ISERROR(INDIRECT(CONCATENATE($B205,"!I122"))),"",INDIRECT(CONCATENATE($B205,"!I122"))) -> 66.54028994 | J205: =IF(ISERROR(INDIRECT(CONCATENATE($B205,"!I129"))),"",INDIRECT(CONCATENATE($B205,"!I129"))) -> 19.34653531 | M205: =IF(ISERROR(INDIRECT(CONCATENATE($B205,"!I127"))),"",INDIRECT(CONCATENATE($B205,"!I127"))) -> 2.837991781 | N205: =IF(ISERROR(INDIRECT(CONCATENATE($B205,"!J122"))),"",INDIRECT(CONCATENATE($B205,"!J122"))) -> 83.65649077 | O205: =IF(ISERROR(INDIRECT(CONCATENATE($B205,"!J129"))),"",INDIRECT(CONCATENATE($B205,"!J129"))) -> 19.09954198 | R205: =IF(ISERROR(INDIRECT(CONCATENATE($B205,"!J127"))),"",INDIRECT(CONCATENATE($B205,"!J127"))) -> 0 | S205: =IF(ISERROR(INDIRECT(CONCATENATE($B205,"!K122"))),"",INDIRECT(CONCATENATE($B205,"!K122"))) -> 91.21150243 | T205: =IF(ISERROR(INDIRECT(CONCATENATE($B205,"!K129"))),"",INDIRECT(CONCATENATE($B205,"!K129"))) -> 55.57965063 | W205: =IF(ISERROR(INDIRECT(CONCATENATE($B205,"!K127"))),"",INDIRECT(CONCATENATE($B205,"!K127"))) -> 0 | X205: =IF(ISERROR(INDIRECT(CONCATENATE($B205,"!L122"))),"",INDIRECT(CONCATENATE($B205,"!L122"))) -> 99.51422089 | Y205: =IF(ISERROR(INDIRECT(CONCATENATE($B205,"!L129"))),"",INDIRECT(CONCATENATE($B205,"!L129"))) -> 91.07727855 | AB205: =IF(ISERROR(INDIRECT(CONCATENATE($B205,"!L2127"))),"",INDIRECT(CONCATENATE($B205,"!L127"))) -> 0
B206: DHS10 | C206: 2010 | D206: 36.14104902 | E206: 30.44120942 | H206: 6.828946022 | I206: 64.89665104 | J206: 23.75981276 | M206: 1.053248819 | N206: 82.69447502 | O206: 35.81008927 | R206: 0 | S206: 88.78948596 | T206: 50.89161724 | W206: 0 | X206: 99.34942889 | Y206: 90.35967132 | AB206: 0
B207: MIS12 | C207: 2012 | D207: 77.16376393 | E207: 42.58033881 | H207: 1.407388082 | I207: 92.42700998 | J207: 35.285911 | M207: 0 | N207: 98.76506247 | O207: 29.02965062 | R207: 0 | S207: 96.84026735 | T207: 56.61489962 | W207: 2.525695987 | X207: 98.65948417 | Y207: 80.3387179 | AB207: 1.340515833
B208: DHS17 | C208: 2017 | D208: 48.55963501 | E208: 42.52605101 | H208: 2.421713713 | I208: 74.95337675 | J208: 39.21403386 | M208: 0 | N208: 86.11185865 | O208: 37.10476553 | R208: 0 | S208: 95.76496389 | T208: 61.4638769 | W208: 0.0503048107 | X208: 99.80092411 | Y208: 91.00155518 | AB208: 0
B218: =CONCATENATE("Urban use of sanitation facilities, ",C199,"–",C200) -> Urban use of sanitation facilities, 2000–2020 | S218: Data points used for regression
A297: RURAL | D297: Poorest | I297: Poor | N297: Middle | S297: Rich | X297: Richest
D298: Improved | E298: Basic | F298: Limited | G298: Unimproved | H298: Open defecation | I298: Improved | J298: Basic | K298: Limited | L298: Unimproved | M298: Open defecation | N298: Improved | O298: Basic | P298: Limited | Q298: Unimproved | R298: Open defecation | S298: Improved | T298: Basic | U298: Limited | V298: Unimproved | W298: Open defecation | X298: Improved | Y298: Basic | Z298: Limited | AA298: Unimproved | AB298: Open defecation
A299: Forecast period: | C299: 2000 | D299: =IF((D301+H301)>100,D301*100/(D301+H301),D301) -> 48.76680125 | E299: =D299*AVERAGEIF(E305:E316,">0")/100 -> 41.94712654 | F299: =D299*(100-AVERAGEIF(E305:E316,">0"))/100 -> 6.819674718 | G299: =100-(E299+F299+H299) -> 41.82374591 | H299: =IF((D301+H301)>100,H301*100/(D301+H301),H301) -> 9.409452841 | I299: =IF((I301+M301)>100,I301*100/(I301+M301),I301) -> 50.59332135 | J299: =I299*AVERAGEIF(J305:J316,">0")/100 -> 43.85229302 | K299: =I299*(100-AVERAGEIF(J305:J316,">0"))/100 -> 6.74102833 | L299: =100-(J299+K299+M299) -> 46.39329474 | M299: =IF((I301+M301)>100,M301*100/(I301+M301),M301) -> 3.013383912 | N299: =IF((N301+R301)>100,N301*100/(N301+R301),N301) -> 52.42392294 | O299: =N299*AVERAGEIF(O305:O316,">0")/100 -> 46.23454239 | P299: =N299*(100-AVERAGEIF(O305:O316,">0"))/100 -> 6.189380549 | Q299: =100-(O299+P299+R299) -> 45.63351256 | R299: =IF((N301+R301)>100,R301*100/(N301+R301),R301) -> 1.942564495 | S299: =IF((S301+W301)>100,S301*100/(S301+W301),S301) -> 51.06072218 | T299: =S299*AVERAGEIF(T305:T316,">0")/100 -> 46.4697402 | U299: =S299*(100-AVERAGEIF(T305:T316,">0"))/100 -> 4.59098198 | V299: =100-(T299+U299+W299) -> 47.3405532 | W299: =IF((S301+W301)>100,W301*100/(S301+W301),W301) -> 1.598724612 | X299: =IF((X301+AB301)>100,X301*100/(X301+AB301),X301) -> 55.08177917 | Y299: =X299*AVERAGEIF(Y305:Y316,">0")/100 -> 48.94540577 | Z299: =X299*(100-AVERAGEIF(Y305:Y316,">0"))/100 -> 6.136373394 | AA299: =100-(Y299+Z299+AB299) -> 44.15336145 | AB299: =IF((X301+AB301)>100,AB301*100/(X301+AB301),AB301) -> 0.7648593767
C300: 2020 | D300: =IF((D302+H302)>100,D302*100/(D302+H302),D302) -> 35.68555964 | E300: =D300*AVERAGEIF(E305:E316,">0")/100 -> 30.69519934 | F300: =D300*(100-AVERAGEIF(E305:E316,">0"))/100 -> 4.990360299 | G300: =100-(E300+F300+H300) -> 57.17579132 | H300: =IF((D302+H302)>100,H302*100/(D302+H302),H302) -> 7.13864904 | I300: =IF((I302+M302)>100,I302*100/(I302+M302),I302) -> 48.10504873 | J300: =I300*AVERAGEIF(J305:J316,">0")/100 -> 41.69555658 | K300: =I300*(100-AVERAGEIF(J305:J316,">0"))/100 -> 6.409492156 | L300: =100-(J300+K300+M300) -> 49.77043138 | M300: =IF((I302+M302)>100,M302*100/(I302+M302),M302) -> 2.124519884 | N300: =IF((N302+R302)>100,N302*100/(N302+R302),N302) -> 52.2088805 | O300: =N300*AVERAGEIF(O305:O316,">0")/100 -> 46.04488874 | P300: =N300*(100-AVERAGEIF(O305:O316,">0"))/100 -> 6.163991768 | Q300: =100-(O300+P300+R300) -> 46.40860833 | R300: =IF((N302+R302)>100,R302*100/(N302+R302),R302) -> 1.382511165 | S300: =IF((S302+W302)>100,S302*100/(S302+W302),S302) -> 61.65856986 | T300: =S300*AVERAGEIF(T305:T316,">0")/100 -> 56.11471206 | U300: =S300*(100-AVERAGEIF(T305:T316,">0"))/100 -> 5.543857803 | V300: =100-(T300+U300+W300) -> 37.90468395 | W300: =IF((S302+W302)>100,W302*100/(S302+W302),W302) -> 0.436746189 | X300: =IF((X302+AB302)>100,X302*100/(X302+AB302),X302) -> 77.52557309 | Y300: =X300*AVERAGEIF(Y305:Y316,">0")/100 -> 68.88885381 | Z300: =X300*(100-AVERAGEIF(Y305:Y316,">0"))/100 -> 8.636719279 | AA300: =100-(Y300+Z300+AB300) -> 22.20089671 | AB300: =IF((X302+AB302)>100,AB302*100/(X302+AB302),AB302) -> 0.273530208
A301: Regression period: | C301: =MinRegYear(C299,C305:C316) -> 2003 | D301: =IF(MAX(C305:C316)-MIN(C305:C316)<5,AVERAGEIF(C305:C316,">0",D305:D316), IF(FORECAST($C301,D$305:D$316,$C$305:$C$316)<0,0, IF(FORECAST($C301,D$305:D$316,$C$305:$C$316)>100,100, FORECAST($C301,D$305:D$316,$C$305:$C$316)))) -> 48.76680125 | H301: =IF(MAX(C305:C316)-MIN(C305:C316)<5,AVERAGEIF(C305:C316,">0",H305:H316), IF(FORECAST($C301,H$305:H$316,$C$305:$C$316)<0,0, IF(FORECAST($C301,H$305:H$316,$C$305:$C$316)>100,100, FORECAST($C301,H$305:H$316,$C$305:$C$316)))) -> 9.409452841 | I301: =IF(MAX(C305:C316)-MIN(C305:C316)<5,AVERAGEIF(C305:C316,">0",I305:I316), IF(FORECAST($C301,I$305:I$316,$C$305:$C$316)<0,0, IF(FORECAST($C301,I$305:I$316,$C$305:$C$316)>100,100, FORECAST($C301,I$305:I$316,$C$305:$C$316)))) -> 50.59332135 | M301: =IF(MAX(C305:C316)-MIN(C305:C316)<5,AVERAGEIF(C305:C316,">0",M305:M316), IF(FORECAST($C301,M$305:M$316,$C$305:$C$316)<0,0, IF(FORECAST($C301,M$305:M$316,$C$305:$C$316)>100,100, FORECAST($C301,M$305:M$316,$C$305:$C$316)))) -> 3.013383912 | N301: =IF(MAX(C305:C316)-MIN(C305:C316)<5,AVERAGEIF(C305:C316,">0",N305:N316), IF(FORECAST($C301,N$305:N$316,$C$305:$C$316)<0,0, IF(FORECAST($C301,N$305:N$316,$C$305:$C$316)>100,100, FORECAST($C301,N$305:N$316,$C$305:$C$316)))) -> 52.42392294 | R301: =IF(MAX(C305:C316)-MIN(C305:C316)<5,AVERAGEIF(C305:C316,">0",R305:R316), IF(FORECAST($C301,R$305:R$316,$C$305:$C$316)<0,0, IF(FORECAST($C301,R$305:R$316,$C$305:$C$316)>100,100, FORECAST($C301,R$305:R$316,$C$305:$C$316)))) -> 1.942564495 | S301: =IF(MAX(C305:C316)-MIN(C305:C316)<5,AVERAGEIF(C305:C316,">0",S305:S316), IF(FORECAST($C301,S$305:S$316,$C$305:$C$316)<0,0, IF(FORECAST($C301,S$305:S$316,$C$305:$C$316)>100,100, FORECAST($C301,S$305:S$316,$C$305:$C$316)))) -> 51.06072218 | W301: =IF(MAX(C305:C316)-MIN(C305:C316)<5,AVERAGEIF(C305:C316,">0",W305:W316), IF(FORECAST($C301,W$305:W$316,$C$305:$C$316)<0,0, IF(FORECAST($C301,W$305:W$316,$C$305:$C$316)>100,100, FORECAST($C301,W$305:W$316,$C$305:$C$316)))) -> 1.598724612 | X301: =IF(MAX(C305:C316)-MIN(C305:C316)<5,AVERAGEIF(C305:C316,">0",X305:X316), IF(FORECAST($C301,X$305:X$316,$C$305:$C$316)<0,0, IF(FORECAST($C301,X$305:X$316,$C$305:$C$316)>100,100, FORECAST($C301,X$305:X$316,$C$305:$C$316)))) -> 55.08177917 | AB301: =IF(MAX(C305:C316)-MIN(C305:C316)<5,AVERAGEIF(C305:C316,">0",AB305:AB316), IF(FORECAST($C301,AB$305:AB$316,$C$305:$C$316)<0,0, IF(FORECAST($C301,AB$305:AB$316,$C$305:$C$316)>100,100, FORECAST($C301,AB$305:AB$316,$C$305:$C$316)))) -> 0.7648593767
C302: =MaxRegYear(C300,C305:C316) -> 2019 | D302: =IF(MAX(C305:C316)-MIN(C305:C316)<5,AVERAGEIF(C305:C316,">0",D305:D316), IF(FORECAST($C302,D$305:D$316,$C$305:$C$316)<0,0, IF(FORECAST($C302,D$305:D$316,$C$305:$C$316)>100,100, FORECAST($C302,D$305:D$316,$C$305:$C$316)))) -> 35.68555964 | H302: =IF(MAX(C305:C316)-MIN(C305:C316)<5,AVERAGEIF(C305:C316,">0",H305:H316), IF(FORECAST($C302,H$305:H$316,$C$305:$C$316)<0,0, IF(FORECAST($C302,H$305:H$316,$C$305:$C$316)>100,100, FORECAST($C302,H$305:H$316,$C$305:$C$316)))) -> 7.13864904 | I302: =IF(MAX(C305:C316)-MIN(C305:C316)<5,AVERAGEIF(C305:C316,">0",I305:I316), IF(FORECAST($C302,I$305:I$316,$C$305:$C$316)<0,0, IF(FORECAST($C302,I$305:I$316,$C$305:$C$316)>100,100, FORECAST($C302,I$305:I$316,$C$305:$C$316)))) -> 48.10504873 | M302: =IF(MAX(C305:C316)-MIN(C305:C316)<5,AVERAGEIF(C305:C316,">0",M305:M316), IF(FORECAST($C302,M$305:M$316,$C$305:$C$316)<0,0, IF(FORECAST($C302,M$305:M$316,$C$305:$C$316)>100,100, FORECAST($C302,M$305:M$316,$C$305:$C$316)))) -> 2.124519884 | N302: =IF(MAX(C305:C316)-MIN(C305:C316)<5,AVERAGEIF(C305:C316,">0",N305:N316), IF(FORECAST($C302,N$305:N$316,$C$305:$C$316)<0,0, IF(FORECAST($C302,N$305:N$316,$C$305:$C$316)>100,100, FORECAST($C302,N$305:N$316,$C$305:$C$316)))) -> 52.2088805 | R302: =IF(MAX(C305:C316)-MIN(C305:C316)<5,AVERAGEIF(C305:C316,">0",R305:R316), IF(FORECAST($C302,R$305:R$316,$C$305:$C$316)<0,0, IF(FORECAST($C302,R$305:R$316,$C$305:$C$316)>100,100, FORECAST($C302,R$305:R$316,$C$305:$C$316)))) -> 1.382511165 | S302: =IF(MAX(C305:C316)-MIN(C305:C316)<5,AVERAGEIF(C305:C316,">0",S305:S316), IF(FORECAST($C302,S$305:S$316,$C$305:$C$316)<0,0, IF(FORECAST($C302,S$305:S$316,$C$305:$C$316)>100,100, FORECAST($C302,S$305:S$316,$C$305:$C$316)))) -> 61.65856986 | W302: =IF(MAX(C305:C316)-MIN(C305:C316)<5,AVERAGEIF(C305:C316,">0",W305:W316), IF(FORECAST($C302,W$305:W$316,$C$305:$C$316)<0,0, IF(FORECAST($C302,W$305:W$316,$C$305:$C$316)>100,100, FORECAST($C302,W$305:W$316,$C$305:$C$316)))) -> 0.436746189 | X302: =IF(MAX(C305:C316)-MIN(C305:C316)<5,AVERAGEIF(C305:C316,">0",X305:X316), IF(FORECAST($C302,X$305:X$316,$C$305:$C$316)<0,0, IF(FORECAST($C302,X$305:X$316,$C$305:$C$316)>100,100, FORECAST($C302,X$305:X$316,$C$305:$C$316)))) -> 77.52557309 | AB302: =IF(MAX(C305:C316)-MIN(C305:C316)<5,AVERAGEIF(C305:C316,">0",AB305:AB316), IF(FORECAST($C302,AB$305:AB$316,$C$305:$C$316)<0,0, IF(FORECAST($C302,AB$305:AB$316,$C$305:$C$316)>100,100, FORECAST($C302,AB$305:AB$316,$C$305:$C$316)))) -> 0.273530208
B304: Survey | C304: Year | D304: Improved | E304: Not shared | H304: Open defecation | I304: Improved | J304: Not shared | M304: Open defecation | N304: Improved | O304: Not shared | R304: Open defecation | S304: Improved | T304: Not shared | W304: Open defecation | X304: Improved | Y304: Not shared | AB304: Open defecation
B305: MICS05 | C305: 2005 | D305: =IF(ISERROR(INDIRECT(CONCATENATE($B305,"!M122"))),"",INDIRECT(CONCATENATE($B305,"!M122"))) -> 47.23447742 | E305: =IF(ISERROR(INDIRECT(CONCATENATE($B305,"!M129"))),"",INDIRECT(CONCATENATE($B305,"!M129"))) -> 86.37413118 | H305: =IF(ISERROR(INDIRECT(CONCATENATE($B305,"!M127"))),"",INDIRECT(CONCATENATE($B305,"!M127"))) -> 9.174565945 | I305: =IF(ISERROR(INDIRECT(CONCATENATE($B305,"!N122"))),"",INDIRECT(CONCATENATE($B305,"!N122"))) -> 49.18306486 | J305: =IF(ISERROR(INDIRECT(CONCATENATE($B305,"!N129"))),"",INDIRECT(CONCATENATE($B305,"!N129"))) -> 87.36773743 | M305: =IF(ISERROR(INDIRECT(CONCATENATE($B305,"!N127"))),"",INDIRECT(CONCATENATE($B305,"!N127"))) -> 3.205693003 | N305: =IF(ISERROR(INDIRECT(CONCATENATE($B305,"!O122"))),"",INDIRECT(CONCATENATE($B305,"!O122"))) -> 51.72124286 | O305: =IF(ISERROR(INDIRECT(CONCATENATE($B305,"!O129"))),"",INDIRECT(CONCATENATE($B305,"!O129"))) -> 88.71772323 | R305: =IF(ISERROR(INDIRECT(CONCATENATE($B305,"!O127"))),"",INDIRECT(CONCATENATE($B305,"!O127"))) -> 1.774746464 | S305: =IF(ISERROR(INDIRECT(CONCATENATE($B305,"!P122"))),"",INDIRECT(CONCATENATE($B305,"!P122"))) -> 53.02668814 | T305: =IF(ISERROR(INDIRECT(CONCATENATE($B305,"!P129"))),"",INDIRECT(CONCATENATE($B305,"!P129"))) -> 90.52959242 | W305: =IF(ISERROR(INDIRECT(CONCATENATE($B305,"!P127"))),"",INDIRECT(CONCATENATE($B305,"!P127"))) -> 1.278595874 | X305: =IF(ISERROR(INDIRECT(CONCATENATE($B305,"!Q122"))),"",INDIRECT(CONCATENATE($B305,"!Q122"))) -> 59.31034019 | Y305: =IF(ISERROR(INDIRECT(CONCATENATE($B305,"!Q129"))),"",INDIRECT(CONCATENATE($B305,"!Q129"))) -> 89.4158877 | AB305: =IF(ISERROR(INDIRECT(CONCATENATE($B305,"!Q2127"))),"",INDIRECT(CONCATENATE($B305,"!Q127"))) -> 0.4482493613
B306: DHS10 | C306: 2010 | D306: 25.57062055 | E306: 88.43154593 | H306: 8.812665828 | I306: 34.23472155 | J306: 91.41293769 | M306: 2.01311945 | N306: 38.55831454 | O306: 89.19185669 | R306: 1.581193037 | S306: 40.98838924 | T306: 90.46820683 | W306: 1.710929024 | X306: 54.29498959 | Y306: 87.31042444 | AB306: 0.9976921575
B307: MIS12 | C307: 2012 | D307: 65.62420007 | E307: 83.2190162 | H307: 7.459247603 | I307: 73.20977454 | J307: 82.01609775 | M307: 2.641137897 | N307: 73.20501928 | O307: 85.26334503 | R307: 2.025169149 | S307: 76.07549533 | T307: 91.99275581 | W307: 0.4960292313 | X307: 79.13933415 | Y307: 89.07441292 | AB307: 0.4740469964
B308: DHS17 | C308: 2017 | D308: 30.47542376 | E308: 86.03827951 | H308: 7.649724386 | I308: 40.76917922 | J308: 85.90743117 | M308: 2.415857241 | N308: 45.7810302 | O308: 89.60145589 | R308: 1.269042671 | S308: 55.34801138 | T308: 91.04456405 | W308: 0.5853874723 | X308: 72.47004058 | Y308: 89.63736364 | AB308: 0.156790654
B318: =CONCATENATE("Rural use of sanitation facilities, ",C299,"–",C300) -> Rural use of sanitation facilities, 2000–2020 | S318: Data points used for regression

Sheet Hygiene
B4: Access to hygiene facilities by wealth quintile (%)
B5: =IF(ISERROR(INDIRECT(CONCATENATE($E$32,"!A2"))),"",INDIRECT(CONCATENATE($E$32,"!A2"))) -> Burundi
B7: =CONCATENATE("National ",IF(ISERROR(INDIRECT(CONCATENATE($E$32,"!A2"))),"",INDIRECT(CONCATENATE($E$32,"!A210")))) -> National Access to hygiene facilities | K7: =CONCATENATE("Urban ",IF(ISERROR(INDIRECT(CONCATENATE($E$32,"!A2"))),"",INDIRECT(CONCATENATE($E$32,"!A210")))) -> Urban Access to hygiene facilities | S7: =CONCATENATE("Rural ",IF(ISERROR(INDIRECT(CONCATENATE($E$32,"!A2"))),"",INDIRECT(CONCATENATE($E$32,"!A210")))) -> Rural Access to hygiene facilities
E32: =INDEX(B88:B100,A88) -> DHS17 | G32: =IF(ISERROR(INDIRECT(CONCATENATE($E$32,"!A2"))),"",INDIRECT(CONCATENATE($E$32,"!A2"))) -> Burundi | K32: Poorest | N32: Poor | Q32: Middle | T32: Rich | W32: Richest
K33: Basic | L33: Limited | M33: No facility | N33: Basic | O33: Limited | P33: No facility | Q33: Basic | R33: Limited | S33: No facility | T33: Basic | U33: Limited | V33: No facility | W33: Basic | X33: Limited | Y33: No facility
B34: >>> Select Survey : | G34: NATIONAL | J34: =IF(ISERROR(INDIRECT(CONCATENATE(#REF!,"!A2"))),"",INDIRECT(CONCATENATE(#REF!,"!A210"))) ->  | K34: =IF(ISERROR(INDIRECT(CONCATENATE($E$32,"!C222"))),"",INDIRECT(CONCATENATE($E$32,"!C222"))) -> 1.741105718 | L34: =IF(ISERROR(INDIRECT(CONCATENATE($E$32,"!C223"))),"",INDIRECT(CONCATENATE($E$32,"!C223"))) -> 96.17340899 | M34: =IF(ISERROR(INDIRECT(CONCATENATE($E$32,"!C224"))),"",INDIRECT(CONCATENATE($E$32,"!C224"))) -> 2.085485289 | N34: =IF(ISERROR(INDIRECT(CONCATENATE($E$32,"!D222"))),"",INDIRECT(CONCATENATE($E$32,"!D222"))) -> 2.995261827 | O34: =IF(ISERROR(INDIRECT(CONCATENATE($E$32,"!D223"))),"",INDIRECT(CONCATENATE($E$32,"!D223"))) -> 95.74503377 | P34: =IF(ISERROR(INDIRECT(CONCATENATE($E$32,"!D224"))),"",INDIRECT(CONCATENATE($E$32,"!D224"))) -> 1.259704406 | Q34: =IF(ISERROR(INDIRECT(CONCATENATE($E$32,"!E222"))),"",INDIRECT(CONCATENATE($E$32,"!E222"))) -> 3.100855319 | R34: =IF(ISERROR(INDIRECT(CONCATENATE($E$32,"!E223"))),"",INDIRECT(CONCATENATE($E$32,"!E223"))) -> 95.64432534 | S34: =IF(ISERROR(INDIRECT(CONCATENATE($E$32,"!E224"))),"",INDIRECT(CONCATENATE($E$32,"!E224"))) -> 1.254819345 | T34: =IF(ISERROR(INDIRECT(CONCATENATE($E$32,"!F222"))),"",INDIRECT(CONCATENATE($E$32,"!F222"))) -> 4.482453037 | U34: =IF(ISERROR(INDIRECT(CONCATENATE($E$32,"!F223"))),"",INDIRECT(CONCATENATE($E$32,"!F223"))) -> 94.23282704 | V34: =IF(ISERROR(INDIRECT(CONCATENATE($E$32,"!F224"))),"",INDIRECT(CONCATENATE($E$32,"!F224"))) -> 1.28471992 | W34: =IF(ISERROR(INDIRECT(CONCATENATE($E$32,"!G222"))),"",INDIRECT(CONCATENATE($E$32,"!G222"))) -> 17.11689939 | X34: =IF(ISERROR(INDIRECT(CONCATENATE($E$32,"!G223"))),"",INDIRECT(CONCATENATE($E$32,"!G223"))) -> 82.21363124 | Y34: =IF(ISERROR(INDIRECT(CONCATENATE($E$32,"!G224"))),"",INDIRECT(CONCATENATE($E$32,"!G224"))) -> 0.6694693732
G37: URBAN | J37: =IF(ISERROR(INDIRECT(CONCATENATE(#REF!,"!A2"))),"",INDIRECT(CONCATENATE(#REF!,"!A210"))) ->  | K37: =IF(ISERROR(INDIRECT(CONCATENATE($E$32,"!H222"))),"",INDIRECT(CONCATENATE($E$32,"!H222"))) -> 2.047075248 | L37: =IF(ISERROR(INDIRECT(CONCATENATE($E$32,"!H223"))),"",INDIRECT(CONCATENATE($E$32,"!H223"))) -> 96.69764273 | M37: =IF(ISERROR(INDIRECT(CONCATENATE($E$32,"!H224"))),"",INDIRECT(CONCATENATE($E$32,"!H224"))) -> 1.255282023 | N37: =IF(ISERROR(INDIRECT(CONCATENATE($E$32,"!I222"))),"",INDIRECT(CONCATENATE($E$32,"!I222"))) -> 6.579901144 | O37: =IF(ISERROR(INDIRECT(CONCATENATE($E$32,"!I223"))),"",INDIRECT(CONCATENATE($E$32,"!I223"))) -> 92.10672672 | P37: =IF(ISERROR(INDIRECT(CONCATENATE($E$32,"!I224"))),"",INDIRECT(CONCATENATE($E$32,"!I224"))) -> 1.313372136 | Q37: =IF(ISERROR(INDIRECT(CONCATENATE($E$32,"!J222"))),"",INDIRECT(CONCATENATE($E$32,"!J222"))) -> 8.449572213 | R37: =IF(ISERROR(INDIRECT(CONCATENATE($E$32,"!J223"))),"",INDIRECT(CONCATENATE($E$32,"!J223"))) -> 91.01498494 | S37: =IF(ISERROR(INDIRECT(CONCATENATE($E$32,"!J224"))),"",INDIRECT(CONCATENATE($E$32,"!J224"))) -> 0.5354428457 | T37: =IF(ISERROR(INDIRECT(CONCATENATE($E$32,"!K222"))),"",INDIRECT(CONCATENATE($E$32,"!K222"))) -> 23.11703221 | U37: =IF(ISERROR(INDIRECT(CONCATENATE($E$32,"!K223"))),"",INDIRECT(CONCATENATE($E$32,"!K223"))) -> 76.82453856 | V37: =IF(ISERROR(INDIRECT(CONCATENATE($E$32,"!K224"))),"",INDIRECT(CONCATENATE($E$32,"!K224"))) -> 0.0584292293 | W37: =IF(ISERROR(INDIRECT(CONCATENATE($E$32,"!L222"))),"",INDIRECT(CONCATENATE($E$32,"!L222"))) -> 62.00025803 | X37: =IF(ISERROR(INDIRECT(CONCATENATE($E$32,"!L223"))),"",INDIRECT(CONCATENATE($E$32,"!L223"))) -> 37.99974197 | Y37: =IF(ISERROR(INDIRECT(CONCATENATE($E$32,"!L224"))),"",INDIRECT(CONCATENATE($E$32,"!L224"))) -> 0
G40: RURAL | J40: =IF(ISERROR(INDIRECT(CONCATENATE(#REF!,"!A2"))),"",INDIRECT(CONCATENATE(#REF!,"!A210"))) ->  | K40: =IF(ISERROR(INDIRECT(CONCATENATE($E$32,"!M222"))),"",INDIRECT(CONCATENATE($E$32,"!M222"))) -> 1.444302368 | L40: =IF(ISERROR(INDIRECT(CONCATENATE($E$32,"!M223"))),"",INDIRECT(CONCATENATE($E$32,"!M223"))) -> 96.62989704 | M40: =IF(ISERROR(INDIRECT(CONCATENATE($E$32,"!M224"))),"",INDIRECT(CONCATENATE($E$32,"!M224"))) -> 1.925800587 | N40: =IF(ISERROR(INDIRECT(CONCATENATE($E$32,"!N222"))),"",INDIRECT(CONCATENATE($E$32,"!N222"))) -> 3.044854519 | O40: =IF(ISERROR(INDIRECT(CONCATENATE($E$32,"!N223"))),"",INDIRECT(CONCATENATE($E$32,"!N223"))) -> 95.35474174 | P40: =IF(ISERROR(INDIRECT(CONCATENATE($E$32,"!N224"))),"",INDIRECT(CONCATENATE($E$32,"!N224"))) -> 1.600403746 | Q40: =IF(ISERROR(INDIRECT(CONCATENATE($E$32,"!O222"))),"",INDIRECT(CONCATENATE($E$32,"!O222"))) -> 3.376985943 | R40: =IF(ISERROR(INDIRECT(CONCATENATE($E$32,"!O223"))),"",INDIRECT(CONCATENATE($E$32,"!O223"))) -> 95.54490156 | S40: =IF(ISERROR(INDIRECT(CONCATENATE($E$32,"!O224"))),"",INDIRECT(CONCATENATE($E$32,"!O224"))) -> 1.0781125 | T40: =IF(ISERROR(INDIRECT(CONCATENATE($E$32,"!P222"))),"",INDIRECT(CONCATENATE($E$32,"!P222"))) -> 3.561297597 | U40: =IF(ISERROR(INDIRECT(CONCATENATE($E$32,"!P223"))),"",INDIRECT(CONCATENATE($E$32,"!P223"))) -> 94.93053533 | V40: =IF(ISERROR(INDIRECT(CONCATENATE($E$32,"!P224"))),"",INDIRECT(CONCATENATE($E$32,"!P224"))) -> 1.508167075 | W40: =IF(ISERROR(INDIRECT(CONCATENATE($E$32,"!Q222"))),"",INDIRECT(CONCATENATE($E$32,"!Q222"))) -> 8.984279046 | X40: =IF(ISERROR(INDIRECT(CONCATENATE($E$32,"!Q223"))),"",INDIRECT(CONCATENATE($E$32,"!Q223"))) -> 90.15352949 | Y40: =IF(ISERROR(INDIRECT(CONCATENATE($E$32,"!Q224"))),"",INDIRECT(CONCATENATE($E$32,"!Q224"))) -> 0.862191461
A88: 4 | B88: MICS05
B89: DHS10
B90: MIS12
B91: DHS17
B92: Template

Sheet MICS05
A2: =A1026 -> Burundi
A3: =A1034 -> 2005
A4: Use of drinking water sources
A5: by wealth quintile and sub-national region
A6: Notes:
A7: WHO/UNICEF JMP customised wealth index excludes water,
A8: sanitation and hygiene assets.
A9: Survey used for analysis: | B9: =A1025 -> MICS05
A10: =B1028 -> 
A11: =B1027 -> 
A14: Use of drinking water sources | C14: NATIONAL wealth index quintile | H14: URBAN wealth index quintile | M14: RURAL wealth index quintile | R14: SUB-REGIONS: | BA14: Raw numbers of respondents: | BB14: Use of drinking water sources | BC14: NATIONAL wealth index quintile | BH14: URBAN wealth index quintile | BM14: RURAL wealth index quintile | BR14: SUB-REGIONS:
A15: Weighted percentage (used in graphs) | C15: Poorest | D15: Poor | E15: Middle | F15: Rich | G15: Richest | H15: Poorest | I15: Poor | J15: Middle | K15: Rich | L15: Richest | M15: Poorest | N15: Poor | O15: Middle | P15: Rich | Q15: Richest | R15: Centre | S15: Est | T15: Nord | U15: Ouest | V15: Sud | BA15: Water data, raw numbers (weighted) | BC15: Poorest | BD15: Poor | BE15: Middle | BF15: Rich | BG15: Richest | BH15: Poorest | BI15: Poor | BJ15: Middle | BK15: Rich | BL15: Richest | BM15: Poorest | BN15: Poor | BO15: Middle | BP15: Rich | BQ15: Richest | BR15: Centre | BS15: Est | BT15: Nord | BU15: Ouest | BV15: Sud
A16: Water | B16: Improved | C16: 54.58007713 | D16: 64.0465884 | E16: 62.26824915 | F16: 65.53566995 | G16: 74.97596568 | H16: 50.42475489 | I16: 74.2537808 | J16: 81.24396118 | K16: 93.45642253 | L16: 99.90028533 | M16: 54.49064457 | N16: 64.73548886 | O16: 61.78378325 | P16: 64.08812065 | Q16: 71.99598677 | R16: 71.27586899 | S16: 48.43211134 | T16: 68.65564424 | U16: 60.45741025 | V16: 57.95638351 | BA16: Water | BB16: Improved | BC16: N/A | BD16: N/A | BE16: N/A | BF16: N/A | BG16: N/A | BH16: N/A | BI16: N/A | BJ16: N/A | BK16: N/A | BL16: N/A | BM16: N/A | BN16: N/A | BO16: N/A | BP16: N/A | BQ16: N/A | BR16: N/A | BS16: N/A | BT16: N/A | BU16: N/A | BV16: N/A
B17: Not Improved | C17: 45.41992287 | D17: 35.9534116 | E17: 37.73175085 | F17: 34.46433005 | G17: 25.02403432 | H17: 49.57524511 | I17: 25.7462192 | J17: 18.75603882 | K17: 6.54357747 | L17: 0.09971466913 | M17: 45.50935543 | N17: 35.26451114 | O17: 38.21621675 | P17: 35.91187935 | Q17: 28.00401323 | R17: 28.72413101 | S17: 51.56788866 | T17: 31.34435576 | U17: 39.54258975 | V17: 42.04361649 | BB17: Not Improved | BC17: N/A | BD17: N/A | BE17: N/A | BF17: N/A | BG17: N/A | BH17: N/A | BI17: N/A | BJ17: N/A | BK17: N/A | BL17: N/A | BM17: N/A | BN17: N/A | BO17: N/A | BP17: N/A | BQ17: N/A | BR17: N/A | BS17: N/A | BT17: N/A | BU17: N/A | BV17: N/A
A18: Water ladder | B18: Basic | C18: =C16*C23/100 -> 36.55456272 | D18: =D16*D23/100 -> 42.33705487 | E18: =E16*E23/100 -> 40.56061941 | F18: 45.00044377 | G18: 58.52450903 | H18: 36.35082465 | I18: 62.11971015 | J18: 73.92161454 | K18: 90.43812309 | L18: 99.90028533 | M18: 36.35331479 | N18: 43.07171371 | O18: 39.68495785 | P18: 44.05502351 | Q18: 52.05769662 | R18: 49.57702628 | S18: 31.18926588 | T18: 44.00833511 | U18: 47.51617432 | V18: 40.90777285 | BA18: Water ladder | BB18: Basic | BC18: N/A | BD18: N/A | BE18: N/A | BF18: N/A | BG18: N/A | BH18: N/A | BI18: N/A | BJ18: N/A | BK18: N/A | BL18: N/A | BM18: N/A | BN18: N/A | BO18: N/A | BP18: N/A | BQ18: N/A | BR18: N/A | BS18: N/A | BT18: N/A | BU18: N/A | BV18: N/A
B19: Limited | C19: =C16*C22/100 -> 18.02551441 | D19: =D16*D22/100 -> 21.70953353 | E19: =E16*E22/100 -> 21.70762974 | F19: 20.53522618 | G19: 16.45145665 | H19: 14.07393024 | I19: 12.13407064 | J19: 7.322346637 | K19: 3.018299444 | L19: 0 | M19: 18.13732977 | N19: 21.66377515 | O19: 22.09882539 | P19: 20.03309714 | Q19: 19.93829014 | R19: 21.69884271 | S19: 17.24284546 | T19: 24.64730912 | U19: 12.94123593 | V19: 17.04861066 | BB19: Limited | BC19: N/A | BD19: N/A | BE19: N/A | BF19: N/A | BG19: N/A | BH19: N/A | BI19: N/A | BJ19: N/A | BK19: N/A | BL19: N/A | BM19: N/A | BN19: N/A | BO19: N/A | BP19: N/A | BQ19: N/A | BR19: N/A | BS19: N/A | BT19: N/A | BU19: N/A | BV19: N/A
B20: Unimproved | C20: =100-C18-C19-C21 -> 19.56500018 | D20: =100-D18-D19-D21 -> 21.52184083 | E20: =100-E18-E19-E21 -> 18.25861824 | F20: 19.21043432 | G20: 12.93228706 | H20: 19.14795742 | I20: 19.26086575 | J20: 12.58389028 | K20: 4.660405638 | L20: 0.09971466913 | M20: 19.73638966 | N20: 21.13241109 | O20: 19.02278308 | P20: 19.73319972 | Q20: 13.84493032 | R20: 21.22847612 | S20: 12.36452451 | T20: 19.67473718 | U20: 17.99238435 | V20: 14.41432258 | BB20: Unimproved | BC20: N/A | BD20: N/A | BE20: N/A | BF20: N/A | BG20: N/A | BH20: N/A | BI20: N/A | BJ20: N/A | BK20: N/A | BL20: N/A | BM20: N/A | BN20: N/A | BO20: N/A | BP20: N/A | BQ20: N/A | BR20: N/A | BS20: N/A | BT20: N/A | BU20: N/A | BV20: N/A
B21: Surface water | C21: 25.85492268 | D21: 14.43157077 | E21: 19.47313261 | F21: 15.25389573 | G21: 12.09174726 | H21: 30.42728769 | I21: 6.485353458 | J21: 6.17214854 | K21: 1.883171832 | L21: 0 | M21: 25.77296578 | N21: 14.13210005 | O21: 19.19343368 | P21: 16.17867963 | Q21: 14.15908291 | R21: 7.495654891 | S21: 39.20336415 | T21: 11.66961859 | U21: 21.5502054 | V21: 27.62929391 | BB21: Surface water | BC21: N/A | BD21: N/A | BE21: N/A | BF21: N/A | BG21: N/A | BH21: N/A | BI21: N/A | BJ21: N/A | BK21: N/A | BL21: N/A | BM21: N/A | BN21: N/A | BO21: N/A | BP21: N/A | BQ21: N/A | BR21: N/A | BS21: N/A | BT21: N/A | BU21: N/A | BV21: N/A
A22: Improved water point at more than 30 minutes | B22: Yes | C22: 33.02581337 | D22: 33.89647141 | E22: 34.8614744 | F22: 31.33442627 | G22: 21.94230711 | H22: 27.91075587 | I22: 16.34135059 | J22: 9.012788804 | K22: 3.22963298 | L22: 0 | M22: 33.28521789 | N22: 33.46506766 | O22: 35.76800291 | P22: 31.25867467 | Q22: 27.69361327 | R22: 30.44346286 | S22: 35.60209329 | T22: 35.89990218 | U22: 21.40554132 | V22: 29.4162776 | BA22: Improved water point at more than 30 minutes | BB22: Yes | BC22: N/A | BD22: N/A | BE22: N/A | BF22: N/A | BG22: N/A | BH22: N/A | BI22: N/A | BJ22: N/A | BK22: N/A | BL22: N/A | BM22: N/A | BN22: N/A | BO22: N/A | BP22: N/A | BQ22: N/A | BR22: N/A | BS22: N/A | BT22: N/A | BU22: N/A | BV22: N/A
B23: No | C23: 66.97418663 | D23: 66.10352859 | E23: 65.1385256 | F23: 68.66557373 | G23: 78.05769289 | H23: 72.08924413 | I23: 83.65864941 | J23: 90.9872112 | K23: 96.77036702 | L23: 100 | M23: 66.71478211 | N23: 66.53493234 | O23: 64.23199709 | P23: 68.74132533 | Q23: 72.30638673 | R23: 69.55653714 | S23: 64.39790671 | T23: 64.10009782 | U23: 78.59445868 | V23: 70.5837224 | BB23: No | BC23: N/A | BD23: N/A | BE23: N/A | BF23: N/A | BG23: N/A | BH23: N/A | BI23: N/A | BJ23: N/A | BK23: N/A | BL23: N/A | BM23: N/A | BN23: N/A | BO23: N/A | BP23: N/A | BQ23: N/A | BR23: N/A | BS23: N/A | BT23: N/A | BU23: N/A | BV23: N/A
A24: Manually calculated ratios | B24: Improved wells
B25: Improved springs
B26: Other
C27: NATIONAL wealth index quintile | H27: URBAN wealth index quintile | M27: RURAL wealth index quintile | R27: SUB-REGIONS: | BA27: Raw numbers of respondents: | BB27: Use of drinking water sources | BC27: NATIONAL wealth index quintile | BH27: URBAN wealth index quintile | BM27: RURAL wealth index quintile | BR27: SUB-REGIONS:
A28: Percentage based on weighted population | C28: Poorest | D28: Poor | E28: Middle | F28: Rich | G28: Richest | H28: Poorest | I28: Poor | J28: Middle | K28: Rich | L28: Richest | M28: Poorest | N28: Poor | O28: Middle | P28: Rich | Q28: Richest | R28: Centre | S28: Est | T28: Nord | U28: Ouest | V28: Sud | BA28: Water data, raw numbers (weighted) | BC28: Poorest | BD28: Poor | BE28: Middle | BF28: Rich | BG28: Richest | BH28: Poorest | BI28: Poor | BJ28: Middle | BK28: Rich | BL28: Richest | BM28: Poorest | BN28: Poor | BO28: Middle | BP28: Rich | BQ28: Richest | BR28: Centre | BS28: Est | BT28: Nord | BU28: Ouest | BV28: Sud
A29: Piped water | B29: Yes | C29: 4.755709449 | D29: 6.220225699 | E29: 8.085803834 | F29: 11.33691347 | G29: 32.80854465 | H29: 29.37847706 | I29: 60.75961923 | J29: 71.64073087 | K29: 87.52558448 | L29: 98.3686553 | M29: 4.504401266 | N29: 6.211604569 | O29: 7.516083351 | P29: 10.90984729 | Q29: 18.27831512 | R29: 8.046910463 | S29: 3.054021591 | T29: 5.393355455 | U29: 29.26257355 | V29: 15.35926321 | BA29: Piped water | BB29: Yes | BC29: N/A | BD29: N/A | BE29: N/A | BF29: N/A | BG29: N/A | BH29: N/A | BI29: N/A | BJ29: N/A | BK29: N/A | BL29: N/A | BM29: N/A | BN29: N/A | BO29: N/A | BP29: N/A | BQ29: N/A | BR29: N/A | BS29: N/A | BT29: N/A | BU29: N/A | BV29: N/A
B30: No | C30: 95.24429055 | D30: 93.7797743 | E30: 91.91419617 | F30: 88.66308653 | G30: 67.19145535 | H30: 70.62152294 | I30: 39.24038077 | J30: 28.35926913 | K30: 12.47441552 | L30: 1.631344696 | M30: 95.49559873 | N30: 93.78839543 | O30: 92.48391665 | P30: 89.09015271 | Q30: 81.72168488 | R30: 91.95308954 | S30: 96.94597841 | T30: 94.60664455 | U30: 70.73742645 | V30: 84.64073679 | BB30: No | BC30: N/A | BD30: N/A | BE30: N/A | BF30: N/A | BG30: N/A | BH30: N/A | BI30: N/A | BJ30: N/A | BK30: N/A | BL30: N/A | BM30: N/A | BN30: N/A | BO30: N/A | BP30: N/A | BQ30: N/A | BR30: N/A | BS30: N/A | BT30: N/A | BU30: N/A | BV30: N/A
A31: Piped water on premises | B31: Yes | C31: 0.4668028783 | D31: 0.744759563 | E31: 0.6378242775 | F31: 1.085810162 | G31: 17.06347572 | H31: 5.099170294 | I31: 16.91984582 | J31: 36.52120243 | K31: 71.99385212 | L31: 96.76677402 | M31: 0.427866878 | N31: 0.6878846583 | O31: 0.4993865144 | P31: 1.381062324 | Q31: 5.494497666 | R31: 0.8249869603 | S31: 0 | T31: 1.842994489 | U31: 11.63054183 | V31: 4.139744938 | BA31: Piped water on premises | BB31: Yes | BC31: N/A | BD31: N/A | BE31: N/A | BF31: N/A | BG31: N/A | BH31: N/A | BI31: N/A | BJ31: N/A | BK31: N/A | BL31: N/A | BM31: N/A | BN31: N/A | BO31: N/A | BP31: N/A | BQ31: N/A | BR31: N/A | BS31: N/A | BT31: N/A | BU31: N/A | BV31: N/A
B32: No | C32: 99.53319712 | D32: 99.25524044 | E32: 99.36217572 | F32: 98.91418984 | G32: 82.93652428 | H32: 94.90082971 | I32: 83.08015418 | J32: 63.47879757 | K32: 28.00614788 | L32: 3.233225982 | M32: 99.57213312 | N32: 99.31211534 | O32: 99.50061349 | P32: 98.61893768 | Q32: 94.50550233 | R32: 99.17501304 | S32: 100 | T32: 98.15700551 | U32: 88.36945817 | V32: 95.86025506 | BB32: No | BC32: N/A | BD32: N/A | BE32: N/A | BF32: N/A | BG32: N/A | BH32: N/A | BI32: N/A | BJ32: N/A | BK32: N/A | BL32: N/A | BM32: N/A | BN32: N/A | BO32: N/A | BP32: N/A | BQ32: N/A | BR32: N/A | BS32: N/A | BT32: N/A | BU32: N/A | BV32: N/A
A33: Piped water into dwelling | B33: Yes | C33: N/A | D33: N/A | E33: N/A | F33: N/A | G33: N/A | H33: N/A | I33: N/A | J33: N/A | K33: N/A | L33: N/A | M33: N/A | N33: N/A | O33: N/A | P33: N/A | Q33: N/A | R33: N/A | S33: N/A | T33: N/A | U33: N/A | V33: N/A | BA33: Piped water into dwelling | BB33: Yes | BC33: N/A | BD33: N/A | BE33: N/A | BF33: N/A | BG33: N/A | BH33: N/A | BI33: N/A | BJ33: N/A | BK33: N/A | BL33: N/A | BM33: N/A | BN33: N/A | BO33: N/A | BP33: N/A | BQ33: N/A | BR33: N/A | BS33: N/A | BT33: N/A | BU33: N/A | BV33: N/A
B34: No | C34: N/A | D34: N/A | E34: N/A | F34: N/A | G34: N/A | H34: N/A | I34: N/A | J34: N/A | K34: N/A | L34: N/A | M34: N/A | N34: N/A | O34: N/A | P34: N/A | Q34: N/A | R34: N/A | S34: N/A | T34: N/A | U34: N/A | V34: N/A | BB34: No | BC34: N/A | BD34: N/A | BE34: N/A | BF34: N/A | BG34: N/A | BH34: N/A | BI34: N/A | BJ34: N/A | BK34: N/A | BL34: N/A | BM34: N/A | BN34: N/A | BO34: N/A | BP34: N/A | BQ34: N/A | BR34: N/A | BS34: N/A | BT34: N/A | BU34: N/A | BV34: N/A
A35: Water source on premises | B35: Yes | C35: 0.4788472563 | D35: 0.8723910967 | E35: 0.6946881082 | F35: 1.085810162 | G35: 17.26944503 | H35: 5.099170294 | I35: 16.91984582 | J35: 36.52120243 | K35: 71.99385212 | L35: 96.76677402 | M35: 0.4405685242 | N35: 0.8226684091 | O35: 0.5594632891 | P35: 1.381062324 | Q35: 5.712098682 | R35: 0.8249869603 | S35: 0 | T35: 1.842994489 | U35: 11.68253219 | V35: 4.568213562 | BA35: Water source on premises | BB35: Yes | BC35: N/A | BD35: N/A | BE35: N/A | BF35: N/A | BG35: N/A | BH35: N/A | BI35: N/A | BJ35: N/A | BK35: N/A | BL35: N/A | BM35: N/A | BN35: N/A | BO35: N/A | BP35: N/A | BQ35: N/A | BR35: N/A | BS35: N/A | BT35: N/A | BU35: N/A | BV35: N/A
B36: No | C36: 99.52115274 | D36: 99.1276089 | E36: 99.30531189 | F36: 98.91418984 | G36: 82.73055497 | H36: 94.90082971 | I36: 83.08015418 | J36: 63.47879757 | K36: 28.00614788 | L36: 3.233225982 | M36: 99.55943148 | N36: 99.17733159 | O36: 99.44053671 | P36: 98.61893768 | Q36: 94.28790132 | R36: 99.17501304 | S36: 100 | T36: 98.15700551 | U36: 88.31746781 | V36: 95.43178644 | BB36: No | BC36: N/A | BD36: N/A | BE36: N/A | BF36: N/A | BG36: N/A | BH36: N/A | BI36: N/A | BJ36: N/A | BK36: N/A | BL36: N/A | BM36: N/A | BN36: N/A | BO36: N/A | BP36: N/A | BQ36: N/A | BR36: N/A | BS36: N/A | BT36: N/A | BU36: N/A | BV36: N/A
A37: Improved Water source on premises | B37: Yes | C37: 0.8773297537 | D37: 1.253453024 | E37: 1.024317025 | F37: 1.656823166 | G37: 23.0333079 | H37: 10.11243447 | I37: 22.78651086 | J37: 44.95251328 | K37: 77.03467581 | L37: 96.863361 | M37: 0.8085214035 | N37: 1.157280398 | O37: 0.8082808922 | P37: 2.154942772 | Q37: 7.933912623 | R37: 1.157456194 | S37: 0 | T37: 2.68440346 | U37: 19.23757862 | V37: 7.733257104 | BA37: Improved water source on premises | BB37: Yes | BC37: N/A | BD37: N/A | BE37: N/A | BF37: N/A | BG37: N/A | BH37: N/A | BI37: N/A | BJ37: N/A | BK37: N/A | BL37: N/A | BM37: N/A | BN37: N/A | BO37: N/A | BP37: N/A | BQ37: N/A | BR37: N/A | BS37: N/A | BT37: N/A | BU37: N/A | BV37: N/A
B38: No | C38: 99.12267025 | D38: 98.74654698 | E38: 98.97568297 | F38: 98.34317683 | G38: 76.9666921 | H38: 89.88756553 | I38: 77.21348914 | J38: 55.04748672 | K38: 22.96532419 | L38: 3.136639002 | M38: 99.1914786 | N38: 98.8427196 | O38: 99.19171911 | P38: 97.84505723 | Q38: 92.06608738 | R38: 98.84254381 | S38: 100 | T38: 97.31559654 | U38: 80.76242138 | V38: 92.2667429 | BB38: No | BC38: N/A | BD38: N/A | BE38: N/A | BF38: N/A | BG38: N/A | BH38: N/A | BI38: N/A | BJ38: N/A | BK38: N/A | BL38: N/A | BM38: N/A | BN38: N/A | BO38: N/A | BP38: N/A | BQ38: N/A | BR38: N/A | BS38: N/A | BT38: N/A | BU38: N/A | BV38: N/A
A39: Piped water on premises available when needed | B39: Yes | C39: N/A | D39: N/A | E39: N/A | F39: N/A | G39: N/A | H39: N/A | I39: N/A | J39: N/A | K39: N/A | L39: N/A | M39: N/A | N39: N/A | O39: N/A | P39: N/A | Q39: N/A | R39: N/A | S39: N/A | T39: N/A | U39: N/A | V39: N/A | BA39: Piped water on premises available when needed | BB39: Yes | BC39: N/A | BD39: N/A | BE39: N/A | BF39: N/A | BG39: N/A | BH39: N/A | BI39: N/A | BJ39: N/A | BK39: N/A | BL39: N/A | BM39: N/A | BN39: N/A | BO39: N/A | BP39: N/A | BQ39: N/A | BR39: N/A | BS39: N/A | BT39: N/A | BU39: N/A | BV39: N/A
B40: No | C40: N/A | D40: N/A | E40: N/A | F40: N/A | G40: N/A | H40: N/A | I40: N/A | J40: N/A | K40: N/A | L40: N/A | M40: N/A | N40: N/A | O40: N/A | P40: N/A | Q40: N/A | R40: N/A | S40: N/A | T40: N/A | U40: N/A | V40: N/A | BB40: No | BC40: N/A | BD40: N/A | BE40: N/A | BF40: N/A | BG40: N/A | BH40: N/A | BI40: N/A | BJ40: N/A | BK40: N/A | BL40: N/A | BM40: N/A | BN40: N/A | BO40: N/A | BP40: N/A | BQ40: N/A | BR40: N/A | BS40: N/A | BT40: N/A | BU40: N/A | BV40: N/A
A41: Water point at more than 30 minutes | B41: Yes | C41: 35.3464399 | D41: 35.92127526 | E41: 37.09393965 | F41: 32.47102109 | G41: 24.03011055 | H41: 29.45691969 | I41: 16.35538879 | J41: 12.66648165 | K41: 5.646739785 | L41: 0.09992222086 | M41: 35.84755975 | N41: 35.21038081 | O41: 37.52643537 | P41: 33.01948745 | Q41: 28.846105 | R41: 29.12833092 | S41: 37.13042691 | T41: 40.28906098 | U41: 25.89300273 | V41: 31.06879888 | BA41: Water point at more than 30 minutes | BB41: Yes | BC41: N/A | BD41: N/A | BE41: N/A | BF41: N/A | BG41: N/A | BH41: N/A | BI41: N/A | BJ41: N/A | BK41: N/A | BL41: N/A | BM41: N/A | BN41: N/A | BO41: N/A | BP41: N/A | BQ41: N/A | BR41: N/A | BS41: N/A | BT41: N/A | BU41: N/A | BV41: N/A
B42: No | C42: 64.6535601 | D42: 64.07872474 | E42: 62.90606035 | F42: 67.52897891 | G42: 75.96988945 | H42: 70.54308031 | I42: 83.64461121 | J42: 87.33351835 | K42: 94.35326021 | L42: 99.90007778 | M42: 64.15244025 | N42: 64.78961919 | O42: 62.47356463 | P42: 66.98051255 | Q42: 71.153895 | R42: 70.87166908 | S42: 62.86957309 | T42: 59.71093902 | U42: 74.10699727 | V42: 68.93120112 | BB42: No | BC42: N/A | BD42: N/A | BE42: N/A | BF42: N/A | BG42: N/A | BH42: N/A | BI42: N/A | BJ42: N/A | BK42: N/A | BL42: N/A | BM42: N/A | BN42: N/A | BO42: N/A | BP42: N/A | BQ42: N/A | BR42: N/A | BS42: N/A | BT42: N/A | BU42: N/A | BV42: N/A
A43: Water source available when needed | B43: Yes | C43: N/A | D43: N/A | E43: N/A | F43: N/A | G43: N/A | H43: N/A | I43: N/A | J43: N/A | K43: N/A | L43: N/A | M43: N/A | N43: N/A | O43: N/A | P43: N/A | Q43: N/A | R43: N/A | S43: N/A | T43: N/A | U43: N/A | V43: N/A | BA43: Water source available when needed | BB43: Yes | BC43: N/A | BD43: N/A | BE43: N/A | BF43: N/A | BG43: N/A | BH43: N/A | BI43: N/A | BJ43: N/A | BK43: N/A | BL43: N/A | BM43: N/A | BN43: N/A | BO43: N/A | BP43: N/A | BQ43: N/A | BR43: N/A | BS43: N/A | BT43: N/A | BU43: N/A | BV43: N/A
B44: No | C44: N/A | D44: N/A | E44: N/A | F44: N/A | G44: N/A | H44: N/A | I44: N/A | J44: N/A | K44: N/A | L44: N/A | M44: N/A | N44: N/A | O44: N/A | P44: N/A | Q44: N/A | R44: N/A | S44: N/A | T44: N/A | U44: N/A | V44: N/A | BB44: No | BC44: N/A | BD44: N/A | BE44: N/A | BF44: N/A | BG44: N/A | BH44: N/A | BI44: N/A | BJ44: N/A | BK44: N/A | BL44: N/A | BM44: N/A | BN44: N/A | BO44: N/A | BP44: N/A | BQ44: N/A | BR44: N/A | BS44: N/A | BT44: N/A | BU44: N/A | BV44: N/A
A45: Improved water source available when needed | B45: Yes | C45: N/A | D45: N/A | E45: N/A | F45: N/A | G45: N/A | H45: N/A | I45: N/A | J45: N/A | K45: N/A | L45: N/A | M45: N/A | N45: N/A | O45: N/A | P45: N/A | Q45: N/A | R45: N/A | S45: N/A | T45: N/A | U45: N/A | V45: N/A | BA45: Improved water source available when needed | BB45: Yes | BC45: N/A | BD45: N/A | BE45: N/A | BF45: N/A | BG45: N/A | BH45: N/A | BI45: N/A | BJ45: N/A | BK45: N/A | BL45: N/A | BM45: N/A | BN45: N/A | BO45: N/A | BP45: N/A | BQ45: N/A | BR45: N/A | BS45: N/A | BT45: N/A | BU45: N/A | BV45: N/A
B46: No | C46: N/A | D46: N/A | E46: N/A | F46: N/A | G46: N/A | H46: N/A | I46: N/A | J46: N/A | K46: N/A | L46: N/A | M46: N/A | N46: N/A | O46: N/A | P46: N/A | Q46: N/A | R46: N/A | S46: N/A | T46: N/A | U46: N/A | V46: N/A | BB46: No | BC46: N/A | BD46: N/A | BE46: N/A | BF46: N/A | BG46: N/A | BH46: N/A | BI46: N/A | BJ46: N/A | BK46: N/A | BL46: N/A | BM46: N/A | BN46: N/A | BO46: N/A | BP46: N/A | BQ46: N/A | BR46: N/A | BS46: N/A | BT46: N/A | BU46: N/A | BV46: N/A
A47: Microbiological quality at point of collection | B47: Not contaminated (No E. coli in 100 mL) | C47: N/A | D47: N/A | E47: N/A | F47: N/A | G47: N/A | H47: N/A | I47: N/A | J47: N/A | K47: N/A | L47: N/A | M47: N/A | N47: N/A | O47: N/A | P47: N/A | Q47: N/A | R47: N/A | S47: N/A | T47: N/A | U47: N/A | V47: N/A | BA47: Microbiological quality at point of collection | BB47: Not contaminated (No E. coli in 100 mL) | BC47: N/A | BD47: N/A | BE47: N/A | BF47: N/A | BG47: N/A | BH47: N/A | BI47: N/A | BJ47: N/A | BK47: N/A | BL47: N/A | BM47: N/A | BN47: N/A | BO47: N/A | BP47: N/A | BQ47: N/A | BR47: N/A | BS47: N/A | BT47: N/A | BU47: N/A | BV47: N/A
B48: Contaminated (E. coli detected in 100 mL) | C48: N/A | D48: N/A | E48: N/A | F48: N/A | G48: N/A | H48: N/A | I48: N/A | J48: N/A | K48: N/A | L48: N/A | M48: N/A | N48: N/A | O48: N/A | P48: N/A | Q48: N/A | R48: N/A | S48: N/A | T48: N/A | U48: N/A | V48: N/A | BB48: Contaminated (E. coli detected in 100 mL) | BC48: N/A | BD48: N/A | BE48: N/A | BF48: N/A | BG48: N/A | BH48: N/A | BI48: N/A | BJ48: N/A | BK48: N/A | BL48: N/A | BM48: N/A | BN48: N/A | BO48: N/A | BP48: N/A | BQ48: N/A | BR48: N/A | BS48: N/A | BT48: N/A | BU48: N/A | BV48: N/A
B49: Highly contaminated (>100 CFU/100 mL) | C49: N/A | D49: N/A | E49: N/A | F49: N/A | G49: N/A | H49: N/A | I49: N/A | J49: N/A | K49: N/A | L49: N/A | M49: N/A | N49: N/A | O49: N/A | P49: N/A | Q49: N/A | R49: N/A | S49: N/A | T49: N/A | U49: N/A | V49: N/A | BB49: Highly contaminated (>100 CFU/100 mL) | BC49: N/A | BD49: N/A | BE49: N/A | BF49: N/A | BG49: N/A | BH49: N/A | BI49: N/A | BJ49: N/A | BK49: N/A | BL49: N/A | BM49: N/A | BN49: N/A | BO49: N/A | BP49: N/A | BQ49: N/A | BR49: N/A | BS49: N/A | BT49: N/A | BU49: N/A | BV49: N/A
A50: Microbiological quality of improved water sources at point of collection | B50: Not contaminated (No E. coli in 100 mL) | C50: N/A | D50: N/A | E50: N/A | F50: N/A | G50: N/A | H50: N/A | I50: N/A | J50: N/A | K50: N/A | L50: N/A | M50: N/A | N50: N/A | O50: N/A | P50: N/A | Q50: N/A | R50: N/A | S50: N/A | T50: N/A | U50: N/A | V50: N/A | BA50: Microbiological quality of improved water sources at point of collection | BB50: Not contaminated (No E. coli in 100 mL) | BC50: N/A | BD50: N/A | BE50: N/A | BF50: N/A | BG50: N/A | BH50: N/A | BI50: N/A | BJ50: N/A | BK50: N/A | BL50: N/A | BM50: N/A | BN50: N/A | BO50: N/A | BP50: N/A | BQ50: N/A | BR50: N/A | BS50: N/A | BT50: N/A | BU50: N/A | BV50: N/A
B51: Contaminated (E. coli detected in 100 mL) | C51: N/A | D51: N/A | E51: N/A | F51: N/A | G51: N/A | H51: N/A | I51: N/A | J51: N/A | K51: N/A | L51: N/A | M51: N/A | N51: N/A | O51: N/A | P51: N/A | Q51: N/A | R51: N/A | S51: N/A | T51: N/A | U51: N/A | V51: N/A | BB51: Contaminated (E. coli detected in 100 mL) | BC51: N/A | BD51: N/A | BE51: N/A | BF51: N/A | BG51: N/A | BH51: N/A | BI51: N/A | BJ51: N/A | BK51: N/A | BL51: N/A | BM51: N/A | BN51: N/A | BO51: N/A | BP51: N/A | BQ51: N/A | BR51: N/A | BS51: N/A | BT51: N/A | BU51: N/A | BV51: N/A
B52: Highly contaminated (>100 CFU/100 mL) | C52: N/A | D52: N/A | E52: N/A | F52: N/A | G52: N/A | H52: N/A | I52: N/A | J52: N/A | K52: N/A | L52: N/A | M52: N/A | N52: N/A | O52: N/A | P52: N/A | Q52: N/A | R52: N/A | S52: N/A | T52: N/A | U52: N/A | V52: N/A | BB52: Highly contaminated (>100 CFU/100 mL) | BC52: N/A | BD52: N/A | BE52: N/A | BF52: N/A | BG52: N/A | BH52: N/A | BI52: N/A | BJ52: N/A | BK52: N/A | BL52: N/A | BM52: N/A | BN52: N/A | BO52: N/A | BP52: N/A | BQ52: N/A | BR52: N/A | BS52: N/A | BT52: N/A | BU52: N/A | BV52: N/A
A53: Microbiological quality of piped on premises at point of collection | B53: Not contaminated (No E. coli in 100 mL) | C53: N/A | D53: N/A | E53: N/A | F53: N/A | G53: N/A | H53: N/A | I53: N/A | J53: N/A | K53: N/A | L53: N/A | M53: N/A | N53: N/A | O53: N/A | P53: N/A | Q53: N/A | R53: N/A | S53: N/A | T53: N/A | U53: N/A | V53: N/A | BA53: Microbiological quality of piped on premises at point of collection | BB53: Not contaminated (No E. coli in 100 mL) | BC53: N/A | BD53: N/A | BE53: N/A | BF53: N/A | BG53: N/A | BH53: N/A | BI53: N/A | BJ53: N/A | BK53: N/A | BL53: N/A | BM53: N/A | BN53: N/A | BO53: N/A | BP53: N/A | BQ53: N/A | BR53: N/A | BS53: N/A | BT53: N/A | BU53: N/A | BV53: N/A
B54: Contaminated (E. coli detected in 100 mL) | C54: N/A | D54: N/A | E54: N/A | F54: N/A | G54: N/A | H54: N/A | I54: N/A | J54: N/A | K54: N/A | L54: N/A | M54: N/A | N54: N/A | O54: N/A | P54: N/A | Q54: N/A | R54: N/A | S54: N/A | T54: N/A | U54: N/A | V54: N/A | BB54: Contaminated (E. coli detected in 100 mL) | BC54: N/A | BD54: N/A | BE54: N/A | BF54: N/A | BG54: N/A | BH54: N/A | BI54: N/A | BJ54: N/A | BK54: N/A | BL54: N/A | BM54: N/A | BN54: N/A | BO54: N/A | BP54: N/A | BQ54: N/A | BR54: N/A | BS54: N/A | BT54: N/A | BU54: N/A | BV54: N/A
B55: Highly contaminated (>100 CFU/100 mL) | C55: N/A | D55: N/A | E55: N/A | F55: N/A | G55: N/A | H55: N/A | I55: N/A | J55: N/A | K55: N/A | L55: N/A | M55: N/A | N55: N/A | O55: N/A | P55: N/A | Q55: N/A | R55: N/A | S55: N/A | T55: N/A | U55: N/A | V55: N/A | BB55: Highly contaminated (>100 CFU/100 mL) | BC55: N/A | BD55: N/A | BE55: N/A | BF55: N/A | BG55: N/A | BH55: N/A | BI55: N/A | BJ55: N/A | BK55: N/A | BL55: N/A | BM55: N/A | BN55: N/A | BO55: N/A | BP55: N/A | BQ55: N/A | BR55: N/A | BS55: N/A | BT55: N/A | BU55: N/A | BV55: N/A
C56: NATIONAL wealth index quintile | H56: URBAN wealth index quintile | M56: RURAL wealth index quintile | R56: SUB-REGIONS: | BA56: Raw numbers of respondents: | BB56: Use of drinking water sources | BC56: NATIONAL wealth index quintile | BH56: URBAN wealth index quintile | BM56: RURAL wealth index quintile | BR56: SUB-REGIONS:
A57: Percentage based on weighted population | C57: Poorest | D57: Poor | E57: Middle | F57: Rich | G57: Richest | H57: Poorest | I57: Poor | J57: Middle | K57: Rich | L57: Richest | M57: Poorest | N57: Poor | O57: Middle | P57: Rich | Q57: Richest | R57: Centre | S57: Est | T57: Nord | U57: Ouest | V57: Sud | BA57: Water data, raw numbers (weighted) | BC57: Poorest | BD57: Poor | BE57: Middle | BF57: Rich | BG57: Richest | BH57: Poorest | BI57: Poor | BJ57: Middle | BK57: Rich | BL57: Richest | BM57: Poorest | BN57: Poor | BO57: Middle | BP57: Rich | BQ57: Richest | BR57: Centre | BS57: Est | BT57: Nord | BU57: Ouest | BV57: Sud
A58: Principale source d'eau que boivent les membre du menage | B58: Eau de robinet dns le logement | C58: 0.01985101671 | D58: 0 | E58: 0 | F58: 0.02549929329 | G58: 6.364570144 | H58: 0 | I58: 0.7681497489 | J58: 1.146456082 | K58: 18.3945266 | L58: 69.12558273 | M58: 0.02093429749 | N58: 0 | O58: 0 | P58: 0.02687869829 | Q58: 1.749846969 | R58: 0.3769969913 | S58: 0 | T58: 0.3199006881 | U58: 3.984501182 | V58: 1.378230505
B59: Dans la cour/parcelle | C59: 0.4469518616 | D59: 0.744759563 | E59: 0.6378242775 | F59: 1.060310869 | G59: 10.69890558 | H59: 5.099170294 | I59: 16.15169607 | J59: 35.37474635 | K59: 53.59932552 | L59: 27.64119129 | M59: 0.4069325805 | N59: 0.6878846583 | O59: 0.4993865144 | P59: 1.354183625 | Q59: 3.744650698 | R59: 0.447989969 | S59: 0 | T59: 1.523093801 | U59: 7.64604065 | V59: 2.761514433
B60: Robinet public/borne fontaine | C60: 4.288906571 | D60: 5.475466136 | E60: 7.447979557 | F60: 10.25110331 | G60: 15.74506893 | H60: 24.27930677 | I60: 43.83977341 | J60: 35.11952843 | K60: 15.53173236 | L60: 1.601881287 | M60: 4.076534388 | N60: 5.523719911 | O60: 7.016696837 | P60: 9.528784964 | Q60: 12.78381745 | R60: 7.221923502 | S60: 3.054021591 | T60: 3.550360965 | U60: 17.63203172 | V60: 11.21951828
B61: Puits protege | C61: 1.325947772 | D61: 0.8915648452 | E61: 0.5371548705 | F61: 0.830794883 | G61: 0.8862054825 | H61: 0 | I61: 0.05974278766 | J61: 0.2986273115 | K61: 0 | L61: 0 | M61: 1.398305463 | N61: 0.9415263647 | O61: 0.4245625425 | P61: 0.7376037683 | Q61: 1.197609918 | R61: 0.1161597856 | S61: 0.9587446513 | T61: 1.103796888 | U61: 0.7087764538 | V61: 1.750653973
B62: Puits non protege | C62: 2.597234191 | D62: 2.595421584 | E62: 1.315064426 | F62: 1.793134175 | G62: 1.650660972 | H62: 0 | I62: 0 | J62: 0 | K62: 0 | L62: 0 | M62: 2.592860996 | N62: 2.714103299 | O62: 1.359800517 | P62: 2.010470077 | Q62: 1.825871811 | R62: 0.1317784494 | S62: 0.977306842 | T62: 1.936521026 | U62: 2.0939313 | V62: 4.935050926
B63: Source protegee | C63: 48.46699076 | D63: 56.93479786 | E63: 53.64529045 | F63: 53.3679616 | G63: 41.23201685 | H63: 20.69149322 | I63: 13.29302324 | J63: 9.072266331 | K63: 5.93083805 | L63: 1.323916733 | M63: 48.55479358 | N63: 57.58235793 | O63: 53.84313735 | P63: 52.44066959 | Q63: 52.52006173 | R63: 63.11279874 | S63: 44.36445665 | T63: 62.15849189 | U63: 30.4649296 | V63: 40.79921962
B64: Source non protegee | C64: 16.44063653 | D64: 18.86641352 | E64: 16.23959618 | F64: 16.17893854 | G64: 9.042825914 | H64: 8.929657899 | I64: 4.380586292 | J64: 2.661681774 | K64: 1.231768224 | L64: 0 | M64: 16.6175455 | N64: 18.42744764 | O64: 17.04979506 | P64: 16.61300516 | Q64: 11.36486411 | R64: 20.99438334 | S64: 9.360085124 | T64: 17.56332738 | U64: 12.60213412 | V64: 9.506641604
B65: Eau de pluie | C65: 0.012044378 | D65: 0 | E65: 0 | F65: 0 | G65: 0 | H65: 0 | I65: 0 | J65: 0 | K65: 0 | L65: 0 | M65: 0.01270164626 | N65: 0 | O65: 0 | P65: 0 | Q65: 0 | R65: 0 | S65: 0 | T65: 0 | U65: 0 | V65: 0.01490517538
B66: Camion citerne | C66: 0.01938477644 | D66: 0 | E66: 0 | F66: 0 | G66: 0.0260916755 | H66: 0.3547846042 | I66: 0.1413955331 | J66: 0 | K66: 0 | L66: 0 | M66: 0.02044261424 | N66: 0 | O66: 0 | P66: 0 | Q66: 0 | R66: 0 | S66: 0.0548884424 | T66: 0 | U66: 0 | V66: 0.0323415296
B67: Eau de surface | C67: 25.72497964 | D67: 14.34291503 | E67: 19.38845792 | F67: 15.24237739 | G67: 12.04148386 | H67: 30.42728769 | I67: 6.416576854 | J67: 6.17214854 | K67: 1.883171832 | L67: 0 | M67: 25.63636605 | N67: 14.04041901 | O67: 19.10525959 | P67: 16.17707931 | Q67: 14.09702018 | R67: 7.474675398 | S67: 39.14445875 | T67: 11.6384854 | U67: 21.53398485 | V67: 27.23194335
B68: Eau en bouteille | C68: 0 | D68: 0 | E68: 0 | F68: 0 | G68: 0.02310702211 | H68: 0 | I68: 0 | J68: 0.2323366658 | K68: 0 | L68: 0.2077132938 | M68: 0 | N68: 0 | O68: 0 | P68: 0 | Q68: 0 | R68: 0 | S68: 0 | T68: 0 | U68: 0.02113064377 | V68: 0
B69: Autre | C69: 0.5494324871 | D69: 0.1486614677 | E69: 0.7886323159 | F69: 1.249879936 | G69: 2.145807617 | H69: 10.21829952 | I69: 14.94905606 | J69: 9.700487484 | K69: 3.428637414 | L69: 0.09971466913 | M69: 0.5490688974 | N69: 0.08254118253 | O69: 0.7013615884 | P69: 1.111324815 | Q69: 0.5771824496 | R69: 0.02557130753 | S69: 2.086037947 | T69: 0.1259930052 | U69: 3.301917542 | V69: 0.3699806048
B70: Manquant | C70: 0.1076400169 | D70: 0 | E70: 0 | F70: 0 | G70: 0.1432559584 | H70: 0 | I70: 0 | J70: 0.2217210253 | K70: 0 | L70: 0 | M70: 0.1135139912 | N70: 0 | O70: 0 | P70: 0 | Q70: 0.1390746767 | R70: 0.0977225169 | S70: 0 | T70: 0.08002895439 | U70: 0.01062193425 | V70: 0
A108: =A1026 -> Burundi
A109: =A1034 -> 2005
A110: Use of sanitation facilities
A111: by wealth quintile and sub-national region
A112: Notes:
A113: WHO/UNICEF JMP customised wealth index excludes water,
A114: sanitation and hygiene assets.
A115: Survey used for analysis: | B115: =A1025 -> MICS05
A116: Improved latrines based on : | B116: DHS10 & ENECEF ratio
A117: =B1029 -> 
A120: Use of sanitation facilities | C120: NATIONAL wealth index quintile | H120: URBAN wealth index quintile | M120: RURAL wealth index quintile | R120: SUB-REGIONS: | BA120: Raw numbers of respondents: | BB120: Use of sanitation facilities | BC120: NATIONAL wealth index quintile | BH120: URBAN wealth index quintile | BM120: RURAL wealth index quintile | BR120: SUB-REGIONS:
A121: Weighted percentage (used in graphs) | C121: Poorest | D121: Poor | E121: Middle | F121: Rich | G121: Richest | H121: Poorest | I121: Poor | J121: Middle | K121: Rich | L121: Richest | M121: Poorest | N121: Poor | O121: Middle | P121: Rich | Q121: Richest | R121: Centre | S121: Est | T121: Nord | U121: Ouest | V121: Sud | BA121: Sanitation data, raw numbers (weighted) | BC121: Poorest | BD121: Poor | BE121: Middle | BF121: Rich | BG121: Richest | BH121: Poorest | BI121: Poor | BJ121: Middle | BK121: Rich | BL121: Richest | BM121: Poorest | BN121: Poor | BO121: Middle | BP121: Rich | BQ121: Richest | BR121: Centre | BS121: Est | BT121: Nord | BU121: Ouest | BV121: Sud
A122: Sanitation | B122: Improved | C122: =C153+C154+C155+C156+C158+C157*C130/100*'DHS10'!C130/100 -> 47.51372399 | D122: =D153+D154+D155+D156+D158+D157*D130/100*'DHS10'!D130/100 -> 49.53594353 | E122: =E153+E154+E155+E156+E158+E157*E130/100*'DHS10'!E130/100 -> 52.26299398 | F122: =F153+F154+F155+F156+F158+F157*F130/100*'DHS10'!F130/100 -> 54.48845984 | G122: =G153+G154+G155+G156+G158+G157*G130/100*'DHS10'!G130/100 -> 67.25747425 | H122: =H153+H154+H155+H156+H158+H157*H130/100*'DHS10'!H130/100 -> 43.00291149 | I122: =I153+I154+I155+I156+I158+I157*I130/100*'DHS10'!I130/100 -> 66.54028994 | J122: =J153+J154+J155+J156+J158+J157*J130/100*'DHS10'!J130/100 -> 83.65649077 | K122: =K153+K154+K155+K156+K158+K157*K130/100*'DHS10'!K130/100 -> 91.21150243 | L122: =L153+L154+L155+L156+L158+L157*L130/100*'DHS10'!L130/100 -> 99.51422089 | M122: =M153+M154+M155+M156+M158+M157*M130/100*'DHS10'!M130/100 -> 47.23447742 | N122: =N153+N154+N155+N156+N158+N157*N130/100*'DHS10'!N130/100 -> 49.18306486 | O122: =O153+O154+O155+O156+O158+O157*O130/100*'DHS10'!O130/100 -> 51.72124286 | P122: =P153+P154+P155+P156+P158+P157*P130/100*'DHS10'!P130/100 -> 53.02668814 | Q122: =Q153+Q154+Q155+Q156+Q158+Q157*Q130/100*'DHS10'!Q130/100 -> 59.31034019 | R122: =R153+R154+R155+R156+R158+R157*R130/100*'DHS10'!R130/100 -> 72.49483589 | S122: =S153+S154+S155+S156+S158+S157*S130/100*'DHS10'!S130/100 -> 48.39549283 | T122: =T153+T154+T155+T156+T158+T157*T130/100*'DHS10'!T130/100 -> 52.50943585 | U122: =U153+U154+U155+U156+U158+U157*U130/100*'DHS10'!U130/100 -> 64.51315021 | V122: =V153+V154+V155+V156+V158+V157*V130/100*0.5 -> 47.75584102 | BA122: Sanitation | BB122: Improved | BC122: 2812.535126 | BD122: 2441.911918 | BE122: 2473.34548 | BF122: 2400.541232 | BG122: 2743.464218 | BH122: 55.517275 | BI122: 97.407865 | BJ122: 169.842942 | BK122: 282.896028 | BL122: 411.39499 | BM122: 2658.914766 | BN122: 2356.435423 | BO122: 2328.433859 | BP122: 2302.258675 | BQ122: 2208.696151 | BR122: 2179.686925 | BS122: 596.142071 | BT122: 5929.949346 | BU122: 3249.727158 | BV122: 916.292474
B123: Not Improved | C123: =100-C122 -> 52.48627601 | D123: =100-D122 -> 50.46405647 | E123: 47.73700602 | F123: 45.51154016 | G123: 32.74252575 | H123: 56.99708851 | I123: 33.45971006 | J123: 16.34350923 | K123: 8.788497568 | L123: 0.4857791107 | M123: 52.76552258 | N123: 50.81693514 | O123: 48.27875714 | P123: 46.97331186 | Q123: 40.68965981 | R123: 27.50516411 | S123: 51.60450717 | T123: 47.49056415 | U123: 35.48684979 | V123: 52.24415898 | BB123: Not Improved | BC123: 5304.953382 | BD123: 5691.542019 | BE123: 5655.811379 | BF123: 5721.707398 | BG123: 5387.228654 | BH123: 371.589759 | BI123: 331.2648 | BJ123: 256.104033 | BK123: 145.174521 | BL123: 16.661387 | BM123: 5038.52051 | BN123: 5345.421765 | BO123: 5365.970553 | BP123: 5403.159117 | BQ123: 5487.376387 | BR123: 6761.615732 | BS123: 2270.6855 | BT123: 7444.320106 | BU123: 5641.440665 | BV123: 5643.180829
A124: Sanitation ladder | B124: Basic | C124: =C122*C129/100 -> 40.7642211 | D124: =D122*D129/100 -> 43.74678715 | E124: =E122*E129/100 -> 46.03963293 | F124: 49.80405226 | G124: 52.73447118 | H124: 23.37868345 | I124: 12.87324069 | J124: 15.97800657 | K124: 50.69503438 | L124: 90.63484416 | M124: 40.79836949 | N124: 42.97013096 | O124: 45.8859091 | P124: 48.00484465 | Q124: 53.03286718 | R124: 68.47460441 | S124: 40.99116734 | T124: 45.80950441 | U124: 49.81265124 | V124: 44.15568038 | BA124: Sanitation ladder | BB124: Basic | BC124: 2410.475397 | BD124: 2156.531062 | BE124: 2172.753204 | BF124: 2194.165174 | BG124: 2151.064047 | BH124: 30.182161 | BI124: 18.845047 | BJ124: 32.439224 | BK124: 157.232624 | BL124: 374.687361 | BM124: 2294.068894 | BN124: 2058.764313 | BO124: 2059.618595 | BP124: 2084.225395 | BQ124: 1974.92527 | BR124: 2058.811474 | BS124: 502.438307 | BT124: 5167.305497 | BU124: 2509.217501 | BV124: 847.216105
B125: Limited | C125: =C122*C128/100 -> 6.749502884 | D125: =D122*D128/100 -> 5.789156384 | E125: =E122*E128/100 -> 6.223361053 | F125: 4.684407582 | G125: 14.52300306 | H125: 19.62422804 | I125: 53.66704925 | J125: 67.6784842 | K125: 40.51646805 | L125: 8.879376729 | M125: 6.436107931 | N125: 6.212933894 | O125: 5.835333768 | P125: 5.021843492 | Q125: 6.277473012 | R125: 4.020231476 | S125: 7.404325491 | T125: 6.69993144 | U125: 14.70049897 | V125: 3.600160636 | BB125: Limited | BC125: 399.112511 | BD125: 285.380856 | BE125: 293.699728 | BF125: 206.376058 | BG125: 592.400171 | BH125: 25.335114 | BI125: 78.562818 | BJ125: 137.403718 | BK125: 125.663404 | BL125: 36.707629 | BM125: 361.898654 | BN125: 297.67111 | BO125: 261.922716 | BP125: 218.03328 | BQ125: 233.770881 | BR125: 120.875451 | BS125: 90.756546 | BT125: 755.751301 | BU125: 740.509657 | BV125: 69.076369
B126: Unimproved | C126: =100-C124-C125-C127 -> 43.44082893 | D126: =100-D124-D125-D127 -> 47.63572496 | E126: =100-E124-E125-E127 -> 46.07440081 | F126: 44.20606593 | G126: 32.32746539 | H126: 55.96506477 | I126: 30.62171828 | J126: 16.34350923 | K126: 8.788497568 | L126: 0.4857791107 | M126: 43.59095664 | N126: 47.61124214 | O126: 46.50401067 | P126: 45.69471598 | Q126: 40.24141045 | R126: 26.52414158 | S126: 47.04103671 | T126: 43.35662809 | U126: 32.49773722 | V126: 49.16333911 | BB126: Unimproved | BC126: 4570.956844 | BD126: 5461.500979 | BE126: 5520.770189 | BF126: 5615.673535 | BG126: 5353.481371 | BH126: 367.181913 | BI126: 319.099105 | BJ126: 256.104033 | BK126: 145.174521 | BL126: 16.661387 | BM126: 4332.584629 | BN126: 5098.523868 | BO126: 5229.536708 | BP126: 5304.637963 | BQ126: 5452.878791 | BR126: 6673.899538 | BS126: 2139.993166 | BT126: 6891.721292 | BU126: 5375.67365 | BV126: 5441.095272
B127: Open defecation | C127: 9.045447078 | D127: 2.828331503 | E127: 1.662605215 | F127: 1.305474233 | G127: 0.4150603587 | H127: 1.032023743 | I127: 2.837991781 | J127: 0 | K127: 0 | L127: 0 | M127: 9.174565945 | N127: 3.205693003 | O127: 1.774746464 | P127: 1.278595874 | Q127: 0.4482493613 | R127: 0.9810225351 | S127: 4.563470463 | T127: 4.133936059 | U127: 2.98911257 | V127: 3.080819872 | BB127: Open defecation | BC127: 733.996538 | BD127: 230.04104 | BE127: 135.04119 | BF127: 106.033863 | BG127: 33.747283 | BH127: 4.407846 | BI127: 12.165695 | BJ127: 0 | BK127: 0 | BL127: 0 | BM127: 705.935881 | BN127: 246.897897 | BO127: 136.433845 | BP127: 98.521154 | BQ127: 34.497596 | BR127: 87.716194 | BS127: 130.692334 | BT127: 552.598814 | BU127: 265.767015 | BV127: 202.085557
A128: Shared among Improved Sanitation | B128: Yes | C128: 14.20537545 | D128: 11.68677928 | E128: 11.90777753 | F128: 8.597063664 | G128: 21.5931437 | H128: 45.63464976 | I128: 80.65346469 | J128: 80.90045802 | K128: 44.42034937 | L128: 8.922721446 | M128: 13.62586882 | N128: 12.63226257 | O128: 11.28227677 | P128: 9.470407577 | Q128: 10.5841123 | R128: 5.545541867 | S128: 15.29961791 | T128: 12.7594809 | U128: 22.78682551 | V128: 7.538681257 | BA128: Shared among improved sanitation facilities | BB128: Yes | BC128: N/A | BD128: N/A | BE128: N/A | BF128: N/A | BG128: N/A | BH128: N/A | BI128: N/A | BJ128: N/A | BK128: N/A | BL128: N/A | BM128: N/A | BN128: N/A | BO128: N/A | BP128: N/A | BQ128: N/A | BR128: N/A | BS128: N/A | BT128: N/A | BU128: N/A | BV128: N/A
B129: No | C129: 85.79462455 | D129: 88.31322072 | E129: 88.09222247 | F129: 91.40293634 | G129: 78.4068563 | H129: 54.36535024 | I129: 19.34653531 | J129: 19.09954198 | K129: 55.57965063 | L129: 91.07727855 | M129: 86.37413118 | N129: 87.36773743 | O129: 88.71772323 | P129: 90.52959242 | Q129: 89.4158877 | R129: 94.45445813 | S129: 84.70038209 | T129: 87.2405191 | U129: 77.21317449 | V129: 92.46131874 | BB129: No | BC129: N/A | BD129: N/A | BE129: N/A | BF129: N/A | BG129: N/A | BH129: N/A | BI129: N/A | BJ129: N/A | BK129: N/A | BL129: N/A | BM129: N/A | BN129: N/A | BO129: N/A | BP129: N/A | BQ129: N/A | BR129: N/A | BS129: N/A | BT129: N/A | BU129: N/A | BV129: N/A
A130: Manually calculated ratios | B130: Latrine a fosses adjusted for trou ouvert based on ENECEF00 (JMP) | C130: =(9.375*H130+(100-9.375)*M130)/100 -> 82.03403569 | D130: =(9.375*I130+(100-9.375)*N130)/100 -> 82.03403569 | E130: 82.03403569 | F130: 82.03403569 | G130: 82.03403569 | H130: 92.23985891 | I130: 92.23985891 | J130: 92.23985891 | K130: 92.23985891 | L130: 92.23985891 | M130: 80.97826087 | N130: 80.97826087 | O130: 80.97826087 | P130: 80.97826087 | Q130: 80.97826087 | R130: 82.03403569 | S130: 82.03403569 | T130: 82.03403569 | U130: 82.03403569 | V130: 82.03403569
B131: Other
B132: Other
C133: NATIONAL wealth index quintile | H133: URBAN wealth index quintile | M133: RURAL wealth index quintile | R133: SUB-REGIONS: | BA133: Raw numbers of respondents: | BB133: Use of sanitation facilities | BC133: NATIONAL wealth index quintile | BH133: URBAN wealth index quintile | BM133: RURAL wealth index quintile | BR133: SUB-REGIONS:
A134: Percentage based on weighted population | C134: Poorest | D134: Poor | E134: Middle | F134: Rich | G134: Richest | H134: Poorest | I134: Poor | J134: Middle | K134: Rich | L134: Richest | M134: Poorest | N134: Poor | O134: Middle | P134: Rich | Q134: Richest | R134: Centre | S134: Est | T134: Nord | U134: Ouest | V134: Sud | BA134: Sanitation data, raw numbers (weighted) | BC134: Poorest | BD134: Poor | BE134: Middle | BF134: Rich | BG134: Richest | BH134: Poorest | BI134: Poor | BJ134: Middle | BK134: Rich | BL134: Richest | BM134: Poorest | BN134: Poor | BO134: Middle | BP134: Rich | BQ134: Richest | BR134: Centre | BS134: Est | BT134: Nord | BU134: Ouest | BV134: Sud
A135: Sanitation type | B135: Sewer connection | C135: 0.09672627183 | D135: 0 | E135: 0.002734379516 | F135: 0 | G135: 3.800794396 | H135: 0.05204362895 | I135: 1.244488029 | J135: 0.8356781968 | K135: 13.76562932 | L135: 42.68171129 | M135: 0.1020046771 | N135: 0 | O135: 0 | P135: 0 | Q135: 0.7602345315 | R135: 0.1217408852 | S135: 0 | T135: 0.2601284663 | U135: 2.697730869 | V135: 0.4812835047 | BA135: Sanitation type | BB135: Sewer connection | BC135: N/A | BD135: N/A | BE135: N/A | BF135: N/A | BG135: N/A | BH135: N/A | BI135: N/A | BJ135: N/A | BK135: N/A | BL135: N/A | BM135: N/A | BN135: N/A | BO135: N/A | BP135: N/A | BQ135: N/A | BR135: N/A | BS135: N/A | BT135: N/A | BU135: N/A | BV135: N/A
B136: Septic tank connection | C136: 0 | D136: 0 | E136: 0 | F136: 0.04714620513 | G136: 5.742014086 | H136: 0 | I136: 2.818685441 | J136: 12.52491651 | K136: 28.86988845 | L136: 46.06771622 | M136: 0 | N136: 0 | O136: 0 | P136: 0.04969661741 | Q136: 1.047986562 | R136: 0.4142641897 | S136: 0 | T136: 0.2895912494 | U136: 3.963019887 | V136: 0.6489055147 | BB136: Septic tank connection | BC136: N/A | BD136: N/A | BE136: N/A | BF136: N/A | BG136: N/A | BH136: N/A | BI136: N/A | BJ136: N/A | BK136: N/A | BL136: N/A | BM136: N/A | BN136: N/A | BO136: N/A | BP136: N/A | BQ136: N/A | BR136: N/A | BS136: N/A | BT136: N/A | BU136: N/A | BV136: N/A
B137: Improved latrines | C137: 34.5511223 | D137: 30.023062 | E137: 30.42287461 | F137: 29.50798491 | G137: 24.19926321 | H137: 12.94640186 | I137: 18.65996074 | J137: 26.51360372 | K137: 23.45079175 | L137: 7.358237768 | M137: 34.44086149 | N137: 30.59567797 | O137: 30.26139171 | P137: 29.82874394 | Q137: 26.89078272 | R137: 23.84172833 | S137: 20.79448646 | T137: 43.78877195 | U137: 29.88930906 | V137: 12.83880562 | BB137: Improved latrines | BC137: N/A | BD137: N/A | BE137: N/A | BF137: N/A | BG137: N/A | BH137: N/A | BI137: N/A | BJ137: N/A | BK137: N/A | BL137: N/A | BM137: N/A | BN137: N/A | BO137: N/A | BP137: N/A | BQ137: N/A | BR137: N/A | BS137: N/A | BT137: N/A | BU137: N/A | BV137: N/A
B138: Unimproved facilities | C138: 56.30998848 | D138: 67.1486065 | E138: 67.91319549 | F138: 69.13939465 | G138: 65.84286795 | H138: 85.96953077 | I138: 74.43887401 | J138: 60.12580157 | K138: 33.91369047 | L138: 3.892334724 | M138: 56.28608067 | N138: 66.19862903 | O138: 67.96545162 | P138: 68.84296356 | Q138: 70.85274683 | R138: 74.64124406 | S138: 74.64673452 | T138: 51.52970274 | U138: 60.46082761 | V138: 82.95018549 | BB138: Unimproved facilities | BC138: N/A | BD138: N/A | BE138: N/A | BF138: N/A | BG138: N/A | BH138: N/A | BI138: N/A | BJ138: N/A | BK138: N/A | BL138: N/A | BM138: N/A | BN138: N/A | BO138: N/A | BP138: N/A | BQ138: N/A | BR138: N/A | BS138: N/A | BT138: N/A | BU138: N/A | BV138: N/A
B139: Open defecation | C139: 9.042162946 | D139: 2.828331503 | E139: 1.661195525 | F139: 1.305474233 | G139: 0.4150603587 | H139: 1.032023743 | I139: 2.837991781 | J139: 0 | K139: 0 | L139: 0 | M139: 9.171053158 | N139: 3.205693003 | O139: 1.773156669 | P139: 1.278595874 | Q139: 0.4482493613 | R139: 0.9810225351 | S139: 4.558779025 | T139: 4.131805599 | U139: 2.98911257 | V139: 3.080819872 | BB139: Open defecation | BC139: N/A | BD139: N/A | BE139: N/A | BF139: N/A | BG139: N/A | BH139: N/A | BI139: N/A | BJ139: N/A | BK139: N/A | BL139: N/A | BM139: N/A | BN139: N/A | BO139: N/A | BP139: N/A | BQ139: N/A | BR139: N/A | BS139: N/A | BT139: N/A | BU139: N/A | BV139: N/A
A140: Septic tank emptying practices | B140: Not emptied/treated and disposed in situ | C140: N/A | D140: N/A | E140: N/A | F140: N/A | G140: N/A | H140: N/A | I140: N/A | J140: N/A | K140: N/A | L140: N/A | M140: N/A | N140: N/A | O140: N/A | P140: N/A | Q140: N/A | R140: N/A | S140: N/A | T140: N/A | U140: N/A | V140: N/A | BA140: Septic tank emptying practices | BB140: Not emptied/treated and disposed in situ | BC140: N/A | BD140: N/A | BE140: N/A | BF140: N/A | BG140: N/A | BH140: N/A | BI140: N/A | BJ140: N/A | BK140: N/A | BL140: N/A | BM140: N/A | BN140: N/A | BO140: N/A | BP140: N/A | BQ140: N/A | BR140: N/A | BS140: N/A | BT140: N/A | BU140: N/A | BV140: N/A
B141: Emptied and buried on site | C141: N/A | D141: N/A | E141: N/A | F141: N/A | G141: N/A | H141: N/A | I141: N/A | J141: N/A | K141: N/A | L141: N/A | M141: N/A | N141: N/A | O141: N/A | P141: N/A | Q141: N/A | R141: N/A | S141: N/A | T141: N/A | U141: N/A | V141: N/A | BB141: Emptied and buried on site | BC141: N/A | BD141: N/A | BE141: N/A | BF141: N/A | BG141: N/A | BH141: N/A | BI141: N/A | BJ141: N/A | BK141: N/A | BL141: N/A | BM141: N/A | BN141: N/A | BO141: N/A | BP141: N/A | BQ141: N/A | BR141: N/A | BS141: N/A | BT141: N/A | BU141: N/A | BV141: N/A
B142: Emptied and discharged locally | C142: N/A | D142: N/A | E142: N/A | F142: N/A | G142: N/A | H142: N/A | I142: N/A | J142: N/A | K142: N/A | L142: N/A | M142: N/A | N142: N/A | O142: N/A | P142: N/A | Q142: N/A | R142: N/A | S142: N/A | T142: N/A | U142: N/A | V142: N/A | BB142: Emptied and discharged locally | BC142: N/A | BD142: N/A | BE142: N/A | BF142: N/A | BG142: N/A | BH142: N/A | BI142: N/A | BJ142: N/A | BK142: N/A | BL142: N/A | BM142: N/A | BN142: N/A | BO142: N/A | BP142: N/A | BQ142: N/A | BR142: N/A | BS142: N/A | BT142: N/A | BU142: N/A | BV142: N/A
B143: Emptied and removed offsite | C143: N/A | D143: N/A | E143: N/A | F143: N/A | G143: N/A | H143: N/A | I143: N/A | J143: N/A | K143: N/A | L143: N/A | M143: N/A | N143: N/A | O143: N/A | P143: N/A | Q143: N/A | R143: N/A | S143: N/A | T143: N/A | U143: N/A | V143: N/A | BB143: Emptied and removed offsite | BC143: N/A | BD143: N/A | BE143: N/A | BF143: N/A | BG143: N/A | BH143: N/A | BI143: N/A | BJ143: N/A | BK143: N/A | BL143: N/A | BM143: N/A | BN143: N/A | BO143: N/A | BP143: N/A | BQ143: N/A | BR143: N/A | BS143: N/A | BT143: N/A | BU143: N/A | BV143: N/A
A144: Latrine emptying practices | B144: Not emptied/treated and disposed in situ | C144: N/A | D144: N/A | E144: N/A | F144: N/A | G144: N/A | H144: N/A | I144: N/A | J144: N/A | K144: N/A | L144: N/A | M144: N/A | N144: N/A | O144: N/A | P144: N/A | Q144: N/A | R144: N/A | S144: N/A | T144: N/A | U144: N/A | V144: N/A | BA144: Latrine emptying practices | BB144: Not emptied/treated and disposed in situ | BC144: N/A | BD144: N/A | BE144: N/A | BF144: N/A | BG144: N/A | BH144: N/A | BI144: N/A | BJ144: N/A | BK144: N/A | BL144: N/A | BM144: N/A | BN144: N/A | BO144: N/A | BP144: N/A | BQ144: N/A | BR144: N/A | BS144: N/A | BT144: N/A | BU144: N/A | BV144: N/A
B145: Emptied and buried on site | C145: N/A | D145: N/A | E145: N/A | F145: N/A | G145: N/A | H145: N/A | I145: N/A | J145: N/A | K145: N/A | L145: N/A | M145: N/A | N145: N/A | O145: N/A | P145: N/A | Q145: N/A | R145: N/A | S145: N/A | T145: N/A | U145: N/A | V145: N/A | BB145: Emptied and buried on site | BC145: N/A | BD145: N/A | BE145: N/A | BF145: N/A | BG145: N/A | BH145: N/A | BI145: N/A | BJ145: N/A | BK145: N/A | BL145: N/A | BM145: N/A | BN145: N/A | BO145: N/A | BP145: N/A | BQ145: N/A | BR145: N/A | BS145: N/A | BT145: N/A | BU145: N/A | BV145: N/A
B146: Emptied and discharged locally | C146: N/A | D146: N/A | E146: N/A | F146: N/A | G146: N/A | H146: N/A | I146: N/A | J146: N/A | K146: N/A | L146: N/A | M146: N/A | N146: N/A | O146: N/A | P146: N/A | Q146: N/A | R146: N/A | S146: N/A | T146: N/A | U146: N/A | V146: N/A | BB146: Emptied and discharged locally | BC146: N/A | BD146: N/A | BE146: N/A | BF146: N/A | BG146: N/A | BH146: N/A | BI146: N/A | BJ146: N/A | BK146: N/A | BL146: N/A | BM146: N/A | BN146: N/A | BO146: N/A | BP146: N/A | BQ146: N/A | BR146: N/A | BS146: N/A | BT146: N/A | BU146: N/A | BV146: N/A
B147: Emptied and removed offsite | C147: N/A | D147: N/A | E147: N/A | F147: N/A | G147: N/A | H147: N/A | I147: N/A | J147: N/A | K147: N/A | L147: N/A | M147: N/A | N147: N/A | O147: N/A | P147: N/A | Q147: N/A | R147: N/A | S147: N/A | T147: N/A | U147: N/A | V147: N/A | BB147: Emptied and removed offsite | BC147: N/A | BD147: N/A | BE147: N/A | BF147: N/A | BG147: N/A | BH147: N/A | BI147: N/A | BJ147: N/A | BK147: N/A | BL147: N/A | BM147: N/A | BN147: N/A | BO147: N/A | BP147: N/A | BQ147: N/A | BR147: N/A | BS147: N/A | BT147: N/A | BU147: N/A | BV147: N/A
A148: Shared among improved sanitation facilities | B148: Yes | C148: 4.916699427 | D148: 3.508728988 | E148: 3.612917466 | F148: 2.540873438 | G148: 7.285974029 | H148: 5.931795073 | I148: 18.32699503 | J148: 32.25840916 | K148: 29.35576958 | L148: 8.575419261 | M148: 4.701548516 | N148: 3.864926377 | O148: 3.404067449 | P148: 2.829610099 | Q148: 3.037534793 | R148: 1.351877412 | S148: 3.165748332 | T148: 5.650785665 | U148: 8.328598354 | V148: 1.053077981 | BA148: Shared among improved sanitation facilities | BB148: Yes | BC148: N/A | BD148: N/A | BE148: N/A | BF148: N/A | BG148: N/A | BH148: N/A | BI148: N/A | BJ148: N/A | BK148: N/A | BL148: N/A | BM148: N/A | BN148: N/A | BO148: N/A | BP148: N/A | BQ148: N/A | BR148: N/A | BS148: N/A | BT148: N/A | BU148: N/A | BV148: N/A
B149: No | C149: 29.69484213 | D149: 26.51433301 | E149: 26.72790354 | F149: 27.01425768 | G149: 26.45609766 | H149: 7.066650417 | I149: 4.396139185 | J149: 7.615789266 | K149: 36.73053995 | L149: 87.53224602 | M149: 29.80302934 | N149: 26.73075159 | O149: 26.76774556 | P149: 27.04883046 | Q149: 25.66146902 | R149: 23.025856 | S149: 17.52593397 | T149: 38.63617011 | U149: 28.22146147 | V149: 12.91591666 | BB149: No | BC149: N/A | BD149: N/A | BE149: N/A | BF149: N/A | BG149: N/A | BH149: N/A | BI149: N/A | BJ149: N/A | BK149: N/A | BL149: N/A | BM149: N/A | BN149: N/A | BO149: N/A | BP149: N/A | BQ149: N/A | BR149: N/A | BS149: N/A | BT149: N/A | BU149: N/A | BV149: N/A
B150: DK/missing | C150: 65.38845845 | D150: 69.976938 | E150: 69.65917899 | F150: 70.44486889 | G150: 66.25792831 | H150: 87.00155451 | I150: 77.27686579 | J150: 60.12580157 | K150: 33.91369047 | L150: 3.892334724 | M150: 65.49542214 | N150: 69.40432203 | O150: 69.828187 | P150: 70.12155944 | Q150: 71.30099619 | R150: 75.62226659 | S150: 79.3083177 | T150: 55.71304422 | U150: 63.44994018 | V150: 86.03100536 | BB150: DK/missing | BC150: N/A | BD150: N/A | BE150: N/A | BF150: N/A | BG150: N/A | BH150: N/A | BI150: N/A | BJ150: N/A | BK150: N/A | BL150: N/A | BM150: N/A | BN150: N/A | BO150: N/A | BP150: N/A | BQ150: N/A | BR150: N/A | BS150: N/A | BT150: N/A | BU150: N/A | BV150: N/A
A151: Shared among all sanitation facilities | B151: Yes | C151: 14.14260511 | D151: 10.16729264 | E151: 11.48685631 | F151: 8.803994073 | G151: 18.54808536 | H151: 43.51369206 | I151: 63.52402818 | J151: 77.62777961 | K151: 53.52924361 | L151: 12.00829581 | M151: 13.57027943 | N151: 10.34525343 | O151: 10.84379411 | P151: 8.632552462 | Q151: 9.367216433 | R151: 4.663250489 | S151: 8.907957206 | T151: 11.89998908 | U151: 24.61289378 | V151: 10.51206053 | BA151: Shared among all sanitation facilities | BB151: Yes | BC151: N/A | BD151: N/A | BE151: N/A | BF151: N/A | BG151: N/A | BH151: N/A | BI151: N/A | BJ151: N/A | BK151: N/A | BL151: N/A | BM151: N/A | BN151: N/A | BO151: N/A | BP151: N/A | BQ151: N/A | BR151: N/A | BS151: N/A | BT151: N/A | BU151: N/A | BV151: N/A
B152: No | C152: 85.77888683 | D152: 89.83270736 | E152: 88.3796776 | F152: 91.14765692 | G152: 81.34595096 | H152: 56.48630794 | I152: 36.47597182 | J152: 22.15049937 | K152: 46.47075639 | L152: 87.99170419 | M152: 86.3468108 | N152: 89.65474657 | O152: 89.06501014 | P152: 91.26684612 | Q152: 90.5331251 | R152: 95.33674951 | S152: 90.98432816 | T152: 87.96447964 | U152: 75.376157 | V152: 89.36756541 | BB152: No | BC152: N/A | BD152: N/A | BE152: N/A | BF152: N/A | BG152: N/A | BH152: N/A | BI152: N/A | BJ152: N/A | BK152: N/A | BL152: N/A | BM152: N/A | BN152: N/A | BO152: N/A | BP152: N/A | BQ152: N/A | BR152: N/A | BS152: N/A | BT152: N/A | BU152: N/A | BV152: N/A
A153: Type de toilettes | B153: Chasse branchee a l'egout | C153: 0.09672627183 | D153: 0 | E153: 0.002734379516 | F153: 0 | G153: 3.800794396 | H153: 0.05204362895 | I153: 1.244488029 | J153: 0.8356781968 | K153: 13.76562932 | L153: 42.68171129 | M153: 0.1020046771 | N153: 0 | O153: 0 | P153: 0 | Q153: 0.7602345315 | R153: 0.1217408852 | S153: 0 | T153: 0.2601284663 | U153: 2.697730869 | V153: 0.4812835047 | BA153: Type de toilettes | BB153: Chasse branchee a l'egout | BC153: 7.851744 | BD153: 0 | BE153: 0.222282 | BF153: 0 | BG153: 309.030919 | BH153: 0.222282 | BI153: 5.33478 | BJ153: 3.559546 | BK153: 58.926605 | BL153: 182.701787 | BM153: 7.851744 | BN153: 0 | BO153: 0 | BP153: 0 | BQ153: 58.508201 | BR153: 10.885221 | BS153: 0 | BT153: 34.790282 | BU153: 239.859779 | BV153: 31.569663
B154: Chasse branchee a fosse septique | C154: 0 | D154: 0 | E154: 0 | F154: 0.04714620513 | G154: 5.742014086 | H154: 0 | I154: 2.818685441 | J154: 12.52491651 | K154: 28.86988845 | L154: 46.06771622 | M154: 0 | N154: 0 | O154: 0 | P154: 0.04969661741 | Q154: 1.047986562 | R154: 0.4142641897 | S154: 0 | T154: 0.2895912494 | U154: 3.963019887 | V154: 0.6489055147 | BB154: Chasse branchee a fosse septique | BC154: 0 | BD154: 0 | BE154: 0 | BF154: 3.829332 | BG154: 466.86553 | BH154: 0 | BI154: 12.082934 | BJ154: 53.349503 | BK154: 123.58349 | BL154: 197.195797 | BM154: 0 | BN154: 0 | BO154: 0 | BP154: 3.829332 | BQ154: 80.653806 | BR154: 37.040615 | BS154: 0 | BT154: 38.730714 | BU154: 352.358749 | BV154: 42.564784
B155: Latrines ameliorees auto aerees (LAA) | C155: 0.3460356978 | D155: 0.7168736241 | E155: 0.6859313206 | F155: 0.749525098 | G155: 3.211148694 | H155: 0.2949700894 | I155: 2.268210174 | J155: 8.116055291 | K155: 9.90159615 | L155: 6.56582252 | M155: 0.2895542372 | N155: 0.82082301 | O155: 0.5841294997 | P155: 0.3865662811 | Q155: 2.44072923 | R155: 0.5709857832 | S155: 0.685361066 | T155: 1.094189731 | U155: 2.414479169 | V155: 0.4940395441 | BB155: Latrines ameliorees auto aerees (LAA) | BC155: 28.089408 | BD155: 58.306586 | BE155: 55.760433 | BF155: 60.878292 | BG155: 261.088638 | BH155: 1.259838 | BI155: 9.723197 | BJ155: 34.570092 | BK155: 42.385817 | BL155: 28.105422 | BM155: 22.28825 | BN155: 63.218616 | BO155: 44.945286 | BP155: 29.786547 | BQ155: 187.840292 | BR155: 51.053567 | BS155: 19.64812 | BT155: 146.339883 | BU155: 214.675395 | BV155: 32.406392
B156: Latrines couvertes | C156: 31.66449851 | D156: 26.53690793 | E156: 26.88165207 | F156: 27.07722867 | G156: 20.10664212 | H156: 11.58981498 | I156: 16.39175057 | J156: 18.07876814 | K156: 13.5491956 | L156: 0.7924152477 | M156: 31.50440321 | N156: 27.34779484 | O156: 26.68439513 | P156: 27.49456053 | Q156: 23.21715263 | R156: 20.78574576 | S156: 18.76456026 | T156: 38.54684349 | U156: 26.92090697 | V156: 12.2367183 | BB156: Latrines couvertes | BC156: 2570.362028 | BD156: 2158.367183 | BE156: 2185.251663 | BF156: 2199.279835 | BG156: 1634.809318 | BH156: 49.500915 | BI156: 70.266954 | BJ156: 77.005966 | BK156: 58.000116 | BL156: 3.391984 | BM156: 2425.031046 | BN156: 2106.288103 | BO156: 2053.205276 | BP156: 2118.570759 | BQ156: 1786.808908 | BR156: 1858.516438 | BS156: 537.947587 | BT156: 5155.358714 | BU156: 2393.583018 | BV156: 802.66427
B157: Latrines a fosses/trou ouvert | C157: 56.14417182 | D157: 67.03020819 | E157: 67.84655535 | F157: 68.66940937 | G157: 65.59412455 | H157: 85.96953077 | I157: 74.07182751 | J157: 59.90408055 | K157: 33.91369047 | L157: 3.892334724 | M157: 56.1112153 | N157: 66.07359591 | O157: 67.94413229 | P157: 68.66835268 | Q157: 70.2524084 | R157: 74.53300913 | S157: 74.61202347 | T157: 51.25958377 | U157: 60.43575234 | V157: 82.37275198 | BB157: Latrines a fosses/trou ouvert | BC157: 4557.496695 | BD157: 5451.871107 | BE157: 5515.352908 | BF157: 5577.500162 | BG157: 5333.256809 | BH157: 367.181913 | BI157: 317.525677 | BJ157: 255.159619 | BK157: 145.174521 | BL157: 16.661387 | BM157: 4319.12448 | BN157: 5088.893996 | BO157: 5227.896313 | BP157: 5291.183465 | BQ157: 5406.67631 | BR157: 6664.221926 | BS157: 2138.99806 | BT157: 6855.594854 | BU157: 5373.444166 | BV157: 5403.218675
B158: Toilettes a compostage | C158: 2.540588087 | D158: 2.76928044 | E158: 2.855291219 | F158: 1.681231137 | G158: 0.8814723927 | H158: 1.061616794 | I158: 0 | J158: 0.3187802895 | K158: 0 | L158: 0 | M158: 2.646904049 | N158: 2.427060116 | O158: 2.992867085 | P158: 1.947617132 | Q158: 1.232900853 | R158: 2.48499679 | S158: 1.344565135 | T158: 4.147738723 | U158: 0.5539229264 | V158: 0.1080477757 | BB158: Toilettes a compostage | BC158: 206.231946 | BD158: 225.238149 | BE158: 232.111102 | BF158: 136.553773 | BG158: 71.669813 | BH158: 4.53424 | BI158: 0 | BJ158: 1.357835 | BK158: 0 | BL158: 0 | BM158: 203.743726 | BN158: 186.928704 | BO158: 230.283297 | BP158: 150.072037 | BQ158: 94.884944 | BR158: 222.191084 | BS158: 38.546364 | BT158: 554.729753 | BU158: 49.250217 | BV158: 7.087365
B159: Pas de toilettes ou brousse ou champ | C159: 9.042162946 | D159: 2.828331503 | E159: 1.661195525 | F159: 1.305474233 | G159: 0.4150603587 | H159: 1.032023743 | I159: 2.837991781 | J159: 0 | K159: 0 | L159: 0 | M159: 9.171053158 | N159: 3.205693003 | O159: 1.773156669 | P159: 1.278595874 | Q159: 0.4482493613 | R159: 0.9810225351 | S159: 4.558779025 | T159: 4.131805599 | U159: 2.98911257 | V159: 3.080819872 | BB159: Pas de toilettes ou brousse ou champ | BC159: 733.996538 | BD159: 230.04104 | BE159: 135.04119 | BF159: 106.033863 | BG159: 33.747283 | BH159: 4.407846 | BI159: 12.165695 | BJ159: 0 | BK159: 0 | BL159: 0 | BM159: 705.935881 | BN159: 246.897897 | BO159: 136.433845 | BP159: 98.521154 | BQ159: 34.497596 | BR159: 87.716194 | BS159: 130.692334 | BT159: 552.598814 | BU159: 265.767015 | BV159: 202.085557
B160: Autres | C160: 0.09054295541 | D160: 0 | E160: 0.04646098071 | F160: 0.3541358595 | G160: 0.1274143565 | H160: 0 | I160: 0.06726764348 | J160: 0 | K160: 0 | L160: 0 | M160: 0.09548393376 | N160: 0 | O160: 0 | P160: 0.1746108824 | Q160: 0.3788620086 | R160: 0.1082349225 | S160: 0.03471105169 | T160: 0.1249741383 | U160: 0 | V160: 0.3485503781 | BB160: Autres | BC160: 7.349814 | BD160: 0 | BE160: 3.776886 | BF160: 28.763795 | BG160: 10.35967 | BH160: 0 | BI160: 0.288358 | BJ160: 0 | BK160: 0 | BL160: 0 | BM160: 7.349814 | BN160: 0 | BO160: 0 | BP160: 13.454498 | BQ160: 29.157495 | BR160: 9.677612 | BS160: 0.995106 | BT160: 16.714378 | BU160: 0 | BV160: 22.863069
B161: Manquant | C161: 0.07527371297 | D161: 0.1183983099 | E161: 0.020179153 | F161: 0.1158494209 | G161: 0.1213290448 | H161: 0 | I161: 0.2997788534 | J161: 0.2217210253 | K161: 0 | L161: 0 | M161: 0.07938144045 | N161: 0.1250331156 | O161: 0.02131932392 | P161: 0 | Q161: 0.2214764208 | R161: 0 | S161: 0 | T161: 0.1451448251 | U161: 0.0250752662 | V161: 0.2288831329 | BB161: Manquant | BC161: 6.110335 | BD161: 9.629872 | BE161: 1.640395 | BF161: 9.409578 | BG161: 9.864892 | BH161: 0 | BI161: 1.28507 | BJ161: 0.944414 | BK161: 0 | BL161: 0 | BM161: 6.110335 | BN161: 9.629872 | BO161: 1.640395 | BP161: 0 | BQ161: 17.044986 | BR161: 0 | BS161: 0 | BT161: 19.41206 | BU161: 2.229484 | BV161: 15.013528
BB162: Total | BC162: 8117.488508 | BD162: 8133.453937 | BE162: 8129.156859 | BF162: 8122.24863 | BG162: 8130.692872 | BH162: 427.107034 | BI162: 428.672665 | BJ162: 425.946975 | BK162: 428.070549 | BL162: 428.056377 | BM162: 7697.435276 | BN162: 7701.857188 | BO162: 7694.404412 | BP162: 7705.417792 | BQ162: 7696.072538 | BR162: 8941.302657 | BS162: 2866.827571 | BT162: 13374.26945 | BU162: 8891.167823 | BV162: 6559.473303
A208: =A1026 -> Burundi
A209: =A1034 -> 2005
A210: Access to hygiene facilities
A211: by wealth quintile and sub-national region
A212: Notes:
A213: WHO/UNICEF JMP customised wealth index excludes water,
A214: sanitation and hygiene assets.
A215: Survey used for analysis: | B215: =A1025 -> MICS05
A220: Access to handwashing | C220: NATIONAL wealth index quintile | H220: URBAN wealth index quintile | M220: RURAL wealth index quintile | R220: SUB-REGIONS: | BA220: Raw numbers of respondents: | BB220: Access to handwashing | BC220: NATIONAL wealth index quintile | BH220: URBAN wealth index quintile | BM220: RURAL wealth index quintile | BR220: SUB-REGIONS:
A221: Weighted percentage (used in graphs) | C221: Poorest | D221: Poor | E221: Middle | F221: Rich | G221: Richest | H221: Poorest | I221: Poor | J221: Middle | K221: Rich | L221: Richest | M221: Poorest | N221: Poor | O221: Middle | P221: Rich | Q221: Richest | R221: Centre | S221: Est | T221: Nord | U221: Ouest | V221: Sud | BA221: Hygiene data, raw numbers (weighted) | BC221: Poorest | BD221: Poor | BE221: Middle | BF221: Rich | BG221: Richest | BH221: Poorest | BI221: Poor | BJ221: Middle | BK221: Rich | BL221: Richest | BM221: Poorest | BN221: Poor | BO221: Middle | BP221: Rich | BQ221: Richest | BR221: Centre | BS221: Est | BT221: Nord | BU221: Ouest | BV221: Sud
A222: Hygiene ladder | B222: Basic | C222: N/A | D222: N/A | E222: N/A | F222: N/A | G222: N/A | H222: N/A | I222: N/A | J222: N/A | K222: N/A | L222: N/A | M222: N/A | N222: N/A | O222: N/A | P222: N/A | Q222: N/A | R222: N/A | S222: N/A | T222: N/A | U222: N/A | V222: N/A | BA222: Hygiene ladder | BB222: Basic | BC222: N/A | BD222: N/A | BE222: N/A | BF222: N/A | BG222: N/A | BH222: N/A | BI222: N/A | BJ222: N/A | BK222: N/A | BL222: N/A | BM222: N/A | BN222: N/A | BO222: N/A | BP222: N/A | BQ222: N/A | BR222: N/A | BS222: N/A | BT222: N/A | BU222: N/A | BV222: N/A
B223: Limited | C223: N/A | D223: N/A | E223: N/A | F223: N/A | G223: N/A | H223: N/A | I223: N/A | J223: N/A | K223: N/A | L223: N/A | M223: N/A | N223: N/A | O223: N/A | P223: N/A | Q223: N/A | R223: N/A | S223: N/A | T223: N/A | U223: N/A | V223: N/A | BB223: Limited | BC223: N/A | BD223: N/A | BE223: N/A | BF223: N/A | BG223: N/A | BH223: N/A | BI223: N/A | BJ223: N/A | BK223: N/A | BL223: N/A | BM223: N/A | BN223: N/A | BO223: N/A | BP223: N/A | BQ223: N/A | BR223: N/A | BS223: N/A | BT223: N/A | BU223: N/A | BV223: N/A
B224: No facility | C224: N/A | D224: N/A | E224: N/A | F224: N/A | G224: N/A | H224: N/A | I224: N/A | J224: N/A | K224: N/A | L224: N/A | M224: N/A | N224: N/A | O224: N/A | P224: N/A | Q224: N/A | R224: N/A | S224: N/A | T224: N/A | U224: N/A | V224: N/A | BB224: No facility | BC224: N/A | BD224: N/A | BE224: N/A | BF224: N/A | BG224: N/A | BH224: N/A | BI224: N/A | BJ224: N/A | BK224: N/A | BL224: N/A | BM224: N/A | BN224: N/A | BO224: N/A | BP224: N/A | BQ224: N/A | BR224: N/A | BS224: N/A | BT224: N/A | BU224: N/A | BV224: N/A
BA225: Observed handwashing place | BB225: Fixed | BC225: N/A | BD225: N/A | BE225: N/A | BF225: N/A | BG225: N/A | BH225: N/A | BI225: N/A | BJ225: N/A | BK225: N/A | BL225: N/A | BM225: N/A | BN225: N/A | BO225: N/A | BP225: N/A | BQ225: N/A | BR225: N/A | BS225: N/A | BT225: N/A | BU225: N/A | BV225: N/A
BB226: Mobile | BC226: N/A | BD226: N/A | BE226: N/A | BF226: N/A | BG226: N/A | BH226: N/A | BI226: N/A | BJ226: N/A | BK226: N/A | BL226: N/A | BM226: N/A | BN226: N/A | BO226: N/A | BP226: N/A | BQ226: N/A | BR226: N/A | BS226: N/A | BT226: N/A | BU226: N/A | BV226: N/A
BA227: Water / Soap | BB227: Water and soap | BC227: N/A | BD227: N/A | BE227: N/A | BF227: N/A | BG227: N/A | BH227: N/A | BI227: N/A | BJ227: N/A | BK227: N/A | BL227: N/A | BM227: N/A | BN227: N/A | BO227: N/A | BP227: N/A | BQ227: N/A | BR227: N/A | BS227: N/A | BT227: N/A | BU227: N/A | BV227: N/A
BB228: Water only | BC228: N/A | BD228: N/A | BE228: N/A | BF228: N/A | BG228: N/A | BH228: N/A | BI228: N/A | BJ228: N/A | BK228: N/A | BL228: N/A | BM228: N/A | BN228: N/A | BO228: N/A | BP228: N/A | BQ228: N/A | BR228: N/A | BS228: N/A | BT228: N/A | BU228: N/A | BV228: N/A
BB229: Soap only | BC229: N/A | BD229: N/A | BE229: N/A | BF229: N/A | BG229: N/A | BH229: N/A | BI229: N/A | BJ229: N/A | BK229: N/A | BL229: N/A | BM229: N/A | BN229: N/A | BO229: N/A | BP229: N/A | BQ229: N/A | BR229: N/A | BS229: N/A | BT229: N/A | BU229: N/A | BV229: N/A
BB230: Neither | BC230: N/A | BD230: N/A | BE230: N/A | BF230: N/A | BG230: N/A | BH230: N/A | BI230: N/A | BJ230: N/A | BK230: N/A | BL230: N/A | BM230: N/A | BN230: N/A | BO230: N/A | BP230: N/A | BQ230: N/A | BR230: N/A | BS230: N/A | BT230: N/A | BU230: N/A | BV230: N/A
BA259: Raw numbers of respondents: | BB259: Menstrual health and hygiene | BC259: NATIONAL wealth index quintile | BH259: URBAN wealth index quintile | BM259: RURAL wealth index quintile | BR259: SUB-REGIONS:
BA260: MHH data, raw numbers (weighted) | BC260: Poorest | BD260: Poor | BE260: Middle | BF260: Rich | BG260: Richest | BH260: Poorest | BI260: Poor | BJ260: Middle | BK260: Rich | BL260: Richest | BM260: Poorest | BN260: Poor | BO260: Middle | BP260: Rich | BQ260: Richest | BR260: Centre | BS260: Est | BT260: Nord | BU260: Ouest | BV260: Sud
BA261: Private place to wash and change | BB261: Yes | BC261: N/A | BD261: N/A | BE261: N/A | BF261: N/A | BG261: N/A | BH261: N/A | BI261: N/A | BJ261: N/A | BK261: N/A | BL261: N/A | BM261: N/A | BN261: N/A | BO261: N/A | BP261: N/A | BQ261: N/A | BR261: N/A | BS261: N/A | BT261: N/A | BU261: N/A | BV261: N/A
BB262: No | BC262: N/A | BD262: N/A | BE262: N/A | BF262: N/A | BG262: N/A | BH262: N/A | BI262: N/A | BJ262: N/A | BK262: N/A | BL262: N/A | BM262: N/A | BN262: N/A | BO262: N/A | BP262: N/A | BQ262: N/A | BR262: N/A | BS262: N/A | BT262: N/A | BU262: N/A | BV262: N/A
BB263: DK/not sure/missing | BC263: N/A | BD263: N/A | BE263: N/A | BF263: N/A | BG263: N/A | BH263: N/A | BI263: N/A | BJ263: N/A | BK263: N/A | BL263: N/A | BM263: N/A | BN263: N/A | BO263: N/A | BP263: N/A | BQ263: N/A | BR263: N/A | BS263: N/A | BT263: N/A | BU263: N/A | BV263: N/A
BA264: Use of menstrual materials | BB264: Materials reusable | BC264: N/A | BD264: N/A | BE264: N/A | BF264: N/A | BG264: N/A | BH264: N/A | BI264: N/A | BJ264: N/A | BK264: N/A | BL264: N/A | BM264: N/A | BN264: N/A | BO264: N/A | BP264: N/A | BQ264: N/A | BR264: N/A | BS264: N/A | BT264: N/A | BU264: N/A | BV264: N/A
BB265: Materials not reusable | BC265: N/A | BD265: N/A | BE265: N/A | BF265: N/A | BG265: N/A | BH265: N/A | BI265: N/A | BJ265: N/A | BK265: N/A | BL265: N/A | BM265: N/A | BN265: N/A | BO265: N/A | BP265: N/A | BQ265: N/A | BR265: N/A | BS265: N/A | BT265: N/A | BU265: N/A | BV265: N/A
BB266: No materials used | BC266: N/A | BD266: N/A | BE266: N/A | BF266: N/A | BG266: N/A | BH266: N/A | BI266: N/A | BJ266: N/A | BK266: N/A | BL266: N/A | BM266: N/A | BN266: N/A | BO266: N/A | BP266: N/A | BQ266: N/A | BR266: N/A | BS266: N/A | BT266: N/A | BU266: N/A | BV266: N/A
BB267: DK/not sure/missing | BC267: N/A | BD267: N/A | BE267: N/A | BF267: N/A | BG267: N/A | BH267: N/A | BI267: N/A | BJ267: N/A | BK267: N/A | BL267: N/A | BM267: N/A | BN267: N/A | BO267: N/A | BP267: N/A | BQ267: N/A | BR267: N/A | BS267: N/A | BT267: N/A | BU267: N/A | BV267: N/A
BA268: Use of menstrual materials with private place to wash and change | BB268: Materials reusable | BC268: N/A | BD268: N/A | BE268: N/A | BF268: N/A | BG268: N/A | BH268: N/A | BI268: N/A | BJ268: N/A | BK268: N/A | BL268: N/A | BM268: N/A | BN268: N/A | BO268: N/A | BP268: N/A | BQ268: N/A | BR268: N/A | BS268: N/A | BT268: N/A | BU268: N/A | BV268: N/A
BB269: Materials not reusable | BC269: N/A | BD269: N/A | BE269: N/A | BF269: N/A | BG269: N/A | BH269: N/A | BI269: N/A | BJ269: N/A | BK269: N/A | BL269: N/A | BM269: N/A | BN269: N/A | BO269: N/A | BP269: N/A | BQ269: N/A | BR269: N/A | BS269: N/A | BT269: N/A | BU269: N/A | BV269: N/A
BB270: No materials used | BC270: N/A | BD270: N/A | BE270: N/A | BF270: N/A | BG270: N/A | BH270: N/A | BI270: N/A | BJ270: N/A | BK270: N/A | BL270: N/A | BM270: N/A | BN270: N/A | BO270: N/A | BP270: N/A | BQ270: N/A | BR270: N/A | BS270: N/A | BT270: N/A | BU270: N/A | BV270: N/A
BA271: Awareness of menstruation before menarche | BB271: Yes | BC271: N/A | BD271: N/A | BE271: N/A | BF271: N/A | BG271: N/A | BH271: N/A | BI271: N/A | BJ271: N/A | BK271: N/A | BL271: N/A | BM271: N/A | BN271: N/A | BO271: N/A | BP271: N/A | BQ271: N/A | BR271: N/A | BS271: N/A | BT271: N/A | BU271: N/A | BV271: N/A
BB272: No | BC272: N/A | BD272: N/A | BE272: N/A | BF272: N/A | BG272: N/A | BH272: N/A | BI272: N/A | BJ272: N/A | BK272: N/A | BL272: N/A | BM272: N/A | BN272: N/A | BO272: N/A | BP272: N/A | BQ272: N/A | BR272: N/A | BS272: N/A | BT272: N/A | BU272: N/A | BV272: N/A
BB273: DK/not sure/missing | BC273: N/A | BD273: N/A | BE273: N/A | BF273: N/A | BG273: N/A | BH273: N/A | BI273: N/A | BJ273: N/A | BK273: N/A | BL273: N/A | BM273: N/A | BN273: N/A | BO273: N/A | BP273: N/A | BQ273: N/A | BR273: N/A | BS273: N/A | BT273: N/A | BU273: N/A | BV273: N/A
BA274: Participation in (all) activities during menstruation | BB274: Yes | BC274: N/A | BD274: N/A | BE274: N/A | BF274: N/A | BG274: N/A | BH274: N/A | BI274: N/A | BJ274: N/A | BK274: N/A | BL274: N/A | BM274: N/A | BN274: N/A | BO274: N/A | BP274: N/A | BQ274: N/A | BR274: N/A | BS274: N/A | BT274: N/A | BU274: N/A | BV274: N/A
BB275: No | BC275: N/A | BD275: N/A | BE275: N/A | BF275: N/A | BG275: N/A | BH275: N/A | BI275: N/A | BJ275: N/A | BK275: N/A | BL275: N/A | BM275: N/A | BN275: N/A | BO275: N/A | BP275: N/A | BQ275: N/A | BR275: N/A | BS275: N/A | BT275: N/A | BU275: N/A | BV275: N/A
BB276: DK/not sure/missing/no such activity | BC276: N/A | BD276: N/A | BE276: N/A | BF276: N/A | BG276: N/A | BH276: N/A | BI276: N/A | BJ276: N/A | BK276: N/A | BL276: N/A | BM276: N/A | BN276: N/A | BO276: N/A | BP276: N/A | BQ276: N/A | BR276: N/A | BS276: N/A | BT276: N/A | BU276: N/A | BV276: N/A
BA277: Participation in specific activities during menstruation | BB277: Did not go to school (amongst those usually attending school) | BC277: N/A | BD277: N/A | BE277: N/A | BF277: N/A | BG277: N/A | BH277: N/A | BI277: N/A | BJ277: N/A | BK277: N/A | BL277: N/A | BM277: N/A | BN277: N/A | BO277: N/A | BP277: N/A | BQ277: N/A | BR277: N/A | BS277: N/A | BT277: N/A | BU277: N/A | BV277: N/A
BB278: Did not go to work (amongst those who usually work) | BC278: N/A | BD278: N/A | BE278: N/A | BF278: N/A | BG278: N/A | BH278: N/A | BI278: N/A | BJ278: N/A | BK278: N/A | BL278: N/A | BM278: N/A | BN278: N/A | BO278: N/A | BP278: N/A | BQ278: N/A | BR278: N/A | BS278: N/A | BT278: N/A | BU278: N/A | BV278: N/A
BB279: Did not participate in social activities | BC279: N/A | BD279: N/A | BE279: N/A | BF279: N/A | BG279: N/A | BH279: N/A | BI279: N/A | BJ279: N/A | BK279: N/A | BL279: N/A | BM279: N/A | BN279: N/A | BO279: N/A | BP279: N/A | BQ279: N/A | BR279: N/A | BS279: N/A | BT279: N/A | BU279: N/A | BV279: N/A
BB280: Did not cook food | BC280: N/A | BD280: N/A | BE280: N/A | BF280: N/A | BG280: N/A | BH280: N/A | BI280: N/A | BJ280: N/A | BK280: N/A | BL280: N/A | BM280: N/A | BN280: N/A | BO280: N/A | BP280: N/A | BQ280: N/A | BR280: N/A | BS280: N/A | BT280: N/A | BU280: N/A | BV280: N/A
BB281: Did not eat with others | BC281: N/A | BD281: N/A | BE281: N/A | BF281: N/A | BG281: N/A | BH281: N/A | BI281: N/A | BJ281: N/A | BK281: N/A | BL281: N/A | BM281: N/A | BN281: N/A | BO281: N/A | BP281: N/A | BQ281: N/A | BR281: N/A | BS281: N/A | BT281: N/A | BU281: N/A | BV281: N/A
BB282: Did not bathe in regular place | BC282: N/A | BD282: N/A | BE282: N/A | BF282: N/A | BG282: N/A | BH282: N/A | BI282: N/A | BJ282: N/A | BK282: N/A | BL282: N/A | BM282: N/A | BN282: N/A | BO282: N/A | BP282: N/A | BQ282: N/A | BR282: N/A | BS282: N/A | BT282: N/A | BU282: N/A | BV282: N/A
BB283: Did not participate in other activities | BC283: N/A | BD283: N/A | BE283: N/A | BF283: N/A | BG283: N/A | BH283: N/A | BI283: N/A | BJ283: N/A | BK283: N/A | BL283: N/A | BM283: N/A | BN283: N/A | BO283: N/A | BP283: N/A | BQ283: N/A | BR283: N/A | BS283: N/A | BT283: N/A | BU283: N/A | BV283: N/A
BB284: DK/not sure/missing/no such activity | BC284: N/A | BD284: N/A | BE284: N/A | BF284: N/A | BG284: N/A | BH284: N/A | BI284: N/A | BJ284: N/A | BK284: N/A | BL284: N/A | BM284: N/A | BN284: N/A | BO284: N/A | BP284: N/A | BQ284: N/A | BR284: N/A | BS284: N/A | BT284: N/A | BU284: N/A | BV284: N/A
BA339: Raw numbers of respondents: | BB339: Basic water, sanitation and hygiene | BC339: NATIONAL wealth index quintile | BH339: URBAN wealth index quintile | BM339: RURAL wealth index quintile | BR339: SUB-REGIONS:
BA340: WatSan data, raw numbers (weighted) | BC340: Poorest | BD340: Poor | BE340: Middle | BF340: Rich | BG340: Richest | BH340: Poorest | BI340: Poor | BJ340: Middle | BK340: Rich | BL340: Richest | BM340: Poorest | BN340: Poor | BO340: Middle | BP340: Rich | BQ340: Richest | BR340: Centre | BS340: Est | BT340: Nord | BU340: Ouest | BV340: Sud
BA341: Use of Basic Water Sanitation and Hygiene | BB341: Yes | BC341: N/A | BD341: N/A | BE341: N/A | BF341: N/A | BG341: N/A | BH341: N/A | BI341: N/A | BJ341: N/A | BK341: N/A | BL341: N/A | BM341: N/A | BN341: N/A | BO341: N/A | BP341: N/A | BQ341: N/A | BR341: N/A | BS341: N/A | BT341: N/A | BU341: N/A | BV341: N/A
BB342: No | BC342: N/A | BD342: N/A | BE342: N/A | BF342: N/A | BG342: N/A | BH342: N/A | BI342: N/A | BJ342: N/A | BK342: N/A | BL342: N/A | BM342: N/A | BN342: N/A | BO342: N/A | BP342: N/A | BQ342: N/A | BR342: N/A | BS342: N/A | BT342: N/A | BU342: N/A | BV342: N/A
BA343: Use of Basic Water and Sanitation | BB343: Yes | BC343: N/A | BD343: N/A | BE343: N/A | BF343: N/A | BG343: N/A | BH343: N/A | BI343: N/A | BJ343: N/A | BK343: N/A | BL343: N/A | BM343: N/A | BN343: N/A | BO343: N/A | BP343: N/A | BQ343: N/A | BR343: N/A | BS343: N/A | BT343: N/A | BU343: N/A | BV343: N/A
BB344: No | BC344: N/A | BD344: N/A | BE344: N/A | BF344: N/A | BG344: N/A | BH344: N/A | BI344: N/A | BJ344: N/A | BK344: N/A | BL344: N/A | BM344: N/A | BN344: N/A | BO344: N/A | BP344: N/A | BQ344: N/A | BR344: N/A | BS344: N/A | BT344: N/A | BU344: N/A | BV344: N/A
BA345: Use of Basic Water and Hygiene | BB345: Yes | BC345: N/A | BD345: N/A | BE345: N/A | BF345: N/A | BG345: N/A | BH345: N/A | BI345: N/A | BJ345: N/A | BK345: N/A | BL345: N/A | BM345: N/A | BN345: N/A | BO345: N/A | BP345: N/A | BQ345: N/A | BR345: N/A | BS345: N/A | BT345: N/A | BU345: N/A | BV345: N/A
BB346: No | BC346: N/A | BD346: N/A | BE346: N/A | BF346: N/A | BG346: N/A | BH346: N/A | BI346: N/A | BJ346: N/A | BK346: N/A | BL346: N/A | BM346: N/A | BN346: N/A | BO346: N/A | BP346: N/A | BQ346: N/A | BR346: N/A | BS346: N/A | BT346: N/A | BU346: N/A | BV346: N/A
BA347: Use of Basic Sanitation and Hygiene | BB347: Yes | BC347: N/A | BD347: N/A | BE347: N/A | BF347: N/A | BG347: N/A | BH347: N/A | BI347: N/A | BJ347: N/A | BK347: N/A | BL347: N/A | BM347: N/A | BN347: N/A | BO347: N/A | BP347: N/A | BQ347: N/A | BR347: N/A | BS347: N/A | BT347: N/A | BU347: N/A | BV347: N/A
BB348: No | BC348: N/A | BD348: N/A | BE348: N/A | BF348: N/A | BG348: N/A | BH348: N/A | BI348: N/A | BJ348: N/A | BK348: N/A | BL348: N/A | BM348: N/A | BN348: N/A | BO348: N/A | BP348: N/A | BQ348: N/A | BR348: N/A | BS348: N/A | BT348: N/A | BU348: N/A | BV348: N/A
BA349: Use of Basic Water | BB349: Yes | BC349: N/A | BD349: N/A | BE349: N/A | BF349: N/A | BG349: N/A | BH349: N/A | BI349: N/A | BJ349: N/A | BK349: N/A | BL349: N/A | BM349: N/A | BN349: N/A | BO349: N/A | BP349: N/A | BQ349: N/A | BR349: N/A | BS349: N/A | BT349: N/A | BU349: N/A | BV349: N/A
BB350: No | BC350: N/A | BD350: N/A | BE350: N/A | BF350: N/A | BG350: N/A | BH350: N/A | BI350: N/A | BJ350: N/A | BK350: N/A | BL350: N/A | BM350: N/A | BN350: N/A | BO350: N/A | BP350: N/A | BQ350: N/A | BR350: N/A | BS350: N/A | BT350: N/A | BU350: N/A | BV350: N/A
BA351: Use of Basic Sanitation | BB351: Yes | BC351: N/A | BD351: N/A | BE351: N/A | BF351: N/A | BG351: N/A | BH351: N/A | BI351: N/A | BJ351: N/A | BK351: N/A | BL351: N/A | BM351: N/A | BN351: N/A | BO351: N/A | BP351: N/A | BQ351: N/A | BR351: N/A | BS351: N/A | BT351: N/A | BU351: N/A | BV351: N/A
BB352: No | BC352: N/A | BD352: N/A | BE352: N/A | BF352: N/A | BG352: N/A | BH352: N/A | BI352: N/A | BJ352: N/A | BK352: N/A | BL352: N/A | BM352: N/A | BN352: N/A | BO352: N/A | BP352: N/A | BQ352: N/A | BR352: N/A | BS352: N/A | BT352: N/A | BU352: N/A | BV352: N/A
BA353: Access to Basic Hygiene | BB353: Yes | BC353: N/A | BD353: N/A | BE353: N/A | BF353: N/A | BG353: N/A | BH353: N/A | BI353: N/A | BJ353: N/A | BK353: N/A | BL353: N/A | BM353: N/A | BN353: N/A | BO353: N/A | BP353: N/A | BQ353: N/A | BR353: N/A | BS353: N/A | BT353: N/A | BU353: N/A | BV353: N/A
BB354: No | BC354: N/A | BD354: N/A | BE354: N/A | BF354: N/A | BG354: N/A | BH354: N/A | BI354: N/A | BJ354: N/A | BK354: N/A | BL354: N/A | BM354: N/A | BN354: N/A | BO354: N/A | BP354: N/A | BQ354: N/A | BR354: N/A | BS354: N/A | BT354: N/A | BU354: N/A | BV354: N/A
C399: INITIAL (national) Wealth Index | H399: URBAN Wealth Index | M399: RURAL Wealth Index
C400: Component Matrix | H400: Component Matrix | M400: Component Matrix
E401: Component | J401: Component | O401: Component
B402: Note: The INITIAL (national) Wealth Index is based on the first component of the Principal Component Analysis (PCA) which has been obtained at national level. The final national-level (NATIONAL) Wealth Index is based on the URBAN and RURAL specific wealth indexes. Regression procedures are used to establish the relationships between the two sets of scores (urban and rural) and the initial (national) wealth factors. This allows best use of the available information for each area and a better precision of the FINAL (NATIONAL) Wealth Index. For dependency reasons, all WASH variables (contained in the generic MICS and DHS scripts) have been excluded from the sets of asset variables used in the PCAs. The PCA can extracts as many components as there are asset variables in the input. Only the first of the components is used to represent the Wealth Index. The scores represent the weights of the asset variables on the Wealth Index (correlations between the variables and the component). The communalities are the proportion of each variable's variance that can be explained by the component. Proportion of explained variance is the part of the model's total variance that is explained by the component. For more information on the procedure used: The DHS Wealth Index, DHS Comparative Reports No. 6, Shea Oscar Rutstein, Kiersten Johnson, ORC Macro International Inc., 2004. The DHS Wealth Index: Approaches for Rural and Urban Areas, Shea O. Rutstein, ORC Macro International Inc., 2008. MICS Methodological Paper No. 4, Review of options for reporting water, sanitation and hygiene coverage by wealth quintile, UNICEF, 2016. | E402: 1 | J402: 1 | O402: 1
C403: Household cooks on open owen | E403: -0.8570139713 | H403: Has earth/sand floor | J403: -0.78152642 | M403: Household cooks on closed owen | O403: 0.6577443119
C404: Household cooks on closed owen | E404: 0.8423516163 | H404: Household has: electricity | J404: 0.7683380224 | M404: Household cooks on open owen | O404: -0.6192506149
C405: Household has: electricity | E405: 0.8249839012 | H405: Household cooks on open owen | J405: -0.7484298705 | M405: Has cement floor | O405: 0.6133430414
C406: Household fuel type: charcoal | E406: 0.7909650211 | H406: Household has: mobile refrigerator | J406: 0.7234145229 | M406: Household has: mobile refrigerator | O406: 0.5678247648
C407: Has earth/sand floor | E407: -0.7678182441 | H407: Household has: television | J407: 0.7207269584 | M407: Has earth/sand floor | O407: -0.5660542648
C408: Household has: mobile refrigerator | E408: 0.762391534 | H408: Household cooks on closed owen | J408: 0.6911293842 | M408: Household has: electricity | O408: 0.5628641884
C409: Has cement floor | E409: 0.760549867 | H409: Has cement floor | J409: 0.6793658314 | M409: Household fuel type: charcoal | O409: 0.5353443854
C410: Household has: television | E410: 0.7448427399 | H410: Household has: scooter | J410: 0.6574144619 | M410: Household cooks in owm house | O410: -0.4685326463
C411: Household has: scooter | E411: 0.667386726 | H411: Household fuel type: wood | J411: -0.6412631898 | M411: Household has: television | O411: 0.4384385836
C412: Household has: bicycle | E412: 0.6403814709 | H412: Household fuel type: charcoal | J412: 0.638994245 | M412: Household cooks in other house | O412: 0.4279055316
C413: Household fuel type: wood | E413: -0.5783950118 | H413: Household has: bicycle | J413: 0.6220678204 | M413: Household has: bicycle | O413: 0.3698073797
C414: Household cooks outside house | E414: 0.4927171081 | H414: Household has: car | J414: 0.5828301407 | M414: Household has: radio | O414: 0.3650877
C415: Household cooks in owm house | E415: -0.4574706335 | H415: Household has: radio | J415: 0.5445129968 | M415: Has bricks wall | O415: 0.3282354987
C416: Avez vous dans votre menage des moustiquaires utilisees pour | E416: -0.4515614211 | H416: Has bricks wall | J416: 0.4863688762 | M416: Household has: car | O416: 0.3011487156
C417: Has bricks wall | E417: 0.4280685126 | H417: Avez vous dans votre menage des moustiquaires utilisees pour | J417: -0.4187729505 | M417: Household has: scooter | O417: 0.2901876835
... 265 more rows

Sheet DHS10
A2: =A1026 -> Burundi
A3: =A1034 -> 2010
A4: Use of drinking water sources
A5: by wealth quintile and sub-national region
A6: Notes:
A7: WHO/UNICEF JMP customised wealth index excludes water,
A8: sanitation and hygiene assets.
A9: Survey used for analysis: | B9: =A1025 -> DHS10
A10: =B1028 -> 
A11: =B1027 -> 
A14: Use of drinking water sources | C14: NATIONAL wealth index quintile | H14: URBAN wealth index quintile | M14: RURAL wealth index quintile | R14: SUB-REGIONS: | BA14: Raw numbers of respondents: | BB14: Use of drinking water sources | BC14: NATIONAL wealth index quintile | BH14: URBAN wealth index quintile | BM14: RURAL wealth index quintile | BR14: SUB-REGIONS:
A15: Weighted percentage (used in graphs) | C15: Poorest | D15: Poor | E15: Middle | F15: Rich | G15: Richest | H15: Poorest | I15: Poor | J15: Middle | K15: Rich | L15: Richest | M15: Poorest | N15: Poor | O15: Middle | P15: Rich | Q15: Richest | R15: Bujumbura | S15: Centre-East | T15: North | U15: South | V15: West | BA15: Water data, raw numbers (weighted) | BC15: Poorest | BD15: Poor | BE15: Middle | BF15: Rich | BG15: Richest | BH15: Poorest | BI15: Poor | BJ15: Middle | BK15: Rich | BL15: Richest | BM15: Poorest | BN15: Poor | BO15: Middle | BP15: Rich | BQ15: Richest | BR15: Bujumbura | BS15: Centre-East | BT15: North | BU15: South | BV15: West
A16: Water | B16: Improved | C16: 68.68353025 | D16: 73.13260763 | E16: 75.9099509 | F16: 75.08401701 | G16: 84.95807935 | H16: 73.65346473 | I16: 78.02464448 | J16: 87.65231032 | K16: 94.87790498 | L16: 97.72928665 | M16: 68.57552836 | N16: 73.14240526 | O16: 74.58750134 | P16: 75.6464834 | Q16: 79.83409342 | R16: 90.65824817 | S16: 78.7927319 | T16: 81.89944161 | U16: 68.13539564 | V16: 64.68533811 | BA16: Water | BB16: Improved | BC16: N/A | BD16: N/A | BE16: N/A | BF16: N/A | BG16: N/A | BH16: N/A | BI16: N/A | BJ16: N/A | BK16: N/A | BL16: N/A | BM16: N/A | BN16: N/A | BO16: N/A | BP16: N/A | BQ16: N/A | BR16: N/A | BS16: N/A | BT16: N/A | BU16: N/A | BV16: N/A
B17: Not Improved | C17: 31.31646975 | D17: 26.86739237 | E17: 24.0900491 | F17: 24.91598299 | G17: 15.04192065 | H17: 26.34653527 | I17: 21.97535552 | J17: 12.34768968 | K17: 5.122095017 | L17: 2.270713354 | M17: 31.42447164 | N17: 26.85759474 | O17: 25.41249866 | P17: 24.3535166 | Q17: 20.16590658 | R17: 9.341751829 | S17: 21.2072681 | T17: 18.10055839 | U17: 31.86460436 | V17: 35.31466189 | BB17: Not Improved | BC17: N/A | BD17: N/A | BE17: N/A | BF17: N/A | BG17: N/A | BH17: N/A | BI17: N/A | BJ17: N/A | BK17: N/A | BL17: N/A | BM17: N/A | BN17: N/A | BO17: N/A | BP17: N/A | BQ17: N/A | BR17: N/A | BS17: N/A | BT17: N/A | BU17: N/A | BV17: N/A
A18: Water ladder | B18: Basic | C18: =C16*C23/100 -> 45.31087623 | D18: =D16*D23/100 -> 50.88116994 | E18: =E16*E23/100 -> 52.24899157 | F18: 51.36737316 | G18: 68.64402234 | H18: 61.02573936 | I18: 68.69840465 | J18: 82.24293107 | K18: 92.43201113 | L18: 95.44755746 | M18: 44.88636475 | N18: 51.66661701 | O18: 49.80690926 | P18: 52.43345822 | Q18: 55.1600685 | R18: 88.14306415 | S18: 55.27141857 | T18: 50.31486485 | U18: 50.83094848 | V18: 47.92520992 | BA18: Water ladder | BB18: Basic | BC18: N/A | BD18: N/A | BE18: N/A | BF18: N/A | BG18: N/A | BH18: N/A | BI18: N/A | BJ18: N/A | BK18: N/A | BL18: N/A | BM18: N/A | BN18: N/A | BO18: N/A | BP18: N/A | BQ18: N/A | BR18: N/A | BS18: N/A | BT18: N/A | BU18: N/A | BV18: N/A
B19: Limited | C19: =C16*C22/100 -> 23.37265402 | D19: =D16*D22/100 -> 22.25143769 | E19: =E16*E22/100 -> 23.66095933 | F19: 23.71664386 | G19: 16.31405701 | H19: 12.62772537 | I19: 9.326239828 | J19: 5.409379255 | K19: 2.44589385 | L19: 2.281729183 | M19: 23.68916361 | N19: 21.47578824 | O19: 24.78059208 | P19: 23.21302518 | Q19: 24.67402491 | R19: 2.515184017 | S19: 23.52131333 | T19: 31.58457676 | U19: 17.30444717 | V19: 16.76012819 | BB19: Limited | BC19: N/A | BD19: N/A | BE19: N/A | BF19: N/A | BG19: N/A | BH19: N/A | BI19: N/A | BJ19: N/A | BK19: N/A | BL19: N/A | BM19: N/A | BN19: N/A | BO19: N/A | BP19: N/A | BQ19: N/A | BR19: N/A | BS19: N/A | BT19: N/A | BU19: N/A | BV19: N/A
B20: Unimproved | C20: =100-C18-C19-C21 -> 19.7473375 | D20: =100-D18-D19-D21 -> 17.99632979 | E20: =100-E18-E19-E21 -> 15.56348668 | F20: 14.61815346 | G20: 11.69042621 | H20: 24.21000102 | I20: 21.64013727 | J20: 12.34768968 | K20: 5.122095017 | L20: 2.015709801 | M20: 19.40614142 | N20: 18.61402423 | O20: 15.77315424 | P20: 14.2648325 | Q20: 13.13196031 | R20: 8.889436777 | S20: 16.55889432 | T20: 12.14709196 | U20: 15.91554608 | V20: 23.75557977 | BB20: Unimproved | BC20: N/A | BD20: N/A | BE20: N/A | BF20: N/A | BG20: N/A | BH20: N/A | BI20: N/A | BJ20: N/A | BK20: N/A | BL20: N/A | BM20: N/A | BN20: N/A | BO20: N/A | BP20: N/A | BQ20: N/A | BR20: N/A | BS20: N/A | BT20: N/A | BU20: N/A | BV20: N/A
B21: Surface water | C21: 11.56913225 | D21: 8.871062582 | E21: 8.526562418 | F21: 10.29782952 | G21: 3.351494439 | H21: 2.136534244 | I21: 0.3352182534 | J21: 0 | K21: 0 | L21: 0.2550035534 | M21: 12.01833023 | N21: 8.243570515 | O21: 9.639344416 | P21: 10.08868411 | Q21: 7.033946272 | R21: 0.4523150527 | S21: 4.64837378 | T21: 5.953466429 | U21: 15.94905827 | V21: 11.55908211 | BB21: Surface water | BC21: N/A | BD21: N/A | BE21: N/A | BF21: N/A | BG21: N/A | BH21: N/A | BI21: N/A | BJ21: N/A | BK21: N/A | BL21: N/A | BM21: N/A | BN21: N/A | BO21: N/A | BP21: N/A | BQ21: N/A | BR21: N/A | BS21: N/A | BT21: N/A | BU21: N/A | BV21: N/A
A22: Improved water point at more than 30 minutes | B22: Yes | C22: 34.02948849 | D22: 30.42615109 | E22: 31.16977293 | F22: 31.58680742 | G22: 19.2024786 | H22: 17.1447812 | I22: 11.95294114 | J22: 6.17140522 | K22: 2.577938299 | L22: 2.334744539 | M22: 34.54463156 | N22: 29.36161064 | O22: 33.2235182 | P22: 30.68619205 | Q22: 30.9066263 | R22: 2.774357621 | S22: 29.8521358 | T22: 38.56506973 | U22: 25.39714785 | V22: 25.91024285 | BA22: Improved water point at more than 30 minutes | BB22: Yes | BC22: N/A | BD22: N/A | BE22: N/A | BF22: N/A | BG22: N/A | BH22: N/A | BI22: N/A | BJ22: N/A | BK22: N/A | BL22: N/A | BM22: N/A | BN22: N/A | BO22: N/A | BP22: N/A | BQ22: N/A | BR22: N/A | BS22: N/A | BT22: N/A | BU22: N/A | BV22: N/A
B23: No | C23: 65.97051151 | D23: 69.57384891 | E23: 68.83022707 | F23: 68.41319258 | G23: 80.7975214 | H23: 82.8552188 | I23: 88.04705886 | J23: 93.82859478 | K23: 97.4220617 | L23: 97.66525546 | M23: 65.45536844 | N23: 70.63838936 | O23: 66.7764818 | P23: 69.31380795 | Q23: 69.0933737 | R23: 97.22564238 | S23: 70.1478642 | T23: 61.43493027 | U23: 74.60285215 | V23: 74.08975715 | BB23: No | BC23: N/A | BD23: N/A | BE23: N/A | BF23: N/A | BG23: N/A | BH23: N/A | BI23: N/A | BJ23: N/A | BK23: N/A | BL23: N/A | BM23: N/A | BN23: N/A | BO23: N/A | BP23: N/A | BQ23: N/A | BR23: N/A | BS23: N/A | BT23: N/A | BU23: N/A | BV23: N/A
A24: Manually calculated ratios | B24: Improved wells
B25: Improved springs
B26: Other
C27: NATIONAL wealth index quintile | H27: URBAN wealth index quintile | M27: RURAL wealth index quintile | R27: SUB-REGIONS: | BA27: Raw numbers of respondents: | BB27: Use of drinking water sources | BC27: NATIONAL wealth index quintile | BH27: URBAN wealth index quintile | BM27: RURAL wealth index quintile | BR27: SUB-REGIONS:
A28: Percentage based on weighted population | C28: Poorest | D28: Poor | E28: Middle | F28: Rich | G28: Richest | H28: Poorest | I28: Poor | J28: Middle | K28: Rich | L28: Richest | M28: Poorest | N28: Poor | O28: Middle | P28: Rich | Q28: Richest | R28: Bujumbura | S28: Centre-East | T28: North | U28: South | V28: West | BA28: Water data, raw numbers (weighted) | BC28: Poorest | BD28: Poor | BE28: Middle | BF28: Rich | BG28: Richest | BH28: Poorest | BI28: Poor | BJ28: Middle | BK28: Rich | BL28: Richest | BM28: Poorest | BN28: Poor | BO28: Middle | BP28: Rich | BQ28: Richest | BR28: Bujumbura | BS28: Centre-East | BT28: North | BU28: South | BV28: West
A29: Piped water | B29: Yes | C29: 16.28464099 | D29: 17.50913515 | E29: 26.17063048 | F29: 29.34568256 | G29: 59.5586504 | H29: 52.99186188 | I29: 69.72200572 | J29: 77.64974732 | K29: 90.68577868 | L29: 94.49771715 | M29: 15.31350207 | N29: 17.83084413 | O29: 23.94348784 | P29: 27.06244414 | Q29: 38.58408741 | R29: 89.99694351 | S29: 16.55245294 | T29: 14.22133762 | U29: 35.47974125 | V29: 43.42831272 | BA29: Piped water | BB29: Yes | BC29: N/A | BD29: N/A | BE29: N/A | BF29: N/A | BG29: N/A | BH29: N/A | BI29: N/A | BJ29: N/A | BK29: N/A | BL29: N/A | BM29: N/A | BN29: N/A | BO29: N/A | BP29: N/A | BQ29: N/A | BR29: N/A | BS29: N/A | BT29: N/A | BU29: N/A | BV29: N/A
B30: No | C30: 83.71535901 | D30: 82.49086485 | E30: 73.82936952 | F30: 70.65431744 | G30: 40.4413496 | H30: 47.00813812 | I30: 30.27799428 | J30: 22.35025268 | K30: 9.314221319 | L30: 5.502282851 | M30: 84.68649793 | N30: 82.16915587 | O30: 76.05651216 | P30: 72.93755586 | Q30: 61.41591259 | R30: 10.00305649 | S30: 83.44754706 | T30: 85.77866238 | U30: 64.52025875 | V30: 56.57168728 | BB30: No | BC30: N/A | BD30: N/A | BE30: N/A | BF30: N/A | BG30: N/A | BH30: N/A | BI30: N/A | BJ30: N/A | BK30: N/A | BL30: N/A | BM30: N/A | BN30: N/A | BO30: N/A | BP30: N/A | BQ30: N/A | BR30: N/A | BS30: N/A | BT30: N/A | BU30: N/A | BV30: N/A
A31: Piped water on premises | B31: Yes | C31: 0 | D31: 0.3055674575 | E31: 0.5225885142 | F31: 1.4524271 | G31: 26.42118704 | H31: 4.873379387 | I31: 15.11375447 | J31: 41.55962522 | K31: 75.43024007 | L31: 90.05944024 | M31: 0 | N31: 0.3396090762 | O31: 0.3124483084 | P31: 1.162098653 | Q31: 4.996968128 | R31: 56.79316666 | S31: 1.811060091 | T31: 1.655663142 | U31: 2.923642822 | V31: 2.398377442 | BA31: Piped water on premises | BB31: Yes | BC31: N/A | BD31: N/A | BE31: N/A | BF31: N/A | BG31: N/A | BH31: N/A | BI31: N/A | BJ31: N/A | BK31: N/A | BL31: N/A | BM31: N/A | BN31: N/A | BO31: N/A | BP31: N/A | BQ31: N/A | BR31: N/A | BS31: N/A | BT31: N/A | BU31: N/A | BV31: N/A
B32: No | C32: 100 | D32: 99.69443254 | E32: 99.47741149 | F32: 98.5475729 | G32: 73.57881296 | H32: 95.12662061 | I32: 84.88624553 | J32: 58.44037478 | K32: 24.56975993 | L32: 9.940559758 | M32: 100 | N32: 99.66039092 | O32: 99.68755169 | P32: 98.83790135 | Q32: 95.00303187 | R32: 43.20683334 | S32: 98.18893991 | T32: 98.34433686 | U32: 97.07635718 | V32: 97.60162256 | BB32: No | BC32: N/A | BD32: N/A | BE32: N/A | BF32: N/A | BG32: N/A | BH32: N/A | BI32: N/A | BJ32: N/A | BK32: N/A | BL32: N/A | BM32: N/A | BN32: N/A | BO32: N/A | BP32: N/A | BQ32: N/A | BR32: N/A | BS32: N/A | BT32: N/A | BU32: N/A | BV32: N/A
A33: Piped water into dwelling | B33: Yes | C33: N/A | D33: N/A | E33: N/A | F33: N/A | G33: N/A | H33: N/A | I33: N/A | J33: N/A | K33: N/A | L33: N/A | M33: N/A | N33: N/A | O33: N/A | P33: N/A | Q33: N/A | R33: N/A | S33: N/A | T33: N/A | U33: N/A | V33: N/A | BA33: Piped water into dwelling | BB33: Yes | BC33: N/A | BD33: N/A | BE33: N/A | BF33: N/A | BG33: N/A | BH33: N/A | BI33: N/A | BJ33: N/A | BK33: N/A | BL33: N/A | BM33: N/A | BN33: N/A | BO33: N/A | BP33: N/A | BQ33: N/A | BR33: N/A | BS33: N/A | BT33: N/A | BU33: N/A | BV33: N/A
B34: No | C34: N/A | D34: N/A | E34: N/A | F34: N/A | G34: N/A | H34: N/A | I34: N/A | J34: N/A | K34: N/A | L34: N/A | M34: N/A | N34: N/A | O34: N/A | P34: N/A | Q34: N/A | R34: N/A | S34: N/A | T34: N/A | U34: N/A | V34: N/A | BB34: No | BC34: N/A | BD34: N/A | BE34: N/A | BF34: N/A | BG34: N/A | BH34: N/A | BI34: N/A | BJ34: N/A | BK34: N/A | BL34: N/A | BM34: N/A | BN34: N/A | BO34: N/A | BP34: N/A | BQ34: N/A | BR34: N/A | BS34: N/A | BT34: N/A | BU34: N/A | BV34: N/A
A35: Water source on premises | B35: Yes | C35: 0.01970961312 | D35: 0.4957279613 | E35: 0.7464873418 | F35: 1.681304981 | G35: 26.76270722 | H35: 5.565909649 | I35: 15.71340683 | J35: 41.72319625 | K35: 75.4953779 | L35: 90.37372571 | M35: 0.0218832427 | N35: 0.5509543338 | O35: 0.5607696714 | P35: 1.228033433 | Q35: 5.361902386 | R35: 57.18337332 | S35: 1.936615449 | T35: 1.946746146 | U35: 2.991965861 | V35: 2.651847843 | BA35: Water source on premises | BB35: Yes | BC35: N/A | BD35: N/A | BE35: N/A | BF35: N/A | BG35: N/A | BH35: N/A | BI35: N/A | BJ35: N/A | BK35: N/A | BL35: N/A | BM35: N/A | BN35: N/A | BO35: N/A | BP35: N/A | BQ35: N/A | BR35: N/A | BS35: N/A | BT35: N/A | BU35: N/A | BV35: N/A
B36: No | C36: 99.98029039 | D36: 99.50427204 | E36: 99.25351266 | F36: 98.31869502 | G36: 73.23729278 | H36: 94.43409035 | I36: 84.28659317 | J36: 58.27680375 | K36: 24.5046221 | L36: 9.626274285 | M36: 99.97811676 | N36: 99.44904567 | O36: 99.43923033 | P36: 98.77196657 | Q36: 94.63809761 | R36: 42.81662668 | S36: 98.06338455 | T36: 98.05325385 | U36: 97.00803414 | V36: 97.34815216 | BB36: No | BC36: N/A | BD36: N/A | BE36: N/A | BF36: N/A | BG36: N/A | BH36: N/A | BI36: N/A | BJ36: N/A | BK36: N/A | BL36: N/A | BM36: N/A | BN36: N/A | BO36: N/A | BP36: N/A | BQ36: N/A | BR36: N/A | BS36: N/A | BT36: N/A | BU36: N/A | BV36: N/A
A37: Improved Water source on premises | B37: Yes | C37: 0 | D37: 0.677848059 | E37: 0.9833853571 | F37: 2.239231527 | G37: 31.44944824 | H37: 7.556887744 | I37: 19.87385906 | J37: 47.60079465 | K37: 79.57108445 | L37: 92.47353461 | M37: 0 | N37: 0.753262532 | O37: 0.7518279354 | P37: 1.623384694 | Q37: 6.683886183 | R37: 63.00690982 | S37: 2.41303336 | T37: 2.376995628 | U37: 4.391206411 | V37: 4.099611937 | BA37: Improved water source on premises | BB37: Yes | BC37: N/A | BD37: N/A | BE37: N/A | BF37: N/A | BG37: N/A | BH37: N/A | BI37: N/A | BJ37: N/A | BK37: N/A | BL37: N/A | BM37: N/A | BN37: N/A | BO37: N/A | BP37: N/A | BQ37: N/A | BR37: N/A | BS37: N/A | BT37: N/A | BU37: N/A | BV37: N/A
B38: No | C38: 100 | D38: 99.32215194 | E38: 99.01661464 | F38: 97.76076847 | G38: 68.55055176 | H38: 92.44311226 | I38: 80.12614094 | J38: 52.39920535 | K38: 20.42891555 | L38: 7.526465386 | M38: 100 | N38: 99.24673747 | O38: 99.24817206 | P38: 98.37661531 | Q38: 93.31611382 | R38: 36.99309018 | S38: 97.58696664 | T38: 97.62300437 | U38: 95.60879359 | V38: 95.90038806 | BB38: No | BC38: N/A | BD38: N/A | BE38: N/A | BF38: N/A | BG38: N/A | BH38: N/A | BI38: N/A | BJ38: N/A | BK38: N/A | BL38: N/A | BM38: N/A | BN38: N/A | BO38: N/A | BP38: N/A | BQ38: N/A | BR38: N/A | BS38: N/A | BT38: N/A | BU38: N/A | BV38: N/A
A39: Piped water on premises available when needed | B39: Yes | C39: N/A | D39: N/A | E39: N/A | F39: N/A | G39: N/A | H39: N/A | I39: N/A | J39: N/A | K39: N/A | L39: N/A | M39: N/A | N39: N/A | O39: N/A | P39: N/A | Q39: N/A | R39: N/A | S39: N/A | T39: N/A | U39: N/A | V39: N/A | BA39: Piped water on premises available when needed | BB39: Yes | BC39: N/A | BD39: N/A | BE39: N/A | BF39: N/A | BG39: N/A | BH39: N/A | BI39: N/A | BJ39: N/A | BK39: N/A | BL39: N/A | BM39: N/A | BN39: N/A | BO39: N/A | BP39: N/A | BQ39: N/A | BR39: N/A | BS39: N/A | BT39: N/A | BU39: N/A | BV39: N/A
B40: No | C40: N/A | D40: N/A | E40: N/A | F40: N/A | G40: N/A | H40: N/A | I40: N/A | J40: N/A | K40: N/A | L40: N/A | M40: N/A | N40: N/A | O40: N/A | P40: N/A | Q40: N/A | R40: N/A | S40: N/A | T40: N/A | U40: N/A | V40: N/A | BB40: No | BC40: N/A | BD40: N/A | BE40: N/A | BF40: N/A | BG40: N/A | BH40: N/A | BI40: N/A | BJ40: N/A | BK40: N/A | BL40: N/A | BM40: N/A | BN40: N/A | BO40: N/A | BP40: N/A | BQ40: N/A | BR40: N/A | BS40: N/A | BT40: N/A | BU40: N/A | BV40: N/A
A41: Water point at more than 30 minutes | B41: Yes | C41: 35.0137003 | D41: 31.2974477 | E41: 29.83278814 | F41: 31.76005473 | G41: 19.52917495 | H41: 16.26715962 | I41: 13.27359055 | J41: 6.910430456 | K41: 3.28304155 | L41: 2.281729183 | M41: 35.3871854 | N41: 31.41161096 | O41: 31.46787062 | P41: 31.010125 | Q41: 29.80966618 | R41: 3.796229721 | S41: 28.0129313 | T41: 41.51710448 | U41: 25.73432115 | V41: 26.20229901 | BA41: Water point at more than 30 minutes | BB41: Yes | BC41: N/A | BD41: N/A | BE41: N/A | BF41: N/A | BG41: N/A | BH41: N/A | BI41: N/A | BJ41: N/A | BK41: N/A | BL41: N/A | BM41: N/A | BN41: N/A | BO41: N/A | BP41: N/A | BQ41: N/A | BR41: N/A | BS41: N/A | BT41: N/A | BU41: N/A | BV41: N/A
B42: No | C42: 64.9862997 | D42: 68.7025523 | E42: 70.16721186 | F42: 68.23994527 | G42: 80.47082505 | H42: 83.73284038 | I42: 86.72640945 | J42: 93.08956954 | K42: 96.71695845 | L42: 97.71827082 | M42: 64.6128146 | N42: 68.58838904 | O42: 68.53212938 | P42: 68.989875 | Q42: 70.19033382 | R42: 96.20377028 | S42: 71.9870687 | T42: 58.48289552 | U42: 74.26567885 | V42: 73.79770099 | BB42: No | BC42: N/A | BD42: N/A | BE42: N/A | BF42: N/A | BG42: N/A | BH42: N/A | BI42: N/A | BJ42: N/A | BK42: N/A | BL42: N/A | BM42: N/A | BN42: N/A | BO42: N/A | BP42: N/A | BQ42: N/A | BR42: N/A | BS42: N/A | BT42: N/A | BU42: N/A | BV42: N/A
A43: Water source available when needed | B43: Yes | C43: N/A | D43: N/A | E43: N/A | F43: N/A | G43: N/A | H43: N/A | I43: N/A | J43: N/A | K43: N/A | L43: N/A | M43: N/A | N43: N/A | O43: N/A | P43: N/A | Q43: N/A | R43: N/A | S43: N/A | T43: N/A | U43: N/A | V43: N/A | BA43: Water source available when needed | BB43: Yes | BC43: N/A | BD43: N/A | BE43: N/A | BF43: N/A | BG43: N/A | BH43: N/A | BI43: N/A | BJ43: N/A | BK43: N/A | BL43: N/A | BM43: N/A | BN43: N/A | BO43: N/A | BP43: N/A | BQ43: N/A | BR43: N/A | BS43: N/A | BT43: N/A | BU43: N/A | BV43: N/A
B44: No | C44: N/A | D44: N/A | E44: N/A | F44: N/A | G44: N/A | H44: N/A | I44: N/A | J44: N/A | K44: N/A | L44: N/A | M44: N/A | N44: N/A | O44: N/A | P44: N/A | Q44: N/A | R44: N/A | S44: N/A | T44: N/A | U44: N/A | V44: N/A | BB44: No | BC44: N/A | BD44: N/A | BE44: N/A | BF44: N/A | BG44: N/A | BH44: N/A | BI44: N/A | BJ44: N/A | BK44: N/A | BL44: N/A | BM44: N/A | BN44: N/A | BO44: N/A | BP44: N/A | BQ44: N/A | BR44: N/A | BS44: N/A | BT44: N/A | BU44: N/A | BV44: N/A
A45: Improved water source available when needed | B45: Yes | C45: N/A | D45: N/A | E45: N/A | F45: N/A | G45: N/A | H45: N/A | I45: N/A | J45: N/A | K45: N/A | L45: N/A | M45: N/A | N45: N/A | O45: N/A | P45: N/A | Q45: N/A | R45: N/A | S45: N/A | T45: N/A | U45: N/A | V45: N/A | BA45: Improved water source available when needed | BB45: Yes | BC45: N/A | BD45: N/A | BE45: N/A | BF45: N/A | BG45: N/A | BH45: N/A | BI45: N/A | BJ45: N/A | BK45: N/A | BL45: N/A | BM45: N/A | BN45: N/A | BO45: N/A | BP45: N/A | BQ45: N/A | BR45: N/A | BS45: N/A | BT45: N/A | BU45: N/A | BV45: N/A
B46: No | C46: N/A | D46: N/A | E46: N/A | F46: N/A | G46: N/A | H46: N/A | I46: N/A | J46: N/A | K46: N/A | L46: N/A | M46: N/A | N46: N/A | O46: N/A | P46: N/A | Q46: N/A | R46: N/A | S46: N/A | T46: N/A | U46: N/A | V46: N/A | BB46: No | BC46: N/A | BD46: N/A | BE46: N/A | BF46: N/A | BG46: N/A | BH46: N/A | BI46: N/A | BJ46: N/A | BK46: N/A | BL46: N/A | BM46: N/A | BN46: N/A | BO46: N/A | BP46: N/A | BQ46: N/A | BR46: N/A | BS46: N/A | BT46: N/A | BU46: N/A | BV46: N/A
A47: Microbiological quality at point of collection | B47: Not contaminated (No E. coli in 100 mL) | C47: N/A | D47: N/A | E47: N/A | F47: N/A | G47: N/A | H47: N/A | I47: N/A | J47: N/A | K47: N/A | L47: N/A | M47: N/A | N47: N/A | O47: N/A | P47: N/A | Q47: N/A | R47: N/A | S47: N/A | T47: N/A | U47: N/A | V47: N/A | BA47: Microbiological quality at point of collection | BB47: Not contaminated (No E. coli in 100 mL) | BC47: N/A | BD47: N/A | BE47: N/A | BF47: N/A | BG47: N/A | BH47: N/A | BI47: N/A | BJ47: N/A | BK47: N/A | BL47: N/A | BM47: N/A | BN47: N/A | BO47: N/A | BP47: N/A | BQ47: N/A | BR47: N/A | BS47: N/A | BT47: N/A | BU47: N/A | BV47: N/A
B48: Contaminated (E. coli detected in 100 mL) | C48: N/A | D48: N/A | E48: N/A | F48: N/A | G48: N/A | H48: N/A | I48: N/A | J48: N/A | K48: N/A | L48: N/A | M48: N/A | N48: N/A | O48: N/A | P48: N/A | Q48: N/A | R48: N/A | S48: N/A | T48: N/A | U48: N/A | V48: N/A | BB48: Contaminated (E. coli detected in 100 mL) | BC48: N/A | BD48: N/A | BE48: N/A | BF48: N/A | BG48: N/A | BH48: N/A | BI48: N/A | BJ48: N/A | BK48: N/A | BL48: N/A | BM48: N/A | BN48: N/A | BO48: N/A | BP48: N/A | BQ48: N/A | BR48: N/A | BS48: N/A | BT48: N/A | BU48: N/A | BV48: N/A
B49: Highly contaminated (>100 CFU/100 mL) | C49: N/A | D49: N/A | E49: N/A | F49: N/A | G49: N/A | H49: N/A | I49: N/A | J49: N/A | K49: N/A | L49: N/A | M49: N/A | N49: N/A | O49: N/A | P49: N/A | Q49: N/A | R49: N/A | S49: N/A | T49: N/A | U49: N/A | V49: N/A | BB49: Highly contaminated (>100 CFU/100 mL) | BC49: N/A | BD49: N/A | BE49: N/A | BF49: N/A | BG49: N/A | BH49: N/A | BI49: N/A | BJ49: N/A | BK49: N/A | BL49: N/A | BM49: N/A | BN49: N/A | BO49: N/A | BP49: N/A | BQ49: N/A | BR49: N/A | BS49: N/A | BT49: N/A | BU49: N/A | BV49: N/A
A50: Microbiological quality of improved water sources at point of collection | B50: Not contaminated (No E. coli in 100 mL) | C50: N/A | D50: N/A | E50: N/A | F50: N/A | G50: N/A | H50: N/A | I50: N/A | J50: N/A | K50: N/A | L50: N/A | M50: N/A | N50: N/A | O50: N/A | P50: N/A | Q50: N/A | R50: N/A | S50: N/A | T50: N/A | U50: N/A | V50: N/A | BA50: Microbiological quality of improved water sources at point of collection | BB50: Not contaminated (No E. coli in 100 mL) | BC50: N/A | BD50: N/A | BE50: N/A | BF50: N/A | BG50: N/A | BH50: N/A | BI50: N/A | BJ50: N/A | BK50: N/A | BL50: N/A | BM50: N/A | BN50: N/A | BO50: N/A | BP50: N/A | BQ50: N/A | BR50: N/A | BS50: N/A | BT50: N/A | BU50: N/A | BV50: N/A
B51: Contaminated (E. coli detected in 100 mL) | C51: N/A | D51: N/A | E51: N/A | F51: N/A | G51: N/A | H51: N/A | I51: N/A | J51: N/A | K51: N/A | L51: N/A | M51: N/A | N51: N/A | O51: N/A | P51: N/A | Q51: N/A | R51: N/A | S51: N/A | T51: N/A | U51: N/A | V51: N/A | BB51: Contaminated (E. coli detected in 100 mL) | BC51: N/A | BD51: N/A | BE51: N/A | BF51: N/A | BG51: N/A | BH51: N/A | BI51: N/A | BJ51: N/A | BK51: N/A | BL51: N/A | BM51: N/A | BN51: N/A | BO51: N/A | BP51: N/A | BQ51: N/A | BR51: N/A | BS51: N/A | BT51: N/A | BU51: N/A | BV51: N/A
B52: Highly contaminated (>100 CFU/100 mL) | C52: N/A | D52: N/A | E52: N/A | F52: N/A | G52: N/A | H52: N/A | I52: N/A | J52: N/A | K52: N/A | L52: N/A | M52: N/A | N52: N/A | O52: N/A | P52: N/A | Q52: N/A | R52: N/A | S52: N/A | T52: N/A | U52: N/A | V52: N/A | BB52: Highly contaminated (>100 CFU/100 mL) | BC52: N/A | BD52: N/A | BE52: N/A | BF52: N/A | BG52: N/A | BH52: N/A | BI52: N/A | BJ52: N/A | BK52: N/A | BL52: N/A | BM52: N/A | BN52: N/A | BO52: N/A | BP52: N/A | BQ52: N/A | BR52: N/A | BS52: N/A | BT52: N/A | BU52: N/A | BV52: N/A
A53: Microbiological quality of piped on premises at point of collection | B53: Not contaminated (No E. coli in 100 mL) | C53: N/A | D53: N/A | E53: N/A | F53: N/A | G53: N/A | H53: N/A | I53: N/A | J53: N/A | K53: N/A | L53: N/A | M53: N/A | N53: N/A | O53: N/A | P53: N/A | Q53: N/A | R53: N/A | S53: N/A | T53: N/A | U53: N/A | V53: N/A | BA53: Microbiological quality of piped on premises at point of collection | BB53: Not contaminated (No E. coli in 100 mL) | BC53: N/A | BD53: N/A | BE53: N/A | BF53: N/A | BG53: N/A | BH53: N/A | BI53: N/A | BJ53: N/A | BK53: N/A | BL53: N/A | BM53: N/A | BN53: N/A | BO53: N/A | BP53: N/A | BQ53: N/A | BR53: N/A | BS53: N/A | BT53: N/A | BU53: N/A | BV53: N/A
B54: Contaminated (E. coli detected in 100 mL) | C54: N/A | D54: N/A | E54: N/A | F54: N/A | G54: N/A | H54: N/A | I54: N/A | J54: N/A | K54: N/A | L54: N/A | M54: N/A | N54: N/A | O54: N/A | P54: N/A | Q54: N/A | R54: N/A | S54: N/A | T54: N/A | U54: N/A | V54: N/A | BB54: Contaminated (E. coli detected in 100 mL) | BC54: N/A | BD54: N/A | BE54: N/A | BF54: N/A | BG54: N/A | BH54: N/A | BI54: N/A | BJ54: N/A | BK54: N/A | BL54: N/A | BM54: N/A | BN54: N/A | BO54: N/A | BP54: N/A | BQ54: N/A | BR54: N/A | BS54: N/A | BT54: N/A | BU54: N/A | BV54: N/A
B55: Highly contaminated (>100 CFU/100 mL) | C55: N/A | D55: N/A | E55: N/A | F55: N/A | G55: N/A | H55: N/A | I55: N/A | J55: N/A | K55: N/A | L55: N/A | M55: N/A | N55: N/A | O55: N/A | P55: N/A | Q55: N/A | R55: N/A | S55: N/A | T55: N/A | U55: N/A | V55: N/A | BB55: Highly contaminated (>100 CFU/100 mL) | BC55: N/A | BD55: N/A | BE55: N/A | BF55: N/A | BG55: N/A | BH55: N/A | BI55: N/A | BJ55: N/A | BK55: N/A | BL55: N/A | BM55: N/A | BN55: N/A | BO55: N/A | BP55: N/A | BQ55: N/A | BR55: N/A | BS55: N/A | BT55: N/A | BU55: N/A | BV55: N/A
C56: NATIONAL wealth index quintile | H56: URBAN wealth index quintile | M56: RURAL wealth index quintile | R56: SUB-REGIONS: | BA56: Raw numbers of respondents: | BB56: Use of drinking water sources | BC56: NATIONAL wealth index quintile | BH56: URBAN wealth index quintile | BM56: RURAL wealth index quintile | BR56: SUB-REGIONS:
A57: Percentage based on weighted population | C57: Poorest | D57: Poor | E57: Middle | F57: Rich | G57: Richest | H57: Poorest | I57: Poor | J57: Middle | K57: Rich | L57: Richest | M57: Poorest | N57: Poor | O57: Middle | P57: Rich | Q57: Richest | R57: Bujumbura | S57: Centre-East | T57: North | U57: South | V57: West | BA57: Water data, raw numbers (weighted) | BC57: Poorest | BD57: Poor | BE57: Middle | BF57: Rich | BG57: Richest | BH57: Poorest | BI57: Poor | BJ57: Middle | BK57: Rich | BL57: Richest | BM57: Poorest | BN57: Poor | BO57: Middle | BP57: Rich | BQ57: Richest | BR57: Bujumbura | BS57: Centre-East | BT57: North | BU57: South | BV57: West
A58: Source of drinking water | B58: Piped into dwelling | C58: 0 | D58: 0 | E58: 0 | F58: 0 | G58: 8.525657896 | H58: 0.1959921516 | I58: 0.573934316 | J58: 2.196775383 | K58: 16.48373919 | L58: 58.14109248 | M58: 0 | N58: 0 | O58: 0 | P58: 0 | Q58: 0.9056173884 | R58: 19.82596076 | S58: 0.4943237388 | T58: 0.4607661186 | U58: 0.2300827454 | V58: 0.5307108312
B59: Piped to yard/plot | C59: 0 | D59: 0.3055674575 | E59: 0.5225885142 | F59: 1.4524271 | G59: 17.89552914 | H59: 4.677387236 | I59: 14.53982016 | J59: 39.36284983 | K59: 58.94650088 | L59: 31.91834776 | M59: 0 | N59: 0.3396090762 | O59: 0.3124483084 | P59: 1.162098653 | Q59: 4.09135074 | R59: 36.9672059 | S59: 1.316736352 | T59: 1.194897023 | U59: 2.693560076 | V59: 1.867666611
B60: Public tap/standpipe | C60: 16.28464099 | D60: 17.2035677 | E60: 25.64804197 | F60: 27.89325545 | G60: 33.13746336 | H60: 48.1184825 | I60: 54.60825125 | J60: 36.0901221 | K60: 15.25553861 | L60: 4.438276907 | M60: 15.31350207 | N60: 17.49123505 | O60: 23.63103953 | P60: 25.90034549 | Q60: 33.58711928 | R60: 33.20377686 | S60: 14.74139285 | T60: 12.56567448 | U60: 32.55609843 | V60: 41.02993528
B61: Tube well or borehole | C61: 0.5652709691 | D61: 0.2207577894 | E61: 0.1035292604 | F61: 0.3334082832 | G61: 0.2844293959 | H61: 0 | I61: 0 | J61: 0.6849925575 | K61: 0 | L61: 0 | M61: 0.6276105842 | N61: 0.2453512214 | O61: 0.1148220709 | P61: 0.2989610981 | Q61: 0.311391351 | R61: 0 | S61: 0.3170739504 | T61: 0.7796461256 | U61: 0 | V61: 0
B62: Protected well | C62: 3.756441658 | D62: 2.841442262 | E62: 2.609570269 | F62: 1.875927076 | G62: 0.778926392 | H62: 2.68484386 | I62: 1.216589646 | J62: 1.734481544 | K62: 1.660628632 | L62: 0 | M62: 3.882548476 | N62: 2.631151784 | O62: 2.603323196 | P62: 1.957995695 | Q62: 1.290975483 | R62: 0 | S62: 1.442134039 | T62: 6.148581284 | U62: 0.4821393788 | V62: 0.8056586042
B63: Unprotected well | C63: 1.370719821 | D63: 0.5815917615 | E63: 0.7288543027 | F63: 0.7530254044 | G63: 0.4236031557 | H63: 0.3962541218 | I63: 0 | J63: 0 | K63: 0 | L63: 0 | M63: 1.510478405 | N63: 0.6463837557 | O63: 0.7293014363 | P63: 0.7037915004 | Q63: 0.6498273501 | R63: 0 | S63: 0.6874926356 | T63: 0.5414245842 | U63: 0.8897766186 | V63: 1.389286963
B64: Protected spring | C64: 48.04709733 | D64: 52.56127243 | E64: 47.00815194 | F64: 43.46937023 | G64: 24.03370164 | H64: 17.91116341 | I64: 6.954464509 | J64: 7.270773644 | K64: 2.136524286 | L64: 1.094124607 | M64: 48.7184707 | N64: 52.43505812 | O64: 47.92586824 | P64: 46.24078954 | Q64: 39.64763917 | R64: 0 | S64: 60.44155392 | T64: 60.744999 | U64: 32.1148384 | V64: 20.37145099
B65: Unprotected spring | C65: 17.91590814 | D65: 17.13138053 | E65: 14.34015016 | F65: 13.07213672 | G65: 6.695483124 | H65: 13.11765678 | I65: 2.965634089 | J65: 2.131734406 | K65: 0.4830408239 | L65: 0 | M65: 17.56357516 | N65: 17.87256949 | O65: 14.73005173 | P65: 13.37343332 | Q65: 11.18760512 | R65: 0 | S65: 15.77628195 | T65: 11.12461742 | U65: 13.50278932 | V65: 20.99719343
B66: River/dam/lake/ponds/stream/canal/irrigation channel | C66: 11.49175559 | D66: 8.784053292 | E66: 8.445510912 | F66: 10.22013766 | G66: 3.338452368 | H66: 2.135848497 | I66: 0.334496806 | J66: 0 | K66: 0 | L66: 0.2507767368 | M66: 11.94275812 | N66: 8.150699476 | O66: 9.566276311 | P66: 9.977738921 | Q66: 7.010954055 | R66: 0.4500516318 | S66: 4.552519037 | T66: 5.952269186 | U66: 15.8327303 | V66: 11.53015045
B67: Tanker truck | C67: 0 | D67: 0 | E67: 0 | F67: 0 | G67: 0.07186918474 | H67: 0 | I67: 0.1315846031 | J67: 0.1965338919 | K67: 0.3949733835 | L67: 0 | M67: 0 | N67: 0 | O67: 0 | P67: 0 | Q67: 0 | R67: 0 | S67: 0 | T67: 0 | U67: 0 | V67: 0.07991579963
B68: Cart with small tank | C68: 0.03007930548 | D68: 0 | E68: 0.01806895572 | F68: 0.05962887416 | G68: 0 | H68: 0 | I68: 0 | J68: 0 | K68: 0 | L68: 0 | M68: 0.03339653285 | N68: 0 | O68: 0 | P68: 0.08629292108 | Q68: 0 | R68: 0 | S68: 0.0395170504 | T68: 0 | U68: 0.0534920668 | V68: 0
B69: Bottled water | C69: 0 | D69: 0 | E69: 0 | F69: 0 | G69: 0.2305023357 | H69: 0.06559558438 | I69: 0 | J69: 0.1157813676 | K69: 0 | L69: 2.13744489 | M69: 0 | N69: 0 | O69: 0 | P69: 0 | Q69: 0 | R69: 0.661304656 | S69: 0 | T69: 0.004877575679 | U69: 0.005184547832 | V69: 0
B70: Other | C70: 0.5380862003 | D70: 0.3703667838 | E70: 0.5755337184 | F70: 0.8706831971 | G70: 4.584382006 | H70: 10.69677587 | I70: 18.67522463 | J70: 10.21595527 | K70: 4.639054193 | L70: 2.019936618 | M70: 0.4076599607 | N70: 0.1879420207 | O70: 0.3868691767 | P70: 0.2985528572 | Q70: 1.317520055 | R70: 8.891700198 | S70: 0.190974477 | T70: 0.4822472065 | U70: 1.639308116 | V70: 1.398031043
A108: =A1026 -> Burundi
A109: =A1034 -> 2010
A110: Use of sanitation facilities
A111: by wealth quintile and sub-national region
A112: Notes:
A113: WHO/UNICEF JMP customised wealth index excludes water,
A114: sanitation and hygiene assets.
A115: Survey used for analysis: | B115: =A1025 -> DHS10
A116: =B1030 -> 
A117: =B1029 -> 
A120: Use of sanitation facilities | C120: NATIONAL wealth index quintile | H120: URBAN wealth index quintile | M120: RURAL wealth index quintile | R120: SUB-REGIONS: | BA120: Raw numbers of respondents: | BB120: Use of sanitation facilities | BC120: NATIONAL wealth index quintile | BH120: URBAN wealth index quintile | BM120: RURAL wealth index quintile | BR120: SUB-REGIONS:
A121: Weighted percentage (used in graphs) | C121: Poorest | D121: Poor | E121: Middle | F121: Rich | G121: Richest | H121: Poorest | I121: Poor | J121: Middle | K121: Rich | L121: Richest | M121: Poorest | N121: Poor | O121: Middle | P121: Rich | Q121: Richest | R121: Bujumbura | S121: Centre-East | T121: North | U121: South | V121: West | BA121: Sanitation data, raw numbers (weighted) | BC121: Poorest | BD121: Poor | BE121: Middle | BF121: Rich | BG121: Richest | BH121: Poorest | BI121: Poor | BJ121: Middle | BK121: Rich | BL121: Richest | BM121: Poorest | BN121: Poor | BO121: Middle | BP121: Rich | BQ121: Richest | BR121: Bujumbura | BS121: Centre-East | BT121: North | BU121: South | BV121: West
A122: Sanitation | B122: Improved | C122: =C153+C154+C155+C156+C157+C158+C161 -> 25.56500565 | D122: =D153+D154+D155+D156+D157+D158+D161 -> 35.16885177 | E122: 38.57952971 | F122: 43.81276822 | G122: 68.22737314 | H122: 36.14104902 | I122: 64.89665104 | J122: 82.69447502 | K122: 88.78948596 | L122: 99.34942889 | M122: 25.57062055 | N122: 34.23472155 | O122: 38.55831454 | P122: 40.98838924 | Q122: 54.29498959 | R122: 86.81431941 | S122: 44.87476024 | T122: 19.65209298 | U122: 55.40690354 | V122: 42.36660305 | BA122: Sanitation | BB122: Improved | BC122: 2123.3163 | BD122: 2922.118348 | BE122: 3200.425356 | BF122: 3639.095493 | BG122: 5662.880189 | BH122: 298.688412 | BI122: 535.289374 | BJ122: 685.017569 | BK122: 726.650936 | BL122: 820.114496 | BM122: 1912.79666 | BN122: 2560.224522 | BO122: 2882.867233 | BP122: 3064.017202 | BQ122: 4062.169282 | BR122: 2368.606448 | BS122: 4540.37923 | BT122: 2348.117719 | BU122: 5126.086591 | BV122: 3164.645698
B123: Not Improved | C123: =100-C122 -> 74.43499435 | D123: =100-D122 -> 64.83114823 | E123: 61.42047029 | F123: 56.18723178 | G123: 31.77262686 | H123: 63.85895098 | I123: 35.10334896 | J123: 17.30552498 | K123: 11.21051404 | L123: 0.6505711064 | M123: 74.42937945 | N123: 65.76527845 | O123: 61.44168546 | P123: 59.01161076 | Q123: 45.70501041 | R123: 13.18568059 | S123: 55.12523976 | T123: 80.34790702 | U123: 44.59309646 | V123: 57.63339695 | BB123: Not Improved | BC123: 6183.574301 | BD123: 5389.45881 | BE123: 5099.096891 | BF123: 4673.447834 | BG123: 2643.109397 | BH123: 527.763559 | BI123: 289.544212 | BJ123: 143.354059 | BK123: 97.724107 | BL123: 5.370366 | BM123: 5568.982995 | BN123: 4918.219602 | BO123: 4600.392676 | BP123: 4417.839849 | BQ123: 3419.495808 | BR123: 365.730266 | BS123: 5577.511552 | BT123: 9600.318109 | BU123: 4140.102391 | BV123: 4305.024915
A124: Sanitation ladder | B124: Basic | C124: =C122*C129/100 -> 22.61330631 | D124: =D122*D129/100 -> 31.77992734 | E124: =E122*E129/100 -> 33.87181367 | F124: 38.33455874 | G124: 47.96626703 | H124: 11.00177242 | I124: 15.41932278 | J124: 29.61296533 | K124: 45.18640534 | L124: 89.7718174 | M124: 22.61249506 | N124: 31.29496468 | O124: 34.39087665 | P124: 37.08146075 | Q124: 47.40518586 | R124: 40.09312247 | S124: 40.66869935 | T124: 16.60673679 | U124: 49.98457408 | V124: 35.87003624 | BA124: Sanitation ladder | BB124: Basic | BC124: 1871.874875 | BD124: 2571.838096 | BE124: 2762.954553 | BF124: 3173.169762 | BG124: 3979.064631 | BH124: 90.924365 | BI124: 127.183753 | BJ124: 245.305403 | BK124: 369.804413 | BL124: 741.052763 | BM124: 1691.515657 | BN124: 2274.313189 | BO124: 2520.251181 | BP124: 2761.604744 | BQ124: 3536.946449 | BR124: 1093.884385 | BS124: 3976.970348 | BT124: 1984.245288 | BU124: 4624.42834 | BV124: 2679.373556
B125: Limited | C125: =C122*C128/100 -> 2.951699343 | D125: =D122*D128/100 -> 3.388924428 | E125: =E122*E128/100 -> 4.707716041 | F125: 5.478209481 | G125: 20.26110611 | H125: 25.13927661 | I125: 49.47732827 | J125: 53.08150969 | K125: 43.60308062 | L125: 9.577611491 | M125: 2.958125493 | N125: 2.939756871 | O125: 4.167437893 | P125: 3.906928488 | Q125: 6.889803732 | R125: 46.72119694 | S125: 4.206060892 | T125: 3.045356198 | U125: 5.422329457 | V125: 6.496566812 | BB125: Limited | BC125: 244.334542 | BD125: 274.253772 | BE125: 384.012666 | BF125: 453.4626 | BG125: 1680.769751 | BH125: 207.764047 | BI125: 408.105621 | BJ125: 439.712166 | BK125: 356.846523 | BL125: 79.061733 | BM125: 221.281003 | BN125: 213.642287 | BO125: 305.400481 | BP125: 290.964596 | BQ125: 514.054874 | BR125: 1274.722063 | BS125: 411.308444 | BT125: 363.872431 | BU125: 501.658251 | BV125: 485.272142
B126: Unimproved | C126: =100-C124-C125-C127 -> 65.5245369 | D126: =100-D124-D125-D127 -> 63.40071124 | E126: =100-E124-E125-E127 -> 59.51044069 | F126: 54.6729218 | G126: 31.13686813 | H126: 57.03000495 | I126: 34.05010014 | J126: 17.30552498 | K126: 11.21051404 | L126: 0.6505711064 | M126: 65.61671362 | N126: 63.752159 | O126: 59.86049242 | P126: 57.30068174 | Q126: 44.70731825 | R126: 12.81048089 | S126: 53.00709589 | T126: 75.70179886 | U126: 42.62242367 | V126: 54.49753657 | BB126: Unimproved | BC126: 5444.025604 | BD126: 5271.654447 | BE126: 4941.594626 | BF126: 4547.758891 | BG126: 2590.322707 | BH126: 471.3256 | BI126: 280.856662 | BJ126: 143.354059 | BK126: 97.724107 | BL126: 5.370366 | BM126: 4909.638756 | BN126: 4769.124451 | BO126: 4482.97258 | BP126: 4290.02645 | BQ126: 3344.963244 | BR126: 355.471043 | BS126: 5366.421775 | BT126: 9045.180857 | BU126: 3957.496126 | BV126: 4070.786474
B127: Open defecation | C127: 8.910457454 | D127: 1.430436987 | E127: 1.910029596 | F127: 1.514309983 | G127: 0.6357587309 | H127: 6.828946022 | I127: 1.053248819 | J127: 0 | K127: 0 | L127: 0 | M127: 8.812665828 | N127: 2.01311945 | O127: 1.581193037 | P127: 1.710929024 | Q127: 0.9976921575 | R127: 0.3751996946 | S127: 2.118143867 | T127: 4.64610816 | U127: 1.970672791 | V127: 3.135860376 | BB127: Open defecation | BC127: 739.548697 | BD127: 117.804363 | BE127: 157.502265 | BF127: 125.688943 | BG127: 52.78669 | BH127: 56.437959 | BI127: 8.68755 | BJ127: 0 | BK127: 0 | BL127: 0 | BM127: 659.344239 | BN127: 149.095151 | BO127: 117.420096 | BP127: 127.813399 | BQ127: 74.532564 | BR127: 10.259223 | BS127: 211.089777 | BT127: 555.137252 | BU127: 182.606265 | BV127: 234.238441
A128: Shared among Improved Sanitation | B128: Yes | C128: 11.54585837 | D128: 9.636153178 | E128: 12.20262682 | F128: 12.50368261 | G128: 29.69644759 | H128: 69.55879058 | I128: 76.24018724 | J128: 64.18991073 | K128: 49.10838276 | L128: 9.640328684 | M128: 11.56845407 | N128: 8.587062311 | O128: 10.80814331 | P128: 9.531793175 | Q128: 12.68957556 | R128: 53.8173855 | S128: 9.37288772 | T128: 15.49634535 | U128: 9.786378792 | V128: 15.33416971 | BA128: Shared among improved sanitation facilities | BB128: Yes | BC128: N/A | BD128: N/A | BE128: N/A | BF128: N/A | BG128: N/A | BH128: N/A | BI128: N/A | BJ128: N/A | BK128: N/A | BL128: N/A | BM128: N/A | BN128: N/A | BO128: N/A | BP128: N/A | BQ128: N/A | BR128: N/A | BS128: N/A | BT128: N/A | BU128: N/A | BV128: N/A
B129: No | C129: 88.45414163 | D129: 90.36384682 | E129: 87.79737318 | F129: 87.49631739 | G129: 70.30355241 | H129: 30.44120942 | I129: 23.75981276 | J129: 35.81008927 | K129: 50.89161724 | L129: 90.35967132 | M129: 88.43154593 | N129: 91.41293769 | O129: 89.19185669 | P129: 90.46820683 | Q129: 87.31042444 | R129: 46.1826145 | S129: 90.62711228 | T129: 84.50365465 | U129: 90.21362121 | V129: 84.66583029 | BB129: No | BC129: N/A | BD129: N/A | BE129: N/A | BF129: N/A | BG129: N/A | BH129: N/A | BI129: N/A | BJ129: N/A | BK129: N/A | BL129: N/A | BM129: N/A | BN129: N/A | BO129: N/A | BP129: N/A | BQ129: N/A | BR129: N/A | BS129: N/A | BT129: N/A | BU129: N/A | BV129: N/A
A130: Manually calculated ratios | B130: Improved latrines | C130: =C158/(C158+C159)*100 -> 27.93447956 | D130: =D158/(D158+D159)*100 -> 35.48597664 | E130: 39.23546016 | F130: 44.26116834 | G130: 62.28528022 | H130: 37.83752453 | I130: 64.13166176 | J130: 79.23616722 | K130: 80.31852472 | L130: 94.88262095 | M130: 27.93178178 | N130: 34.73937096 | O130: 39.00374453 | P130: 41.62871874 | Q130: 53.80871576 | R130: 78.69673858 | S130: 45.09433864 | T130: 19.43135523 | U130: 56.40234444 | V130: 43.36117167
B131: Other
B132: Other
C133: NATIONAL wealth index quintile | H133: URBAN wealth index quintile | M133: RURAL wealth index quintile | R133: SUB-REGIONS: | BA133: Raw numbers of respondents: | BB133: Use of sanitation facilities | BC133: NATIONAL wealth index quintile | BH133: URBAN wealth index quintile | BM133: RURAL wealth index quintile | BR133: SUB-REGIONS:
A134: Percentage based on weighted population | C134: Poorest | D134: Poor | E134: Middle | F134: Rich | G134: Richest | H134: Poorest | I134: Poor | J134: Middle | K134: Rich | L134: Richest | M134: Poorest | N134: Poor | O134: Middle | P134: Rich | Q134: Richest | R134: Bujumbura | S134: Centre-East | T134: North | U134: South | V134: West | BA134: Sanitation data, raw numbers (weighted) | BC134: Poorest | BD134: Poor | BE134: Middle | BF134: Rich | BG134: Richest | BH134: Poorest | BI134: Poor | BJ134: Middle | BK134: Rich | BL134: Richest | BM134: Poorest | BN134: Poor | BO134: Middle | BP134: Rich | BQ134: Richest | BR134: Bujumbura | BS134: Centre-East | BT134: North | BU134: South | BV134: West
A135: Sanitation type | B135: Sewer connection | C135: 0 | D135: 0.04195979817 | E135: 0.005721859474 | F135: 0.02608664899 | G135: 3.568084488 | H135: 0.3198432689 | I135: 1.625158847 | J135: 8.012840585 | K135: 12.27461213 | L135: 12.44878068 | M135: 0 | N135: 0.04663431246 | O135: 0 | P135: 0 | Q135: 0.1688411984 | R135: 8.917132508 | S135: 0.07816559963 | T135: 0.07573002132 | U135: 0.2916435878 | V135: 0.1966574132 | BA135: Sanitation type | BB135: Sewer connection | BC135: N/A | BD135: N/A | BE135: N/A | BF135: N/A | BG135: N/A | BH135: N/A | BI135: N/A | BJ135: N/A | BK135: N/A | BL135: N/A | BM135: N/A | BN135: N/A | BO135: N/A | BP135: N/A | BQ135: N/A | BR135: N/A | BS135: N/A | BT135: N/A | BU135: N/A | BV135: N/A
B136: Septic tank connection | C136: 0 | D136: 0 | E136: 0 | F136: 0 | G136: 11.45664782 | H136: 0.2570315124 | I136: 1.767657046 | J136: 6.797601475 | K136: 26.96102325 | L136: 74.19081599 | M136: 0 | N136: 0 | O136: 0 | P136: 0 | Q136: 0.5865031309 | R136: 28.53270799 | S136: 0.5413064756 | T136: 0.4522088563 | U136: 0.5282152576 | V136: 0.1828937139 | BB136: Septic tank connection | BC136: N/A | BD136: N/A | BE136: N/A | BF136: N/A | BG136: N/A | BH136: N/A | BI136: N/A | BJ136: N/A | BK136: N/A | BL136: N/A | BM136: N/A | BN136: N/A | BO136: N/A | BP136: N/A | BQ136: N/A | BR136: N/A | BS136: N/A | BT136: N/A | BU136: N/A | BV136: N/A
B137: Improved latrines | C137: 25.56090362 | D137: 35.11524674 | E137: 38.55583941 | F137: 43.75227756 | G137: 53.15353989 | H137: 35.56417424 | I137: 61.50383515 | J137: 67.88403296 | K137: 48.91003839 | L137: 12.70983222 | M137: 25.56606514 | N137: 34.18808724 | O137: 38.52421629 | P137: 40.95262956 | Q137: 53.53964526 | R137: 49.17469393 | S137: 44.25528817 | T137: 19.12415411 | U137: 54.50047404 | V137: 41.98705193 | BB137: Improved latrines | BC137: N/A | BD137: N/A | BE137: N/A | BF137: N/A | BG137: N/A | BH137: N/A | BI137: N/A | BJ137: N/A | BK137: N/A | BL137: N/A | BM137: N/A | BN137: N/A | BO137: N/A | BP137: N/A | BQ137: N/A | BR137: N/A | BS137: N/A | BT137: N/A | BU137: N/A | BV137: N/A
B138: Unimproved facilities | C138: 65.53626219 | D138: 63.42544077 | E138: 59.54071185 | F138: 54.70959623 | G138: 31.1862022 | H138: 57.03000495 | I138: 34.05010014 | J138: 17.30552498 | K138: 11.85432624 | L138: 0.6505711064 | M138: 65.62126903 | N138: 63.77161308 | O138: 59.90668017 | P138: 57.33905928 | Q138: 44.70880751 | R138: 13.00026588 | S138: 53.03893757 | T138: 75.70179886 | U138: 42.70899432 | V138: 54.49753657 | BB138: Unimproved facilities | BC138: N/A | BD138: N/A | BE138: N/A | BF138: N/A | BG138: N/A | BH138: N/A | BI138: N/A | BJ138: N/A | BK138: N/A | BL138: N/A | BM138: N/A | BN138: N/A | BO138: N/A | BP138: N/A | BQ138: N/A | BR138: N/A | BS138: N/A | BT138: N/A | BU138: N/A | BV138: N/A
B139: Open defecation | C139: 8.902834195 | D139: 1.417352697 | E139: 1.897726885 | F139: 1.512039553 | G139: 0.6355255982 | H139: 6.828946022 | I139: 1.053248819 | J139: 0 | K139: 0 | L139: 0 | M139: 8.812665828 | N139: 1.993665374 | O139: 1.569103538 | P139: 1.70831116 | Q139: 0.996202892 | R139: 0.3751996946 | S139: 2.08630219 | T139: 4.64610816 | U139: 1.970672791 | V139: 3.135860376 | BB139: Open defecation | BC139: N/A | BD139: N/A | BE139: N/A | BF139: N/A | BG139: N/A | BH139: N/A | BI139: N/A | BJ139: N/A | BK139: N/A | BL139: N/A | BM139: N/A | BN139: N/A | BO139: N/A | BP139: N/A | BQ139: N/A | BR139: N/A | BS139: N/A | BT139: N/A | BU139: N/A | BV139: N/A
A140: Septic tank emptying practices | B140: Not emptied/treated and disposed in situ | C140: N/A | D140: N/A | E140: N/A | F140: N/A | G140: N/A | H140: N/A | I140: N/A | J140: N/A | K140: N/A | L140: N/A | M140: N/A | N140: N/A | O140: N/A | P140: N/A | Q140: N/A | R140: N/A | S140: N/A | T140: N/A | U140: N/A | V140: N/A | BA140: Septic tank emptying practices | BB140: Not emptied/treated and disposed in situ | BC140: N/A | BD140: N/A | BE140: N/A | BF140: N/A | BG140: N/A | BH140: N/A | BI140: N/A | BJ140: N/A | BK140: N/A | BL140: N/A | BM140: N/A | BN140: N/A | BO140: N/A | BP140: N/A | BQ140: N/A | BR140: N/A | BS140: N/A | BT140: N/A | BU140: N/A | BV140: N/A
B141: Emptied and buried on site | C141: N/A | D141: N/A | E141: N/A | F141: N/A | G141: N/A | H141: N/A | I141: N/A | J141: N/A | K141: N/A | L141: N/A | M141: N/A | N141: N/A | O141: N/A | P141: N/A | Q141: N/A | R141: N/A | S141: N/A | T141: N/A | U141: N/A | V141: N/A | BB141: Emptied and buried on site | BC141: N/A | BD141: N/A | BE141: N/A | BF141: N/A | BG141: N/A | BH141: N/A | BI141: N/A | BJ141: N/A | BK141: N/A | BL141: N/A | BM141: N/A | BN141: N/A | BO141: N/A | BP141: N/A | BQ141: N/A | BR141: N/A | BS141: N/A | BT141: N/A | BU141: N/A | BV141: N/A
B142: Emptied and discharged locally | C142: N/A | D142: N/A | E142: N/A | F142: N/A | G142: N/A | H142: N/A | I142: N/A | J142: N/A | K142: N/A | L142: N/A | M142: N/A | N142: N/A | O142: N/A | P142: N/A | Q142: N/A | R142: N/A | S142: N/A | T142: N/A | U142: N/A | V142: N/A | BB142: Emptied and discharged locally | BC142: N/A | BD142: N/A | BE142: N/A | BF142: N/A | BG142: N/A | BH142: N/A | BI142: N/A | BJ142: N/A | BK142: N/A | BL142: N/A | BM142: N/A | BN142: N/A | BO142: N/A | BP142: N/A | BQ142: N/A | BR142: N/A | BS142: N/A | BT142: N/A | BU142: N/A | BV142: N/A
B143: Emptied and removed offsite | C143: N/A | D143: N/A | E143: N/A | F143: N/A | G143: N/A | H143: N/A | I143: N/A | J143: N/A | K143: N/A | L143: N/A | M143: N/A | N143: N/A | O143: N/A | P143: N/A | Q143: N/A | R143: N/A | S143: N/A | T143: N/A | U143: N/A | V143: N/A | BB143: Emptied and removed offsite | BC143: N/A | BD143: N/A | BE143: N/A | BF143: N/A | BG143: N/A | BH143: N/A | BI143: N/A | BJ143: N/A | BK143: N/A | BL143: N/A | BM143: N/A | BN143: N/A | BO143: N/A | BP143: N/A | BQ143: N/A | BR143: N/A | BS143: N/A | BT143: N/A | BU143: N/A | BV143: N/A
A144: Latrine emptying practices | B144: Not emptied/treated and disposed in situ | C144: N/A | D144: N/A | E144: N/A | F144: N/A | G144: N/A | H144: N/A | I144: N/A | J144: N/A | K144: N/A | L144: N/A | M144: N/A | N144: N/A | O144: N/A | P144: N/A | Q144: N/A | R144: N/A | S144: N/A | T144: N/A | U144: N/A | V144: N/A | BA144: Latrine emptying practices | BB144: Not emptied/treated and disposed in situ | BC144: N/A | BD144: N/A | BE144: N/A | BF144: N/A | BG144: N/A | BH144: N/A | BI144: N/A | BJ144: N/A | BK144: N/A | BL144: N/A | BM144: N/A | BN144: N/A | BO144: N/A | BP144: N/A | BQ144: N/A | BR144: N/A | BS144: N/A | BT144: N/A | BU144: N/A | BV144: N/A
B145: Emptied and buried on site | C145: N/A | D145: N/A | E145: N/A | F145: N/A | G145: N/A | H145: N/A | I145: N/A | J145: N/A | K145: N/A | L145: N/A | M145: N/A | N145: N/A | O145: N/A | P145: N/A | Q145: N/A | R145: N/A | S145: N/A | T145: N/A | U145: N/A | V145: N/A | BB145: Emptied and buried on site | BC145: N/A | BD145: N/A | BE145: N/A | BF145: N/A | BG145: N/A | BH145: N/A | BI145: N/A | BJ145: N/A | BK145: N/A | BL145: N/A | BM145: N/A | BN145: N/A | BO145: N/A | BP145: N/A | BQ145: N/A | BR145: N/A | BS145: N/A | BT145: N/A | BU145: N/A | BV145: N/A
B146: Emptied and discharged locally | C146: N/A | D146: N/A | E146: N/A | F146: N/A | G146: N/A | H146: N/A | I146: N/A | J146: N/A | K146: N/A | L146: N/A | M146: N/A | N146: N/A | O146: N/A | P146: N/A | Q146: N/A | R146: N/A | S146: N/A | T146: N/A | U146: N/A | V146: N/A | BB146: Emptied and discharged locally | BC146: N/A | BD146: N/A | BE146: N/A | BF146: N/A | BG146: N/A | BH146: N/A | BI146: N/A | BJ146: N/A | BK146: N/A | BL146: N/A | BM146: N/A | BN146: N/A | BO146: N/A | BP146: N/A | BQ146: N/A | BR146: N/A | BS146: N/A | BT146: N/A | BU146: N/A | BV146: N/A
B147: Emptied and removed offsite | C147: N/A | D147: N/A | E147: N/A | F147: N/A | G147: N/A | H147: N/A | I147: N/A | J147: N/A | K147: N/A | L147: N/A | M147: N/A | N147: N/A | O147: N/A | P147: N/A | Q147: N/A | R147: N/A | S147: N/A | T147: N/A | U147: N/A | V147: N/A | BB147: Emptied and removed offsite | BC147: N/A | BD147: N/A | BE147: N/A | BF147: N/A | BG147: N/A | BH147: N/A | BI147: N/A | BJ147: N/A | BK147: N/A | BL147: N/A | BM147: N/A | BN147: N/A | BO147: N/A | BP147: N/A | BQ147: N/A | BR147: N/A | BS147: N/A | BT147: N/A | BU147: N/A | BV147: N/A
A148: Shared among improved sanitation facilities | B148: Yes | C148: 2.941347777 | D148: 3.299659821 | E148: 4.626924955 | F148: 5.455160739 | G148: 20.23563518 | H148: 25.13927661 | I148: 49.47732827 | J148: 53.08150969 | K148: 43.28691486 | L148: 9.577611491 | M148: 2.957598502 | N148: 2.85677453 | O148: 4.081115513 | P148: 3.888935514 | Q148: 6.870861871 | R148: 46.61905962 | S148: 4.065159951 | T148: 3.045356198 | U148: 5.413857326 | V148: 6.496566812 | BA148: Shared among improved sanitation facilities | BB148: Yes | BC148: N/A | BD148: N/A | BE148: N/A | BF148: N/A | BG148: N/A | BH148: N/A | BI148: N/A | BJ148: N/A | BK148: N/A | BL148: N/A | BM148: N/A | BN148: N/A | BO148: N/A | BP148: N/A | BQ148: N/A | BR148: N/A | BS148: N/A | BT148: N/A | BU148: N/A | BV148: N/A
B149: No | C149: 22.53400177 | D149: 30.9428409 | E149: 33.29052529 | F149: 38.17327185 | G149: 47.90596701 | H149: 11.00177242 | I149: 15.41932278 | J149: 29.61296533 | K149: 44.8587589 | L149: 89.7718174 | M149: 22.60846663 | N149: 30.41158229 | O149: 33.67851995 | P149: 36.91068575 | Q149: 47.27485669 | R149: 40.0054748 | S149: 39.30631822 | T149: 16.60673679 | U149: 49.90647556 | V149: 35.87003624 | BB149: No | BC149: N/A | BD149: N/A | BE149: N/A | BF149: N/A | BG149: N/A | BH149: N/A | BI149: N/A | BJ149: N/A | BK149: N/A | BL149: N/A | BM149: N/A | BN149: N/A | BO149: N/A | BP149: N/A | BQ149: N/A | BR149: N/A | BS149: N/A | BT149: N/A | BU149: N/A | BV149: N/A
B150: DK/missing | C150: 74.52465045 | D150: 65.75749928 | E150: 62.08254975 | F150: 56.37156741 | G150: 31.85839781 | H150: 63.85895098 | I150: 35.10334896 | J150: 17.30552498 | K150: 11.85432624 | L150: 0.6505711064 | M150: 74.43393486 | N150: 66.73164318 | O150: 62.24036454 | P150: 59.20037874 | Q150: 45.85428144 | R150: 13.37546558 | S150: 56.62852183 | T150: 80.34790702 | U150: 44.67966711 | V150: 57.63339695 | BB150: DK/missing | BC150: N/A | BD150: N/A | BE150: N/A | BF150: N/A | BG150: N/A | BH150: N/A | BI150: N/A | BJ150: N/A | BK150: N/A | BL150: N/A | BM150: N/A | BN150: N/A | BO150: N/A | BP150: N/A | BQ150: N/A | BR150: N/A | BS150: N/A | BT150: N/A | BU150: N/A | BV150: N/A
A151: Shared among all sanitation facilities | B151: Yes | C151: 14.0908675 | D151: 10.49785803 | E151: 11.9665821 | F151: 13.08582877 | G151: 28.00429463 | H151: 53.99827049 | I151: 69.13768273 | J151: 62.59565532 | K151: 50.42692892 | L151: 9.601060498 | M151: 13.7771321 | N151: 9.304296187 | O151: 11.9461433 | P151: 10.703725 | Q151: 13.5119619 | R151: 57.02598829 | S151: 6.596838169 | T151: 14.03257451 | U151: 11.97484889 | V151: 19.20934469 | BA151: Shared among all sanitation facilities | BB151: Yes | BC151: N/A | BD151: N/A | BE151: N/A | BF151: N/A | BG151: N/A | BH151: N/A | BI151: N/A | BJ151: N/A | BK151: N/A | BL151: N/A | BM151: N/A | BN151: N/A | BO151: N/A | BP151: N/A | BQ151: N/A | BR151: N/A | BS151: N/A | BT151: N/A | BU151: N/A | BV151: N/A
B152: No | C152: 85.61942372 | D152: 88.57428515 | E152: 87.32696897 | F152: 86.72473415 | G152: 71.95880083 | H152: 45.7265179 | I152: 30.86231727 | J152: 37.40434468 | K152: 49.57307108 | L152: 90.3989395 | M152: 86.03675836 | N152: 89.70968109 | O152: 87.22195364 | P152: 89.09919065 | Q152: 86.33726506 | R152: 42.97401171 | S152: 91.71149653 | T152: 85.92955578 | U152: 88.02515111 | V152: 80.76136655 | BB152: No | BC152: N/A | BD152: N/A | BE152: N/A | BF152: N/A | BG152: N/A | BH152: N/A | BI152: N/A | BJ152: N/A | BK152: N/A | BL152: N/A | BM152: N/A | BN152: N/A | BO152: N/A | BP152: N/A | BQ152: N/A | BR152: N/A | BS152: N/A | BT152: N/A | BU152: N/A | BV152: N/A
A153: Type of toilet facility | B153: Flush to piped sewer system | C153: 0 | D153: 0.04197369664 | E153: 0.005724525676 | F153: 0.02610714965 | G153: 3.570654167 | H153: 0.3198432689 | I153: 1.625158847 | J153: 8.012840585 | K153: 12.36426536 | L153: 12.44878068 | M153: 0 | N153: 0.04663431246 | O153: 0 | P153: 0 | Q153: 0.1688411984 | R153: 8.936668981 | S153: 0.07816559963 | T153: 0.07573002132 | U153: 0.2920999801 | V153: 0.1966574132 | BA153: Type of toilet facility | BB153: Flush to piped sewer system | BC153: 0 | BD153: 3.487521 | BE153: 0.474887 | BF153: 2.168464 | BG153: 296.364726 | BH153: 2.643351 | BI153: 13.404856 | BJ153: 66.376098 | BK153: 101.188839 | BL153: 102.7628 | BM153: 0 | BN153: 3.487521 | BO153: 0 | BP153: 0 | BQ153: 12.632133 | BR153: 243.824428 | BS153: 7.90871 | BT153: 9.048553 | BU153: 27.024246 | BV153: 14.689661
B154: Flush to septic tank | C154: 0 | D154: 0 | E154: 0 | F154: 0 | G154: 11.46489872 | H154: 0.2570315124 | I154: 1.767657046 | J154: 6.797601475 | K154: 27.1579454 | L154: 74.19081599 | M154: 0 | N154: 0 | O154: 0 | P154: 0 | Q154: 0.5865031309 | R154: 28.59522007 | S154: 0.5413064756 | T154: 0.4522088563 | U154: 0.5290418603 | V154: 0.1828937139 | BB154: Flush to septic tank | BC154: 0 | BD154: 0 | BE154: 0 | BF154: 0 | BG154: 951.587975 | BH154: 2.124242 | BI154: 14.580229 | BJ154: 56.309402 | BK154: 222.259947 | BL154: 612.433955 | BM154: 0 | BN154: 0 | BO154: 0 | BP154: 0 | BQ154: 43.8802 | BR154: 780.18031 | BS154: 54.768798 | BT154: 54.031885 | BU154: 48.945424 | BV154: 13.661558
B155: Flush to pit latrine | C155: 0 | D155: 0 | E155: 0 | F155: 0.0477861474 | G155: 0.3576429749 | H155: 0.8507205799 | I155: 0.01539292315 | J155: 0.7385466611 | K155: 1.868362861 | L155: 0 | M155: 0 | N155: 0 | O155: 0 | P155: 0 | Q155: 0.06799590651 | R155: 1.047014237 | S155: 0 | T155: 0.04257650184 | U155: 0 | V155: 0 | BB155: Flush to pit latrine | BC155: 0 | BD155: 0 | BE155: 0 | BF155: 3.969125 | BG155: 29.68441 | BH155: 7.030797 | BI155: 0.126966 | BJ155: 6.117911 | BK155: 15.290635 | BL155: 0 | BM155: 0 | BN155: 0 | BO155: 0 | BP155: 0 | BQ155: 5.087226 | BR155: 28.566309 | BS155: 0 | BT155: 5.087226 | BU155: 0 | BV155: 0
B156: Flush, don't know where | C156: 0 | D156: 0 | E156: 0 | F156: 0 | G156: 0.2489480845 | H156: 0 | I156: 0 | J156: 0 | K156: 0.7573691241 | L156: 0 | M156: 0 | N156: 0 | O156: 0 | P156: 0 | Q156: 0.1933317093 | R156: 0.227180133 | S156: 0 | T156: 0.1210571091 | U156: 0 | V156: 0 | BB156: Flush, don't know where | BC156: 0 | BD156: 0 | BE156: 0 | BF156: 0 | BG156: 20.662721 | BH156: 0 | BI156: 0 | BJ156: 0 | BK156: 6.19829 | BL156: 0 | BM156: 0 | BN156: 0 | BO156: 0 | BP156: 0 | BQ156: 14.464431 | BR156: 6.19829 | BS156: 0 | BT156: 14.464431 | BU156: 0 | BV156: 0
B157: Ventilated Improved Pit latrine (VIP) | C157: 0.1132283384 | D157: 0.3258059714 | E157: 0.1515470733 | F157: 0.4620844274 | G157: 1.583583184 | H157: 0 | I157: 0.6077431963 | J157: 1.106451705 | K157: 1.198390998 | L157: 0.6474285897 | M157: 0.08397085349 | N157: 0.2952754561 | O157: 0.2408780896 | P157: 0.2731485973 | Q157: 1.640583112 | R157: 0.6878583355 | S157: 0.6957519756 | T157: 0.7029396501 | U157: 0.2701913515 | V157: 0.2773192162 | BB157: Ventilated Improved Pit latrine (VIP) | BC157: 9.404245 | BD157: 27.070648 | BE157: 12.571825 | BF157: 38.380806 | BG157: 131.437595 | BH157: 0 | BI157: 5.01287 | BJ157: 9.165532 | BK157: 9.807602 | BL157: 5.344425 | BM157: 6.281395 | BN157: 22.08201 | BO157: 18.009593 | BP157: 20.418758 | BQ157: 122.742934 | BR157: 18.767246 | BS157: 70.395425 | BT157: 83.990293 | BU157: 24.997323 | BV157: 20.714832
B158: Pit latrine with slab | C158: 25.35845406 | D158: 34.74028005 | E158: 38.36065218 | F158: 43.27679049 | G158: 51.001646 | H158: 34.71345366 | I158: 60.88069903 | J158: 66.0390346 | K158: 45.44315221 | L158: 12.06240363 | M158: 25.38303268 | N158: 33.82526959 | O158: 38.24908201 | P158: 40.71524064 | Q158: 51.63773454 | R158: 47.32037766 | S158: 43.5289945 | T158: 18.25758084 | U158: 54.15535606 | V158: 41.70973271 | BB158: Pit latrine with slab | BC158: 2106.161039 | BD158: 2886.509074 | BE158: 3182.268027 | BF158: 3594.577098 | BG158: 4233.142762 | BH158: 286.890022 | BI158: 502.164453 | BJ158: 547.048626 | BK158: 371.905623 | BL158: 99.573316 | BM158: 1898.764249 | BN158: 2529.603886 | BO158: 2859.747023 | BP158: 3043.598444 | BQ158: 3863.362358 | BR158: 1291.069865 | BS158: 4404.216122 | BT158: 2181.495331 | BU158: 5010.297035 | BV158: 3115.579647
B159: Pit latrine without slab/open pit | C159: 65.41987604 | D159: 63.15833607 | E159: 59.40971172 | F159: 54.49918813 | G159: 30.88230125 | H159: 57.03000495 | I159: 34.05010014 | J159: 17.30552498 | K159: 11.13551675 | L159: 0.6505711064 | M159: 65.49206036 | N159: 63.54341802 | O159: 59.81607166 | P159: 57.09041342 | Q159: 44.32763799 | R159: 12.80965887 | S159: 52.99974017 | T159: 75.70179886 | U159: 41.8607876 | V159: 54.48170103 | BB159: Pit latrine without slab/open pit | BC159: 5433.485564 | BD159: 5247.715617 | BE159: 4928.425753 | BF159: 4526.71123 | BG159: 2563.234724 | BH159: 471.3256 | BI159: 280.856662 | BJ159: 143.354059 | BK159: 91.132791 | BL159: 5.370366 | BM159: 4899.098716 | BN159: 4752.059011 | BO159: 4472.233681 | BP159: 4267.696585 | BQ159: 3316.445417 | BR159: 349.493503 | BS159: 5362.455825 | BT159: 9045.180857 | BU159: 3872.839092 | BV159: 4069.603611
B160: No facility/bush/field | C160: 8.904262929 | D160: 1.417822171 | E160: 1.898611165 | F160: 1.513227817 | G160: 0.6359832938 | H160: 6.828946022 | I160: 1.053248819 | J160: 0 | K160: 0 | L160: 0 | M160: 8.814236088 | N160: 1.993665374 | O160: 1.570492371 | P160: 1.709802851 | Q160: 0.996202892 | R160: 0.3760217166 | S160: 2.08630219 | T160: 4.64610816 | U160: 1.973756692 | V160: 3.135860376 | BB160: No facility/bush/field | BC160: 739.548697 | BD160: 117.804363 | BE160: 157.502265 | BF160: 125.688943 | BG160: 52.78669 | BH160: 56.437959 | BI160: 8.68755 | BJ160: 0 | BK160: 0 | BL160: 0 | BM160: 659.344239 | BN160: 149.095151 | BO160: 117.420096 | BP160: 127.813399 | BQ160: 74.532564 | BR160: 10.259223 | BS160: 211.089777 | BT160: 555.137252 | BU160: 182.606265 | BV160: 234.238441
B161: Composting toilet | C161: 0.09332324526 | D161: 0.06079204942 | E161: 0.06160593623 | F161: 0 | G161: 0 | H161: 0 | I161: 0 | J161: 0 | K161: 0 | L161: 0 | M161: 0.1036170196 | N161: 0.06754219081 | O161: 0.06835444087 | P161: 0 | Q161: 0 | R161: 0 | S161: 0.03054169161 | T161: 0 | U161: 0.160214289 | V161: 0 | BB161: Composting toilet | BC161: 7.751016 | BD161: 5.051105 | BE161: 5.110617 | BF161: 0 | BG161: 0 | BH161: 0 | BI161: 0 | BJ161: 0 | BK161: 0 | BL161: 0 | BM161: 7.751016 | BN161: 5.051105 | BO161: 5.110617 | BP161: 0 | BQ161: 0 | BR161: 0 | BS161: 3.090175 | BT161: 0 | BU161: 14.822563 | BV161: 0
B162: Hanging toilet/latrine | C162: 0.03447962313 | D162: 0 | E162: 0 | F162: 0 | G162: 0 | H162: 0 | I162: 0 | J162: 0 | K162: 0 | L162: 0 | M162: 0.03828280699 | N162: 0 | O162: 0 | P162: 0 | Q162: 0 | R162: 0 | S162: 0.02830357692 | T162: 0 | U162: 0 | V162: 0 | BB162: Hanging toilet/latrine | BC162: 2.863725 | BD162: 0 | BE162: 0 | BF162: 0 | BG162: 0 | BH162: 0 | BI162: 0 | BJ162: 0 | BK162: 0 | BL162: 0 | BM162: 2.863725 | BN162: 0 | BO162: 0 | BP162: 0 | BQ162: 0 | BR162: 0 | BS162: 2.863725 | BT162: 0 | BU162: 0 | BV162: 0
B163: Other | C163: 0.07637576205 | D163: 0.2549899896 | E163: 0.1121474079 | F163: 0.1748158345 | G163: 0.2543423176 | H163: 0 | I163: 0 | J163: 0 | K163: 0.07499729627 | L163: 0 | M163: 0.08480018898 | N163: 0.2281950593 | O163: 0.0551214284 | P163: 0.211394491 | Q163: 0.3811695212 | R163: 0 | S163: 0.01089382188 | T163: 0 | U163: 0.7585521746 | V163: 0.01583554431 | BB163: Other | BC163: 6.343433 | BD163: 21.186672 | BE163: 9.303364 | BF163: 14.520231 | BG163: 21.110443 | BH163: 0 | BI163: 0 | BJ163: 0 | BK163: 0.613776 | BL163: 0 | BM163: 6.343433 | BN163: 17.06544 | BO163: 4.121232 | BP163: 15.802435 | BQ163: 28.517827 | BR163: 0 | BS163: 1.102225 | BT163: 0 | BU163: 70.179055 | BV163: 1.182863
BB164: Total | BC164: 8305.557719 | BD164: 8308.825 | BE164: 8295.656738 | BF164: 8306.015897 | BG164: 8300.012046 | BH164: 826.451971 | BI164: 824.833586 | BJ164: 828.371628 | BK164: 818.397503 | BL164: 825.484862 | BM164: 7480.446773 | BN164: 7478.444124 | BO164: 7476.642242 | BP164: 7475.329621 | BQ164: 7481.66509 | BR164: 2728.359174 | BS164: 10117.89078 | BT164: 11948.43583 | BU164: 9251.711003 | BV164: 7469.670613
A208: =A1026 -> Burundi
A209: =A1034 -> 2010
A210: Access to hygiene facilities
A211: by wealth quintile and sub-national region
A212: Notes:
A213: WHO/UNICEF JMP customised wealth index excludes water,
A214: sanitation and hygiene assets.
A215: Survey used for analysis: | B215: =A1025 -> DHS10
A220: Access to handwashing | C220: NATIONAL wealth index quintile | H220: URBAN wealth index quintile | M220: RURAL wealth index quintile | R220: SUB-REGIONS: | BA220: Raw numbers of respondents: | BB220: Access to handwashing | BC220: NATIONAL wealth index quintile | BH220: URBAN wealth index quintile | BM220: RURAL wealth index quintile | BR220: SUB-REGIONS:
A221: Weighted percentage (used in graphs) | C221: Poorest | D221: Poor | E221: Middle | F221: Rich | G221: Richest | H221: Poorest | I221: Poor | J221: Middle | K221: Rich | L221: Richest | M221: Poorest | N221: Poor | O221: Middle | P221: Rich | Q221: Richest | R221: Bujumbura | S221: Centre-East | T221: North | U221: South | V221: West | BA221: Hygiene data, raw numbers (weighted) | BC221: Poorest | BD221: Poor | BE221: Middle | BF221: Rich | BG221: Richest | BH221: Poorest | BI221: Poor | BJ221: Middle | BK221: Rich | BL221: Richest | BM221: Poorest | BN221: Poor | BO221: Middle | BP221: Rich | BQ221: Richest | BR221: Bujumbura | BS221: Centre-East | BT221: North | BU221: South | BV221: West
A222: Hygiene ladder | B222: Basic | C222: 1.094328315 | D222: 2.37699929 | E222: 3.507416915 | F222: 5.564057163 | G222: 17.35698742 | H222: 5.451991233 | I222: 10.36287494 | J222: 13.10931909 | K222: 25.83865685 | L222: 63.94030073 | M222: 1.073839374 | N222: 1.85814207 | O222: 3.583280434 | P222: 5.47193676 | Q222: 8.154745672 | R222: 27.05701321 | S222: 4.31085352 | T222: 1.541656843 | U222: 6.262423564 | V222: 7.173963791 | BA222: Hygiene ladder | BB222: Basic | BC222: 90.695438 | BD222: 196.946435 | BE222: 290.070859 | BF222: 460.544656 | BG222: 1427.365652 | BH222: 45.058089 | BI222: 85.476473 | BJ222: 108.59388 | BK222: 210.874522 | BL222: 518.127375 | BM222: 80.136995 | BN222: 138.47569 | BO222: 267.612285 | BP222: 408.121373 | BQ222: 603.146358 | BR222: 735.999192 | BS222: 433.818914 | BT222: 183.137258 | BU222: 577.421114 | BV222: 535.246562
B223: Limited | C223: 87.42979606 | D223: 91.04830636 | E223: 91.12426995 | F223: 89.87830535 | G223: 77.91469828 | H223: 86.06893649 | I223: 86.72737812 | J223: 81.59935326 | K223: 66.2951078 | L223: 33.5206867 | M223: 87.52545627 | N223: 91.31421185 | O223: 90.80516085 | P223: 89.66942591 | Q223: 87.21963834 | R223: 68.886311 | S223: 92.40650853 | T223: 87.57698753 | U223: 89.37362856 | V223: 85.18359742 | BB223: Limited | BC223: 7245.982343 | BD223: 7543.813507 | BE223: 7536.171462 | BF223: 7439.35082 | BG223: 6407.377124 | BH223: 711.318422 | BI223: 715.356543 | BJ223: 675.945891 | BK223: 541.047828 | BL223: 271.628147 | BM223: 6531.728323 | BN223: 6805.076261 | BO223: 6781.656371 | BP223: 6687.944474 | BQ223: 6450.992996 | BR223: 1873.830967 | BS223: 9299.246886 | BT223: 10403.48858 | BU223: 8240.614778 | BV223: 6355.514048
B224: No facility | C224: 11.47587562 | D224: 6.574694354 | E224: 5.368313134 | F224: 4.557637491 | G224: 4.728314305 | H224: 8.479072282 | I224: 2.909746937 | J224: 5.29132765 | K224: 7.866235352 | L224: 2.539012568 | M224: 11.40070436 | N224: 6.827646077 | O224: 5.611558713 | P224: 4.858637335 | Q224: 4.625615986 | R224: 4.056675789 | S224: 3.282637954 | T224: 10.88135563 | U224: 4.363947874 | V224: 7.642438793 | BB224: No facility | BC224: 951.094431 | BD224: 544.74674 | BE224: 443.970945 | BF224: 377.241917 | BG224: 388.836684 | BH224: 70.07546 | BI224: 24.00057 | BJ224: 43.831857 | BK224: 64.197943 | BL224: 20.574378 | BM224: 850.795948 | BN224: 508.821697 | BO224: 419.09141 | BP224: 362.378775 | BQ224: 342.122679 | BR224: 110.348843 | BS224: 330.345354 | BT224: 1292.62335 | BU224: 402.373876 | BV224: 570.199294
A225: Place where household members wash their hands | B225: Observed | C225: 88.32038525 | D225: 93.13226353 | E225: 94.29750398 | F225: 95.0358412 | G225: 94.32642185 | H225: 91.52092772 | I225: 97.09025306 | J225: 94.70867235 | K225: 91.21119767 | L225: 95.67171469 | M225: 88.37289553 | N225: 92.84754738 | O225: 94.20050542 | P225: 94.84364375 | Q225: 94.28568733 | R225: 95.44655366 | S225: 96.19658889 | T225: 88.60260864 | U225: 95.16356626 | V225: 92.24985902 | BA225: Observed handwashing place | BB225: Fixed | BC225: N/A | BD225: N/A | BE225: N/A | BF225: N/A | BG225: N/A | BH225: N/A | BI225: N/A | BJ225: N/A | BK225: N/A | BL225: N/A | BM225: N/A | BN225: N/A | BO225: N/A | BP225: N/A | BQ225: N/A | BR225: N/A | BS225: N/A | BT225: N/A | BU225: N/A | BV225: N/A
B226: Not observed: not in dwelling | C226: 9.704564135 | D226: 5.165895904 | E226: 4.218450479 | F226: 4.086483241 | G226: 3.783480833 | H226: 1.822117017 | I226: 2.517516545 | J226: 4.131328844 | K226: 5.362798447 | L226: 0.4166454357 | M226: 10.02285464 | N226: 5.584743672 | O226: 4.45146459 | P226: 4.208897909 | Q226: 4.094252487 | R226: 3.602692035 | S226: 3.246443859 | T226: 10.71901883 | U226: 3.552050391 | V226: 2.71359003 | BB226: Mobile | BC226: N/A | BD226: N/A | BE226: N/A | BF226: N/A | BG226: N/A | BH226: N/A | BI226: N/A | BJ226: N/A | BK226: N/A | BL226: N/A | BM226: N/A | BN226: N/A | BO226: N/A | BP226: N/A | BQ226: N/A | BR226: N/A | BS226: N/A | BT226: N/A | BU226: N/A | BV226: N/A
B227: Not observed: no permission to see | C227: 0.2301509664 | D227: 0.2201082135 | E227: 0.35314058 | F227: 0.3387199789 | G227: 0.6251482435 | H227: 0 | I227: 0 | J227: 0 | K227: 0.6172675948 | L227: 1.835886119 | M227: 0.255532639 | N227: 0.2446292798 | O227: 0.199108987 | P227: 0.2160257793 | Q227: 0.7763489584 | R227: 0.401982753 | S227: 0.4911781721 | T227: 0.513963768 | U227: 0.2666011134 | V227: 0 | BA227: Water / Soap | BB227: Water and soap | BC227: N/A | BD227: N/A | BE227: N/A | BF227: N/A | BG227: N/A | BH227: N/A | BI227: N/A | BJ227: N/A | BK227: N/A | BL227: N/A | BM227: N/A | BN227: N/A | BO227: N/A | BP227: N/A | BQ227: N/A | BR227: N/A | BS227: N/A | BT227: N/A | BU227: N/A | BV227: N/A
B228: Not observed: other reason | C228: 1.74489965 | D228: 1.38817596 | E228: 1.130904963 | F228: 0.4517417296 | G228: 0.8979202204 | H228: 6.656955265 | I228: 0.3922303911 | J228: 1.159998807 | K228: 2.424669593 | L228: 2.075753753 | M228: 1.348717199 | N228: 1.219100664 | O228: 1.148921006 | P228: 0.6345356464 | Q228: 0.4785621859 | R228: 0.4329793013 | S228: 0.01851878065 | T228: 0.09932901821 | U228: 0.7903375826 | V228: 4.919936581 | BB228: Water only | BC228: N/A | BD228: N/A | BE228: N/A | BF228: N/A | BG228: N/A | BH228: N/A | BI228: N/A | BJ228: N/A | BK228: N/A | BL228: N/A | BM228: N/A | BN228: N/A | BO228: N/A | BP228: N/A | BQ228: N/A | BR228: N/A | BS228: N/A | BT228: N/A | BU228: N/A | BV228: N/A
B229: missing | C229: 0 | D229: 0.09355639552 | E229: 0 | F229: 0.08721384918 | G229: 0.3670288493 | H229: 0 | I229: 0 | J229: 0 | K229: 0.3840666972 | L229: 0 | M229: 0 | N229: 0.1039790078 | O229: 0 | P229: 0.09689691945 | Q229: 0.3651490366 | R229: 0.1157922499 | S229: 0.04727029677 | T229: 0.06507974861 | U229: 0.2274446489 | V229: 0.1166143656 | BB229: Soap only | BC229: N/A | BD229: N/A | BE229: N/A | BF229: N/A | BG229: N/A | BH229: N/A | BI229: N/A | BJ229: N/A | BK229: N/A | BL229: N/A | BM229: N/A | BN229: N/A | BO229: N/A | BP229: N/A | BQ229: N/A | BR229: N/A | BS229: N/A | BT229: N/A | BU229: N/A | BV229: N/A
BB230: Neither | BC230: N/A | BD230: N/A | BE230: N/A | BF230: N/A | BG230: N/A | BH230: N/A | BI230: N/A | BJ230: N/A | BK230: N/A | BL230: N/A | BM230: N/A | BN230: N/A | BO230: N/A | BP230: N/A | BQ230: N/A | BR230: N/A | BS230: N/A | BT230: N/A | BU230: N/A | BV230: N/A
BA231: Place where household members wash their hands | BB231: Observed | BC231: 7336.677781 | BD231: 7740.759942 | BE231: 7826.242321 | BF231: 7899.895476 | BG231: 7834.742776 | BH231: 756.376511 | BI231: 800.833016 | BJ231: 784.539771 | BK231: 751.92235 | BL231: 789.755522 | BM231: 6611.865318 | BN231: 6943.551951 | BO231: 7049.268656 | BP231: 7096.065847 | BQ231: 7054.139354 | BR231: 2609.830159 | BS231: 9733.0658 | BT231: 10586.62583 | BU231: 8818.035892 | BV231: 6890.76061
BB232: Not observed: not in dwelling | BC232: 806.147526 | BD232: 429.367424 | BE232: 350.111236 | BF232: 339.69069 | BG232: 314.255524 | BH232: 15.058922 | BI232: 20.765322 | BJ232: 34.222756 | BK232: 44.209572 | BL232: 3.439345 | BM232: 749.887899 | BN232: 417.651935 | BO232: 333.114665 | BP232: 314.903725 | BQ232: 306.318259 | BR232: 98.509731 | BS232: 328.471644 | BT232: 1280.755086 | BU232: 329.139702 | BV232: 202.696237
BB233: Not observed: no permission to see | BC233: 19.118389 | BD233: 18.294464 | BE233: 29.308981 | BF233: 28.156245 | BG233: 51.924748 | BH233: 0 | BI233: 0 | BJ233: 0 | BK233: 5.0886 | BL233: 15.154962 | BM233: 19.118389 | BN233: 18.294464 | BO233: 14.899843 | BP233: 16.16274 | BQ233: 58.083829 | BR233: 10.991562 | BS233: 49.696871 | BT233: 61.410631 | BU233: 24.703763 | BV233: 0
BB234: Not observed: other reason | BC234: 144.946905 | BD234: 115.379316 | BE234: 93.859709 | BF234: 37.551227 | BG234: 74.58116 | BH234: 55.016538 | BI234: 3.235248 | BJ234: 9.609101 | BK234: 19.988371 | BL234: 17.135033 | BM234: 100.908049 | BN234: 91.169762 | BO234: 85.976745 | BP234: 47.47505 | BQ234: 35.80442 | BR234: 11.839112 | BS234: 1.87371 | BT234: 11.868264 | BU234: 73.234174 | BV234: 367.503057
BB235: missing | BC235: 0 | BD235: 7.776012 | BE235: 0 | BF235: 7.249689 | BG235: 30.485378 | BH235: 0 | BI235: 0 | BJ235: 0 | BK235: 3.16615 | BL235: 0 | BM235: 0 | BN235: 7.776012 | BO235: 0 | BP235: 7.249689 | BQ235: 27.319228 | BR235: 3.16615 | BS235: 4.782757 | BT235: 7.776012 | BU235: 21.075451 | BV235: 8.710709
BB236: Total | BC236: 8306.890601 | BD236: 8311.577158 | BE236: 8299.522247 | BF236: 8312.543327 | BG236: 8305.989586 | BH236: 826.451971 | BI236: 824.833586 | BJ236: 828.371628 | BK236: 824.375043 | BL236: 825.484862 | BM236: 7481.779655 | BN236: 7478.444124 | BO236: 7483.259909 | BP236: 7481.857051 | BQ236: 7481.66509 | BR236: 2734.336714 | BS236: 10117.89078 | BT236: 11948.43583 | BU236: 9266.188982 | BV236: 7469.670613
BA259: Raw numbers of respondents: | BB259: Menstrual health and hygiene | BC259: NATIONAL wealth index quintile | BH259: URBAN wealth index quintile | BM259: RURAL wealth index quintile | BR259: SUB-REGIONS:
BA260: MHH data, raw numbers (weighted) | BC260: Poorest | BD260: Poor | BE260: Middle | BF260: Rich | BG260: Richest | BH260: Poorest | BI260: Poor | BJ260: Middle | BK260: Rich | BL260: Richest | BM260: Poorest | BN260: Poor | BO260: Middle | BP260: Rich | BQ260: Richest | BR260: Bujumbura | BS260: Centre-East | BT260: North | BU260: South | BV260: West
BA261: Private place to wash and change | BB261: Yes | BC261: N/A | BD261: N/A | BE261: N/A | BF261: N/A | BG261: N/A | BH261: N/A | BI261: N/A | BJ261: N/A | BK261: N/A | BL261: N/A | BM261: N/A | BN261: N/A | BO261: N/A | BP261: N/A | BQ261: N/A | BR261: N/A | BS261: N/A | BT261: N/A | BU261: N/A | BV261: N/A
BB262: No | BC262: N/A | BD262: N/A | BE262: N/A | BF262: N/A | BG262: N/A | BH262: N/A | BI262: N/A | BJ262: N/A | BK262: N/A | BL262: N/A | BM262: N/A | BN262: N/A | BO262: N/A | BP262: N/A | BQ262: N/A | BR262: N/A | BS262: N/A | BT262: N/A | BU262: N/A | BV262: N/A
BB263: DK/not sure/missing | BC263: N/A | BD263: N/A | BE263: N/A | BF263: N/A | BG263: N/A | BH263: N/A | BI263: N/A | BJ263: N/A | BK263: N/A | BL263: N/A | BM263: N/A | BN263: N/A | BO263: N/A | BP263: N/A | BQ263: N/A | BR263: N/A | BS263: N/A | BT263: N/A | BU263: N/A | BV263: N/A
BA264: Use of menstrual materials | BB264: Materials reusable | BC264: N/A | BD264: N/A | BE264: N/A | BF264: N/A | BG264: N/A | BH264: N/A | BI264: N/A | BJ264: N/A | BK264: N/A | BL264: N/A | BM264: N/A | BN264: N/A | BO264: N/A | BP264: N/A | BQ264: N/A | BR264: N/A | BS264: N/A | BT264: N/A | BU264: N/A | BV264: N/A
BB265: Materials not reusable | BC265: N/A | BD265: N/A | BE265: N/A | BF265: N/A | BG265: N/A | BH265: N/A | BI265: N/A | BJ265: N/A | BK265: N/A | BL265: N/A | BM265: N/A | BN265: N/A | BO265: N/A | BP265: N/A | BQ265: N/A | BR265: N/A | BS265: N/A | BT265: N/A | BU265: N/A | BV265: N/A
BB266: No materials used | BC266: N/A | BD266: N/A | BE266: N/A | BF266: N/A | BG266: N/A | BH266: N/A | BI266: N/A | BJ266: N/A | BK266: N/A | BL266: N/A | BM266: N/A | BN266: N/A | BO266: N/A | BP266: N/A | BQ266: N/A | BR266: N/A | BS266: N/A | BT266: N/A | BU266: N/A | BV266: N/A
BB267: DK/not sure/missing | BC267: N/A | BD267: N/A | BE267: N/A | BF267: N/A | BG267: N/A | BH267: N/A | BI267: N/A | BJ267: N/A | BK267: N/A | BL267: N/A | BM267: N/A | BN267: N/A | BO267: N/A | BP267: N/A | BQ267: N/A | BR267: N/A | BS267: N/A | BT267: N/A | BU267: N/A | BV267: N/A
BA268: Use of menstrual materials with private place to wash and change | BB268: Materials reusable | BC268: N/A | BD268: N/A | BE268: N/A | BF268: N/A | BG268: N/A | BH268: N/A | BI268: N/A | BJ268: N/A | BK268: N/A | BL268: N/A | BM268: N/A | BN268: N/A | BO268: N/A | BP268: N/A | BQ268: N/A | BR268: N/A | BS268: N/A | BT268: N/A | BU268: N/A | BV268: N/A
BB269: Materials not reusable | BC269: N/A | BD269: N/A | BE269: N/A | BF269: N/A | BG269: N/A | BH269: N/A | BI269: N/A | BJ269: N/A | BK269: N/A | BL269: N/A | BM269: N/A | BN269: N/A | BO269: N/A | BP269: N/A | BQ269: N/A | BR269: N/A | BS269: N/A | BT269: N/A | BU269: N/A | BV269: N/A
BB270: No materials used | BC270: N/A | BD270: N/A | BE270: N/A | BF270: N/A | BG270: N/A | BH270: N/A | BI270: N/A | BJ270: N/A | BK270: N/A | BL270: N/A | BM270: N/A | BN270: N/A | BO270: N/A | BP270: N/A | BQ270: N/A | BR270: N/A | BS270: N/A | BT270: N/A | BU270: N/A | BV270: N/A
BA271: Awareness of menstruation before menarche | BB271: Yes | BC271: N/A | BD271: N/A | BE271: N/A | BF271: N/A | BG271: N/A | BH271: N/A | BI271: N/A | BJ271: N/A | BK271: N/A | BL271: N/A | BM271: N/A | BN271: N/A | BO271: N/A | BP271: N/A | BQ271: N/A | BR271: N/A | BS271: N/A | BT271: N/A | BU271: N/A | BV271: N/A
BB272: No | BC272: N/A | BD272: N/A | BE272: N/A | BF272: N/A | BG272: N/A | BH272: N/A | BI272: N/A | BJ272: N/A | BK272: N/A | BL272: N/A | BM272: N/A | BN272: N/A | BO272: N/A | BP272: N/A | BQ272: N/A | BR272: N/A | BS272: N/A | BT272: N/A | BU272: N/A | BV272: N/A
BB273: DK/not sure/missing | BC273: N/A | BD273: N/A | BE273: N/A | BF273: N/A | BG273: N/A | BH273: N/A | BI273: N/A | BJ273: N/A | BK273: N/A | BL273: N/A | BM273: N/A | BN273: N/A | BO273: N/A | BP273: N/A | BQ273: N/A | BR273: N/A | BS273: N/A | BT273: N/A | BU273: N/A | BV273: N/A
BA274: Participation in (all) activities during menstruation | BB274: Yes | BC274: N/A | BD274: N/A | BE274: N/A | BF274: N/A | BG274: N/A | BH274: N/A | BI274: N/A | BJ274: N/A | BK274: N/A | BL274: N/A | BM274: N/A | BN274: N/A | BO274: N/A | BP274: N/A | BQ274: N/A | BR274: N/A | BS274: N/A | BT274: N/A | BU274: N/A | BV274: N/A
BB275: No | BC275: N/A | BD275: N/A | BE275: N/A | BF275: N/A | BG275: N/A | BH275: N/A | BI275: N/A | BJ275: N/A | BK275: N/A | BL275: N/A | BM275: N/A | BN275: N/A | BO275: N/A | BP275: N/A | BQ275: N/A | BR275: N/A | BS275: N/A | BT275: N/A | BU275: N/A | BV275: N/A
BB276: DK/not sure/missing/no such activity | BC276: N/A | BD276: N/A | BE276: N/A | BF276: N/A | BG276: N/A | BH276: N/A | BI276: N/A | BJ276: N/A | BK276: N/A | BL276: N/A | BM276: N/A | BN276: N/A | BO276: N/A | BP276: N/A | BQ276: N/A | BR276: N/A | BS276: N/A | BT276: N/A | BU276: N/A | BV276: N/A
BA277: Participation in specific activities during menstruation | BB277: Did not go to school (amongst those usually attending school) | BC277: N/A | BD277: N/A | BE277: N/A | BF277: N/A | BG277: N/A | BH277: N/A | BI277: N/A | BJ277: N/A | BK277: N/A | BL277: N/A | BM277: N/A | BN277: N/A | BO277: N/A | BP277: N/A | BQ277: N/A | BR277: N/A | BS277: N/A | BT277: N/A | BU277: N/A | BV277: N/A
BB278: Did not go to work (amongst those who usually work) | BC278: N/A | BD278: N/A | BE278: N/A | BF278: N/A | BG278: N/A | BH278: N/A | BI278: N/A | BJ278: N/A | BK278: N/A | BL278: N/A | BM278: N/A | BN278: N/A | BO278: N/A | BP278: N/A | BQ278: N/A | BR278: N/A | BS278: N/A | BT278: N/A | BU278: N/A | BV278: N/A
BB279: Did not participate in social activities | BC279: N/A | BD279: N/A | BE279: N/A | BF279: N/A | BG279: N/A | BH279: N/A | BI279: N/A | BJ279: N/A | BK279: N/A | BL279: N/A | BM279: N/A | BN279: N/A | BO279: N/A | BP279: N/A | BQ279: N/A | BR279: N/A | BS279: N/A | BT279: N/A | BU279: N/A | BV279: N/A
BB280: Did not cook food | BC280: N/A | BD280: N/A | BE280: N/A | BF280: N/A | BG280: N/A | BH280: N/A | BI280: N/A | BJ280: N/A | BK280: N/A | BL280: N/A | BM280: N/A | BN280: N/A | BO280: N/A | BP280: N/A | BQ280: N/A | BR280: N/A | BS280: N/A | BT280: N/A | BU280: N/A | BV280: N/A
BB281: Did not eat with others | BC281: N/A | BD281: N/A | BE281: N/A | BF281: N/A | BG281: N/A | BH281: N/A | BI281: N/A | BJ281: N/A | BK281: N/A | BL281: N/A | BM281: N/A | BN281: N/A | BO281: N/A | BP281: N/A | BQ281: N/A | BR281: N/A | BS281: N/A | BT281: N/A | BU281: N/A | BV281: N/A
BB282: Did not bathe in regular place | BC282: N/A | BD282: N/A | BE282: N/A | BF282: N/A | BG282: N/A | BH282: N/A | BI282: N/A | BJ282: N/A | BK282: N/A | BL282: N/A | BM282: N/A | BN282: N/A | BO282: N/A | BP282: N/A | BQ282: N/A | BR282: N/A | BS282: N/A | BT282: N/A | BU282: N/A | BV282: N/A
BB283: Did not participate in other activities | BC283: N/A | BD283: N/A | BE283: N/A | BF283: N/A | BG283: N/A | BH283: N/A | BI283: N/A | BJ283: N/A | BK283: N/A | BL283: N/A | BM283: N/A | BN283: N/A | BO283: N/A | BP283: N/A | BQ283: N/A | BR283: N/A | BS283: N/A | BT283: N/A | BU283: N/A | BV283: N/A
BB284: DK/not sure/missing/no such activity | BC284: N/A | BD284: N/A | BE284: N/A | BF284: N/A | BG284: N/A | BH284: N/A | BI284: N/A | BJ284: N/A | BK284: N/A | BL284: N/A | BM284: N/A | BN284: N/A | BO284: N/A | BP284: N/A | BQ284: N/A | BR284: N/A | BS284: N/A | BT284: N/A | BU284: N/A | BV284: N/A
BA339: Raw numbers of respondents: | BB339: Basic water, sanitation and hygiene | BC339: NATIONAL wealth index quintile | BH339: URBAN wealth index quintile | BM339: RURAL wealth index quintile | BR339: SUB-REGIONS:
BA340: WatSan data, raw numbers (weighted) | BC340: Poorest | BD340: Poor | BE340: Middle | BF340: Rich | BG340: Richest | BH340: Poorest | BI340: Poor | BJ340: Middle | BK340: Rich | BL340: Richest | BM340: Poorest | BN340: Poor | BO340: Middle | BP340: Rich | BQ340: Richest | BR340: Bujumbura | BS340: Centre-East | BT340: North | BU340: South | BV340: West
BA341: Use of Basic Water Sanitation and Hygiene | BB341: Yes | BC341: N/A | BD341: N/A | BE341: N/A | BF341: N/A | BG341: N/A | BH341: N/A | BI341: N/A | BJ341: N/A | BK341: N/A | BL341: N/A | BM341: N/A | BN341: N/A | BO341: N/A | BP341: N/A | BQ341: N/A | BR341: N/A | BS341: N/A | BT341: N/A | BU341: N/A | BV341: N/A
BB342: No | BC342: N/A | BD342: N/A | BE342: N/A | BF342: N/A | BG342: N/A | BH342: N/A | BI342: N/A | BJ342: N/A | BK342: N/A | BL342: N/A | BM342: N/A | BN342: N/A | BO342: N/A | BP342: N/A | BQ342: N/A | BR342: N/A | BS342: N/A | BT342: N/A | BU342: N/A | BV342: N/A
BA343: Use of Basic Water and Sanitation | BB343: Yes | BC343: N/A | BD343: N/A | BE343: N/A | BF343: N/A | BG343: N/A | BH343: N/A | BI343: N/A | BJ343: N/A | BK343: N/A | BL343: N/A | BM343: N/A | BN343: N/A | BO343: N/A | BP343: N/A | BQ343: N/A | BR343: N/A | BS343: N/A | BT343: N/A | BU343: N/A | BV343: N/A
BB344: No | BC344: N/A | BD344: N/A | BE344: N/A | BF344: N/A | BG344: N/A | BH344: N/A | BI344: N/A | BJ344: N/A | BK344: N/A | BL344: N/A | BM344: N/A | BN344: N/A | BO344: N/A | BP344: N/A | BQ344: N/A | BR344: N/A | BS344: N/A | BT344: N/A | BU344: N/A | BV344: N/A
BA345: Use of Basic Water and Hygiene | BB345: Yes | BC345: N/A | BD345: N/A | BE345: N/A | BF345: N/A | BG345: N/A | BH345: N/A | BI345: N/A | BJ345: N/A | BK345: N/A | BL345: N/A | BM345: N/A | BN345: N/A | BO345: N/A | BP345: N/A | BQ345: N/A | BR345: N/A | BS345: N/A | BT345: N/A | BU345: N/A | BV345: N/A
BB346: No | BC346: N/A | BD346: N/A | BE346: N/A | BF346: N/A | BG346: N/A | BH346: N/A | BI346: N/A | BJ346: N/A | BK346: N/A | BL346: N/A | BM346: N/A | BN346: N/A | BO346: N/A | BP346: N/A | BQ346: N/A | BR346: N/A | BS346: N/A | BT346: N/A | BU346: N/A | BV346: N/A
BA347: Use of Basic Sanitation and Hygiene | BB347: Yes | BC347: N/A | BD347: N/A | BE347: N/A | BF347: N/A | BG347: N/A | BH347: N/A | BI347: N/A | BJ347: N/A | BK347: N/A | BL347: N/A | BM347: N/A | BN347: N/A | BO347: N/A | BP347: N/A | BQ347: N/A | BR347: N/A | BS347: N/A | BT347: N/A | BU347: N/A | BV347: N/A
BB348: No | BC348: N/A | BD348: N/A | BE348: N/A | BF348: N/A | BG348: N/A | BH348: N/A | BI348: N/A | BJ348: N/A | BK348: N/A | BL348: N/A | BM348: N/A | BN348: N/A | BO348: N/A | BP348: N/A | BQ348: N/A | BR348: N/A | BS348: N/A | BT348: N/A | BU348: N/A | BV348: N/A
BA349: Use of Basic Water | BB349: Yes | BC349: N/A | BD349: N/A | BE349: N/A | BF349: N/A | BG349: N/A | BH349: N/A | BI349: N/A | BJ349: N/A | BK349: N/A | BL349: N/A | BM349: N/A | BN349: N/A | BO349: N/A | BP349: N/A | BQ349: N/A | BR349: N/A | BS349: N/A | BT349: N/A | BU349: N/A | BV349: N/A
BB350: No | BC350: N/A | BD350: N/A | BE350: N/A | BF350: N/A | BG350: N/A | BH350: N/A | BI350: N/A | BJ350: N/A | BK350: N/A | BL350: N/A | BM350: N/A | BN350: N/A | BO350: N/A | BP350: N/A | BQ350: N/A | BR350: N/A | BS350: N/A | BT350: N/A | BU350: N/A | BV350: N/A
BA351: Use of Basic Sanitation | BB351: Yes | BC351: N/A | BD351: N/A | BE351: N/A | BF351: N/A | BG351: N/A | BH351: N/A | BI351: N/A | BJ351: N/A | BK351: N/A | BL351: N/A | BM351: N/A | BN351: N/A | BO351: N/A | BP351: N/A | BQ351: N/A | BR351: N/A | BS351: N/A | BT351: N/A | BU351: N/A | BV351: N/A
BB352: No | BC352: N/A | BD352: N/A | BE352: N/A | BF352: N/A | BG352: N/A | BH352: N/A | BI352: N/A | BJ352: N/A | BK352: N/A | BL352: N/A | BM352: N/A | BN352: N/A | BO352: N/A | BP352: N/A | BQ352: N/A | BR352: N/A | BS352: N/A | BT352: N/A | BU352: N/A | BV352: N/A
BA353: Access to Basic Hygiene | BB353: Yes | BC353: N/A | BD353: N/A | BE353: N/A | BF353: N/A | BG353: N/A | BH353: N/A | BI353: N/A | BJ353: N/A | BK353: N/A | BL353: N/A | BM353: N/A | BN353: N/A | BO353: N/A | BP353: N/A | BQ353: N/A | BR353: N/A | BS353: N/A | BT353: N/A | BU353: N/A | BV353: N/A
BB354: No | BC354: N/A | BD354: N/A | BE354: N/A | BF354: N/A | BG354: N/A | BH354: N/A | BI354: N/A | BJ354: N/A | BK354: N/A | BL354: N/A | BM354: N/A | BN354: N/A | BO354: N/A | BP354: N/A | BQ354: N/A | BR354: N/A | BS354: N/A | BT354: N/A | BU354: N/A | BV354: N/A
C399: INITIAL (national) Wealth Index | H399: URBAN Wealth Index | M399: RURAL Wealth Index
C400: Component Matrix | H400: Component Matrix | M400: Component Matrix
E401: Component | J401: Component | O401: Component
B402: Note: The INITIAL (national) Wealth Index is based on the first component of the Principal Component Analysis (PCA) which has been obtained at national level. The final national-level (NATIONAL) Wealth Index is based on the URBAN and RURAL specific wealth indexes. Regression procedures are used to establish the relationships between the two sets of scores (urban and rural) and the initial (national) wealth factors. This allows best use of the available information for each area and a better precision of the FINAL (NATIONAL) Wealth Index. For dependency reasons, all WASH variables (contained in the generic MICS and DHS scripts) have been excluded from the sets of asset variables used in the PCAs. The PCA can extracts as many components as there are asset variables in the input. Only the first of the components is used to represent the Wealth Index. The scores represent the weights of the asset variables on the Wealth Index (correlations between the variables and the component). The communalities are the proportion of each variable's variance that can be explained by the component. Proportion of explained variance is the part of the model's total variance that is explained by the component. For more information on the procedure used: The DHS Wealth Index, DHS Comparative Reports No. 6, Shea Oscar Rutstein, Kiersten Johnson, ORC Macro International Inc., 2004. The DHS Wealth Index: Approaches for Rural and Urban Areas, Shea O. Rutstein, ORC Macro International Inc., 2008. MICS Methodological Paper No. 4, Review of options for reporting water, sanitation and hygiene coverage by wealth quintile, UNICEF, 2016. | E402: 1 | J402: 1 | O402: 1
C403: Has electricity | E403: 0.7915653233 | H403: Has television | J403: 0.7507482768 | M403: Has carpet floor | O403: 0.5889046738
C404: Has television | E404: 0.7868435193 | H404: Own wardrobe | J404: 0.7268360389 | M404: Household cooks in owm house | O404: -0.572720454
C405: Has earth/sand floor | E405: -0.7686030959 | H405: Has electricity | J405: 0.6926805639 | M405: Has earth/sand floor | O405: -0.5675764306
C406: Own wardrobe | E406: 0.7359221873 | H406: Has bank account | J406: 0.6905176041 | M406: Household cooks in other house | O406: 0.5426531391
C407: Has carpet floor | E407: 0.7275731165 | H407: Has earth/sand floor | J407: -0.6869224068 | M407: Has mobile telephone | O407: 0.5238537464
C408: Household fuel type: charcoal | E408: 0.716902022 | H408: Has refrigerator | J408: 0.6644138238 | M408: Has metal roof | O408: 0.4960324066
C409: Own cassette | E409: 0.6932776599 | H409: Own cassette | J409: 0.6642619078 | M409: Own dinner table | O409: 0.4957441601
... 289 more rows

Sheet MIS12
A2: =A1026 -> Burundi
A3: =A1034 -> 2012
A4: Use of drinking water sources
A5: by wealth quintile and sub-national region
A6: Notes:
A7: WHO/UNICEF JMP customised wealth index excludes water,
A8: sanitation and hygiene assets.
A9: Survey used for analysis: | B9: =A1025 -> MIS12
A10: =B1028 -> 
A11: =B1027 -> 
A14: Use of drinking water sources | C14: NATIONAL wealth index quintile | H14: URBAN wealth index quintile | M14: RURAL wealth index quintile | R14: SUB-REGIONS: | BA14: Raw numbers of respondents: | BB14: Use of drinking water sources | BC14: NATIONAL wealth index quintile | BH14: URBAN wealth index quintile | BM14: RURAL wealth index quintile | BR14: SUB-REGIONS:
A15: Weighted percentage (used in graphs) | C15: Poorest | D15: Poor | E15: Middle | F15: Rich | G15: Richest | H15: Poorest | I15: Poor | J15: Middle | K15: Rich | L15: Richest | M15: Poorest | N15: Poor | O15: Middle | P15: Rich | Q15: Richest | R15: Bujumbura Mairie | S15: Centre-Est | T15: Nord | U15: Ouest | V15: Sud | BA15: Water data, raw numbers (weighted) | BC15: Poorest | BD15: Poor | BE15: Middle | BF15: Rich | BG15: Richest | BH15: Poorest | BI15: Poor | BJ15: Middle | BK15: Rich | BL15: Richest | BM15: Poorest | BN15: Poor | BO15: Middle | BP15: Rich | BQ15: Richest | BR15: Bujumbura Mairie | BS15: Centre-Est | BT15: Nord | BU15: Ouest | BV15: Sud
A16: Water | B16: Improved | C16: 75.70375161 | D16: 77.11830222 | E16: 77.60524209 | F16: 73.72395517 | G16: 91.03222002 | H16: 88.59547777 | I16: 99.60084948 | J16: 99.98133995 | K16: 99.21795822 | L16: 100 | M16: 75.8216516 | N16: 76.04084673 | O16: 78.30544477 | P16: 73.7304094 | Q16: 81.54369505 | R16: 97.82870016 | S16: 80.01411362 | T16: 82.41352129 | U16: 69.39003892 | V16: 75.8392125 | BA16: Water | BB16: Improved | BC16: N/A | BD16: N/A | BE16: N/A | BF16: N/A | BG16: N/A | BH16: N/A | BI16: N/A | BJ16: N/A | BK16: N/A | BL16: N/A | BM16: N/A | BN16: N/A | BO16: N/A | BP16: N/A | BQ16: N/A | BR16: N/A | BS16: N/A | BT16: N/A | BU16: N/A | BV16: N/A
B17: Not Improved | C17: 24.29624839 | D17: 22.88169778 | E17: 22.39475791 | F17: 26.27604483 | G17: 8.967779984 | H17: 11.40452223 | I17: 0.3991505228 | J17: 0.01866005153 | K17: 0.7820417829 | L17: 0 | M17: 24.1783484 | N17: 23.95915327 | O17: 21.69455523 | P17: 26.2695906 | Q17: 18.45630495 | R17: 2.171299843 | S17: 19.98588638 | T17: 17.58647871 | U17: 30.60996108 | V17: 24.1607875 | BB17: Not Improved | BC17: N/A | BD17: N/A | BE17: N/A | BF17: N/A | BG17: N/A | BH17: N/A | BI17: N/A | BJ17: N/A | BK17: N/A | BL17: N/A | BM17: N/A | BN17: N/A | BO17: N/A | BP17: N/A | BQ17: N/A | BR17: N/A | BS17: N/A | BT17: N/A | BU17: N/A | BV17: N/A
A18: Water ladder | B18: Basic | C18: 55.92789063 | D18: 54.43850816 | E18: 59.85542934 | F18: 57.23113803 | G18: 78.01286271 | H18: 76.22401648 | I18: 91.06522664 | J18: 95.56747636 | K18: 96.34211087 | L18: 100 | M18: 56.0254645 | N18: 53.22636622 | O18: 59.68963241 | P18: 57.99936985 | Q18: 62.28118869 | R18: 91.93424043 | S18: 64.23953834 | T18: 55.98721576 | U18: 57.8318187 | V18: 58.6042498 | BA18: Water ladder | BB18: Basic | BC18: N/A | BD18: N/A | BE18: N/A | BF18: N/A | BG18: N/A | BH18: N/A | BI18: N/A | BJ18: N/A | BK18: N/A | BL18: N/A | BM18: N/A | BN18: N/A | BO18: N/A | BP18: N/A | BQ18: N/A | BR18: N/A | BS18: N/A | BT18: N/A | BU18: N/A | BV18: N/A
B19: Limited | C19: 19.77226859 | D19: 22.65864043 | E19: 17.74981275 | F19: 16.44412194 | G19: 13.01791692 | H19: 12.3714613 | I19: 8.534951955 | J19: 4.413863588 | K19: 2.875847349 | L19: 0 | M19: 19.79223683 | N19: 22.78997477 | O19: 18.61581236 | P19: 15.67726512 | Q19: 19.26250636 | R19: 5.894459722 | S19: 15.77229142 | T19: 26.39409124 | U19: 11.55822022 | V19: 17.23103921 | BB19: Limited | BC19: N/A | BD19: N/A | BE19: N/A | BF19: N/A | BG19: N/A | BH19: N/A | BI19: N/A | BJ19: N/A | BK19: N/A | BL19: N/A | BM19: N/A | BN19: N/A | BO19: N/A | BP19: N/A | BQ19: N/A | BR19: N/A | BS19: N/A | BT19: N/A | BU19: N/A | BV19: N/A
B20: Unimproved | C20: 16.90103165 | D20: 17.05045044 | E20: 17.58912749 | F20: 19.2434239 | G20: 7.800442389 | H20: 5.0899616 | I20: 0 | J20: 0.01866005153 | K20: 0.7820417829 | L20: 0 | M20: 16.54717213 | N20: 17.74461106 | O20: 17.64486405 | P20: 19.08413118 | Q20: 15.2434516 | R20: 0 | S20: 15.51471995 | T20: 14.04524593 | U20: 22.9380235 | V20: 16.58853024 | BB20: Unimproved | BC20: N/A | BD20: N/A | BE20: N/A | BF20: N/A | BG20: N/A | BH20: N/A | BI20: N/A | BJ20: N/A | BK20: N/A | BL20: N/A | BM20: N/A | BN20: N/A | BO20: N/A | BP20: N/A | BQ20: N/A | BR20: N/A | BS20: N/A | BT20: N/A | BU20: N/A | BV20: N/A
B21: Surface water | C21: 7.398809128 | D21: 5.852400981 | E21: 4.805630425 | F21: 7.081316142 | G21: 1.168777981 | H21: 6.314560626 | I21: 0.399821403 | J21: 0 | K21: 0 | L21: 0 | M21: 7.635126532 | N21: 6.239047942 | O21: 4.049691178 | P21: 7.23923385 | Q21: 3.212853348 | R21: 2.171299843 | S21: 4.473450286 | T21: 3.573447072 | U21: 7.671937583 | V21: 7.576180751 | BB21: Surface water | BC21: N/A | BD21: N/A | BE21: N/A | BF21: N/A | BG21: N/A | BH21: N/A | BI21: N/A | BJ21: N/A | BK21: N/A | BL21: N/A | BM21: N/A | BN21: N/A | BO21: N/A | BP21: N/A | BQ21: N/A | BR21: N/A | BS21: N/A | BT21: N/A | BU21: N/A | BV21: N/A
A22: Improved water point at more than 30 minutes | B22: Yes | C22: 26.11919023 | D22: 29.38972562 | E22: 22.87192498 | F22: 22.31973385 | G22: 14.30056622 | H22: 13.96398734 | I22: 8.569213505 | J22: 4.414687371 | K22: 2.898514947 | L22: 0 | M22: 26.10503416 | N22: 29.98036274 | O22: 23.77333072 | P22: 21.27847604 | Q22: 23.62231237 | R22: 6.025286764 | S22: 19.71244936 | T22: 32.03893238 | U22: 16.65688678 | V22: 22.72166354 | BA22: Improved water point at more than 30 minutes | BB22: Yes | BC22: N/A | BD22: N/A | BE22: N/A | BF22: N/A | BG22: N/A | BH22: N/A | BI22: N/A | BJ22: N/A | BK22: N/A | BL22: N/A | BM22: N/A | BN22: N/A | BO22: N/A | BP22: N/A | BQ22: N/A | BR22: N/A | BS22: N/A | BT22: N/A | BU22: N/A | BV22: N/A
B23: No | C23: 73.88080977 | D23: 70.61027438 | E23: 77.12807502 | F23: 77.68026615 | G23: 85.69943378 | H23: 86.03601266 | I23: 91.4307865 | J23: 95.58531263 | K23: 97.10148505 | L23: 100 | M23: 73.89496584 | N23: 70.01963726 | O23: 76.22666928 | P23: 78.72152396 | Q23: 76.37768763 | R23: 93.97471324 | S23: 80.28755064 | T23: 67.96106762 | U23: 83.34311322 | V23: 77.27833646 | BB23: No | BC23: N/A | BD23: N/A | BE23: N/A | BF23: N/A | BG23: N/A | BH23: N/A | BI23: N/A | BJ23: N/A | BK23: N/A | BL23: N/A | BM23: N/A | BN23: N/A | BO23: N/A | BP23: N/A | BQ23: N/A | BR23: N/A | BS23: N/A | BT23: N/A | BU23: N/A | BV23: N/A
A24: Manually calculated ratios | B24: Improved wells
B25: Improved springs
B26: Other
C27: NATIONAL wealth index quintile | H27: URBAN wealth index quintile | M27: RURAL wealth index quintile | R27: SUB-REGIONS: | BA27: Raw numbers of respondents: | BB27: Use of drinking water sources | BC27: NATIONAL wealth index quintile | BH27: URBAN wealth index quintile | BM27: RURAL wealth index quintile | BR27: SUB-REGIONS:
A28: Percentage based on weighted population | C28: Poorest | D28: Poor | E28: Middle | F28: Rich | G28: Richest | H28: Poorest | I28: Poor | J28: Middle | K28: Rich | L28: Richest | M28: Poorest | N28: Poor | O28: Middle | P28: Rich | Q28: Richest | R28: Bujumbura Mairie | S28: Centre-Est | T28: Nord | U28: Ouest | V28: Sud | BA28: Water data, raw numbers (weighted) | BC28: Poorest | BD28: Poor | BE28: Middle | BF28: Rich | BG28: Richest | BH28: Poorest | BI28: Poor | BJ28: Middle | BK28: Rich | BL28: Richest | BM28: Poorest | BN28: Poor | BO28: Middle | BP28: Rich | BQ28: Richest | BR28: Bujumbura Mairie | BS28: Centre-Est | BT28: Nord | BU28: Ouest | BV28: Sud
A29: Piped water | B29: Yes | C29: 22.35011535 | D29: 19.26075097 | E29: 25.04173319 | F29: 22.49376331 | G29: 62.13116049 | H29: 71.68854772 | I29: 92.99068624 | J29: 97.86482168 | K29: 98.47536421 | L29: 99.55834437 | M29: 22.22494032 | N29: 17.46578537 | O29: 26.01546849 | P29: 21.2846279 | Q29: 31.60727275 | R29: 97.45293971 | S29: 20.47876479 | T29: 9.348730835 | U29: 43.45600847 | V29: 42.94880511 | BA29: Piped water | BB29: Yes | BC29: N/A | BD29: N/A | BE29: N/A | BF29: N/A | BG29: N/A | BH29: N/A | BI29: N/A | BJ29: N/A | BK29: N/A | BL29: N/A | BM29: N/A | BN29: N/A | BO29: N/A | BP29: N/A | BQ29: N/A | BR29: N/A | BS29: N/A | BT29: N/A | BU29: N/A | BV29: N/A
B30: No | C30: 77.64988465 | D30: 80.73924903 | E30: 74.95826681 | F30: 77.50623669 | G30: 37.86883951 | H30: 28.31145228 | I30: 7.009313757 | J30: 2.135178315 | K30: 1.52463579 | L30: 0.4416556328 | M30: 77.77505968 | N30: 82.53421463 | O30: 73.98453151 | P30: 78.7153721 | Q30: 68.39272725 | R30: 2.547060292 | S30: 79.52123521 | T30: 90.65126916 | U30: 56.54399153 | V30: 57.05119489 | BB30: No | BC30: N/A | BD30: N/A | BE30: N/A | BF30: N/A | BG30: N/A | BH30: N/A | BI30: N/A | BJ30: N/A | BK30: N/A | BL30: N/A | BM30: N/A | BN30: N/A | BO30: N/A | BP30: N/A | BQ30: N/A | BR30: N/A | BS30: N/A | BT30: N/A | BU30: N/A | BV30: N/A
A31: Piped water on premises | B31: Yes | C31: 0.1396339965 | D31: 0 | E31: 0.0920221713 | F31: 0.2694613682 | G31: 27.53492095 | H31: 4.845846635 | I31: 23.5690848 | J31: 57.49239004 | K31: 83.47657954 | L31: 95.94444236 | M31: 0.101313291 | N31: 0 | O31: 0.101952451 | P31: 0.1083960657 | Q31: 2.635322091 | R31: 61.49447714 | S31: 3.531315297 | T31: 1.047622813 | U31: 0.8358756749 | V31: 3.032035869 | BA31: Piped water on premises | BB31: Yes | BC31: N/A | BD31: N/A | BE31: N/A | BF31: N/A | BG31: N/A | BH31: N/A | BI31: N/A | BJ31: N/A | BK31: N/A | BL31: N/A | BM31: N/A | BN31: N/A | BO31: N/A | BP31: N/A | BQ31: N/A | BR31: N/A | BS31: N/A | BT31: N/A | BU31: N/A | BV31: N/A
B32: No | C32: 99.860366 | D32: 100 | E32: 99.90797783 | F32: 99.73053863 | G32: 72.46507905 | H32: 95.15415337 | I32: 76.4309152 | J32: 42.50760996 | K32: 16.52342046 | L32: 4.05555764 | M32: 99.89868671 | N32: 100 | O32: 99.89804755 | P32: 99.89160393 | Q32: 97.36467791 | R32: 38.50552286 | S32: 96.4686847 | T32: 98.95237719 | U32: 99.16412433 | V32: 96.96796413 | BB32: No | BC32: N/A | BD32: N/A | BE32: N/A | BF32: N/A | BG32: N/A | BH32: N/A | BI32: N/A | BJ32: N/A | BK32: N/A | BL32: N/A | BM32: N/A | BN32: N/A | BO32: N/A | BP32: N/A | BQ32: N/A | BR32: N/A | BS32: N/A | BT32: N/A | BU32: N/A | BV32: N/A
A33: Piped water into dwelling | B33: Yes | C33: N/A | D33: N/A | E33: N/A | F33: N/A | G33: N/A | H33: N/A | I33: N/A | J33: N/A | K33: N/A | L33: N/A | M33: N/A | N33: N/A | O33: N/A | P33: N/A | Q33: N/A | R33: N/A | S33: N/A | T33: N/A | U33: N/A | V33: N/A | BA33: Piped water into dwelling | BB33: Yes | BC33: N/A | BD33: N/A | BE33: N/A | BF33: N/A | BG33: N/A | BH33: N/A | BI33: N/A | BJ33: N/A | BK33: N/A | BL33: N/A | BM33: N/A | BN33: N/A | BO33: N/A | BP33: N/A | BQ33: N/A | BR33: N/A | BS33: N/A | BT33: N/A | BU33: N/A | BV33: N/A
B34: No | C34: N/A | D34: N/A | E34: N/A | F34: N/A | G34: N/A | H34: N/A | I34: N/A | J34: N/A | K34: N/A | L34: N/A | M34: N/A | N34: N/A | O34: N/A | P34: N/A | Q34: N/A | R34: N/A | S34: N/A | T34: N/A | U34: N/A | V34: N/A | BB34: No | BC34: N/A | BD34: N/A | BE34: N/A | BF34: N/A | BG34: N/A | BH34: N/A | BI34: N/A | BJ34: N/A | BK34: N/A | BL34: N/A | BM34: N/A | BN34: N/A | BO34: N/A | BP34: N/A | BQ34: N/A | BR34: N/A | BS34: N/A | BT34: N/A | BU34: N/A | BV34: N/A
A35: Water source on premises | B35: Yes | C35: 0.2777472518 | D35: 0 | E35: 0.0920221713 | F35: 0.2694613682 | G35: 27.57096508 | H35: 5.163403392 | I35: 23.58772869 | J35: 57.60435035 | K35: 83.62846101 | L35: 95.94444236 | M35: 0.2307255588 | N35: 0 | O35: 0.101952451 | P35: 0.1083960657 | Q35: 2.635322091 | R35: 61.49447714 | S35: 3.632878989 | T35: 1.06758922 | U35: 0.8358756749 | V35: 3.044664208 | BA35: Water source on premises | BB35: Yes | BC35: N/A | BD35: N/A | BE35: N/A | BF35: N/A | BG35: N/A | BH35: N/A | BI35: N/A | BJ35: N/A | BK35: N/A | BL35: N/A | BM35: N/A | BN35: N/A | BO35: N/A | BP35: N/A | BQ35: N/A | BR35: N/A | BS35: N/A | BT35: N/A | BU35: N/A | BV35: N/A
B36: No | C36: 99.72225275 | D36: 100 | E36: 99.90797783 | F36: 99.73053863 | G36: 72.42903492 | H36: 94.83659661 | I36: 76.41227131 | J36: 42.39564965 | K36: 16.37153899 | L36: 4.05555764 | M36: 99.76927444 | N36: 100 | O36: 99.89804755 | P36: 99.89160393 | Q36: 97.36467791 | R36: 38.50552286 | S36: 96.36712101 | T36: 98.93241078 | U36: 99.16412433 | V36: 96.95533579 | BB36: No | BC36: N/A | BD36: N/A | BE36: N/A | BF36: N/A | BG36: N/A | BH36: N/A | BI36: N/A | BJ36: N/A | BK36: N/A | BL36: N/A | BM36: N/A | BN36: N/A | BO36: N/A | BP36: N/A | BQ36: N/A | BR36: N/A | BS36: N/A | BT36: N/A | BU36: N/A | BV36: N/A
A37: Improved Water source on premises | B37: Yes | C37: 0.3668870378 | D37: 0 | E37: 0.1185772621 | F37: 0.3655004233 | G37: 30.27686197 | H37: 5.71830829 | I37: 23.68225654 | J37: 57.61510136 | K37: 84.28762546 | L37: 95.94444236 | M37: 0.3043003601 | N37: 0 | O37: 0.1301984189 | P37: 0.147016769 | Q37: 3.231791359 | R37: 62.85934193 | S37: 4.540297736 | T37: 1.287986701 | U37: 1.204604707 | V37: 4.014630568 | BA37: Improved water source on premises | BB37: Yes | BC37: N/A | BD37: N/A | BE37: N/A | BF37: N/A | BG37: N/A | BH37: N/A | BI37: N/A | BJ37: N/A | BK37: N/A | BL37: N/A | BM37: N/A | BN37: N/A | BO37: N/A | BP37: N/A | BQ37: N/A | BR37: N/A | BS37: N/A | BT37: N/A | BU37: N/A | BV37: N/A
B38: No | C38: 99.63311296 | D38: 100 | E38: 99.88142274 | F38: 99.63449958 | G38: 69.72313803 | H38: 94.28169171 | I38: 76.31774346 | J38: 42.38489864 | K38: 15.71237454 | L38: 4.05555764 | M38: 99.69569964 | N38: 100 | O38: 99.86980158 | P38: 99.85298323 | Q38: 96.76820864 | R38: 37.14065807 | S38: 95.45970226 | T38: 98.7120133 | U38: 98.79539529 | V38: 95.98536943 | BB38: No | BC38: N/A | BD38: N/A | BE38: N/A | BF38: N/A | BG38: N/A | BH38: N/A | BI38: N/A | BJ38: N/A | BK38: N/A | BL38: N/A | BM38: N/A | BN38: N/A | BO38: N/A | BP38: N/A | BQ38: N/A | BR38: N/A | BS38: N/A | BT38: N/A | BU38: N/A | BV38: N/A
A39: Piped water on premises available when needed | B39: Yes | C39: N/A | D39: N/A | E39: N/A | F39: N/A | G39: N/A | H39: N/A | I39: N/A | J39: N/A | K39: N/A | L39: N/A | M39: N/A | N39: N/A | O39: N/A | P39: N/A | Q39: N/A | R39: N/A | S39: N/A | T39: N/A | U39: N/A | V39: N/A | BA39: Piped water on premises available when needed | BB39: Yes | BC39: N/A | BD39: N/A | BE39: N/A | BF39: N/A | BG39: N/A | BH39: N/A | BI39: N/A | BJ39: N/A | BK39: N/A | BL39: N/A | BM39: N/A | BN39: N/A | BO39: N/A | BP39: N/A | BQ39: N/A | BR39: N/A | BS39: N/A | BT39: N/A | BU39: N/A | BV39: N/A
B40: No | C40: N/A | D40: N/A | E40: N/A | F40: N/A | G40: N/A | H40: N/A | I40: N/A | J40: N/A | K40: N/A | L40: N/A | M40: N/A | N40: N/A | O40: N/A | P40: N/A | Q40: N/A | R40: N/A | S40: N/A | T40: N/A | U40: N/A | V40: N/A | BB40: No | BC40: N/A | BD40: N/A | BE40: N/A | BF40: N/A | BG40: N/A | BH40: N/A | BI40: N/A | BJ40: N/A | BK40: N/A | BL40: N/A | BM40: N/A | BN40: N/A | BO40: N/A | BP40: N/A | BQ40: N/A | BR40: N/A | BS40: N/A | BT40: N/A | BU40: N/A | BV40: N/A
A41: Water point at more than 30 minutes | B41: Yes | C41: 29.47816428 | D41: 30.45936654 | E41: 25.55890181 | F41: 26.55811783 | G41: 17.67640199 | H41: 21.55025224 | I41: 8.924773031 | J41: 4.43252364 | K41: 3.051938307 | L41: 0 | M41: 29.8581764 | N41: 30.33519965 | O41: 26.34019831 | P41: 25.55077829 | Q41: 27.34381144 | R41: 8.065759566 | S41: 19.97818975 | T41: 37.08855006 | U41: 21.01552502 | V41: 26.51872369 | BA41: Water point at more than 30 minutes | BB41: Yes | BC41: N/A | BD41: N/A | BE41: N/A | BF41: N/A | BG41: N/A | BH41: N/A | BI41: N/A | BJ41: N/A | BK41: N/A | BL41: N/A | BM41: N/A | BN41: N/A | BO41: N/A | BP41: N/A | BQ41: N/A | BR41: N/A | BS41: N/A | BT41: N/A | BU41: N/A | BV41: N/A
B42: No | C42: 70.52183572 | D42: 69.54063346 | E42: 74.44109819 | F42: 73.44188217 | G42: 82.32359801 | H42: 78.44974776 | I42: 91.07522697 | J42: 95.56747636 | K42: 96.94806169 | L42: 100 | M42: 70.1418236 | N42: 69.66480035 | O42: 73.65980169 | P42: 74.44922171 | Q42: 72.65618856 | R42: 91.93424043 | S42: 80.02181025 | T42: 62.91144994 | U42: 78.98447498 | V42: 73.48127631 | BB42: No | BC42: N/A | BD42: N/A | BE42: N/A | BF42: N/A | BG42: N/A | BH42: N/A | BI42: N/A | BJ42: N/A | BK42: N/A | BL42: N/A | BM42: N/A | BN42: N/A | BO42: N/A | BP42: N/A | BQ42: N/A | BR42: N/A | BS42: N/A | BT42: N/A | BU42: N/A | BV42: N/A
A43: Water source available when needed | B43: Yes | C43: N/A | D43: N/A | E43: N/A | F43: N/A | G43: N/A | H43: N/A | I43: N/A | J43: N/A | K43: N/A | L43: N/A | M43: N/A | N43: N/A | O43: N/A | P43: N/A | Q43: N/A | R43: N/A | S43: N/A | T43: N/A | U43: N/A | V43: N/A | BA43: Water source available when needed | BB43: Yes | BC43: N/A | BD43: N/A | BE43: N/A | BF43: N/A | BG43: N/A | BH43: N/A | BI43: N/A | BJ43: N/A | BK43: N/A | BL43: N/A | BM43: N/A | BN43: N/A | BO43: N/A | BP43: N/A | BQ43: N/A | BR43: N/A | BS43: N/A | BT43: N/A | BU43: N/A | BV43: N/A
B44: No | C44: N/A | D44: N/A | E44: N/A | F44: N/A | G44: N/A | H44: N/A | I44: N/A | J44: N/A | K44: N/A | L44: N/A | M44: N/A | N44: N/A | O44: N/A | P44: N/A | Q44: N/A | R44: N/A | S44: N/A | T44: N/A | U44: N/A | V44: N/A | BB44: No | BC44: N/A | BD44: N/A | BE44: N/A | BF44: N/A | BG44: N/A | BH44: N/A | BI44: N/A | BJ44: N/A | BK44: N/A | BL44: N/A | BM44: N/A | BN44: N/A | BO44: N/A | BP44: N/A | BQ44: N/A | BR44: N/A | BS44: N/A | BT44: N/A | BU44: N/A | BV44: N/A
A45: Improved water source available when needed | B45: Yes | C45: N/A | D45: N/A | E45: N/A | F45: N/A | G45: N/A | H45: N/A | I45: N/A | J45: N/A | K45: N/A | L45: N/A | M45: N/A | N45: N/A | O45: N/A | P45: N/A | Q45: N/A | R45: N/A | S45: N/A | T45: N/A | U45: N/A | V45: N/A | BA45: Improved water source available when needed | BB45: Yes | BC45: N/A | BD45: N/A | BE45: N/A | BF45: N/A | BG45: N/A | BH45: N/A | BI45: N/A | BJ45: N/A | BK45: N/A | BL45: N/A | BM45: N/A | BN45: N/A | BO45: N/A | BP45: N/A | BQ45: N/A | BR45: N/A | BS45: N/A | BT45: N/A | BU45: N/A | BV45: N/A
B46: No | C46: N/A | D46: N/A | E46: N/A | F46: N/A | G46: N/A | H46: N/A | I46: N/A | J46: N/A | K46: N/A | L46: N/A | M46: N/A | N46: N/A | O46: N/A | P46: N/A | Q46: N/A | R46: N/A | S46: N/A | T46: N/A | U46: N/A | V46: N/A | BB46: No | BC46: N/A | BD46: N/A | BE46: N/A | BF46: N/A | BG46: N/A | BH46: N/A | BI46: N/A | BJ46: N/A | BK46: N/A | BL46: N/A | BM46: N/A | BN46: N/A | BO46: N/A | BP46: N/A | BQ46: N/A | BR46: N/A | BS46: N/A | BT46: N/A | BU46: N/A | BV46: N/A
A47: Microbiological quality at point of collection | B47: Not contaminated (No E. coli in 100 mL) | C47: N/A | D47: N/A | E47: N/A | F47: N/A | G47: N/A | H47: N/A | I47: N/A | J47: N/A | K47: N/A | L47: N/A | M47: N/A | N47: N/A | O47: N/A | P47: N/A | Q47: N/A | R47: N/A | S47: N/A | T47: N/A | U47: N/A | V47: N/A | BA47: Microbiological quality at point of collection | BB47: Not contaminated (No E. coli in 100 mL) | BC47: N/A | BD47: N/A | BE47: N/A | BF47: N/A | BG47: N/A | BH47: N/A | BI47: N/A | BJ47: N/A | BK47: N/A | BL47: N/A | BM47: N/A | BN47: N/A | BO47: N/A | BP47: N/A | BQ47: N/A | BR47: N/A | BS47: N/A | BT47: N/A | BU47: N/A | BV47: N/A
B48: Contaminated (E. coli detected in 100 mL) | C48: N/A | D48: N/A | E48: N/A | F48: N/A | G48: N/A | H48: N/A | I48: N/A | J48: N/A | K48: N/A | L48: N/A | M48: N/A | N48: N/A | O48: N/A | P48: N/A | Q48: N/A | R48: N/A | S48: N/A | T48: N/A | U48: N/A | V48: N/A | BB48: Contaminated (E. coli detected in 100 mL) | BC48: N/A | BD48: N/A | BE48: N/A | BF48: N/A | BG48: N/A | BH48: N/A | BI48: N/A | BJ48: N/A | BK48: N/A | BL48: N/A | BM48: N/A | BN48: N/A | BO48: N/A | BP48: N/A | BQ48: N/A | BR48: N/A | BS48: N/A | BT48: N/A | BU48: N/A | BV48: N/A
B49: Highly contaminated (>100 CFU/100 mL) | C49: N/A | D49: N/A | E49: N/A | F49: N/A | G49: N/A | H49: N/A | I49: N/A | J49: N/A | K49: N/A | L49: N/A | M49: N/A | N49: N/A | O49: N/A | P49: N/A | Q49: N/A | R49: N/A | S49: N/A | T49: N/A | U49: N/A | V49: N/A | BB49: Highly contaminated (>100 CFU/100 mL) | BC49: N/A | BD49: N/A | BE49: N/A | BF49: N/A | BG49: N/A | BH49: N/A | BI49: N/A | BJ49: N/A | BK49: N/A | BL49: N/A | BM49: N/A | BN49: N/A | BO49: N/A | BP49: N/A | BQ49: N/A | BR49: N/A | BS49: N/A | BT49: N/A | BU49: N/A | BV49: N/A
A50: Microbiological quality of improved water sources at point of collection | B50: Not contaminated (No E. coli in 100 mL) | C50: N/A | D50: N/A | E50: N/A | F50: N/A | G50: N/A | H50: N/A | I50: N/A | J50: N/A | K50: N/A | L50: N/A | M50: N/A | N50: N/A | O50: N/A | P50: N/A | Q50: N/A | R50: N/A | S50: N/A | T50: N/A | U50: N/A | V50: N/A | BA50: Microbiological quality of improved water sources at point of collection | BB50: Not contaminated (No E. coli in 100 mL) | BC50: N/A | BD50: N/A | BE50: N/A | BF50: N/A | BG50: N/A | BH50: N/A | BI50: N/A | BJ50: N/A | BK50: N/A | BL50: N/A | BM50: N/A | BN50: N/A | BO50: N/A | BP50: N/A | BQ50: N/A | BR50: N/A | BS50: N/A | BT50: N/A | BU50: N/A | BV50: N/A
B51: Contaminated (E. coli detected in 100 mL) | C51: N/A | D51: N/A | E51: N/A | F51: N/A | G51: N/A | H51: N/A | I51: N/A | J51: N/A | K51: N/A | L51: N/A | M51: N/A | N51: N/A | O51: N/A | P51: N/A | Q51: N/A | R51: N/A | S51: N/A | T51: N/A | U51: N/A | V51: N/A | BB51: Contaminated (E. coli detected in 100 mL) | BC51: N/A | BD51: N/A | BE51: N/A | BF51: N/A | BG51: N/A | BH51: N/A | BI51: N/A | BJ51: N/A | BK51: N/A | BL51: N/A | BM51: N/A | BN51: N/A | BO51: N/A | BP51: N/A | BQ51: N/A | BR51: N/A | BS51: N/A | BT51: N/A | BU51: N/A | BV51: N/A
B52: Highly contaminated (>100 CFU/100 mL) | C52: N/A | D52: N/A | E52: N/A | F52: N/A | G52: N/A | H52: N/A | I52: N/A | J52: N/A | K52: N/A | L52: N/A | M52: N/A | N52: N/A | O52: N/A | P52: N/A | Q52: N/A | R52: N/A | S52: N/A | T52: N/A | U52: N/A | V52: N/A | BB52: Highly contaminated (>100 CFU/100 mL) | BC52: N/A | BD52: N/A | BE52: N/A | BF52: N/A | BG52: N/A | BH52: N/A | BI52: N/A | BJ52: N/A | BK52: N/A | BL52: N/A | BM52: N/A | BN52: N/A | BO52: N/A | BP52: N/A | BQ52: N/A | BR52: N/A | BS52: N/A | BT52: N/A | BU52: N/A | BV52: N/A
A53: Microbiological quality of piped on premises at point of collection | B53: Not contaminated (No E. coli in 100 mL) | C53: N/A | D53: N/A | E53: N/A | F53: N/A | G53: N/A | H53: N/A | I53: N/A | J53: N/A | K53: N/A | L53: N/A | M53: N/A | N53: N/A | O53: N/A | P53: N/A | Q53: N/A | R53: N/A | S53: N/A | T53: N/A | U53: N/A | V53: N/A | BA53: Microbiological quality of piped on premises at point of collection | BB53: Not contaminated (No E. coli in 100 mL) | BC53: N/A | BD53: N/A | BE53: N/A | BF53: N/A | BG53: N/A | BH53: N/A | BI53: N/A | BJ53: N/A | BK53: N/A | BL53: N/A | BM53: N/A | BN53: N/A | BO53: N/A | BP53: N/A | BQ53: N/A | BR53: N/A | BS53: N/A | BT53: N/A | BU53: N/A | BV53: N/A
B54: Contaminated (E. coli detected in 100 mL) | C54: N/A | D54: N/A | E54: N/A | F54: N/A | G54: N/A | H54: N/A | I54: N/A | J54: N/A | K54: N/A | L54: N/A | M54: N/A | N54: N/A | O54: N/A | P54: N/A | Q54: N/A | R54: N/A | S54: N/A | T54: N/A | U54: N/A | V54: N/A | BB54: Contaminated (E. coli detected in 100 mL) | BC54: N/A | BD54: N/A | BE54: N/A | BF54: N/A | BG54: N/A | BH54: N/A | BI54: N/A | BJ54: N/A | BK54: N/A | BL54: N/A | BM54: N/A | BN54: N/A | BO54: N/A | BP54: N/A | BQ54: N/A | BR54: N/A | BS54: N/A | BT54: N/A | BU54: N/A | BV54: N/A
B55: Highly contaminated (>100 CFU/100 mL) | C55: N/A | D55: N/A | E55: N/A | F55: N/A | G55: N/A | H55: N/A | I55: N/A | J55: N/A | K55: N/A | L55: N/A | M55: N/A | N55: N/A | O55: N/A | P55: N/A | Q55: N/A | R55: N/A | S55: N/A | T55: N/A | U55: N/A | V55: N/A | BB55: Highly contaminated (>100 CFU/100 mL) | BC55: N/A | BD55: N/A | BE55: N/A | BF55: N/A | BG55: N/A | BH55: N/A | BI55: N/A | BJ55: N/A | BK55: N/A | BL55: N/A | BM55: N/A | BN55: N/A | BO55: N/A | BP55: N/A | BQ55: N/A | BR55: N/A | BS55: N/A | BT55: N/A | BU55: N/A | BV55: N/A
C56: NATIONAL wealth index quintile | H56: URBAN wealth index quintile | M56: RURAL wealth index quintile | R56: SUB-REGIONS: | BA56: Raw numbers of respondents: | BB56: Use of drinking water sources | BC56: NATIONAL wealth index quintile | BH56: URBAN wealth index quintile | BM56: RURAL wealth index quintile | BR56: SUB-REGIONS:
A57: Percentage based on weighted population | C57: Poorest | D57: Poor | E57: Middle | F57: Rich | G57: Richest | H57: Poorest | I57: Poor | J57: Middle | K57: Rich | L57: Richest | M57: Poorest | N57: Poor | O57: Middle | P57: Rich | Q57: Richest | R57: Bujumbura Mairie | S57: Centre-Est | T57: Nord | U57: Ouest | V57: Sud | BA57: Water data, raw numbers (weighted) | BC57: Poorest | BD57: Poor | BE57: Middle | BF57: Rich | BG57: Richest | BH57: Poorest | BI57: Poor | BJ57: Middle | BK57: Rich | BL57: Richest | BM57: Poorest | BN57: Poor | BO57: Middle | BP57: Rich | BQ57: Richest | BR57: Bujumbura Mairie | BS57: Centre-Est | BT57: Nord | BU57: Ouest | BV57: Sud
A58: Source of drinking water | B58: Piped into dwelling | C58: 0 | D58: 0 | E58: 0 | F58: 0 | G58: 5.355248667 | H58: 0.1718651873 | I58: 2.846029144 | J58: 3.15827734 | K58: 8.210878733 | L58: 40.30909448 | M58: 0 | N58: 0 | O58: 0 | P58: 0 | Q58: 0.09376482952 | R58: 11.61151859 | S58: 1.111906545 | T58: 0.205675935 | U58: 0 | V58: 0.1852468586
B59: Piped to yard/plot | C59: 0.1396339965 | D59: 0 | E59: 0.0920221713 | F59: 0.2694613682 | G59: 22.17967229 | H59: 4.673981447 | I59: 20.72305566 | J59: 54.3341127 | K59: 75.26570081 | L59: 55.63534788 | M59: 0.101313291 | N59: 0 | O59: 0.101952451 | P59: 0.1083960657 | Q59: 2.541557261 | R59: 49.88295855 | S59: 2.419408751 | T59: 0.8419468777 | U59: 0.8358756749 | V59: 2.848005088
B60: Public tap/standpipe | C60: 21.42050622 | D60: 18.90733136 | E60: 24.01622767 | F60: 21.48216928 | G60: 28.48228943 | H60: 53.87185469 | I60: 50.01612299 | J60: 22.23722834 | K60: 8.54263672 | L60: 2.208529653 | M60: 21.91645351 | N60: 16.65637712 | O60: 25.36131526 | P60: 20.10895696 | Q60: 27.88955011 | R60: 26.38744931 | S60: 16.64332886 | T60: 7.741878434 | U60: 39.49057894 | V60: 37.86932879
B61: Private tap/neighbor | C61: 0.7899751291 | D61: 0.3610603038 | E61: 0.9334833484 | F61: 0.7421326581 | G61: 6.113950106 | H61: 12.9708464 | I61: 19.40547845 | J61: 18.1352033 | K61: 6.456147947 | L61: 1.405372354 | M61: 0.2071735262 | N61: 0.8170734477 | O61: 0.5522007886 | P61: 1.067274876 | Q61: 1.082400547 | R61: 9.571013266 | S61: 0.304120639 | T61: 0.5592295889 | U61: 3.129553863 | V61: 2.063450124
B62: Tube well or borehole | C62: 0 | D62: 0 | E62: 0.1991071101 | F62: 0.6324516005 | G62: 0 | H62: 0 | I62: 0 | J62: 0 | K62: 0 | L62: 0 | M62: 0 | N62: 0 | O62: 0.2205931201 | P62: 0.1838044119 | Q62: 0.5140249064 | R62: 0 | S62: 0 | T62: 0.5483719244 | U62: 0 | V62: 0
B63: Protected well | C63: 2.90348388 | D63: 4.218551174 | E63: 3.26950823 | F63: 4.450465252 | G63: 4.336002396 | H63: 1.189779992 | I63: 1.576637166 | J63: 0 | K63: 0 | L63: 0 | M63: 2.965077594 | N63: 3.884558863 | O63: 3.589717224 | P63: 3.994980735 | Q63: 6.47272369 | R63: 0 | S63: 5.398124856 | T63: 4.305401738 | U63: 0.175830479 | V63: 5.570648283
B64: Unprotected well | C64: 1.779156503 | D64: 2.467129878 | E64: 2.291496824 | F64: 2.196259235 | G64: 1.610056704 | H64: 0.8812636622 | I64: 0 | J64: 0 | K64: 0 | L64: 0 | M64: 1.675521091 | N64: 1.964618804 | O64: 2.460305107 | P64: 2.68607305 | Q64: 2.557198978 | R64: 0 | S64: 2.070726307 | T64: 1.122183253 | U64: 0.5045842641 | V64: 5.569466979
B65: Protected spring | C65: 50.45015238 | D65: 53.66195203 | E65: 49.09489356 | F65: 46.14727501 | G65: 24.48895028 | H65: 15.71715006 | I65: 4.796621334 | J65: 2.005419888 | K65: 0.7425940068 | L65: 0 | M65: 50.63163368 | N65: 54.71620926 | O65: 48.47966593 | P65: 48.26699635 | Q65: 42.94967371 | R65: 0.1944447621 | S65: 54.13722397 | T65: 68.2110168 | U65: 25.75819997 | V65: 27.31001774
B66: Unprotected spring | C66: 15.07409856 | D66: 14.53466021 | E66: 15.29763067 | F66: 16.73954952 | G66: 6.036101411 | H66: 4.111457097 | I66: 0 | J66: 0.01866005153 | K66: 0.7820417829 | L66: 0 | M66: 14.81891739 | N66: 15.7257541 | O66: 15.18455894 | P66: 16.05866446 | Q66: 12.52745766 | R66: 0 | S66: 13.44222092 | T66: 12.79640097 | U66: 22.43343923 | V66: 10.66236957
B67: River/dam/lake/ponds/stream/canal/irrigation channel | C67: 7.397715318 | D67: 5.849315049 | E67: 4.805630425 | F67: 7.068217202 | G67: 1.168590285 | H67: 6.314560626 | I67: 0.3991505228 | J67: 0 | K67: 0 | L67: 0 | M67: 7.633879307 | N67: 6.235408409 | O67: 4.049691178 | P67: 7.224445252 | Q67: 3.212853348 | R67: 2.171299843 | S67: 4.472939148 | T67: 3.566913326 | U67: 7.671937583 | V67: 7.577988782
B68: Bottled water | C68: 0 | D68: 0 | E68: 0 | F68: 0 | G68: 0.07610684781 | H68: 0 | I68: 0.2369047341 | J68: 0.1110983752 | K68: 0 | L68: 0.4416556328 | M68: 0 | N68: 0 | O68: 0 | P68: 0 | Q68: 0 | R68: 0.1813156867 | S68: 0 | T68: 0 | U68: 0 | V68: 0.02293293584
B69: Other | C69: 0.04527801421 | D69: 0 | E69: 0 | F69: 0.2720188712 | G69: 0.1530315846 | H69: 0.09724084137 | I69: 0 | J69: 0 | K69: 0 | L69: 0 | M69: 0.05003061369 | N69: 0 | O69: 0 | P69: 0.3004078426 | Q69: 0.15879496 | R69: 0 | S69: 0 | T69: 0.1009811621 | U69: 0 | V69: 0.3205448512
A108: =A1026 -> Burundi
A109: =A1034 -> 2012
A110: Use of sanitation facilities
A111: by wealth quintile and sub-national region
A112: Notes:
A113: WHO/UNICEF JMP customised wealth index excludes water,
A114: sanitation and hygiene assets.
A115: Survey used for analysis: | B115: =A1025 -> MIS12
A116: =B1030 -> 
A117: =B1029 -> 
A120: Use of sanitation facilities | C120: NATIONAL wealth index quintile | H120: URBAN wealth index quintile | M120: RURAL wealth index quintile | R120: SUB-REGIONS: | BA120: Raw numbers of respondents: | BB120: Use of sanitation facilities | BC120: NATIONAL wealth index quintile | BH120: URBAN wealth index quintile | BM120: RURAL wealth index quintile | BR120: SUB-REGIONS:
A121: Weighted percentage (used in graphs) | C121: Poorest | D121: Poor | E121: Middle | F121: Rich | G121: Richest | H121: Poorest | I121: Poor | J121: Middle | K121: Rich | L121: Richest | M121: Poorest | N121: Poor | O121: Middle | P121: Rich | Q121: Richest | R121: Bujumbura Mairie | S121: Centre-Est | T121: Nord | U121: Ouest | V121: Sud | BA121: Sanitation data, raw numbers (weighted) | BC121: Poorest | BD121: Poor | BE121: Middle | BF121: Rich | BG121: Richest | BH121: Poorest | BI121: Poor | BJ121: Middle | BK121: Rich | BL121: Richest | BM121: Poorest | BN121: Poor | BO121: Middle | BP121: Rich | BQ121: Richest | BR121: Bujumbura Mairie | BS121: Centre-Est | BT121: Nord | BU121: Ouest | BV121: Sud
